Workbook

Sheet 00_note (hidden)
B2: ○命名規則：AABBCCDD | G2: ○シート：一覧 | K2: ○シート：引用関係
B3: AA | D3: 01 | E3: 01_displayed | G3: 種類 | H3: シート名 | I3: 公開版のシート名 | L3: シート名 | M3: 引用 | N3: 被引用
D4: 02 | E4: 02_backGround | G4: 【01_入力】 | H4: 010101_入力 | I4: 01_入力 | K4: 【01_入力】 | L4: 010101_入力 | M4: 010102_プルダウンリスト | N4: 010201_空き家管理関連コスト
B5: BB | D5: 01 | E5: 01_入力 | H5: 020102_プルダウンリスト | I5: （非表示） | M5: - | N5: 02041011_FreqKanri
D6: 02 | E6: 02_出力 | G6: 【02_出力】 | H6: 010201_空き家管理関連コスト | I6: 02_コスト（シナリオ別） | M6: - | N6: 02041031_JissiUmu
D7: 03 | E7: 03_算出 | H7: 010211_シナリオ別・項目別コスト推移 | I7: 02_コスト（項目別） | M7: - | N7: 02041021_UCostKanri
D8: 04 | E8: 04_原単位データ | G8: 【03_算出】 | H8: 020311_CostKanri(Yr) | I8: （非表示） | M8: - | N8: 02042011_FreqTaio
B9: CC | C9: BB=01 | D9: ## | E9: 通し番号 | H9: 020321_CostTaio | I9: （非表示） | M9: - | N9: 02042022_UCostTaio2Tokurei
C10: BB=02 | D10: ## | E10: 通し番号 | H10: 020322_CostTaioYr | I10: （非表示） | M10: - | N10: 02042041_ProbLvTa
C11: BB=03 | D11: 10 | E11: Kanri | H11: 020331_CostOthr | I11: （非表示） | M11: - | N11: 02043021_UCostOthr
D12: 20 | E12: Taio | G12: 【04_原単位データ】 | H12: 02041011_FreqKanri | I12: （非表示） | L12: 010102_プルダウンリスト | M12: - | N12: 010101_入力
D13: 30 | E13: Others | H13: 02041021_UCostKanri | I13: （非表示） | K13: 【02_出力】 | L13: 010201_空き家管理関連コスト | M13: 010211_シナリオ別コスト推移 | N13: -
C14: BB=04 | D14: 10 | E14: Kanri | H14: 02041031_JissiUmu | I14: （非表示） | M14: 02041011_FreqKanri | N14: -
D15: 20 | E15: Taio | H15: 02042011_FreqTaio | I15: （非表示） | M15: 02041031_JissiUmu | N15: -
D16: 30 | E16: Others | H16: 02042012_FreqTaio_LogNormDist | I16: （非表示） | L16: 010211_シナリオ別・項目別コスト推移 | M16: 020311_CostKanri(Yr) | N16: 010201_空き家管理関連コスト
B17: DD | C17: BB=04 | D17: 1# | E17: Frequency | H17: 02042021_UCostTaio | I17: （非表示） | M17: 020321_CostTaio | N17: -
D18: 2# | E18: UnitCost | H18: 02042022_UCostTaio2Tokurei | I18: （非表示） | M18: 020331_CostOthr | N18: -
D19: 3#,4# | E19: Others | H19: 02042041_ProbLvTa | I19: （非表示） | M19: 02041031_JissiUmu | N19: -
H20: 02043021_UCostOthr | I20: （非表示） | K20: 【03_算出】 | L20: 020311_CostKanri(Yr) | M20: 02041011_FreqKanri | N20: 010211_シナリオ別コスト推移
G21: 【sozai】 | H21: for_02041011_FreqKanri | I21: （非表示） | M21: 02041031_JissiUmu | N21: -
H22: for_02041031_JissiUmu | I22: （非表示） | M22: 02041021_UCostKanri | N22: -
H23: for_02041031_JissiUmu_2 | I23: （非表示） | L23: 020321_CostTaio | M23: 020322_CostTaioYr | N23: 010211_シナリオ別コスト推移
H24: for_02042041_ProbLvTa | I24: （非表示） | M24: 02042041_ProbLvTa | N24: -
L25: 020322_CostTaioYr | M25: 02042011_FreqTaio | N25: 020321_CostTaio
M26: 02042021_UCostTaio | N26: -
L27: 020331_CostOthr | M27: 02043021_UCostOthr | N27: 010211_シナリオ別コスト推移
K28: 【04_原単位データ】 | L28: 02041011_FreqKanri | M28: for_02041011_FreqKanri | N28: 010201_空き家管理関連コスト
M29: - | N29: 020311_CostKanri(Yr)
L30: 02041031_JissiUmu | M30: for_02041031_JissiUmu | N30: 010201_空き家管理関連コスト
M31: for_02041031_JissiUmu_2 | N31: 010211_シナリオ別コスト推移
M32: - | N32: 020311_CostKanri(Yr)
L33: 02041021_UCostKanri | M33: - | N33: 020311_CostKanri(Yr)
L34: 02042011_FreqTaio | M34: 02042012_FreqTaio_LogNormDist | N34: 020322_CostTaioYr
L35: 02042012_FreqTaio_LogNormDist | M35: - | N35: 02042011_FreqTaio
L36: 02042021_UCostTaio | M36: 02042022_UCostTaio2Tokurei | N36: 020322_CostTaioYr
L37: 02042022_UCostTaio2Tokurei | M37: - | N37: 02042021_UCostTaio
N38: 02043021_UCostOthr
L39: 02042041_ProbLvTa | M39: for_02042041_ProbLvTa | N39: 020321_CostTaio
L40: 02043021_UCostOthr | M40: 02042022_UCostTaio2Tokurei | N40: 020331_CostOthr
K41: 【sozai】 | L41: for_02041011_FreqKanri | M41: - | N41: 02041011_FreqKanri
L42: for_02041031_JissiUmu | M42: - | N42: 02041031_JissiUmu
M43: - | N43: for_02041031_JissiUmu_2
L44: for_02041031_JissiUmu_2 | M44: for_02041031_JissiUmu | N44: 02041031_JissiUmu
L45: for_02042041_ProbLvTa | M45: - | N45: 02042041_ProbLvTa
L46: for_010101_listSkcs_byTdfk | M46: - | N46: 010101_入力
L47: for_010101_listJH01-07 | M47: - | N47: 010101_入力
L48: for_010101_listJH_08-14 | M48: - | N48: 010101_入力
L49: for_010101_listJH_15-21 | M49: - | N49: 010101_入力
L50: for_010101_listJH_22-28 | M50: - | N50: 010101_入力
L51: for_010101_listJH_29-35 | M51: - | N51: 010101_入力
L52: for_010101_listJH_36-42 | M52: - | N52: 010101_入力
L53: for_010101_listJH_43-47 | M53: - | N53: 010101_入力
L54: for_010101_listKojiChika | M54: - | N54: 010101_入力

Sheet 【01_入力】 (hidden)

Sheet 01_入力
B1: ※行・列の挿入・削除を行わないでください。（計算ができなくなります。）
B3: 入力（基礎情報）
I4: 1 | N4: 2 | S4: 3
C5: ○空き家に関する情報の入力
D6: 自宅から空き家までの距離
D7: 空き家の現状（右からもっとも近い状態の画像を選んでください）
D8: 築後経過年数
D10: 住宅の延床面積（おおよそ）
D11: 敷地の面積（おおよそ）
D12: 空き家のある土地の1㎡あたりの価格（おおよそ）
D13: （地価を入力してください→） | E13: 地価［円／㎡］
D14: （選択してください→） | E14: 都道府県
D15: （選択してください→） | E15: 市区町村
D16: （選択してください→） | E16: 町丁目
E17: 地価［円／㎡］
D18: 住宅の構造
B21: 入力（オプション）
C23: ○空き家の管理に関する情報の入力 | I23: 4 | N23: 5 | S23: 6
D24: 空き家を訪れて管理を行う頻度
D26: 空き家を訪れて管理を行う項目
D27: 01_戸締まりの確認
D28: 02_住宅の通風･換気
D29: 03_住宅内の清掃
D30: 04_水回りなどの点検
D31: 05_郵便物､チラシなどの整理･処分
D32: 06_外回りの清掃､草取り､剪定など
D33: 07_傷み､雨漏りなどのチェック･修繕
D34: 08_台風､地震などの後の見回り
D35: 09_除排雪
D36: 10_その他の管理項目
C38: ○空き家を解体するタイミング
D39: 空き家を解体するとした場合、現在から何年後に行うかを選んでください。 （デフォルトでは「5年後」としています。）

Sheet 020102_プルダウンリスト (hidden)
A1: （非表示シート）
B2: ○空き家に関する情報の入力
C3: 自宅から空き家までの距離 | D3: 01_徒歩圏内
D4: 02_車・電車等で１時間以内
D5: 03_車・電車等で１時間超～３時間以内
D6: 04_車・電車等で３時間超
C8: 空き家の現状（最も近い状態の写真を選んでください） | D8: 1
D9: 2
D10: 3
D11: 4
D12: 5
D13: 6
C15: 築後経過年数 | D15: 01_築3年未満
D16: 02_築3～5年
D17: 03_築5～10年
D18: 04_築10~20年
D19: 05_築20～30年
D20: 06_築30～40年
D21: 07_築40～50年
D22: 08_築50年以上
C24: 空き家の延べ床面積（おおよそ） | D24: 01_29ｍ2以下
D25: 02_30～49ｍ2
D26: 03_50～69ｍ2
D27: 04_70～99ｍ2
D28: 05_100～149ｍ2
D29: 06_150ｍ2以上
C31: 敷地の面積（おおよそ） | D31: 01_49ｍ2以下
D32: 02_50～74ｍ2
D33: 03_75～99ｍ2
D34: 04_100～149ｍ2
D35: 05_150～199ｍ2
D36: 06_200～299ｍ2
D37: 07_300～499ｍ2
D38: 08_500～699ｍ2
D39: 09_700～999ｍ2
D40: 10_1000～1499ｍ2
D41: 11_1500ｍ2以上
C43: 公示地価
B46: ○空き家の管理に関する情報の入力
C47: 空き家を訪れて管理を行う頻度 | D47: 01_ほぼ毎日
D48: 02_週に2，3日
D49: 03_週に1日
D50: 04_月に2，3日
D51: 05_月に1日
D52: 06_年に2，3日
D53: 07_年に1日
D54: 08_年に1日よりも少ない頻度
C56: 空き家を訪れて管理を行う項目 | D56: 01_行っている
D57: 02_行っていない
C59: 住宅の構造 | D59: 01_木造
D60: 02_鉄骨造
D61: 03_RC
D62: 04_不明
B64: ○空き家を解体するタイミング
C65: 空き家を解体するタイミング：n年後 | D65: 1年後
D66: 2年後
D67: 3年後
D68: 4年後
D69: 5年後
D70: 6年後
D71: 7年後
D72: 8年後
D73: 9年後
D74: 10年後
B76: ○空き家に関する情報の入力
C77: 空き家の所在地の地価（おおよそ） | D77: ご自身で入力する
D78: 近くの住所の公示地価から選ぶ

Sheet 【02_出力】 (hidden)

Sheet 02_コスト（シナリオ別）
B2: 空き家管理関連コスト（シナリオ別）
D5: 試算の対象として想定した空き家
E6: 自宅から空き家までの距離 | F6: ='01_入力'!F6 -> 0
E7: 築後経過年数 | F7: ='01_入力'!F8 -> 0
E8: 空き家の状態 | F8: =IF('01_入力'!$F$7=1,"物的水準は概ね良好", IF('01_入力'!$F$7=2,"物的水準は良好", IF('01_入力'!$F$7=3,"物的水準は概ね良好", IF('01_入力'!$F$7=4,"物的水準は概ね良好", IF('01_入力'!$F$7=5,"管理不全状態に近い", IF('01_入力'!$F$7=6,"管理不全状態に近い")))))) -> FALSE
E9: 敷地の面積 | F9: ='01_入力'!F11 -> 0
D12: 空き家管理関連コスト（期間）［円］
F13: シナリオ１： 手厚い管理 を継続 | G13: シナリオ２： 標準的な管理 を継続 | H13: シナリオ３： 管理しない 状態を継続 | I13: シナリオ４： 現在行って いる管理を 継続 | J13: その他のコスト （解体費等）
E14: 期間コスト合計［円］ | F14: ='02_コスト（項目別）'!F18 ->  | G14: ='02_コスト（項目別）'!F34 ->  | H14: ='02_コスト（項目別）'!$F$51 ->  | I14: ='02_コスト（項目別）'!$F$67 ->  | J14: ='02_コスト（項目別）'!F75 -> 80000
E15: 1年あたりコスト［円］ | F15: =F14/10 ->  | G15: =G14/10 ->  | H15: =H14/10 ->  | I15: =I14/10 ->  | J15: =J14 -> 80000
J17: ※解体を
J18: ='02043021_UCostOthr'!$E$10 -> 5
J19: 年後に行う場合
D26: 空き家管理関連コスト（各年）［円］
E27: 管理関連コスト［円］ | F27: シナリオ１：手厚い管理を継続 | G27: シナリオ２：標準的な管理を継続 | H27: シナリオ３：管理しない状態を継続 | I27: シナリオ４：現在行っている管理を継続
E28: year1 | F28: ='02_コスト（項目別）'!F8 ->  | G28: ='02_コスト（項目別）'!F24 ->  | H28: ='02_コスト（項目別）'!F41 ->  | I28: ='02_コスト（項目別）'!F57 -> 
E29: year2 | F29: ='02_コスト（項目別）'!F9 ->  | G29: ='02_コスト（項目別）'!F25 ->  | H29: ='02_コスト（項目別）'!F42 ->  | I29: ='02_コスト（項目別）'!F58 -> 
E30: year3 | F30: ='02_コスト（項目別）'!F10 ->  | G30: ='02_コスト（項目別）'!F26 ->  | H30: ='02_コスト（項目別）'!F43 ->  | I30: ='02_コスト（項目別）'!F59 -> 
E31: year4 | F31: ='02_コスト（項目別）'!F11 ->  | G31: ='02_コスト（項目別）'!F27 ->  | H31: ='02_コスト（項目別）'!F44 ->  | I31: ='02_コスト（項目別）'!F60 -> 
E32: year5 | F32: ='02_コスト（項目別）'!F12 ->  | G32: ='02_コスト（項目別）'!F28 ->  | H32: ='02_コスト（項目別）'!F45 ->  | I32: ='02_コスト（項目別）'!F61 -> 
E33: year6 | F33: ='02_コスト（項目別）'!F13 ->  | G33: ='02_コスト（項目別）'!F29 ->  | H33: ='02_コスト（項目別）'!F46 ->  | I33: ='02_コスト（項目別）'!F62 -> 
E34: year7 | F34: ='02_コスト（項目別）'!F14 ->  | G34: ='02_コスト（項目別）'!F30 ->  | H34: ='02_コスト（項目別）'!F47 ->  | I34: ='02_コスト（項目別）'!F63 -> 
E35: year8 | F35: ='02_コスト（項目別）'!F15 ->  | G35: ='02_コスト（項目別）'!F31 ->  | H35: ='02_コスト（項目別）'!F48 ->  | I35: ='02_コスト（項目別）'!F64 -> 
E36: year9 | F36: ='02_コスト（項目別）'!F16 ->  | G36: ='02_コスト（項目別）'!F32 ->  | H36: ='02_コスト（項目別）'!F49 ->  | I36: ='02_コスト（項目別）'!F65 -> 
E37: year10 | F37: ='02_コスト（項目別）'!F17 ->  | G37: ='02_コスト（項目別）'!F33 ->  | H37: ='02_コスト（項目別）'!F50 ->  | I37: ='02_コスト（項目別）'!F66 -> 
D43: 試算において想定した管理の内容
F44: シナリオ１：手厚い管理を継続 | G44: シナリオ２：標準的な管理を継続 | H44: シナリオ３：管理しない状態を継続 | I44: シナリオ４：現在行っている管理を継続
E45: 1ヶ月に空き家を訪れる回数 | F45: =ROUNDUP('02041011_FreqKanri'!E11,0)&"回" -> 0回 | G45: =ROUNDUP('02041011_FreqKanri'!F11,0)&"回" -> 0回 | H45: =ROUNDUP('02041011_FreqKanri'!G11,0)&"回" -> 0回 | I45: =ROUNDUP('02041011_FreqKanri'!H11,0)&"回" -> 0回
E46: 空き家を訪れて行う管理の内容
E47: ='02041031_JissiUmu'!C12 -> 01_戸締まりの確認 | F47: =IF('02041031_JissiUmu'!D12=1,"実施する","") ->  | G47: =IF('02041031_JissiUmu'!E12=1,"実施する","") ->  | H47: =IF('02041031_JissiUmu'!F12=1,"実施する","") ->  | I47: =IF('02041031_JissiUmu'!G12=1,"実施する","") -> 
E48: ='02041031_JissiUmu'!C13 -> 02_住宅の通風･換気 | F48: =IF('02041031_JissiUmu'!D13=1,"実施する","") ->  | G48: =IF('02041031_JissiUmu'!E13=1,"実施する","") ->  | H48: =IF('02041031_JissiUmu'!F13=1,"実施する","") ->  | I48: =IF('02041031_JissiUmu'!G13=1,"実施する","") -> 
E49: ='02041031_JissiUmu'!C14 -> 03_住宅内の清掃 | F49: =IF('02041031_JissiUmu'!D14=1,"実施する","") ->  | G49: =IF('02041031_JissiUmu'!E14=1,"実施する","") ->  | H49: =IF('02041031_JissiUmu'!F14=1,"実施する","") ->  | I49: =IF('02041031_JissiUmu'!G14=1,"実施する","") -> 
E50: ='02041031_JissiUmu'!C15 -> 04_水回りなどの点検 | F50: =IF('02041031_JissiUmu'!D15=1,"実施する","") ->  | G50: =IF('02041031_JissiUmu'!E15=1,"実施する","") ->  | H50: =IF('02041031_JissiUmu'!F15=1,"実施する","") ->  | I50: =IF('02041031_JissiUmu'!G15=1,"実施する","") -> 
E51: ='02041031_JissiUmu'!C16 -> 05_郵便物､チラシなどの整理･処分 | F51: =IF('02041031_JissiUmu'!D16=1,"実施する","") ->  | G51: =IF('02041031_JissiUmu'!E16=1,"実施する","") ->  | H51: =IF('02041031_JissiUmu'!F16=1,"実施する","") ->  | I51: =IF('02041031_JissiUmu'!G16=1,"実施する","") -> 
E52: ='02041031_JissiUmu'!C17 -> 06_外回りの清掃､草取り､剪定など | F52: =IF('02041031_JissiUmu'!D17=1,"実施する","") ->  | G52: =IF('02041031_JissiUmu'!E17=1,"実施する","") ->  | H52: =IF('02041031_JissiUmu'!F17=1,"実施する","") ->  | I52: =IF('02041031_JissiUmu'!G17=1,"実施する","") -> 
E53: ='02041031_JissiUmu'!C18 -> 07_傷み､雨漏りなどのチェック･修繕 | F53: =IF('02041031_JissiUmu'!D18=1,"実施する","") ->  | G53: =IF('02041031_JissiUmu'!E18=1,"実施する","") ->  | H53: =IF('02041031_JissiUmu'!F18=1,"実施する","") ->  | I53: =IF('02041031_JissiUmu'!G18=1,"実施する","") -> 
E54: ='02041031_JissiUmu'!C19 -> 08_台風､地震などの後の見回り | F54: =IF('02041031_JissiUmu'!D19=1,"実施する","") ->  | G54: =IF('02041031_JissiUmu'!E19=1,"実施する","") ->  | H54: =IF('02041031_JissiUmu'!F19=1,"実施する","") ->  | I54: =IF('02041031_JissiUmu'!G19=1,"実施する","") -> 
E55: ='02041031_JissiUmu'!C20 -> 09_除排雪 | F55: =IF('02041031_JissiUmu'!D20=1,"実施する","") ->  | G55: =IF('02041031_JissiUmu'!E20=1,"実施する","") ->  | H55: =IF('02041031_JissiUmu'!F20=1,"実施する","") ->  | I55: =IF('02041031_JissiUmu'!G20=1,"実施する","") -> 
E56: ='02041031_JissiUmu'!C21 -> 10_その他の管理項目 | F56: =IF('02041031_JissiUmu'!D21=1,"実施する","") ->  | G56: =IF('02041031_JissiUmu'!E21=1,"実施する","") ->  | H56: =IF('02041031_JissiUmu'!F21=1,"実施する","") ->  | I56: =IF('02041031_JissiUmu'!G21=1,"実施する","") -> 

Sheet 02_コスト（項目別）
B2: 空き家管理関連コスト（シナリオ別・項目別）
D5: ［シナリオ１：手厚い管理を継続］の場合のコスト［円］
F6: 管理関連コスト | G6: 管理コスト | J6: 対応コスト
E7: ［円/年］ | F7: 合計 | G7: 小計 | H7: （１）管理に要する費用 | I7: （２）移動に要する費用 | J7: 小計 | K7: （３）周辺住民への対応に要する費用 | L7: （４）管理不全化により生じる費用
E8: year1 | F8: =SUM(G8,J8) ->  | G8: =SUM(H8:I8) -> 0 | H8: ='020311_CostKanri(Yr)'!$F$75 -> 0 | I8: ='020311_CostKanri(Yr)'!$F$76 -> 0 | J8: =SUM(K8:L8) ->  | K8: ='020321_CostTaio'!G13 ->  | L8: ='020321_CostTaio'!H13 -> 
E9: year2 | G9: 0 | H9: =H8 -> 0 | I9: =I8 -> 0 | K9: ='020321_CostTaio'!G14 ->  | L9: ='020321_CostTaio'!H14 -> 
E10: year3 | G10: 0 | H10: 0 | I10: 0 | K10: ='020321_CostTaio'!G15 ->  | L10: ='020321_CostTaio'!H15 -> 
E11: year4 | G11: 0 | H11: 0 | I11: 0 | K11: ='020321_CostTaio'!G16 ->  | L11: ='020321_CostTaio'!H16 -> 
E12: year5 | G12: 0 | H12: 0 | I12: 0 | K12: ='020321_CostTaio'!G17 ->  | L12: ='020321_CostTaio'!H17 -> 
E13: year6 | G13: 0 | H13: 0 | I13: 0 | K13: ='020321_CostTaio'!G18 ->  | L13: ='020321_CostTaio'!H18 -> 
E14: year7 | G14: 0 | H14: 0 | I14: 0 | K14: ='020321_CostTaio'!G19 ->  | L14: ='020321_CostTaio'!H19 -> 
E15: year8 | G15: 0 | H15: 0 | I15: 0 | K15: ='020321_CostTaio'!G20 ->  | L15: ='020321_CostTaio'!H20 -> 
E16: year9 | G16: 0 | H16: 0 | I16: 0 | K16: ='020321_CostTaio'!G21 ->  | L16: ='020321_CostTaio'!H21 -> 
E17: year10 | G17: 0 | H17: 0 | I17: 0 | K17: ='020321_CostTaio'!G22 ->  | L17: ='020321_CostTaio'!H22 -> 
E18: 計［円］ | F18: =SUM(F8:F17) ->  | G18: 0 | H18: 0 | I18: 0
D21: ［シナリオ２：標準的な管理を継続］の場合のコスト［円］
F22: 管理関連コスト | G22: 管理コスト | J22: 対応コスト
E23: ［円/年］ | F23: 合計 | G23: 小計 | H23: （１）管理に要する費用 | I23: （２）移動に要する費用 | J23: 小計 | K23: （３）周辺住民への対応に要する費用 | L23: （４）管理不全化により生じる費用
E24: year1 | F24: =SUM(G24,J24) ->  | G24: =SUM(H24:I24) -> 0 | H24: ='020311_CostKanri(Yr)'!$G$75 -> 0 | I24: ='020311_CostKanri(Yr)'!$G$76 -> 0 | J24: =SUM(K24:L24) ->  | K24: ='020321_CostTaio'!G27 ->  | L24: ='020321_CostTaio'!H27 -> 
E25: year2 | G25: 0 | H25: =H24 -> 0 | I25: =I24 -> 0 | K25: ='020321_CostTaio'!G28 ->  | L25: ='020321_CostTaio'!H28 -> 
E26: year3 | G26: 0 | H26: 0 | I26: 0 | K26: ='020321_CostTaio'!G29 ->  | L26: ='020321_CostTaio'!H29 -> 
E27: year4 | G27: 0 | H27: 0 | I27: 0 | K27: ='020321_CostTaio'!G30 ->  | L27: ='020321_CostTaio'!H30 -> 
E28: year5 | G28: 0 | H28: 0 | I28: 0 | K28: ='020321_CostTaio'!G31 ->  | L28: ='020321_CostTaio'!H31 -> 
E29: year6 | G29: 0 | H29: 0 | I29: 0 | K29: ='020321_CostTaio'!G32 ->  | L29: ='020321_CostTaio'!H32 -> 
E30: year7 | G30: 0 | H30: 0 | I30: 0 | K30: ='020321_CostTaio'!G33 ->  | L30: ='020321_CostTaio'!H33 -> 
E31: year8 | G31: 0 | H31: 0 | I31: 0 | K31: ='020321_CostTaio'!G34 ->  | L31: ='020321_CostTaio'!H34 -> 
E32: year9 | G32: 0 | H32: 0 | I32: 0 | K32: ='020321_CostTaio'!G35 ->  | L32: ='020321_CostTaio'!H35 -> 
E33: year10 | G33: 0 | H33: 0 | I33: 0 | K33: ='020321_CostTaio'!G36 ->  | L33: ='020321_CostTaio'!H36 -> 
E34: 計［円］ | F34: =SUM(F24:F33) ->  | G34: 0 | H34: 0 | I34: 0
D38: ［シナリオ３：管理しない状態を継続］の場合のコスト［円］
F39: 管理関連コスト | G39: 管理コスト | J39: 対応コスト
E40: ［円/年］ | F40: 合計 | G40: 小計 | H40: （１）管理に要する費用 | I40: （２）移動に要する費用 | J40: 小計 | K40: （３）周辺住民への対応に要する費用 | L40: （４）管理不全化により生じる費用
E41: year1 | F41: =SUM(G41,J41) ->  | G41: =SUM(H41:I41) -> 0 | H41: ='020311_CostKanri(Yr)'!$H$75 -> 0 | I41: ='020311_CostKanri(Yr)'!$H$76 -> 0 | J41: =SUM(K41:L41) ->  | K41: ='020321_CostTaio'!G41 ->  | L41: ='020321_CostTaio'!H41 -> 
E42: year2 | G42: 0 | H42: =H41 -> 0 | I42: =I41 -> 0 | K42: ='020321_CostTaio'!G42 ->  | L42: ='020321_CostTaio'!H42 -> 
E43: year3 | G43: 0 | H43: 0 | I43: 0 | K43: ='020321_CostTaio'!G43 ->  | L43: ='020321_CostTaio'!H43 -> 
E44: year4 | G44: 0 | H44: 0 | I44: 0 | K44: ='020321_CostTaio'!G44 ->  | L44: ='020321_CostTaio'!H44 -> 
E45: year5 | G45: 0 | H45: 0 | I45: 0 | K45: ='020321_CostTaio'!G45 ->  | L45: ='020321_CostTaio'!H45 -> 
E46: year6 | G46: 0 | H46: 0 | I46: 0 | K46: ='020321_CostTaio'!G46 ->  | L46: ='020321_CostTaio'!H46 -> 
E47: year7 | G47: 0 | H47: 0 | I47: 0 | K47: ='020321_CostTaio'!G47 ->  | L47: ='020321_CostTaio'!H47 -> 
E48: year8 | G48: 0 | H48: 0 | I48: 0 | K48: ='020321_CostTaio'!G48 ->  | L48: ='020321_CostTaio'!H48 -> 
E49: year9 | G49: 0 | H49: 0 | I49: 0 | K49: ='020321_CostTaio'!G49 ->  | L49: ='020321_CostTaio'!H49 -> 
E50: year10 | G50: 0 | H50: 0 | I50: 0 | K50: ='020321_CostTaio'!G50 ->  | L50: ='020321_CostTaio'!H50 -> 
E51: 計［円］ | F51: =SUM(F41:F50) ->  | G51: 0 | H51: 0 | I51: 0
D54: ［シナリオ４：現在行っている管理を継続］の場合のコスト［円］
F55: 管理関連コスト | G55: 管理コスト | J55: 対応コスト
E56: ［円/年］ | F56: 合計 | G56: 小計 | H56: （１）管理に要する費用 | I56: （２）移動に要する費用 | J56: 小計 | K56: （３）周辺住民への対応に要する費用 | L56: （４）管理不全化により生じる費用
E57: year1 | F57: =SUM(G57,J57) ->  | G57: =SUM(H57:I57) -> 0 | H57: ='020311_CostKanri(Yr)'!$I$75 -> 0 | I57: ='020311_CostKanri(Yr)'!$I$76 -> 0 | J57: =SUM(K57:L57) ->  | K57: ='020321_CostTaio'!G55 ->  | L57: ='020321_CostTaio'!H55 -> 
E58: year2 | G58: 0 | H58: =H57 -> 0 | I58: =I57 -> 0 | K58: ='020321_CostTaio'!G56 ->  | L58: ='020321_CostTaio'!H56 -> 
E59: year3 | G59: 0 | H59: 0 | I59: 0 | K59: ='020321_CostTaio'!G57 ->  | L59: ='020321_CostTaio'!H57 -> 
E60: year4 | G60: 0 | H60: 0 | I60: 0 | K60: ='020321_CostTaio'!G58 ->  | L60: ='020321_CostTaio'!H58 -> 
E61: year5 | G61: 0 | H61: 0 | I61: 0 | K61: ='020321_CostTaio'!G59 ->  | L61: ='020321_CostTaio'!H59 -> 
E62: year6 | G62: 0 | H62: 0 | I62: 0 | K62: ='020321_CostTaio'!G60 ->  | L62: ='020321_CostTaio'!H60 -> 
E63: year7 | G63: 0 | H63: 0 | I63: 0 | K63: ='020321_CostTaio'!G61 ->  | L63: ='020321_CostTaio'!H61 -> 
E64: year8 | G64: 0 | H64: 0 | I64: 0 | K64: ='020321_CostTaio'!G62 ->  | L64: ='020321_CostTaio'!H62 -> 
E65: year9 | G65: 0 | H65: 0 | I65: 0 | K65: ='020321_CostTaio'!G63 ->  | L65: ='020321_CostTaio'!H63 -> 
E66: year10 | G66: 0 | H66: 0 | I66: 0 | K66: ='020321_CostTaio'!G64 ->  | L66: ='020321_CostTaio'!H64 -> 
E67: 計［円］ | F67: =SUM(F57:F66) ->  | G67: 0 | H67: 0 | I67: 0
D70: その他のコスト［円］
F71: コスト
E72: 登記費用 | F72: ='020331_CostOthr'!I12 -> 80000
E73: 解体費 | F73: ='020331_CostOthr'!I13 -> 0
E74: 解体した場合の 税制特例外れによる 増額分 | F74: ='020331_CostOthr'!$F$23 -> 0
E75: 計 | F75: =SUM(F72:F73) -> 80000

Sheet 【03_算出】 (hidden)

Sheet 020311_CostKanri(Yr) (hidden)
A1: （非表示シート）
C2: 020311_CostKanri(Yr)
C4: 管理費用：空き家の管理に要する費用（管理レベル別に定まる費用）
C6: １．計算のための引用
D7: （１）管理に要する費用
E8: 02041011_FreqKanri | K8: 02041031_JissiUmu | Q8: 02041021_UCostKanri
F9: シナリオ１：手厚い管理を継続 | G9: シナリオ２：標準的な管理を継続 | H9: シナリオ３：管理しない状態を継続 | I9: シナリオ４：現状の管理の継続 | K9: 管理項目 | L9: シナリオ１：手厚い管理を継続 | M9: シナリオ２：標準的な管理を継続 | N9: シナリオ３：管理しない状態を継続 | O9: シナリオ４：現状の管理の継続 | Q9: 管理項目 | R9: 単価［円/回］
E10: 管理に訪れる回数［回/月］ | F10: ='02041011_FreqKanri'!E11 -> FALSE | G10: ='02041011_FreqKanri'!F11 -> FALSE | H10: ='02041011_FreqKanri'!G11 -> FALSE | I10: ='02041011_FreqKanri'!H11 -> FALSE | K10: 01_戸締まりの確認 | L10: ='02041031_JissiUmu'!D12 -> FALSE | M10: ='02041031_JissiUmu'!E12 -> FALSE | N10: ='02041031_JissiUmu'!F12 -> FALSE | O10: ='02041031_JissiUmu'!G12 -> 0 | Q10: 01_戸締まりの確認 | R10: ='02041021_UCostKanri'!E26 -> 90.90909091
K11: 02_住宅の通風･換気 | L11: ='02041031_JissiUmu'!D13 -> FALSE | M11: ='02041031_JissiUmu'!E13 -> FALSE | N11: ='02041031_JissiUmu'!F13 -> FALSE | O11: ='02041031_JissiUmu'!G13 -> 0 | Q11: 02_住宅の通風･換気 | R11: ='02041021_UCostKanri'!E27 -> 909.0909091
K12: 03_住宅内の清掃 | L12: ='02041031_JissiUmu'!D14 -> FALSE | M12: ='02041031_JissiUmu'!E14 -> FALSE | N12: ='02041031_JissiUmu'!F14 -> FALSE | O12: ='02041031_JissiUmu'!G14 -> 0 | Q12: 03_住宅内の清掃 | R12: ='02041021_UCostKanri'!E28 -> 909.0909091
K13: 04_水回りなどの点検 | L13: ='02041031_JissiUmu'!D15 -> FALSE | M13: ='02041031_JissiUmu'!E15 -> FALSE | N13: ='02041031_JissiUmu'!F15 -> FALSE | O13: ='02041031_JissiUmu'!G15 -> 0 | Q13: 04_水回りなどの点検 | R13: ='02041021_UCostKanri'!E29 -> 909.0909091
K14: 05_郵便物､チラシなどの整理･処分 | L14: ='02041031_JissiUmu'!D16 -> FALSE | M14: ='02041031_JissiUmu'!E16 -> FALSE | N14: ='02041031_JissiUmu'!F16 -> FALSE | O14: ='02041031_JissiUmu'!G16 -> 0 | Q14: 05_郵便物､チラシなどの整理･処分 | R14: ='02041021_UCostKanri'!E30 -> 454.5454545
K15: 06_外回りの清掃､草取り､剪定など | L15: ='02041031_JissiUmu'!D17 -> FALSE | M15: ='02041031_JissiUmu'!E17 -> FALSE | N15: ='02041031_JissiUmu'!F17 -> FALSE | O15: ='02041031_JissiUmu'!G17 -> 0 | Q15: 06_外回りの清掃､草取り､剪定など | R15: ='02041021_UCostKanri'!E31 -> 909.0909091
K16: 07_傷み､雨漏りなどのチェック･修繕 | L16: ='02041031_JissiUmu'!D18 -> FALSE | M16: ='02041031_JissiUmu'!E18 -> FALSE | N16: ='02041031_JissiUmu'!F18 -> FALSE | O16: ='02041031_JissiUmu'!G18 -> 0 | Q16: 07_傷み､雨漏りなどのチェック･修繕 | R16: ='02041021_UCostKanri'!E32 -> 909.0909091
K17: 08_台風､地震などの後の見回り | L17: ='02041031_JissiUmu'!D19 -> FALSE | M17: ='02041031_JissiUmu'!E19 -> FALSE | N17: ='02041031_JissiUmu'!F19 -> FALSE | O17: ='02041031_JissiUmu'!G19 -> 0 | Q17: 08_台風､地震などの後の見回り | R17: ='02041021_UCostKanri'!E33 -> 2272.727273
K18: 09_除排雪 | L18: ='02041031_JissiUmu'!D20 -> FALSE | M18: ='02041031_JissiUmu'!E20 -> FALSE | N18: ='02041031_JissiUmu'!F20 -> FALSE | O18: ='02041031_JissiUmu'!G20 -> 0 | Q18: 09_除排雪 | R18: ='02041021_UCostKanri'!E34 -> 4545.454545
K19: 10_その他の管理項目 | L19: ='02041031_JissiUmu'!D21 -> FALSE | M19: ='02041031_JissiUmu'!E21 -> FALSE | N19: ='02041031_JissiUmu'!F21 -> FALSE | O19: ='02041031_JissiUmu'!G21 -> 0 | Q19: 10_その他の管理項目 | R19: ='02041021_UCostKanri'!E35 -> 1323.232323
R20: ※外注した場合に要するコストを計上
D21: （２）移動に要する費用 | R21: ※シナリオによらない
E22: 02041011_FreqKanri | Q22: 02041021_UCostKanri
F23: シナリオ１：手厚い管理を継続 | G23: シナリオ２：標準的な管理を継続 | H23: シナリオ３：管理しない状態を継続 | I23: シナリオ４：現状の管理の継続 | R23: 単価［円/回］
E24: 管理に訪れる回数［回/月］ | F24: =F10 -> FALSE | G24: =G10 -> FALSE | H24: =H10 -> FALSE | I24: =I10 -> FALSE | Q24: 交通費 | R24: ='02041021_UCostKanri'!$I$10 -> FALSE
C26: ２．結果
D27: 中項目 | E27: 小項目 | F27: 費用
E28: ［回/月］ | F28: シナリオ１：手厚い管理を継続 | G28: シナリオ２：標準的な管理を継続 | H28: シナリオ３：管理しない状態を継続 | I28: シナリオ４：現状の管理の継続
D29: （１）管理に要する費用 | E29: 01_戸締まりの確認 | F29: =F10*L10:L19*$R$10:$R$19 -> 0 | G29: =G10*M10:M19*$R$10:$R$19 -> 0 | H29: =H10*N10:N19*$R$10:$R$19 -> 0 | I29: =I10*O10:O19*$R$10:$R$19 -> 0
E30: 02_住宅の通風･換気 | F30: 0 | G30: 0 | H30: 0 | I30: 0
E31: 03_住宅内の清掃 | F31: 0 | G31: 0 | H31: 0 | I31: 0
E32: 04_水回りなどの点検 | F32: 0 | G32: 0 | H32: 0 | I32: 0
E33: 05_郵便物､チラシなどの整理･処分 | F33: 0 | G33: 0 | H33: 0 | I33: 0
E34: 06_外回りの清掃､草取り､剪定など | F34: 0 | G34: 0 | H34: 0 | I34: 0
E35: 07_傷み､雨漏りなどのチェック･修繕 | F35: 0 | G35: 0 | H35: 0 | I35: 0
E36: 08_台風､地震などの後の見回り | F36: 0 | G36: 0 | H36: 0 | I36: 0
E37: 09_除排雪 | F37: 0 | G37: 0 | H37: 0 | I37: 0
E38: 10_その他の管理項目 | F38: 0 | G38: 0 | H38: 0 | I38: 0
D39: （２）移動に要する費用 | F39: =F24*$R$24 -> 0 | G39: =G24*$R$24 -> 0 | H39: =H24*$R$24 -> 0 | I39: =I24*$R$24 -> 0
D40: （３）周辺住民への対応に要する費用 | E40: - | F40: - | G40: - | H40: - | I40: -
D41: （４）管理不全化により生じる費用 | E41: - | F41: - | G41: - | H41: - | I41: -
D42: （５）その他の費用 | E42: - | F42: - | G42: - | H42: - | I42: -
E44: 小計（再掲）
E45: 大項目 | F45: 費用
E46: ［回/月］ | F46: シナリオ１：手厚い管理を継続 | G46: シナリオ２：標準的な管理を継続 | H46: シナリオ３：管理しない状態を継続 | I46: シナリオ４：現状の管理の継続
E47: （１）管理に要する費用 | F47: =SUM(F29:F38) -> 0 | G47: =SUM(G29:G38) -> 0 | H47: =SUM(H29:H38) -> 0 | I47: =SUM(I29:I38) -> 0
E48: （２）移動に要する費用 | F48: =F39 -> 0 | G48: =G39 -> 0 | H48: =H39 -> 0 | I48: =I39 -> 0
E49: （３）周辺住民への対応に要する費用 | F49: - | G49: - | H49: - | I49: -
E50: （４）管理不全化により生じる費用 | F50: - | G50: - | H50: - | I50: -
E51: （５）その他の費用 | F51: - | G51: - | H51: - | I51: -
E52: 計 | F52: =SUM(F47:F50) -> 0 | G52: =SUM(G47:G50) -> 0 | H52: =SUM(H47:H50) -> 0 | I52: =SUM(I47:I51) -> 0
D55: 中項目 | E55: 小項目 | F55: 費用
E56: ［回/年］ | F56: シナリオ１：手厚い管理を継続 | G56: シナリオ２：標準的な管理を継続 | H56: シナリオ３：管理しない状態を継続 | I56: シナリオ４：現状の管理の継続
D57: （１）管理に要する費用 | E57: 01_戸締まりの確認 | F57: =F29*12 -> 0 | G57: 0 | H57: 0 | I57: 0
E58: 02_住宅の通風･換気 | F58: 0 | G58: 0 | H58: 0 | I58: 0
E59: 03_住宅内の清掃 | F59: 0 | G59: 0 | H59: 0 | I59: 0
E60: 04_水回りなどの点検 | F60: 0 | G60: 0 | H60: 0 | I60: 0
E61: 05_郵便物､チラシなどの整理･処分 | F61: 0 | G61: 0 | H61: 0 | I61: 0
E62: 06_外回りの清掃､草取り､剪定など | F62: 0 | G62: 0 | H62: 0 | I62: 0
E63: 07_傷み､雨漏りなどのチェック･修繕 | F63: 0 | G63: 0 | H63: 0 | I63: 0
E64: 08_台風､地震などの後の見回り | F64: 0 | G64: 0 | H64: 0 | I64: 0
E65: 09_除排雪 | F65: 0 | G65: 0 | H65: 0 | I65: 0
E66: 10_その他の管理項目 | F66: 0 | G66: 0 | H66: 0 | I66: 0
D67: （２）移動に要する費用 | F67: 0 | G67: 0 | H67: 0 | I67: 0
D68: （３）周辺住民への対応に要する費用 | E68: - | F68: - | G68: - | H68: - | I68: -
D69: （４）管理不全化により生じる費用 | E69: - | F69: - | G69: - | H69: - | I69: -
D70: （５）その他の費用 | E70: - | F70: - | G70: - | H70: - | I70: -
E72: 小計（再掲）
E73: 大項目 | F73: 費用
E74: ［回/年］ | F74: シナリオ１：手厚い管理を継続 | G74: シナリオ２：標準的な管理を継続 | H74: シナリオ３：管理しない状態を継続 | I74: シナリオ４：現状の管理の継続
E75: （１）管理に要する費用 | F75: =SUM(F57:F66) -> 0 | G75: =SUM(G57:G66) -> 0 | H75: =SUM(H57:H66) -> 0 | I75: =SUM(I57:I66) -> 0
E76: （２）移動に要する費用 | F76: =F67 -> 0 | G76: =G67 -> 0 | H76: =H67 -> 0 | I76: =I67 -> 0
E77: （３）周辺住民への対応に要する費用 | F77: - | G77: - | H77: - | I77: -
E78: （４）管理不全化により生じる費用 | F78: - | G78: - | H78: - | I78: -
E79: （５）その他の費用 | F79: - | G79: - | H79: - | I79: -
E80: 計 | F80: =SUM(F75:F78) -> 0 | G80: =SUM(G75:G78) -> 0 | H80: =SUM(H75:H78) -> 0 | I80: =SUM(I75:I79) -> 0

Sheet 020321_CostTaio (hidden)
A1: （非表示シート）
C2: 020321_CostTaio
C4: 対応費用：空き家が管理不全となることに対応することにより生じる費用（空き家の物的水準により定まる費用）
D5: ・期間についての費用の合計。
D6: ・要対応度の確率と年間対応コストの期待値として求める。
C9: ２．結果 | J9: １．計算のための引用
D10: シナリオ１
E11: 対応コスト | L11: 物的水準確率 | P11: 要対応度別年間対応コスト | Q11: （３）周辺住民への対応に要する費用 | T11: （４）管理不全化により生じる費用
E12: ［回/年］ | F12: 小計 | G12: （３）周辺住民への対応に要する費用 | H12: （４）管理不全化により生じる費用 | K12: year | L12: 物的水準1：良好 | M12: 物的水準2：標準 | N12: 物的水準3：管理不全 | P12: ［回/年］ | Q12: 物的水準1：良好 | R12: 物的水準2：標準 | S12: 物的水準3：管理不全 | T12: 物的水準1：良好 | U12: 物的水準2：標準 | V12: 物的水準3：管理不全
E13: t1 | F13: =SUM(G13:H13) ->  | G13: =SUMPRODUCT(L13,$Q$13)+SUMPRODUCT(M13,$R$13)+SUMPRODUCT(N13,$S$13) ->  | H13: =SUMPRODUCT(L13,$T$13)+SUMPRODUCT(M13,$U$13)+SUMPRODUCT(N13,$V$13) ->  | K13: t1 | L13: ='02042041_ProbLvTa'!E12 -> FALSE | M13: ='02042041_ProbLvTa'!F12 -> FALSE | N13: ='02042041_ProbLvTa'!G12 -> FALSE | P13: 費用 | Q13: ='020322_CostTaioYr'!F48 -> 0 | R13: ='020322_CostTaioYr'!G48 -> 4602.09975 | S13: ='020322_CostTaioYr'!H48 -> 7670.16625 | T13: ='020322_CostTaioYr'!F49 -> 44.32184465 | U13: ='020322_CostTaioYr'!G49 -> 399.5248862 | V13: ='020322_CostTaioYr'!H49 -> 954.7041257
E14: t2 | K14: t2 | L14: ='02042041_ProbLvTa'!E13 -> FALSE | M14: ='02042041_ProbLvTa'!F13 -> FALSE | N14: ='02042041_ProbLvTa'!G13 -> FALSE
E15: t3 | K15: t3 | L15: ='02042041_ProbLvTa'!E14 -> FALSE | M15: ='02042041_ProbLvTa'!F14 -> FALSE | N15: ='02042041_ProbLvTa'!G14 -> FALSE
E16: t4 | K16: t4 | L16: ='02042041_ProbLvTa'!E15 -> FALSE | M16: ='02042041_ProbLvTa'!F15 -> FALSE | N16: ='02042041_ProbLvTa'!G15 -> FALSE
E17: t5 | K17: t5 | L17: ='02042041_ProbLvTa'!E16 -> FALSE | M17: ='02042041_ProbLvTa'!F16 -> FALSE | N17: ='02042041_ProbLvTa'!G16 -> FALSE
E18: t6 | K18: t6 | L18: ='02042041_ProbLvTa'!E17 -> FALSE | M18: ='02042041_ProbLvTa'!F17 -> FALSE | N18: ='02042041_ProbLvTa'!G17 -> FALSE
E19: t7 | K19: t7 | L19: ='02042041_ProbLvTa'!E18 -> FALSE | M19: ='02042041_ProbLvTa'!F18 -> FALSE | N19: ='02042041_ProbLvTa'!G18 -> FALSE
E20: t8 | K20: t8 | L20: ='02042041_ProbLvTa'!E19 -> FALSE | M20: ='02042041_ProbLvTa'!F19 -> FALSE | N20: ='02042041_ProbLvTa'!G19 -> FALSE
E21: t9 | K21: t9 | L21: ='02042041_ProbLvTa'!E20 -> FALSE | M21: ='02042041_ProbLvTa'!F20 -> FALSE | N21: ='02042041_ProbLvTa'!G20 -> FALSE
E22: t10 | K22: t10 | L22: ='02042041_ProbLvTa'!E21 -> FALSE | M22: ='02042041_ProbLvTa'!F21 -> FALSE | N22: ='02042041_ProbLvTa'!G21 -> FALSE
D24: シナリオ２
E25: 対応コスト | L25: 物的水準確率
E26: ［回/年］ | F26: 小計 | G26: （３）周辺住民への対応に要する費用 | H26: （４）管理不全化により生じる費用 | K26: year | L26: 物的水準1：良好 | M26: 物的水準2：標準 | N26: 物的水準3：管理不全
E27: t1 | F27: =SUM(G27:H27) ->  | G27: =SUMPRODUCT(L27,$Q$13)+SUMPRODUCT(M27,$R$13)+SUMPRODUCT(N27,$S$13) ->  | H27: =SUMPRODUCT(L27,$T$13)+SUMPRODUCT(M27,$U$13)+SUMPRODUCT(N27,$V$13) ->  | K27: t1 | L27: ='02042041_ProbLvTa'!E25 -> FALSE | M27: ='02042041_ProbLvTa'!F25 -> FALSE | N27: ='02042041_ProbLvTa'!G25 -> FALSE
E28: t2 | K28: t2 | L28: ='02042041_ProbLvTa'!E26 -> FALSE | M28: ='02042041_ProbLvTa'!F26 -> FALSE | N28: ='02042041_ProbLvTa'!G26 -> FALSE
E29: t3 | K29: t3 | L29: ='02042041_ProbLvTa'!E27 -> FALSE | M29: ='02042041_ProbLvTa'!F27 -> FALSE | N29: ='02042041_ProbLvTa'!G27 -> FALSE
E30: t4 | K30: t4 | L30: ='02042041_ProbLvTa'!E28 -> FALSE | M30: ='02042041_ProbLvTa'!F28 -> FALSE | N30: ='02042041_ProbLvTa'!G28 -> FALSE
E31: t5 | K31: t5 | L31: ='02042041_ProbLvTa'!E29 -> FALSE | M31: ='02042041_ProbLvTa'!F29 -> FALSE | N31: ='02042041_ProbLvTa'!G29 -> FALSE
E32: t6 | K32: t6 | L32: ='02042041_ProbLvTa'!E30 -> FALSE | M32: ='02042041_ProbLvTa'!F30 -> FALSE | N32: ='02042041_ProbLvTa'!G30 -> FALSE
E33: t7 | K33: t7 | L33: ='02042041_ProbLvTa'!E31 -> FALSE | M33: ='02042041_ProbLvTa'!F31 -> FALSE | N33: ='02042041_ProbLvTa'!G31 -> FALSE
E34: t8 | K34: t8 | L34: ='02042041_ProbLvTa'!E32 -> FALSE | M34: ='02042041_ProbLvTa'!F32 -> FALSE | N34: ='02042041_ProbLvTa'!G32 -> FALSE
E35: t9 | K35: t9 | L35: ='02042041_ProbLvTa'!E33 -> FALSE | M35: ='02042041_ProbLvTa'!F33 -> FALSE | N35: ='02042041_ProbLvTa'!G33 -> FALSE
E36: t10 | K36: t10 | L36: ='02042041_ProbLvTa'!E34 -> FALSE | M36: ='02042041_ProbLvTa'!F34 -> FALSE | N36: ='02042041_ProbLvTa'!G34 -> FALSE
D38: シナリオ３
E39: 対応コスト | L39: 物的水準確率
E40: ［回/年］ | F40: 小計 | G40: （３）周辺住民への対応に要する費用 | H40: （４）管理不全化により生じる費用 | K40: year | L40: 物的水準1：良好 | M40: 物的水準2：標準 | N40: 物的水準3：管理不全
E41: t1 | F41: =SUM(G41:H41) ->  | G41: =SUMPRODUCT(L41,$Q$13)+SUMPRODUCT(M41,$R$13)+SUMPRODUCT(N41,$S$13) ->  | H41: =SUMPRODUCT(L41,$T$13)+SUMPRODUCT(M41,$U$13)+SUMPRODUCT(N41,$V$13) ->  | K41: t1 | L41: ='02042041_ProbLvTa'!E38 -> FALSE | M41: ='02042041_ProbLvTa'!F38 -> FALSE | N41: ='02042041_ProbLvTa'!G38 -> FALSE
E42: t2 | K42: t2 | L42: ='02042041_ProbLvTa'!E39 -> FALSE | M42: ='02042041_ProbLvTa'!F39 -> FALSE | N42: ='02042041_ProbLvTa'!G39 -> FALSE
E43: t3 | K43: t3 | L43: ='02042041_ProbLvTa'!E40 -> FALSE | M43: ='02042041_ProbLvTa'!F40 -> FALSE | N43: ='02042041_ProbLvTa'!G40 -> FALSE
E44: t4 | K44: t4 | L44: ='02042041_ProbLvTa'!E41 -> FALSE | M44: ='02042041_ProbLvTa'!F41 -> FALSE | N44: ='02042041_ProbLvTa'!G41 -> FALSE
E45: t5 | K45: t5 | L45: ='02042041_ProbLvTa'!E42 -> FALSE | M45: ='02042041_ProbLvTa'!F42 -> FALSE | N45: ='02042041_ProbLvTa'!G42 -> FALSE
E46: t6 | K46: t6 | L46: ='02042041_ProbLvTa'!E43 -> FALSE | M46: ='02042041_ProbLvTa'!F43 -> FALSE | N46: ='02042041_ProbLvTa'!G43 -> FALSE
E47: t7 | K47: t7 | L47: ='02042041_ProbLvTa'!E44 -> FALSE | M47: ='02042041_ProbLvTa'!F44 -> FALSE | N47: ='02042041_ProbLvTa'!G44 -> FALSE
E48: t8 | K48: t8 | L48: ='02042041_ProbLvTa'!E45 -> FALSE | M48: ='02042041_ProbLvTa'!F45 -> FALSE | N48: ='02042041_ProbLvTa'!G45 -> FALSE
E49: t9 | K49: t9 | L49: ='02042041_ProbLvTa'!E46 -> FALSE | M49: ='02042041_ProbLvTa'!F46 -> FALSE | N49: ='02042041_ProbLvTa'!G46 -> FALSE
E50: t10 | K50: t10 | L50: ='02042041_ProbLvTa'!E47 -> FALSE | M50: ='02042041_ProbLvTa'!F47 -> FALSE | N50: ='02042041_ProbLvTa'!G47 -> FALSE
D52: シナリオ４
E53: 対応コスト | L53: 物的水準確率
E54: ［回/年］ | F54: 小計 | G54: （３）周辺住民への対応に要する費用 | H54: （４）管理不全化により生じる費用 | K54: year | L54: 物的水準1：良好 | M54: 物的水準2：標準 | N54: 物的水準3：管理不全
E55: t1 | F55: =SUM(G55:H55) ->  | G55: =SUMPRODUCT(L55,$Q$13)+SUMPRODUCT(M55,$R$13)+SUMPRODUCT(N55,$S$13) ->  | H55: =SUMPRODUCT(L55,$T$13)+SUMPRODUCT(M55,$U$13)+SUMPRODUCT(N55,$V$13) ->  | K55: t1 | L55: ='02042041_ProbLvTa'!E51 -> FALSE | M55: ='02042041_ProbLvTa'!F51 -> FALSE | N55: ='02042041_ProbLvTa'!G51 -> FALSE
E56: t2 | K56: t2 | L56: ='02042041_ProbLvTa'!E52 -> FALSE | M56: ='02042041_ProbLvTa'!F52 -> FALSE | N56: ='02042041_ProbLvTa'!G52 -> FALSE
E57: t3 | K57: t3 | L57: ='02042041_ProbLvTa'!E53 -> FALSE | M57: ='02042041_ProbLvTa'!F53 -> FALSE | N57: ='02042041_ProbLvTa'!G53 -> FALSE
E58: t4 | K58: t4 | L58: ='02042041_ProbLvTa'!E54 -> FALSE | M58: ='02042041_ProbLvTa'!F54 -> FALSE | N58: ='02042041_ProbLvTa'!G54 -> FALSE
E59: t5 | K59: t5 | L59: ='02042041_ProbLvTa'!E55 -> FALSE | M59: ='02042041_ProbLvTa'!F55 -> FALSE | N59: ='02042041_ProbLvTa'!G55 -> FALSE
E60: t6 | K60: t6 | L60: ='02042041_ProbLvTa'!E56 -> FALSE | M60: ='02042041_ProbLvTa'!F56 -> FALSE | N60: ='02042041_ProbLvTa'!G56 -> FALSE
E61: t7 | K61: t7 | L61: ='02042041_ProbLvTa'!E57 -> FALSE | M61: ='02042041_ProbLvTa'!F57 -> FALSE | N61: ='02042041_ProbLvTa'!G57 -> FALSE
E62: t8 | K62: t8 | L62: ='02042041_ProbLvTa'!E58 -> FALSE | M62: ='02042041_ProbLvTa'!F58 -> FALSE | N62: ='02042041_ProbLvTa'!G58 -> FALSE
E63: t9 | K63: t9 | L63: ='02042041_ProbLvTa'!E59 -> FALSE | M63: ='02042041_ProbLvTa'!F59 -> FALSE | N63: ='02042041_ProbLvTa'!G59 -> FALSE
E64: t10 | K64: t10 | L64: ='02042041_ProbLvTa'!E60 -> FALSE | M64: ='02042041_ProbLvTa'!F60 -> FALSE | N64: ='02042041_ProbLvTa'!G60 -> FALSE

Sheet 020322_CostTaioYr (hidden)
A1: （非表示シート）
C2: 020322_CostTaioYr
C4: 対応費用：空き家が管理不全となることに対応することにより生じる費用（空き家の物的水準により定まる費用）
C6: １．計算のための引用
D7: （３）周辺住民への対応に要する費用
E8: 02042011_FreqTaio | J8: 02042021_UCostTaio
E9: ［回/年］ | F9: 物的水準1：良好 | G9: 物的水準2：標準 | H9: 物的水準3：管理不全 | J9: 対応項目 | K9: 単価［円/回］
E10: 回数 | F10: ='02042011_FreqTaio'!E9 -> 0 | G10: ='02042011_FreqTaio'!F9 -> 1.8 | H10: ='02042011_FreqTaio'!G9 -> 3 | J10: 周辺住民からの相談等への対応 | K10: ='02042021_UCostTaio'!$E$6 -> 2556.722083
D12: （４）管理不全化により生じる費用
E13: 02042011_FreqTaio | J13: 02042021_UCostTaio
E14: ［回/年］ | F14: 物的水準1：良好 | G14: 物的水準2：標準 | H14: 物的水準3：管理不全 | J14: 項目 | K14: 単価［円/回］
E15: 01_税制の特例外れによる増加 | F15: ='02042011_FreqTaio'!E14 -> 0 | G15: ='02042011_FreqTaio'!E27 -> 0 | H15: ='02042011_FreqTaio'!E39 -> 1 | J15: 01_税制の特例外れによる増額分 | K15: ='02042021_UCostTaio'!E11 -> 0 | L15: ※周辺環境、延べ床面積の変数として別途設定
E16: 02_倒壊等による周辺住宅の被害（半壊、一部損壊） | F16: ='02042011_FreqTaio'!E15 -> 0 | G16: ='02042011_FreqTaio'!E28 -> 0 | H16: ='02042011_FreqTaio'!E40 -> 0 | J16: 02_倒壊等による周辺住宅の被害（半壊、一部損壊） | K16: ='02042021_UCostTaio'!E12 -> 5900000
E17: 03_倒壊等による周辺住宅の被害（全壊） | F17: ='02042011_FreqTaio'!E16 -> 0 | G17: ='02042011_FreqTaio'!E29 -> 0 | H17: ='02042011_FreqTaio'!E41 -> 0 | J17: 03_倒壊等による周辺住宅の被害（全壊） | K17: ='02042021_UCostTaio'!E13 -> 11800000
E18: 04_倒壊等による周辺住民の身体的被害（負傷） | F18: ='02042011_FreqTaio'!E17 -> 0 | G18: ='02042011_FreqTaio'!E30 -> 0 | H18: ='02042011_FreqTaio'!E42 -> 0 | J18: 04_倒壊等による周辺住民の身体的被害（負傷） | K18: ='02042021_UCostTaio'!E14 -> 21000000
E19: 05_倒壊等による周辺住民の身体的被害（死亡） | F19: ='02042011_FreqTaio'!E18 -> 0 | G19: ='02042011_FreqTaio'!E31 -> 0 | H19: ='02042011_FreqTaio'!E43 -> 0 | J19: 05_倒壊等による周辺住民の身体的被害（死亡） | K19: ='02042021_UCostTaio'!E15 -> 56300000
E20: 06_倒壊等の場合の解体費用の増加 | F20: ='02042011_FreqTaio'!E19 -> 0 | G20: ='02042011_FreqTaio'!E32 -> 0 | H20: ='02042011_FreqTaio'!E44 -> 0 | J20: 06_倒壊等の場合の解体費用の増額分 | K20: ='02042021_UCostTaio'!E16 -> 2275000
E21: 07_その他の周辺の被害（シロアリ駆除・点検） | F21: ='02042011_FreqTaio'!E20 -> 0.0002162041203 | G21: ='02042011_FreqTaio'!E33 -> 0.0002162041203 | H21: ='02042011_FreqTaio'!E45 -> 0.002924395532 | J21: 07_その他の周辺の被害（シロアリ駆除・点検） | K21: ='02042021_UCostTaio'!E17 -> 170000
E22: 08_その他の周辺の被害（ネズミ駆除） | F22: ='02042011_FreqTaio'!E21 -> 0.0002162041203 | G22: ='02042011_FreqTaio'!E34 -> 0.0002162041203 | H22: ='02042011_FreqTaio'!E46 -> 0.002924395532 | J22: 08_その他の周辺の被害（ネズミ駆除） | K22: ='02042021_UCostTaio'!E18 -> 35000
E23: 09_その他の周辺の被害（草木処理） | F23: ='02042011_FreqTaio'!E22 -> 0 | G23: ='02042011_FreqTaio'!E35 -> 0.02152745706 | H23: ='02042011_FreqTaio'!E47 -> 0.02152745706 | J23: 09_その他の周辺の被害（草木処理） | K23: ='02042021_UCostTaio'!E19 -> 16500
C26: ２．結果
F27: 費用［円/年］
D28: 大項目 | E28: 小項目 | F28: 物的水準1：良好 | G28: 物的水準2：標準 | H28: 物的水準3：管理不全
D29: （１）管理に要する費用 | E29: - | F29: - | G29: - | H29: -
D30: （２）移動に要する費用 | E30: - | F30: - | G30: - | H30: -
D31: （３）周辺住民への対応に要する費用 | E31: - | F31: =F10:H10*K10 -> 0 | G31: 4602.09975 | H31: 7670.16625
D32: （４）管理不全化により生じる費用 | E32: 01_税制の特例外れによる増額分 | F32: =F15:H23*K15:K23 -> 0 | G32: 0 | H32: 0
E33: 02_倒壊等による周辺住宅の被害（半壊、一部損壊） | F33: 0 | G33: 0 | H33: 0
E34: 03_倒壊等による周辺住宅の被害（全壊） | F34: 0 | G34: 0 | H34: 0
E35: 04_倒壊等による周辺住民の身体的被害（負傷） | F35: 0 | G35: 0 | H35: 0
E36: 05_倒壊等による周辺住民の身体的被害（死亡） | F36: 0 | G36: 0 | H36: 0
E37: 06_倒壊等の場合の解体費用の増額分 | F37: 0 | G37: 0 | H37: 0
E38: 07_その他の周辺の被害（シロアリ駆除・点検） | F38: 36.75470044 | G38: 36.75470044 | H38: 497.1472405
E39: 08_その他の周辺の被害（ネズミ駆除） | F39: 7.567144209 | G39: 7.567144209 | H39: 102.3538436
E40: 09_その他の周辺の被害（草木処理） | F40: 0 | G40: 355.2030415 | H40: 355.2030415
D41: （５）その他の費用 | E41: - | F41: - | G41: - | H41: -
E43: 小計（再掲）
E44: 大項目 | F44: 費用［円/年］
F45: 物的水準1：良好 | G45: 物的水準2：標準 | H45: 物的水準3：管理不全
E46: （１）管理に要する費用 | F46: - | G46: - | H46: -
E47: （２）移動に要する費用 | F47: - | G47: - | H47: -
E48: （３）周辺住民への対応に要する費用 | F48: =F31 -> 0 | G48: =G31 -> 4602.09975 | H48: =H31 -> 7670.16625
E49: （４）管理不全化により生じる費用 | F49: =SUM(F32:F40) -> 44.32184465 | G49: =SUM(G32:G40) -> 399.5248862 | H49: =SUM(H32:H40) -> 954.7041257
E50: （５）その他の費用 | F50: - | G50: - | H50: -
E51: 計 | F51: =SUM(F46:F49) -> 44.32184465 | G51: =SUM(G46:G49) -> 5001.624636 | H51: =SUM(H46:H50) -> 8624.870376

Sheet 020331_CostOthr (hidden)
A1: （非表示シート）
C2: 020331_CostOthr
C4: その他の費用（管理費用、対応費用以外の費用）
C8: １．計算のための引用
D9: （５）管理費用、対応費用以外の費用
E10: Freq | H10: UnitCost
E11: 項目 | H11: 対応項目 | I11: 単価［円/回］
E12: 対応回数 | F12: 1 | H12: 登記費用 | I12: ='02043021_UCostOthr'!$E$17 -> 80000
H13: 解体費 | I13: ='02043021_UCostOthr'!$E$18 -> 0
C15: ２．結果
D16: 大項目 | E16: 小項目 | F16: 費用
D17: （１）管理に要する費用 | E17: - | F17: -
D18: （２）移動に要する費用 | E18: - | F18: -
D19: （３）周辺住民への対応に要する費用 | E19: - | F19: -
D20: （４）管理不全化により生じる費用 | E20: - | F20: -
D21: （５）その他の費用 | E21: 登記費用 | F21: =F12*I12 -> 80000
E22: 解体費 | F22: =F12*I13 -> 0
E23: 解体した場合の税制特例外れによる増額分 | F23: ='02043021_UCostOthr'!$E$19 -> 0
E25: 小計（再掲）
E26: 大項目 | F26: 費用
E27: （１）管理に要する費用 | F27: -
E28: （２）移動に要する費用 | F28: -
E29: （３）周辺住民への対応に要する費用 | F29: -
E30: （４）管理不全化により生じる費用 | F30: -
E31: （５）その他の費用 | F31: =SUM(F21:F22) -> 80000
E32: 計 | F32: =SUM(F27:F31) -> 80000

Sheet 【04_原単位データ】 (hidden)

Sheet 02041011_FreqKanri (hidden)
A1: （非表示シート）
B2: ０．入力
D3: 自宅からの距離 | E3: ='01_入力'!$F$6 -> 0
D4: 自宅からの距離フラグ | E4: =IF(E3="01_徒歩圏内",1, IF(E3="02_車・電車等で１時間以内",2, IF(E3="03_車・電車等で１時間超～３時間以内",3, IF(E3="04_車・電車等で３時間超",4)))) -> FALSE
D6: 空き家の現状 | E6: ='01_入力'!$F$7 -> 0
D7: t1当初における物的水準 | E7: =IF(E6=1,2, IF(E6=2,1, IF(E6=3,2, IF(E6=4,2, IF(E6=5,3, IF(E6=6,3)))))) -> FALSE
B9: １．推計に利用するデータ
E10: シナリオ１：手厚い管理を継続 | F10: シナリオ２：標準的な管理を継続 | G10: シナリオ３：管理しない状態を継続 | H10: 現状の管理の実績値
D11: 管理に訪れる回数［回/月］ | E11: =IF(E7=1,E16, IF(E7=2,F16, IF(E7=3,G16))) -> FALSE | F11: =IF(E7=1,H16, IF(E7=2,I16, IF(E7=3,J16))) -> FALSE | G11: =IF(E7=1,K16, IF(E7=2,L16, IF(E7=3,M16))) -> FALSE | H11: =IF(E29=D31,E31, IF(E29=D32,E32, IF(E29=D33,E33, IF(E29=D34,E34, IF(E29=D35,E35, IF(E29=D36,E36, IF(E29=D37,E37, IF(E29=D38,E38)))))))) -> FALSE
D13: （作業用）
E14: シナリオ１：手厚い管理を継続 | H14: シナリオ２：標準的な管理を継続 | K14: シナリオ３：管理しない状態を継続
E15: 物的水準1：良好 | F15: 物的水準2：標準 | G15: 物的水準3：管理不全 | H15: 物的水準1：良好 | I15: 物的水準2：標準 | J15: 物的水準3：管理不全 | K15: 物的水準1：良好 | L15: 物的水準2：標準 | M15: 物的水準3：管理不全
D16: 管理に訪れる回数［回/月］ | E16: =IF(E4=1,E21:M21, IF(E4=2,E22:M22, IF(E4=3,E23:M23, IF(E4=4,E24:M24 )))) -> FALSE | F16: FALSE | G16: FALSE | H16: FALSE | I16: FALSE | J16: FALSE | K16: FALSE | L16: FALSE | M16: FALSE
B18: ２．デフォルトの原単位データ
E19: シナリオ１：手厚い管理を継続 | H19: シナリオ２：標準的な管理を継続 | K19: シナリオ３：管理しない状態を継続
D20: 管理に訪れる回数［回/月］ | E20: 物的水準1：良好 | F20: 物的水準2：標準 | G20: 物的水準3：管理不全 | H20: 物的水準1：良好 | I20: 物的水準2：標準 | J20: 物的水準3：管理不全 | K20: 物的水準1：良好 | L20: 物的水準2：標準 | M20: 物的水準3：管理不全
D21: 01_徒歩圏内 | E21: =for_02041011_FreqKanri!J31 -> 5.843666667 | F21: =for_02041011_FreqKanri!K31 -> 5.922779035 | G21: =for_02041011_FreqKanri!L31 -> 4.539099099 | H21: =for_02041011_FreqKanri!J4 -> 4.3 | I21: =for_02041011_FreqKanri!K4 -> 2 | J21: =for_02041011_FreqKanri!L4 -> 1.75 | K21: 0 | L21: 0 | M21: 0
D22: 02_車・電車等で1時間以内 | E22: =for_02041011_FreqKanri!J32 -> 3.24825 | F22: =for_02041011_FreqKanri!K32 -> 2.567534873 | G22: =for_02041011_FreqKanri!L32 -> 5.073544974 | H22: =for_02041011_FreqKanri!J5 -> 2.5 | I22: =for_02041011_FreqKanri!K5 -> 2 | J22: =for_02041011_FreqKanri!L5 -> 1 | K22: 0 | L22: 0 | M22: 0
D23: 03_車・電車等で1時間～3時間以内 | E23: =for_02041011_FreqKanri!J33 -> 2.032 | F23: =for_02041011_FreqKanri!K33 -> 1.568629908 | G23: =for_02041011_FreqKanri!L33 -> 1.003333333 | H23: =for_02041011_FreqKanri!J6 -> 1 | I23: =for_02041011_FreqKanri!K6 -> 0.7166666667 | J23: =for_02041011_FreqKanri!L6 -> 0.575 | K23: 0 | L23: 0 | M23: 0
D24: 04_車・電車等で3時間以上 | E24: =for_02041011_FreqKanri!J34 -> 3.701428571 | F24: =for_02041011_FreqKanri!K34 -> 2.845286195 | G24: =for_02041011_FreqKanri!L34 -> 0.6825 | H24: =for_02041011_FreqKanri!J7 -> 1 | I24: =for_02041011_FreqKanri!K7 -> 0.4333333333 | J24: =for_02041011_FreqKanri!L7 -> 0.3625 | K24: 0 | L24: 0 | M24: 0
E25: ※出典：05_txt/231024/050202_dfK_01_221FreqNZero1_01MeansBy_suijun2LbHomeKyori.txt | H25: ※出典：05_txt/231024/050202_dfK_01_221FreqNZero1_02MediansBy_suijun2LbHomeKyori.txt
B27: （３．作業用）
D28: 現状の管理の実績値
D29: 空き家を訪れて管理を行う頻度 | E29: ='01_入力'!$F$24 -> 0
D31: 01_ほぼ毎日 | E31: 21.4
D32: 02_週に2，3日 | E32: 10.7
D33: 03_週に1日 | E33: 4.3
D34: 04_月に2，3日 | E34: 2.5
D35: 05_月に1日 | E35: 1
D36: 06_年に2，3日 | E36: 0.15
D37: 07_年に1日 | E37: 0.15
D38: 08_年に1日よりも少ない頻度 | E38: 0

Sheet 02041031_JissiUmu (hidden)
A1: （非表示シート）
B2: ０．入力
C3: 自宅からの距離 | D3: ='01_入力'!$F$6 -> 0
C4: 自宅からの距離フラグ | D4: =IF(D3="01_徒歩圏内",1, IF(D3="02_車・電車等で１時間以内",2, IF(D3="03_車・電車等で１時間超～３時間以内",3, IF(D3="04_車・電車等で３時間超",4)))) -> FALSE
C6: 空き家の現状 | D6: ='01_入力'!$F$7 -> 0
C7: t1当初における物的水準 | D7: =IF(D6=1,2, IF(D6=2,1, IF(D6=3,2, IF(D6=4,2, IF(D6=5,3, IF(D6=6,3)))))) -> FALSE
B9: １．推計に利用するデータ
C10: 管理項目の実施の有無
C11: 管理項目 | D11: シナリオ１：手厚い管理を継続 | E11: シナリオ２：標準的な管理を継続 | F11: シナリオ３：管理しない状態を継続 | G11: 現状の管理の実績値
C12: 01_戸締まりの確認 | D12: =IF(D7=1,D26:D35, IF(D7=2,E26:E35, IF(D7=3,F26:F35))) -> FALSE | E12: =IF(D7=1,G26:G35, IF(D7=2,H26:H35, IF(D7=3,I26:I35))) -> FALSE | F12: =IF(D7=1,J26:J35, IF(D7=2,K26:K35, IF(D7=3,L26:L35))) -> FALSE | G12: =D87 -> 0
C13: 02_住宅の通風･換気 | D13: FALSE | E13: FALSE | F13: FALSE | G13: 0
C14: 03_住宅内の清掃 | D14: FALSE | E14: FALSE | F14: FALSE | G14: 0
C15: 04_水回りなどの点検 | D15: FALSE | E15: FALSE | F15: FALSE | G15: 0
C16: 05_郵便物､チラシなどの整理･処分 | D16: FALSE | E16: FALSE | F16: FALSE | G16: 0
C17: 06_外回りの清掃､草取り､剪定など | D17: FALSE | E17: FALSE | F17: FALSE | G17: 0
C18: 07_傷み､雨漏りなどのチェック･修繕 | D18: FALSE | E18: FALSE | F18: FALSE | G18: 0
C19: 08_台風､地震などの後の見回り | D19: FALSE | E19: FALSE | F19: FALSE | G19: 0
C20: 09_除排雪 | D20: FALSE | E20: FALSE | F20: FALSE | G20: 0
C21: 10_その他の管理項目 | D21: FALSE | E21: FALSE | F21: FALSE | G21: 0
C23: （作業用）
D24: シナリオ１：手厚い管理を継続 | G24: シナリオ２：標準的な管理を継続 | J24: シナリオ３：管理しない状態を継続
D25: 物的水準1：良好 | E25: 物的水準2：標準 | F25: 物的水準3：管理不全 | G25: 物的水準1：良好 | H25: 物的水準2：標準 | I25: 物的水準3：管理不全 | J25: 物的水準1：良好 | K25: 物的水準2：標準 | L25: 物的水準3：管理不全
C26: 01_戸締まりの確認 | D26: =IF(D4=1,D43:F52, IF(D4=2,G43:I52, IF(D4=3,J43:L52, IF(D4=4,M43:O52)))) -> FALSE | E26: FALSE | F26: FALSE | G26: =IF(D4=1,D58:F67, IF(D4=2,G58:I67, IF(D4=3,J58:L67, IF(D4=4,M58:O67)))) -> FALSE | H26: FALSE | I26: FALSE | J26: =IF(D4=1,D73:F82, IF(D4=2,G73:I82, IF(D4=3,J73:L82, IF(D4=4,M73:O82)))) -> FALSE | K26: FALSE | L26: FALSE
C27: 02_住宅の通風･換気 | D27: FALSE | E27: FALSE | F27: FALSE | G27: FALSE | H27: FALSE | I27: FALSE | J27: FALSE | K27: FALSE | L27: FALSE
C28: 03_住宅内の清掃 | D28: FALSE | E28: FALSE | F28: FALSE | G28: FALSE | H28: FALSE | I28: FALSE | J28: FALSE | K28: FALSE | L28: FALSE
C29: 04_水回りなどの点検 | D29: FALSE | E29: FALSE | F29: FALSE | G29: FALSE | H29: FALSE | I29: FALSE | J29: FALSE | K29: FALSE | L29: FALSE
C30: 05_郵便物､チラシなどの整理･処分 | D30: FALSE | E30: FALSE | F30: FALSE | G30: FALSE | H30: FALSE | I30: FALSE | J30: FALSE | K30: FALSE | L30: FALSE
C31: 06_外回りの清掃､草取り､剪定など | D31: FALSE | E31: FALSE | F31: FALSE | G31: FALSE | H31: FALSE | I31: FALSE | J31: FALSE | K31: FALSE | L31: FALSE
C32: 07_傷み､雨漏りなどのチェック･修繕 | D32: FALSE | E32: FALSE | F32: FALSE | G32: FALSE | H32: FALSE | I32: FALSE | J32: FALSE | K32: FALSE | L32: FALSE
C33: 08_台風､地震などの後の見回り | D33: FALSE | E33: FALSE | F33: FALSE | G33: FALSE | H33: FALSE | I33: FALSE | J33: FALSE | K33: FALSE | L33: FALSE
C34: 09_除排雪 | D34: FALSE | E34: FALSE | F34: FALSE | G34: FALSE | H34: FALSE | I34: FALSE | J34: FALSE | K34: FALSE | L34: FALSE
C35: 10_その他の管理項目 | D35: FALSE | E35: FALSE | F35: FALSE | G35: FALSE | H35: FALSE | I35: FALSE | J35: FALSE | K35: FALSE | L35: FALSE
B38: ２．デフォルトの原単位データ
C40: シナリオ１：手厚い管理を継続
C41: 自宅からの距離 | D41: 01_徒歩圏内 | G41: 02_車・電車等で1時間以内 | J41: 03_車・電車等で1時間～3時間以内 | M41: 04_車・電車等で3時間以上
C42: 管理項目 | D42: 物的水準1：良好 | E42: 物的水準2：標準 | F42: 物的水準3：管理不全 | G42: 物的水準1：良好 | H42: 物的水準2：標準 | I42: 物的水準3：管理不全 | J42: 物的水準1：良好 | K42: 物的水準2：標準 | L42: 物的水準3：管理不全 | M42: 物的水準1：良好 | N42: 物的水準2：標準 | O42: 物的水準3：管理不全
C43: 01_戸締まりの確認 | D43: =for_02041031_JissiUmu_2!C5 -> 1 | E43: =for_02041031_JissiUmu_2!D5 -> 1 | F43: =for_02041031_JissiUmu_2!E5 -> 1 | G43: =for_02041031_JissiUmu_2!F5 -> 1 | H43: =for_02041031_JissiUmu_2!G5 -> 1 | I43: =for_02041031_JissiUmu_2!H5 -> 1 | J43: =for_02041031_JissiUmu_2!I5 -> 1 | K43: =for_02041031_JissiUmu_2!J5 -> 1 | L43: =for_02041031_JissiUmu_2!K5 -> 0 | M43: =for_02041031_JissiUmu_2!L5 -> 0 | N43: =for_02041031_JissiUmu_2!M5 -> 0 | O43: =for_02041031_JissiUmu_2!N5 -> 0
C44: 02_住宅の通風･換気 | D44: =for_02041031_JissiUmu_2!C6 -> 1 | E44: =for_02041031_JissiUmu_2!D6 -> 1 | F44: =for_02041031_JissiUmu_2!E6 -> 1 | G44: =for_02041031_JissiUmu_2!F6 -> 1 | H44: =for_02041031_JissiUmu_2!G6 -> 0 | I44: =for_02041031_JissiUmu_2!H6 -> 1 | J44: =for_02041031_JissiUmu_2!I6 -> 1 | K44: =for_02041031_JissiUmu_2!J6 -> 1 | L44: =for_02041031_JissiUmu_2!K6 -> 0 | M44: =for_02041031_JissiUmu_2!L6 -> 0 | N44: =for_02041031_JissiUmu_2!M6 -> 0 | O44: =for_02041031_JissiUmu_2!N6 -> 0
C45: 03_住宅内の清掃 | D45: =for_02041031_JissiUmu_2!C7 -> 1 | E45: =for_02041031_JissiUmu_2!D7 -> 1 | F45: =for_02041031_JissiUmu_2!E7 -> 1 | G45: =for_02041031_JissiUmu_2!F7 -> 1 | H45: =for_02041031_JissiUmu_2!G7 -> 0 | I45: =for_02041031_JissiUmu_2!H7 -> 0 | J45: =for_02041031_JissiUmu_2!I7 -> 0 | K45: =for_02041031_JissiUmu_2!J7 -> 1 | L45: =for_02041031_JissiUmu_2!K7 -> 0 | M45: =for_02041031_JissiUmu_2!L7 -> 0 | N45: =for_02041031_JissiUmu_2!M7 -> 1 | O45: =for_02041031_JissiUmu_2!N7 -> 0
C46: 04_水回りなどの点検 | D46: =for_02041031_JissiUmu_2!C8 -> 0 | E46: =for_02041031_JissiUmu_2!D8 -> 0 | F46: =for_02041031_JissiUmu_2!E8 -> 0 | G46: =for_02041031_JissiUmu_2!F8 -> 0 | H46: =for_02041031_JissiUmu_2!G8 -> 0 | I46: =for_02041031_JissiUmu_2!H8 -> 0 | J46: =for_02041031_JissiUmu_2!I8 -> 0 | K46: =for_02041031_JissiUmu_2!J8 -> 0 | L46: =for_02041031_JissiUmu_2!K8 -> 0 | M46: =for_02041031_JissiUmu_2!L8 -> 0 | N46: =for_02041031_JissiUmu_2!M8 -> 0 | O46: =for_02041031_JissiUmu_2!N8 -> 0
C47: 05_郵便物､チラシなどの整理･処分 | D47: =for_02041031_JissiUmu_2!C9 -> 0 | E47: =for_02041031_JissiUmu_2!D9 -> 1 | F47: =for_02041031_JissiUmu_2!E9 -> 1 | G47: =for_02041031_JissiUmu_2!F9 -> 1 | H47: =for_02041031_JissiUmu_2!G9 -> 0 | I47: =for_02041031_JissiUmu_2!H9 -> 0 | J47: =for_02041031_JissiUmu_2!I9 -> 0 | K47: =for_02041031_JissiUmu_2!J9 -> 1 | L47: =for_02041031_JissiUmu_2!K9 -> 0 | M47: =for_02041031_JissiUmu_2!L9 -> 0 | N47: =for_02041031_JissiUmu_2!M9 -> 0 | O47: =for_02041031_JissiUmu_2!N9 -> 1
C48: 06_外回りの清掃､草取り､剪定など | D48: =for_02041031_JissiUmu_2!C10 -> 1 | E48: =for_02041031_JissiUmu_2!D10 -> 1 | F48: =for_02041031_JissiUmu_2!E10 -> 1 | G48: =for_02041031_JissiUmu_2!F10 -> 1 | H48: =for_02041031_JissiUmu_2!G10 -> 0 | I48: =for_02041031_JissiUmu_2!H10 -> 0 | J48: =for_02041031_JissiUmu_2!I10 -> 1 | K48: =for_02041031_JissiUmu_2!J10 -> 1 | L48: =for_02041031_JissiUmu_2!K10 -> 0 | M48: =for_02041031_JissiUmu_2!L10 -> 0 | N48: =for_02041031_JissiUmu_2!M10 -> 0 | O48: =for_02041031_JissiUmu_2!N10 -> 0
C49: 07_傷み､雨漏りなどのチェック･修繕 | D49: =for_02041031_JissiUmu_2!C11 -> 0 | E49: =for_02041031_JissiUmu_2!D11 -> 0 | F49: =for_02041031_JissiUmu_2!E11 -> 0 | G49: =for_02041031_JissiUmu_2!F11 -> 1 | H49: =for_02041031_JissiUmu_2!G11 -> 0 | I49: =for_02041031_JissiUmu_2!H11 -> 0 | J49: =for_02041031_JissiUmu_2!I11 -> 0 | K49: =for_02041031_JissiUmu_2!J11 -> 0 | L49: =for_02041031_JissiUmu_2!K11 -> 0 | M49: =for_02041031_JissiUmu_2!L11 -> 0 | N49: =for_02041031_JissiUmu_2!M11 -> 0 | O49: =for_02041031_JissiUmu_2!N11 -> 0
C50: 08_台風､地震などの後の見回り | D50: =for_02041031_JissiUmu_2!C12 -> 0 | E50: =for_02041031_JissiUmu_2!D12 -> 0 | F50: =for_02041031_JissiUmu_2!E12 -> 0 | G50: =for_02041031_JissiUmu_2!F12 -> 0 | H50: =for_02041031_JissiUmu_2!G12 -> 0 | I50: =for_02041031_JissiUmu_2!H12 -> 0 | J50: =for_02041031_JissiUmu_2!I12 -> 0 | K50: =for_02041031_JissiUmu_2!J12 -> 0 | L50: =for_02041031_JissiUmu_2!K12 -> 0 | M50: =for_02041031_JissiUmu_2!L12 -> 0 | N50: =for_02041031_JissiUmu_2!M12 -> 0 | O50: =for_02041031_JissiUmu_2!N12 -> 0
C51: 09_除排雪 | D51: =for_02041031_JissiUmu_2!C13 -> 0 | E51: =for_02041031_JissiUmu_2!D13 -> 0 | F51: =for_02041031_JissiUmu_2!E13 -> 0 | G51: =for_02041031_JissiUmu_2!F13 -> 0 | H51: =for_02041031_JissiUmu_2!G13 -> 0 | I51: =for_02041031_JissiUmu_2!H13 -> 0 | J51: =for_02041031_JissiUmu_2!I13 -> 0 | K51: =for_02041031_JissiUmu_2!J13 -> 0 | L51: =for_02041031_JissiUmu_2!K13 -> 0 | M51: =for_02041031_JissiUmu_2!L13 -> 0 | N51: =for_02041031_JissiUmu_2!M13 -> 0 | O51: =for_02041031_JissiUmu_2!N13 -> 0
C52: 10_その他の管理項目 | D52: =for_02041031_JissiUmu_2!C14 -> 0 | E52: =for_02041031_JissiUmu_2!D14 -> 0 | F52: =for_02041031_JissiUmu_2!E14 -> 0 | G52: =for_02041031_JissiUmu_2!F14 -> 0 | H52: =for_02041031_JissiUmu_2!G14 -> 0 | I52: =for_02041031_JissiUmu_2!H14 -> 0 | J52: =for_02041031_JissiUmu_2!I14 -> 0 | K52: =for_02041031_JissiUmu_2!J14 -> 0 | L52: =for_02041031_JissiUmu_2!K14 -> 0 | M52: =for_02041031_JissiUmu_2!L14 -> 0 | N52: =for_02041031_JissiUmu_2!M14 -> 0 | O52: =for_02041031_JissiUmu_2!N14 -> 0
C53: （出典：2021国総研webアンケート調査より国総研作成） | K53: ※webアンケよりsuijun別に行われている管理の内容を設定
C55: シナリオ２：標準的な管理を継続
C56: 自宅からの距離 | D56: 01_徒歩圏内 | G56: 02_車・電車等で1時間以内 | J56: 03_車・電車等で1時間～3時間以内 | M56: 04_車・電車等で3時間以上
C57: 管理項目 | D57: 物的水準1：良好 | E57: 物的水準2：標準 | F57: 物的水準3：管理不全 | G57: 物的水準1：良好 | H57: 物的水準2：標準 | I57: 物的水準3：管理不全 | J57: 物的水準1：良好 | K57: 物的水準2：標準 | L57: 物的水準3：管理不全 | M57: 物的水準1：良好 | N57: 物的水準2：標準 | O57: 物的水準3：管理不全
C58: 01_戸締まりの確認 | D58: =for_02041031_JissiUmu_2!C21 -> 1 | E58: =for_02041031_JissiUmu_2!D21 -> 1 | F58: =for_02041031_JissiUmu_2!E21 -> 1 | G58: =for_02041031_JissiUmu_2!F21 -> 1 | H58: =for_02041031_JissiUmu_2!G21 -> 1 | I58: =for_02041031_JissiUmu_2!H21 -> 1 | J58: =for_02041031_JissiUmu_2!I21 -> 1 | K58: =for_02041031_JissiUmu_2!J21 -> 1 | L58: =for_02041031_JissiUmu_2!K21 -> 0 | M58: =for_02041031_JissiUmu_2!L21 -> 0 | N58: =for_02041031_JissiUmu_2!M21 -> 0 | O58: =for_02041031_JissiUmu_2!N21 -> 0
C59: 02_住宅の通風･換気 | D59: =for_02041031_JissiUmu_2!C22 -> 1 | E59: =for_02041031_JissiUmu_2!D22 -> 1 | F59: =for_02041031_JissiUmu_2!E22 -> 1 | G59: =for_02041031_JissiUmu_2!F22 -> 1 | H59: =for_02041031_JissiUmu_2!G22 -> 0 | I59: =for_02041031_JissiUmu_2!H22 -> 0 | J59: =for_02041031_JissiUmu_2!I22 -> 0 | K59: =for_02041031_JissiUmu_2!J22 -> 1 | L59: =for_02041031_JissiUmu_2!K22 -> 0 | M59: =for_02041031_JissiUmu_2!L22 -> 0 | N59: =for_02041031_JissiUmu_2!M22 -> 0 | O59: =for_02041031_JissiUmu_2!N22 -> 0
C60: 03_住宅内の清掃 | D60: =for_02041031_JissiUmu_2!C23 -> 0 | E60: =for_02041031_JissiUmu_2!D23 -> 1 | F60: =for_02041031_JissiUmu_2!E23 -> 1 | G60: =for_02041031_JissiUmu_2!F23 -> 1 | H60: =for_02041031_JissiUmu_2!G23 -> 0 | I60: =for_02041031_JissiUmu_2!H23 -> 0 | J60: =for_02041031_JissiUmu_2!I23 -> 0 | K60: =for_02041031_JissiUmu_2!J23 -> 1 | L60: =for_02041031_JissiUmu_2!K23 -> 0 | M60: =for_02041031_JissiUmu_2!L23 -> 0 | N60: =for_02041031_JissiUmu_2!M23 -> 0 | O60: =for_02041031_JissiUmu_2!N23 -> 0
C61: 04_水回りなどの点検 | D61: =for_02041031_JissiUmu_2!C24 -> 0 | E61: =for_02041031_JissiUmu_2!D24 -> 0 | F61: =for_02041031_JissiUmu_2!E24 -> 0 | G61: =for_02041031_JissiUmu_2!F24 -> 0 | H61: =for_02041031_JissiUmu_2!G24 -> 0 | I61: =for_02041031_JissiUmu_2!H24 -> 0 | J61: =for_02041031_JissiUmu_2!I24 -> 0 | K61: =for_02041031_JissiUmu_2!J24 -> 0 | L61: =for_02041031_JissiUmu_2!K24 -> 0 | M61: =for_02041031_JissiUmu_2!L24 -> 0 | N61: =for_02041031_JissiUmu_2!M24 -> 0 | O61: =for_02041031_JissiUmu_2!N24 -> 0
C62: 05_郵便物､チラシなどの整理･処分 | D62: =for_02041031_JissiUmu_2!C25 -> 0 | E62: =for_02041031_JissiUmu_2!D25 -> 0 | F62: =for_02041031_JissiUmu_2!E25 -> 1 | G62: =for_02041031_JissiUmu_2!F25 -> 1 | H62: =for_02041031_JissiUmu_2!G25 -> 0 | I62: =for_02041031_JissiUmu_2!H25 -> 0 | J62: =for_02041031_JissiUmu_2!I25 -> 0 | K62: =for_02041031_JissiUmu_2!J25 -> 0 | L62: =for_02041031_JissiUmu_2!K25 -> 0 | M62: =for_02041031_JissiUmu_2!L25 -> 0 | N62: =for_02041031_JissiUmu_2!M25 -> 0 | O62: =for_02041031_JissiUmu_2!N25 -> 0
C63: 06_外回りの清掃､草取り､剪定など | D63: =for_02041031_JissiUmu_2!C26 -> 0 | E63: =for_02041031_JissiUmu_2!D26 -> 0 | F63: =for_02041031_JissiUmu_2!E26 -> 1 | G63: =for_02041031_JissiUmu_2!F26 -> 1 | H63: =for_02041031_JissiUmu_2!G26 -> 0 | I63: =for_02041031_JissiUmu_2!H26 -> 0 | J63: =for_02041031_JissiUmu_2!I26 -> 0 | K63: =for_02041031_JissiUmu_2!J26 -> 1 | L63: =for_02041031_JissiUmu_2!K26 -> 0 | M63: =for_02041031_JissiUmu_2!L26 -> 0 | N63: =for_02041031_JissiUmu_2!M26 -> 0 | O63: =for_02041031_JissiUmu_2!N26 -> 0
C64: 07_傷み､雨漏りなどのチェック･修繕 | D64: =for_02041031_JissiUmu_2!C27 -> 0 | E64: =for_02041031_JissiUmu_2!D27 -> 0 | F64: =for_02041031_JissiUmu_2!E27 -> 0 | G64: =for_02041031_JissiUmu_2!F27 -> 0 | H64: =for_02041031_JissiUmu_2!G27 -> 0 | I64: =for_02041031_JissiUmu_2!H27 -> 0 | J64: =for_02041031_JissiUmu_2!I27 -> 0 | K64: =for_02041031_JissiUmu_2!J27 -> 0 | L64: =for_02041031_JissiUmu_2!K27 -> 0 | M64: =for_02041031_JissiUmu_2!L27 -> 0 | N64: =for_02041031_JissiUmu_2!M27 -> 0 | O64: =for_02041031_JissiUmu_2!N27 -> 0
C65: 08_台風､地震などの後の見回り | D65: =for_02041031_JissiUmu_2!C28 -> 0 | E65: =for_02041031_JissiUmu_2!D28 -> 0 | F65: =for_02041031_JissiUmu_2!E28 -> 0 | G65: =for_02041031_JissiUmu_2!F28 -> 0 | H65: =for_02041031_JissiUmu_2!G28 -> 0 | I65: =for_02041031_JissiUmu_2!H28 -> 0 | J65: =for_02041031_JissiUmu_2!I28 -> 0 | K65: =for_02041031_JissiUmu_2!J28 -> 0 | L65: =for_02041031_JissiUmu_2!K28 -> 0 | M65: =for_02041031_JissiUmu_2!L28 -> 0 | N65: =for_02041031_JissiUmu_2!M28 -> 0 | O65: =for_02041031_JissiUmu_2!N28 -> 0
C66: 09_除排雪 | D66: =for_02041031_JissiUmu_2!C29 -> 0 | E66: =for_02041031_JissiUmu_2!D29 -> 0 | F66: =for_02041031_JissiUmu_2!E29 -> 0 | G66: =for_02041031_JissiUmu_2!F29 -> 0 | H66: =for_02041031_JissiUmu_2!G29 -> 0 | I66: =for_02041031_JissiUmu_2!H29 -> 0 | J66: =for_02041031_JissiUmu_2!I29 -> 0 | K66: =for_02041031_JissiUmu_2!J29 -> 0 | L66: =for_02041031_JissiUmu_2!K29 -> 0 | M66: =for_02041031_JissiUmu_2!L29 -> 0 | N66: =for_02041031_JissiUmu_2!M29 -> 0 | O66: =for_02041031_JissiUmu_2!N29 -> 0
C67: 10_その他の管理項目 | D67: =for_02041031_JissiUmu_2!C30 -> 0 | E67: =for_02041031_JissiUmu_2!D30 -> 0 | F67: =for_02041031_JissiUmu_2!E30 -> 0 | G67: =for_02041031_JissiUmu_2!F30 -> 0 | H67: =for_02041031_JissiUmu_2!G30 -> 0 | I67: =for_02041031_JissiUmu_2!H30 -> 0 | J67: =for_02041031_JissiUmu_2!I30 -> 0 | K67: =for_02041031_JissiUmu_2!J30 -> 0 | L67: =for_02041031_JissiUmu_2!K30 -> 0 | M67: =for_02041031_JissiUmu_2!L30 -> 0 | N67: =for_02041031_JissiUmu_2!M30 -> 0 | O67: =for_02041031_JissiUmu_2!N30 -> 0
C68: （出典：2021国総研webアンケート調査より国総研作成） | K68: ※webアンケよりsuijun別に行われている管理の内容を設定
C70: シナリオ３：管理しない状態を継続
C71: 自宅からの距離 | D71: 01_徒歩圏内 | G71: 02_車・電車等で1時間以内 | J71: 03_車・電車等で1時間～3時間以内 | M71: 04_車・電車等で3時間以上
C72: 管理項目 | D72: 物的水準1：良好 | E72: 物的水準2：標準 | F72: 物的水準3：管理不全 | G72: 物的水準1：良好 | H72: 物的水準2：標準 | I72: 物的水準3：管理不全 | J72: 物的水準1：良好 | K72: 物的水準2：標準 | L72: 物的水準3：管理不全 | M72: 物的水準1：良好 | N72: 物的水準2：標準 | O72: 物的水準3：管理不全
C73: 01_戸締まりの確認 | D73: 0 | E73: 0 | F73: 0 | G73: 0 | H73: 0 | I73: 0 | J73: 0 | K73: 0 | L73: 0 | M73: 0 | N73: 0 | O73: 0
C74: 02_住宅の通風･換気 | D74: 0 | E74: 0 | F74: 0 | G74: 0 | H74: 0 | I74: 0 | J74: 0 | K74: 0 | L74: 0 | M74: 0 | N74: 0 | O74: 0
C75: 03_住宅内の清掃 | D75: 0 | E75: 0 | F75: 0 | G75: 0 | H75: 0 | I75: 0 | J75: 0 | K75: 0 | L75: 0 | M75: 0 | N75: 0 | O75: 0
C76: 04_水回りなどの点検 | D76: 0 | E76: 0 | F76: 0 | G76: 0 | H76: 0 | I76: 0 | J76: 0 | K76: 0 | L76: 0 | M76: 0 | N76: 0 | O76: 0
C77: 05_郵便物､チラシなどの整理･処分 | D77: 0 | E77: 0 | F77: 0 | G77: 0 | H77: 0 | I77: 0 | J77: 0 | K77: 0 | L77: 0 | M77: 0 | N77: 0 | O77: 0
C78: 06_外回りの清掃､草取り､剪定など | D78: 0 | E78: 0 | F78: 0 | G78: 0 | H78: 0 | I78: 0 | J78: 0 | K78: 0 | L78: 0 | M78: 0 | N78: 0 | O78: 0
C79: 07_傷み､雨漏りなどのチェック･修繕 | D79: 0 | E79: 0 | F79: 0 | G79: 0 | H79: 0 | I79: 0 | J79: 0 | K79: 0 | L79: 0 | M79: 0 | N79: 0 | O79: 0
C80: 08_台風､地震などの後の見回り | D80: 0 | E80: 0 | F80: 0 | G80: 0 | H80: 0 | I80: 0 | J80: 0 | K80: 0 | L80: 0 | M80: 0 | N80: 0 | O80: 0
C81: 09_除排雪 | D81: 0 | E81: 0 | F81: 0 | G81: 0 | H81: 0 | I81: 0 | J81: 0 | K81: 0 | L81: 0 | M81: 0 | N81: 0 | O81: 0
C82: 10_その他の管理項目 | D82: 0 | E82: 0 | F82: 0 | G82: 0 | H82: 0 | I82: 0 | J82: 0 | K82: 0 | L82: 0 | M82: 0 | N82: 0 | O82: 0
C85: シナリオ４：現状の管理の継続
C86: 管理項目 | D86: 管理実施の有無 | E86: （作業用）
C87: 01_戸締まりの確認 | D87: =IF(LEFT(E87,2)="01",1,0) -> 0 | E87: ='01_入力'!F27 -> 0
C88: 02_住宅の通風･換気 | D88: 0 | E88: ='01_入力'!F28 -> 0
C89: 03_住宅内の清掃 | D89: 0 | E89: ='01_入力'!F29 -> 0
C90: 04_水回りなどの点検 | D90: 0 | E90: ='01_入力'!F30 -> 0
C91: 05_郵便物､チラシなどの整理･処分 | D91: 0 | E91: ='01_入力'!F31 -> 0
C92: 06_外回りの清掃､草取り､剪定など | D92: 0 | E92: ='01_入力'!F32 -> 0
C93: 07_傷み､雨漏りなどのチェック･修繕 | D93: 0 | E93: ='01_入力'!F33 -> 0
C94: 08_台風､地震などの後の見回り | D94: 0 | E94: ='01_入力'!F34 -> 0
C95: 09_除排雪 | D95: 0 | E95: ='01_入力'!F35 -> 0
C96: 10_その他の管理項目 | D96: 0 | E96: ='01_入力'!F36 -> 0

Sheet 02041021_UCostKanri (hidden)
A1: （非表示シート）
B2: ０．入力
H3: 自宅からの距離 | I3: ='01_入力'!$F$6 -> 0
H4: 自宅からの距離フラグ | I4: =IF(I3="01_徒歩圏内",1, IF(I3="02_車・電車等で１時間以内",2, IF(I3="03_車・電車等で１時間超～３時間以内",3, IF(I3="04_車・電車等で３時間超",4)))) -> FALSE
B7: １．推計に利用するデータ
C8: （１）管理に要する費用 | G8: （２）移動に要する費用
D9: 管理項目 | E9: 単価［円/回］ | I9: 単価［円/回］
D10: 01_戸締まりの確認 | E10: =E26:E35 -> 90.90909091 | H10: 交通費 | I10: =IF(I4=1,I26, IF(I4=2,I27, IF(I4=3,I28, IF(I4=4,I29)))) -> FALSE
D11: 02_住宅の通風･換気 | E11: 909.0909091
D12: 03_住宅内の清掃 | E12: 909.0909091
D13: 04_水回りなどの点検 | E13: 909.0909091
D14: 05_郵便物､チラシなどの整理･処分 | E14: 454.5454545
D15: 06_外回りの清掃､草取り､剪定など | E15: 909.0909091
D16: 07_傷み､雨漏りなどのチェック･修繕 | E16: 909.0909091
D17: 08_台風､地震などの後の見回り | E17: 2272.727273
D18: 09_除排雪 | E18: 4545.454545
D19: 10_その他の管理項目 | E19: 1323.232323
D20: （出典：2020、2021国総研ヒアリング調査より国総研作成）
D21: ※出典：231024DLv6_02所有者.xlsx
B23: ２．デフォルトの原単位データ
D24: 管理項目の1回あたり実施に要する費用
D25: 管理項目 | E25: 単価［円/回］ | H25: 交通費 | I25: 単価［円/回］
D26: 01_戸締まりの確認 | E26: =100/1.1 -> 90.90909091 | H26: 01_徒歩圏内 | I26: 150.1666667
D27: 02_住宅の通風･換気 | E27: =1000/1.1 -> 909.0909091 | H27: 02_車・電車等で1時間以内 | I27: 877.7398374
D28: 03_住宅内の清掃 | E28: =1000/1.1 -> 909.0909091 | H28: 03_車・電車等で1時間～3時間以内 | I28: 3861.643436
D29: 04_水回りなどの点検 | E29: =1000/1.1 -> 909.0909091 | H29: 04_車・電車等で3時間以上 | I29: 18167.17992
D30: 05_郵便物､チラシなどの整理･処分 | E30: =500/1.1 -> 454.5454545 | H30: ※出典：231024DLv6_02所有者.xlsx「2-c)交通費」
D31: 06_外回りの清掃､草取り､剪定など | E31: =1000/1.1 -> 909.0909091
D32: 07_傷み､雨漏りなどのチェック･修繕 | E32: =1000/1.1 -> 909.0909091
D33: 08_台風､地震などの後の見回り | E33: =2500/1.1 -> 2272.727273
D34: 09_除排雪 | E34: =5000/1.1 -> 4545.454545
D35: 10_その他の管理項目 | E35: =AVERAGE(E26:E34) -> 1323.232323 | F35: ※独自入力に対応が必要。
D36: （出典：2020、2021国総研ヒアリング調査より国総研作成）
D37: ※出典：231024DLv6_02所有者.xlsx

Sheet 02042011_FreqTaio (hidden)
A1: （非表示シート）
B2: ０．入力
D3: 築後経過年数 | E3: ='01_入力'!$F$8 -> 0
B5: １．推計に利用するデータ
B6: ２．デフォルトの原単位データ
C7: （３）周辺住民への対応が生じる回数
D8: 項目 | E8: 物的水準1：良好 | F8: 物的水準2：標準 | G8: 物的水準3：管理不全
D9: 回数［回/年］ | E9: 0 | F9: 1.8 | G9: 3
H10: ※出典：市町村版ツール「010201FreqTa」
C11: （４）管理不全化により生じる回数
C12: 物的水準1：良好
D13: 回数［回/年］ | E13: t1 | F13: t2 | G13: t3 | H13: t4 | I13: t5 | J13: t6 | K13: t7 | L13: t8 | M13: t9 | N13: t10
D14: 01_税制の特例外れによる税額の増加 | E14: 0 | F14: 0 | G14: 0 | H14: 0 | I14: 0 | J14: 0 | K14: 0 | L14: 0 | M14: 0 | N14: 0
D15: 02_倒壊等による周辺住宅の被害（半壊、一部損壊） | E15: =E53*SUM($E$69:$E$70) -> 0 | F15: 0 | G15: 0 | H15: 0 | I15: 0 | J15: 0 | K15: 0 | L15: 0 | M15: 0 | N15: 0
D16: 03_倒壊等による周辺住宅の被害（全壊） | E16: =E53*SUM($E$68) -> 0 | F16: 0 | G16: 0 | H16: 0 | I16: 0 | J16: 0 | K16: 0 | L16: 0 | M16: 0 | N16: 0
D17: 04_倒壊等による周辺住民の身体的被害（負傷） | E17: =E53*$E$75 -> 0 | F17: 0 | G17: 0 | H17: 0 | I17: 0 | J17: 0 | K17: 0 | L17: 0 | M17: 0 | N17: 0
D18: 05_倒壊等による周辺住民の身体的被害（死亡） | E18: =E53*$E$74 -> 0 | F18: 0 | G18: 0 | H18: 0 | I18: 0 | J18: 0 | K18: 0 | L18: 0 | M18: 0 | N18: 0
D19: 06_倒壊等の場合の解体費用の増加 | E19: =E53*SUM($E$68:$E$69) -> 0 | F19: 0 | G19: 0 | H19: 0 | I19: 0 | J19: 0 | K19: 0 | L19: 0 | M19: 0 | N19: 0
D20: 07_その他の周辺の被害（シロアリ駆除・点検） | E20: 0.0002162041203 | F20: 0.0002162041203 | G20: 0.0002162041203 | H20: 0.0002162041203 | I20: 0.0002162041203 | J20: 0.0002162041203 | K20: 0.0002162041203 | L20: 0.0002162041203 | M20: 0.0002162041203 | N20: 0.0002162041203
D21: 08_その他の周辺の被害（ネズミ駆除） | E21: 0.0002162041203 | F21: 0.0002162041203 | G21: 0.0002162041203 | H21: 0.0002162041203 | I21: 0.0002162041203 | J21: 0.0002162041203 | K21: 0.0002162041203 | L21: 0.0002162041203 | M21: 0.0002162041203 | N21: 0.0002162041203
D22: 09_その他の周辺の被害（草木処理） | E22: 0 | F22: 0 | G22: 0 | H22: 0 | I22: 0 | J22: 0 | K22: 0 | L22: 0 | M22: 0 | N22: 0
E23: ※出典：231024DLv6_02所有者.xlsx「2-h)倒壊等による周辺被害」
C25: 物的水準2：標準
D26: 回数［回/年］ | E26: t1 | F26: t2 | G26: t3 | H26: t4 | I26: t5 | J26: t6 | K26: t7 | L26: t8 | M26: t9 | N26: t10
D27: 01_税制の特例外れによる税額の増加 | E27: 0 | F27: 0 | G27: 0 | H27: 0 | I27: 0 | J27: 0 | K27: 0 | L27: 0 | M27: 0 | N27: 0
D28: 02_倒壊等による周辺住宅の被害（半壊、一部損壊） | E28: =E54*SUM($E$69:$E$70) -> 0 | F28: 0 | G28: 0 | H28: 0 | I28: 0 | J28: 0 | K28: 0 | L28: 0 | M28: 0 | N28: 0
D29: 03_倒壊等による周辺住宅の被害（全壊） | E29: =E54*SUM($E$68) -> 0 | F29: 0 | G29: 0 | H29: 0 | I29: 0 | J29: 0 | K29: 0 | L29: 0 | M29: 0 | N29: 0
D30: 04_倒壊等による周辺住民の身体的被害（負傷） | E30: =E54*$E$75 -> 0 | F30: 0 | G30: 0 | H30: 0 | I30: 0 | J30: 0 | K30: 0 | L30: 0 | M30: 0 | N30: 0
D31: 05_倒壊等による周辺住民の身体的被害（死亡） | E31: =E54*$E$74 -> 0 | F31: 0 | G31: 0 | H31: 0 | I31: 0 | J31: 0 | K31: 0 | L31: 0 | M31: 0 | N31: 0
D32: 06_倒壊等の場合の解体費用の増加 | E32: =E54*SUM($E$68:$E$69) -> 0 | F32: 0 | G32: 0 | H32: 0 | I32: 0 | J32: 0 | K32: 0 | L32: 0 | M32: 0 | N32: 0
D33: 07_その他の周辺の被害（シロアリ駆除・点検） | E33: 0.0002162041203 | F33: 0.0002162041203 | G33: 0.0002162041203 | H33: 0.0002162041203 | I33: 0.0002162041203 | J33: 0.0002162041203 | K33: 0.0002162041203 | L33: 0.0002162041203 | M33: 0.0002162041203 | N33: 0.0002162041203
D34: 08_その他の周辺の被害（ネズミ駆除） | E34: 0.0002162041203 | F34: 0.0002162041203 | G34: 0.0002162041203 | H34: 0.0002162041203 | I34: 0.0002162041203 | J34: 0.0002162041203 | K34: 0.0002162041203 | L34: 0.0002162041203 | M34: 0.0002162041203 | N34: 0.0002162041203
D35: 09_その他の周辺の被害（草木処理） | E35: 0.02152745706 | F35: 0.02152745706 | G35: 0.02152745706 | H35: 0.02152745706 | I35: 0.02152745706 | J35: 0.02152745706 | K35: 0.02152745706 | L35: 0.02152745706 | M35: 0.02152745706 | N35: 0.02152745706
C37: 物的水準3：管理不全
D38: 回数［回/年］ | E38: t1 | F38: t2 | G38: t3 | H38: t4 | I38: t5 | J38: t6 | K38: t7 | L38: t8 | M38: t9 | N38: t10
D39: 01_税制の特例外れによる税額の増加 | E39: 1 | F39: 1 | G39: 1 | H39: 1 | I39: 1 | J39: 1 | K39: 1 | L39: 1 | M39: 1 | N39: 1
D40: 02_倒壊等による周辺住宅の被害（半壊、一部損壊） | E40: =E55*SUM($E$69:$E$70) -> 0 | F40: 0 | G40: 0 | H40: 0 | I40: 0 | J40: 0 | K40: 0 | L40: 0 | M40: 0 | N40: 0
D41: 03_倒壊等による周辺住宅の被害（全壊） | E41: =E55*SUM($E$68) -> 0 | F41: 0 | G41: 0 | H41: 0 | I41: 0 | J41: 0 | K41: 0 | L41: 0 | M41: 0 | N41: 0
D42: 04_倒壊等による周辺住民の身体的被害（負傷） | E42: =E55*$E$75 -> 0 | F42: 0 | G42: 0 | H42: 0 | I42: 0 | J42: 0 | K42: 0 | L42: 0 | M42: 0 | N42: 0
D43: 05_倒壊等による周辺住民の身体的被害（死亡） | E43: =E55*$E$74 -> 0 | F43: 0 | G43: 0 | H43: 0 | I43: 0 | J43: 0 | K43: 0 | L43: 0 | M43: 0 | N43: 0
D44: 06_倒壊等の場合の解体費用の増加 | E44: =E55*SUM($E$68:$E$69) -> 0 | F44: 0 | G44: 0 | H44: 0 | I44: 0 | J44: 0 | K44: 0 | L44: 0 | M44: 0 | N44: 0
D45: 07_その他の周辺の被害（シロアリ駆除・点検） | E45: 0.002924395532 | F45: =E45 -> 0.002924395532 | G45: 0.002924395532 | H45: 0.002924395532 | I45: 0.002924395532 | J45: 0.002924395532 | K45: 0.002924395532 | L45: 0.002924395532 | M45: 0.002924395532 | N45: 0.002924395532
D46: 08_その他の周辺の被害（ネズミ駆除） | E46: 0.002924395532 | F46: =E46 -> 0.002924395532 | G46: 0.002924395532 | H46: 0.002924395532 | I46: 0.002924395532 | J46: 0.002924395532 | K46: 0.002924395532 | L46: 0.002924395532 | M46: 0.002924395532 | N46: 0.002924395532
D47: 09_その他の周辺の被害（草木処理） | E47: 0.02152745706 | F47: =E47 -> 0.02152745706 | G47: 0.02152745706 | H47: 0.02152745706 | I47: 0.02152745706 | J47: 0.02152745706 | K47: 0.02152745706 | L47: 0.02152745706 | M47: 0.02152745706 | N47: 0.02152745706
C51: （作業用）破壊率λ(t)=f(t)/(1-F(t))
D52: 利用データ | E52: t1 | F52: t2 | G52: t3 | H52: t4 | I52: t5 | J52: t6 | K52: t7 | L52: t8 | M52: t9 | N52: t10
D53: 物的水準1：良好 | E53: =IF(E3=D58,E58:N58, IF(E3=D59,E59:N59, IF(E3=D60,E60:N60, IF(E3=D61,E61:N61, IF(E3=D62,E62:N62, IF(E3=D63,E63:N63, IF(E3=D64,E64:N64, IF(E3=D65,E65:N65)))))))) -> FALSE | F53: FALSE | G53: FALSE | H53: FALSE | I53: FALSE | J53: FALSE | K53: FALSE | L53: FALSE | M53: FALSE | N53: FALSE
D54: 物的水準2：標準 | E54: =E53:N53 -> FALSE | F54: FALSE | G54: FALSE | H54: FALSE | I54: FALSE | J54: FALSE | K54: FALSE | L54: FALSE | M54: FALSE | N54: FALSE
D55: 物的水準3：管理不全 | E55: =IF(E3=D58,E61:N61, IF(E3=D59,E62:N62, IF(E3=D60,E63:N63, IF(E3=D61,E64:N64, IF(E3=D62,E65:N65, IF(E3=D63,E65:N65, IF(E3=D64,E65:N65, IF(E3=D65,E65:N65)))))))) -> FALSE | F55: FALSE | G55: FALSE | H55: FALSE | I55: FALSE | J55: FALSE | K55: FALSE | L55: FALSE | M55: FALSE | N55: FALSE
E57: t1 | F57: t2 | G57: t3 | H57: t4 | I57: t5 | J57: t6 | K57: t7 | L57: t8 | M57: t9 | N57: t10
D58: 01_築3年未満 | E58: ='02042012_FreqTaio_LogNormDist'!E10 -> 1.179902711e-73 | F58: ='02042012_FreqTaio_LogNormDist'!E11 -> 6.9391948e-55 | G58: ='02042012_FreqTaio_LogNormDist'!E12 -> 2.730962615e-43 | H58: ='02042012_FreqTaio_LogNormDist'!E13 -> 2.790401908e-35 | I58: ='02042012_FreqTaio_LogNormDist'!E14 -> 2.245644282e-29 | J58: ='02042012_FreqTaio_LogNormDist'!E15 -> 7.88083774e-25 | K58: ='02042012_FreqTaio_LogNormDist'!E16 -> 3.177381026e-21 | L58: ='02042012_FreqTaio_LogNormDist'!E17 -> 2.671173958e-18 | M58: ='02042012_FreqTaio_LogNormDist'!E18 -> 6.915609573e-16 | N58: ='02042012_FreqTaio_LogNormDist'!E19 -> 7.204305962e-14
D59: 02_築3～5年 | E59: ='02042012_FreqTaio_LogNormDist'!E12 -> 2.730962615e-43 | F59: ='02042012_FreqTaio_LogNormDist'!E13 -> 2.790401908e-35 | G59: ='02042012_FreqTaio_LogNormDist'!E14 -> 2.245644282e-29 | H59: ='02042012_FreqTaio_LogNormDist'!E15 -> 7.88083774e-25 | I59: ='02042012_FreqTaio_LogNormDist'!E16 -> 3.177381026e-21 | J59: ='02042012_FreqTaio_LogNormDist'!E17 -> 2.671173958e-18 | K59: ='02042012_FreqTaio_LogNormDist'!E18 -> 6.915609573e-16 | L59: ='02042012_FreqTaio_LogNormDist'!E19 -> 7.204305962e-14 | M59: ='02042012_FreqTaio_LogNormDist'!E20 -> 3.653060244e-12 | N59: ='02042012_FreqTaio_LogNormDist'!E21 -> 1.036773157e-10
D60: 03_築5～10年 | E60: ='02042012_FreqTaio_LogNormDist'!E16 -> 3.177381026e-21 | F60: ='02042012_FreqTaio_LogNormDist'!E17 -> 2.671173958e-18 | G60: ='02042012_FreqTaio_LogNormDist'!E18 -> 6.915609573e-16 | H60: ='02042012_FreqTaio_LogNormDist'!E19 -> 7.204305962e-14 | I60: ='02042012_FreqTaio_LogNormDist'!E20 -> 3.653060244e-12 | J60: ='02042012_FreqTaio_LogNormDist'!E21 -> 1.036773157e-10 | K60: ='02042012_FreqTaio_LogNormDist'!E22 -> 1.829433843e-09 | L60: ='02042012_FreqTaio_LogNormDist'!E23 -> 2.175896011e-08 | M60: ='02042012_FreqTaio_LogNormDist'!E24 -> 1.858261654e-07 | N60: ='02042012_FreqTaio_LogNormDist'!E25 -> 1.198271245e-06
D61: 04_築10~20年 | E61: ='02042012_FreqTaio_LogNormDist'!E23 -> 2.175896011e-08 | F61: ='02042012_FreqTaio_LogNormDist'!E24 -> 1.858261654e-07 | G61: ='02042012_FreqTaio_LogNormDist'!E25 -> 1.198271245e-06 | H61: ='02042012_FreqTaio_LogNormDist'!E26 -> 6.075499337e-06 | I61: ='02042012_FreqTaio_LogNormDist'!E27 -> 2.503506688e-05 | J61: ='02042012_FreqTaio_LogNormDist'!E28 -> 8.616034847e-05 | K61: ='02042012_FreqTaio_LogNormDist'!E29 -> 0.0002533655248 | L61: ='02042012_FreqTaio_LogNormDist'!E30 -> 0.0006489618812 | M61: ='02042012_FreqTaio_LogNormDist'!E31 -> 0.001471873312 | N61: ='02042012_FreqTaio_LogNormDist'!E32 -> 0.002998601873
D62: 05_築20～30年 | E62: ='02042012_FreqTaio_LogNormDist'!E34 -> 0.009476705767 | F62: ='02042012_FreqTaio_LogNormDist'!E35 -> 0.01502394564 | G62: ='02042012_FreqTaio_LogNormDist'!E36 -> 0.02235320177 | H62: ='02042012_FreqTaio_LogNormDist'!E37 -> 0.03148046864 | I62: ='02042012_FreqTaio_LogNormDist'!E38 -> 0.04228929016 | J62: ='02042012_FreqTaio_LogNormDist'!E39 -> 0.05456000665 | K62: ='02042012_FreqTaio_LogNormDist'!E40 -> 0.06800981713 | L62: ='02042012_FreqTaio_LogNormDist'!E41 -> 0.08233194984 | M62: ='02042012_FreqTaio_LogNormDist'!E42 -> 0.09722674413 | N62: ='02042012_FreqTaio_LogNormDist'!E43 -> 0.1124222067
D63: 06_築30～40年 | E63: ='02042012_FreqTaio_LogNormDist'!E44 -> 0.1276848631 | F63: ='02042012_FreqTaio_LogNormDist'!E45 -> 0.1428232227 | G63: ='02042012_FreqTaio_LogNormDist'!E46 -> 0.1576864058 | H63: ='02042012_FreqTaio_LogNormDist'!E47 -> 0.1721600744 | I63: ='02042012_FreqTaio_LogNormDist'!E48 -> 0.1861611999 | J63: ='02042012_FreqTaio_LogNormDist'!E49 -> 0.1996326411 | K63: ='02042012_FreqTaio_LogNormDist'!E50 -> 0.212538082 | L63: ='02042012_FreqTaio_LogNormDist'!E51 -> 0.224857582 | M63: ='02042012_FreqTaio_LogNormDist'!E52 -> 0.2365838206 | N63: ='02042012_FreqTaio_LogNormDist'!E53 -> 0.247719013
D64: 07_築40～50年 | E64: ='02042012_FreqTaio_LogNormDist'!E54 -> 0.2582724295 | F64: ='02042012_FreqTaio_LogNormDist'!E55 -> 0.2682584307 | G64: ='02042012_FreqTaio_LogNormDist'!E56 -> 0.2776949312 | H64: ='02042012_FreqTaio_LogNormDist'!E57 -> 0.2866022119 | I64: ='02042012_FreqTaio_LogNormDist'!E58 -> 0.2950020107 | J64: ='02042012_FreqTaio_LogNormDist'!E59 -> 0.3029168335 | K64: ='02042012_FreqTaio_LogNormDist'!E60 -> 0.3103694392 | L64: ='02042012_FreqTaio_LogNormDist'!E61 -> 0.3173824584 | M64: ='02042012_FreqTaio_LogNormDist'!E62 -> 0.3239781174 | N64: ='02042012_FreqTaio_LogNormDist'!E63 -> 0.3301780418
D65: 08_築50年以上 | E65: ='02042012_FreqTaio_LogNormDist'!E75 -> 0.3804472708 | F65: ='02042012_FreqTaio_LogNormDist'!E76 -> 0.3830894881 | G65: ='02042012_FreqTaio_LogNormDist'!E77 -> 0.3855513172 | H65: ='02042012_FreqTaio_LogNormDist'!E78 -> 0.3878425484 | I65: ='02042012_FreqTaio_LogNormDist'!E79 -> 0.3899724049 | J65: ='02042012_FreqTaio_LogNormDist'!E80 -> 0.391949577 | K65: ='02042012_FreqTaio_LogNormDist'!E81 -> 0.3937822528 | L65: ='02042012_FreqTaio_LogNormDist'!E82 -> 0.395478149 | M65: ='02042012_FreqTaio_LogNormDist'!E83 -> 0.3970445391 | N65: ='02042012_FreqTaio_LogNormDist'!E84 -> 0.3984882801
D67: 全壊等確率
D68: 全壊 | E68: 0.1930407764
D69: 半壊 | E69: 0.2541952273
D70: 一部破損 | E70: 0.5527639963
E71: ※出典：231024DLv6_02所有者.xlsx「2-h)倒壊等による周辺被害」
D73: 死者等確率
D74: 死者発生 | E74: 2.529608915e-05
D75: 負傷者発生 | E75: 0.003633313085
E76: ※出典：231024DLv6_02所有者.xlsx「2-h)倒壊等による周辺被害」
D78: ※作業用（表示しない）
D79: 04_対応不要 | E79: 03_要対応度：軽 | F79: 02_要対応度：標準 | G79: 01_要対応度：重
D80: 物的水準1：良好 | E80: 物的水準2：標準 | F80: 物的水準2：標準 | G80: 物的水準3：管理不全
D82: 01_要対応度：重 | E82: 02_要対応度：標準 | F82: 03_要対応度：軽 | G82: 04_対応不要
D83: 物的水準3：管理不全 | E83: 物的水準2：標準 | F83: 物的水準2：標準 | G83: 物的水準1：良好

Sheet 02042012_FreqTaio_LogNormDist (hidden)
B3: パラメータ
B4: μ | C4: σ | D4: λ | E4: ξ
B5: 37.1 | C5: 5.92 | D5: =IF(B5=0,0,LN(B5)-(1/2)*LN(1+C5^2/B5^2)) -> 3.60104526 | E5: =IF(B5=0,0,POWER(LN(1+C5^2/B5^2),0.5)) -> 0.1585667647 | G5: =1/B5 -> 0.0269541779
B8: t | C8: f(t) | D8: F(t) | E8: λ(t)
B9: 1 | C9: =_xlfn.LOGNORM.DIST(B9,$D$5,$E$5,FALSE) -> 2.562480858e-112 | D9: =_xlfn.LOGNORM.DIST(B9,$D$5,$E$5,TRUE) -> 1.785740495e-114 | E9: =C9/(1-D9) -> 2.562480858e-112
B10: 2 | C10: 1.179902711e-73 | D10: 2.034414476e-75 | E10: 1.179902711e-73
B11: 3 | C11: 6.9391948e-55 | D11: 2.083366273e-56 | E11: 6.9391948e-55
B12: 4 | C12: 2.730962615e-43 | D12: 1.23389115e-44 | E12: 2.730962615e-43
B13: 5 | C13: 2.790401908e-35 | D13: 1.750437982e-36 | E13: 2.790401908e-35
B14: 6 | C14: 2.245644282e-29 | D14: 1.858383611e-30 | E14: 2.245644282e-29
B15: 7 | C15: 7.88083774e-25 | D15: 8.305443634e-26 | E15: 7.88083774e-25
B16: 8 | C16: 3.177381026e-21 | D16: 4.156113326e-22 | E16: 3.177381026e-21
B17: 9 | C17: 2.671173958e-18 | D17: 4.252878087e-19 | E17: 2.671173958e-18
B18: 10 | C18: 6.915609573e-16 | D18: 1.320002869e-16 | E18: 6.915609573e-16
B19: 11 | C19: 7.204305962e-14 | D19: 1.628727656e-14 | E19: 7.204305962e-14
B20: 12 | C20: 3.653060244e-12 | D20: 9.686848294e-13 | E20: 3.653060244e-12
B21: 13 | C21: 1.036773157e-10 | D21: 3.199011196e-11 | E21: 1.036773157e-10
B22: 14 | C22: 1.829433842e-09 | D22: 6.525453199e-10 | E22: 1.829433843e-09
B23: 15 | C23: 2.175895991e-08 | D23: 8.923853138e-09 | E23: 2.175896011e-08
B24: 16 | C24: 1.858261492e-07 | D24: 8.724036262e-08 | E24: 1.858261654e-07
B25: 17 | C25: 1.198270476e-06 | D25: 6.416410229e-07 | E25: 1.198271245e-06
B26: 18 | C26: 6.075476859e-06 | D26: 3.699822879e-06 | E26: 6.075499337e-06
B27: 19 | C27: 2.503463381e-05 | D27: 1.729863666e-05 | E27: 2.503506688e-05
B28: 20 | C28: 8.615453847e-05 | D28: 6.743233352e-05 | E28: 8.616034847e-05
B29: 21 | C29: 0.0002533086948 | D29: 0.0002243006905 | E29: 0.0002533655248
B30: 22 | C30: 0.0006485405683 | D30: 0.0006492105309 | E30: 0.0006489618812
B31: 23 | C31: 0.001469426463 | D31: 0.001662404628 | E31: 0.001471873312
B32: 24 | C32: 0.002987147668 | D32: 0.003819848707 | E32: 0.002998601873
B33: 25 | C33: 0.005513021256 | D33: 0.007973016314 | E33: 0.005557329938
B34: 26 | C34: 0.00933191918 | D34: 0.01527815579 | E34: 0.009476705767
B35: 27 | C35: 0.01461638276 | D35: 0.0271275529 | E35: 0.01502394564
B36: 28 | C36: 0.02134740149 | D36: 0.04499580366 | E36: 0.02235320177
B37: 29 | C37: 0.02926984392 | D37: 0.07022210335 | E37: 0.03148046864
B38: 30 | C38: 0.03790078051 | D38: 0.1037735474 | E38: 0.04228929016
B39: 31 | C39: 0.04659182121 | D39: 0.1460444367 | E39: 0.05456000665
B40: 32 | C40: 0.05462964065 | D40: 0.1967388981 | E40: 0.06800981713
B41: 33 | C41: =_xlfn.LOGNORM.DIST(B41,$D$5,$E$5,FALSE) -> 0.06134862812 | D41: =_xlfn.LOGNORM.DIST(B41,$D$5,$E$5,TRUE) -> 0.2548624412 | E41: =C41/(1-D41) -> 0.08233194984
B42: 34 | C42: 0.06622883173 | D42: 0.3188208417 | E42: 0.09722674413
B43: 35 | C43: 0.06895966566 | D43: 0.386601031 | E43: 0.1124222067
B44: 36 | C44: 0.06946124399 | D44: 0.4559946865 | E44: 0.1276848631
B45: 37 | C45: 0.06786633529 | D45: 0.5248228264 | E45: 0.1428232227
B46: 38 | C46: 0.06447372072 | D46: 0.5911269561 | E46: 0.1576864058
B47: 39 | C47: 0.05968701763 | D47: 0.6533051126 | E47: 0.1721600744
B48: 40 | C48: 0.05395228472 | D48: 0.7101851258 | E48: 0.1861611999
B49: 41 | C49: 0.04770437452 | D49: 0.7610392056 | E49: 0.1996326411
B50: 42 | C50: 0.04132765228 | D50: 0.8055517774 | E50: 0.212538082
B51: 43 | C51: 0.03513264452 | D51: 0.8437560157 | E51: 0.224857582
B52: 44 | C52: 0.02934716364 | D52: 0.8759544775 | E52: 0.2365838206
B53: 45 | C53: 0.02411871396 | D53: 0.9026368075 | E53: 0.247719013
B54: 46 | C54: 0.01952438598 | D54: 0.9244039094 | E54: 0.2582724295
B55: 47 | C55: 0.01558467544 | D55: 0.9419042473 | E55: 0.2682584307
B56: 48 | C56: 0.01227836492 | D56: 0.9557846992 | E56: 0.2776949312
B57: 49 | C57: 0.009556476308 | D57: 0.9666559576 | E57: 0.2866022119
B58: 50 | C58: 0.007354133529 | D58: 0.9750709037 | E58: 0.2950020107
B59: 51 | C59: 0.005599849765 | D59: 0.9815135735 | E59: 0.3029168335
B60: 52 | C60: 0.004222232847 | D60: 0.9863961063 | E60: 0.3103694392
B61: 53 | C61: 0.00315439483 | D61: 0.9900612187 | E61: 0.3173824584
B62: 54 | C62: 0.002336492662 | D62: 0.9927881158 | E62: 0.3239781174
B63: 55 | C63: 0.001716859626 | D63: 0.9948002005 | E63: 0.3301780418
B64: 56 | C64: 0.001252152758 | D64: 0.9962733895 | E64: 0.3360031226
B65: 57 | C65: 0.0009068725688 | D65: 0.9973442368 | E65: 0.3414734283
B66: 58 | C66: 0.0006525312269 | D66: 0.9981173806 | E66: 0.3466081528
B67: 59 | C67: 0.00046666867 | D67: 0.9986720698 | E67: 0.3514255906
B68: 60 | C68: 0.0003318502599 | D68: 0.9990676874 | E68: 0.3559431303
B69: 61 | C69: 0.0002347276794 | D69: 0.9993482996 | E69: 0.3601772642
B70: 62 | C70: 0.0001652064513 | D70: 0.9995463151 | E70: 0.3641436071
B71: 63 | C71: 0.0001157370614 | D71: 0.9996853748 | E71: 0.3678569233
B72: 64 | C72: 8.072979449e-05 | D72: 0.9997825935 | E72: 0.3713311575
B73: 65 | C73: =_xlfn.LOGNORM.DIST(B73,$D$5,$E$5,FALSE) -> 5.608362091e-05 | D73: =_xlfn.LOGNORM.DIST(B73,$D$5,$E$5,TRUE) -> 0.9998502758 | E73: =C73/(1-D73) -> 0.3745794704
B74: 66 | C74: 3.881469425e-05 | D74: 0.9998972107 | E74: 0.3776142743
B75: 67 | C75: 2.676850809e-05 | D75: 0.9999296394 | E75: 0.3804472708
B76: 68 | C76: 1.840023273e-05 | D76: 0.9999519688 | E76: 0.3830894881
B77: 69 | C77: 1.260929179e-05 | D77: 0.9999672954 | E77: 0.3855513172
B78: 70 | C78: 8.616236429e-06 | D78: 0.9999777842 | E78: 0.3878425484
B79: 71 | C79: 5.872053202e-06 | D79: 0.9999849424 | E79: 0.3899724049
B80: 72 | C80: 3.991983427e-06 | D80: 0.9999898151 | E80: 0.391949577
B81: 73 | C81: 2.707634773e-06 | D81: 0.999993124 | E81: 0.3937822528
B82: 74 | C82: 1.832592489e-06 | D82: 0.9999953661 | E82: 0.395478149
B83: 75 | C83: 1.237895434e-06 | D83: 0.9999968822 | E83: 0.3970445391
B84: 76 | C84: 8.346573284e-07 | D84: 0.9999979054 | E84: 0.3984882801
B85: 77 | C85: 5.618223651e-07 | D85: 0.9999985948 | E85: 0.3998158386
B86: 78 | C86: 3.77583857e-07 | D86: 0.9999990585 | E86: 0.4010333138
B87: 79 | C87: 2.533992184e-07 | D87: 0.9999993699 | E87: 0.4021464609
B88: 80 | C88: 1.698343399e-07 | D88: 0.9999995787 | E88: 0.4031607111
B89: 81 | C89: 1.136900051e-07 | D89: 0.9999997186 | E89: 0.4040811925
B90: 82 | C90: 7.602232767e-08 | D90: 0.9999998123 | E90: 0.4049127481
B91: 83 | C91: 5.078380645e-08 | D91: 0.9999998748 | E91: 0.4056599526
B92: 84 | C92: 3.389341735e-08 | D92: 0.9999999166 | E92: 0.4063271295
B93: 85 | C93: 2.26021701e-08 | D93: 0.9999999445 | E93: 0.4069183667
B94: 86 | C94: 1.506142969e-08 | D94: 0.999999963 | E94: 0.4074375298
B95: 87 | C95: 1.002993753e-08 | D95: 0.9999999754 | E95: 0.407888274
B96: 88 | C96: 6.67542785e-09 | D96: 0.9999999836 | E96: 0.4082740605
B97: 89 | C97: 4.44058313e-09 | D97: 0.9999999891 | E97: 0.408598164
B98: 90 | C98: 2.952639895e-09 | D98: 0.9999999928 | E98: 0.4088636837

Sheet 02042021_UCostTaio (hidden)
A1: （非表示シート）
B2: １．推計に利用するデータ
B3: ２．デフォルトの原単位データ
C4: （３）周辺住民への対応に要する費用
D5: 対応項目 | E5: 単価［円/回］
D6: 周辺住民からの相談等への対応 | E6: =1.13333333333333*2255.93125 -> 2556.722083 | F6: ※出典：市町村版ツール「0110_入力」、「010301UCTa」
C9: （４）管理不全化により生じる費用
D10: 項目 | E10: 単価［円/回］
D11: 01_税制の特例外れによる増額分 | E11: ='02042022_UCostTaio2Tokurei'!$D$13 -> 0 | F11: ※02042022_UCostTaio2Tokurei
D12: 02_倒壊等による周辺住宅の被害（半壊、一部損壊） | E12: 5900000 | F12: ※出典：231024DLv6_02所有者.xlsx「2-a)管理不全化による損害、2-b)解体費」
D13: 03_倒壊等による周辺住宅の被害（全壊） | E13: 11800000
D14: 04_倒壊等による周辺住民の身体的被害（負傷） | E14: 21000000
D15: 05_倒壊等による周辺住民の身体的被害（死亡） | E15: 56300000
D16: 06_倒壊等の場合の解体費用 | E16: 2275000 | F16: ※解体が必須となるので、CostOthrと2重計上にはならない。
D17: 07_その他の周辺の被害（シロアリ駆除・点検） | E17: 170000
D18: 08_その他の周辺の被害（ネズミ駆除） | E18: 35000
D19: 09_その他の周辺の被害（草木処理） | E19: 16500

Sheet 02042022_UCostTaio2Tokurei (hidden)
A1: （非表示シート）
B2: 空き家の所在地における公示地価
C4: 空き家の所在地の地価（おおよそ） | D4: ='01_入力'!$F$12 -> 0
C6: 公示地価 | D6: =IF('01_入力'!$F$12=C55,'01_入力'!$F$13, IF('01_入力'!$F$12=C56,'01_入力'!$F$17 )) -> FALSE
B8: 空き家が所在する敷地の面積
C9: 敷地の面積（おおよそ） | D9: ='01_入力'!F11 -> 0
B11: １．推計に利用するデータ（020321_CostTaioで用いる値）
C13: 01_税制の特例外れによる増額分 | D13: =IF(D9<=200,F39, IF(D9>200,F40)) -> 0
B16: ２．算出用
C17: ○パラメータ1
D18: value
C19: a | D19: 0.7
C20: r_SE | D20: 0.014
C21: r_CE1 | D21: =1/6 -> 0.1666666667
C22: r_CE2 | D22: =1/3 -> 0.3333333333
C23: r_SU | D23: 0.03
C24: r_CU1 | D24: =1/3 -> 0.3333333333
C25: r_CU2 | D25: =2/3 -> 0.6666666667
C27: ○パラメータ2
D28: D | E28: D_E | F28: D_U
C29: k_1 | D29: =D19*(D20*(1-D21)+D23*(1-D24)) -> 0.02216666667 | E29: =D19*D20*(1-D21) -> 0.008166666667 | F29: =D19*D23*(1-D24) -> 0.014
C30: k_2 | D30: =D19*(D20*(1-D22)+D23*(1-D25)) -> 0.01353333333 | E30: =D19*D20*(1-D22) -> 0.006533333333 | F30: =D19*D23*(1-D25) -> 0.007
C31: C | D31: =200*(D20*(D22-D21)+D23*(D25-D24))/(D20*(1-D22)+D23*(1-D25)) -> 127.5862069 | E31: =200*(D22-D21)/(1-D22) -> 50 | F31: =200*(D25-D24)/(1-D25) -> 200
C33: ○入力
C34: P：公示地価［円/㎡］ | D34: =D6 -> FALSE
C35: S：面積［㎡］ | D35: =IF(D9=C43,D43, IF(D9=C44,D44, IF(D9=C45,D45, IF(D9=C46,D46, IF(D9=C47,D47, IF(D9=C48,D48, IF(D9=C49,D49, IF(D9=C50,D50, IF(D9=C51,D51, IF(D9=C52,D52, IF(D9=C53,D53))))))))))) -> FALSE
C37: ○結果
D38: 固定資産税の増額 | E38: 都市計画税の増額 | F38: 計
C39: 敷地面積<=200㎡ | D39: =$E$29*D34*D35 -> 0 | E39: =$F$29*D34*D35 -> 0 | F39: =SUM(D39:E39) -> 0
C40: 敷地面積>200㎡ | D40: =$E$30*D34*(D35+$E$31) -> 0 | E40: =$F$30*D34*(D35+$F$31) -> 0 | F40: =SUM(D40:E40) -> 0
C42: ○作業用
C43: 01_49ｍ2以下 | D43: 40
C44: 02_50～74ｍ2 | D44: 65
C45: 03_75～99ｍ2 | D45: 90
C46: 04_100～149ｍ2 | D46: 125
C47: 05_150～199ｍ2 | D47: 175
C48: 06_200～299ｍ2 | D48: 250
C49: 07_300～499ｍ2 | D49: 400
C50: 08_500～699ｍ2 | D50: 600
C51: 09_700～999ｍ2 | D51: 850
C52: 10_1000～1499ｍ2 | D52: 1250
C53: 11_1500ｍ2以上 | D53: 1800
C55: ご自身で入力する
C56: 近くの住所の公示地価から選ぶ

Sheet 02042041_ProbLvTa (hidden)
A1: （非表示シート）
B2: 管理レベル別の要対応度の推移確率
O3: ※作業用（非表示にする）
D4: 空き家の現状 | E4: ='01_入力'!$F$7 -> 0 | P4: 写真番号 | Q4: 物的水準 | R4: 要対応度
D5: t1当初における物的水準 | E5: =IF(E4=1,2, IF(E4=2,1, IF(E4=3,2, IF(E4=4,2, IF(E4=5,3, IF(E4=6,3)))))) -> FALSE | P5: 1 | Q5: 物的水準2：標準 | R5: 03_要対応度：軽
P6: 2 | Q6: 物的水準1：良好 | R6: 04_対応不要
P7: 3 | Q7: 物的水準2：標準 | R7: 02_要対応度：標準
B8: １．推計に利用するデータ（020321_CostTaioで用いる値） | P8: 4 | Q8: 物的水準2：標準 | R8: 02_要対応度：標準
P9: 5 | Q9: 物的水準3：管理不全 | R9: 01_要対応度：重
C10: シナリオ１：手厚い管理を継続 | P10: 6 | Q10: 物的水準3：管理不全 | R10: 01_要対応度：重
D11: tである要対応度となる確率 | E11: 物的水準1：良好 | F11: 物的水準2：標準 | G11: 物的水準3：管理不全
D12: t1 | E12: =IF(E5=1,E66:G75, IF(E5=2,H66:J75, IF(E5=3,K66:M75))) -> FALSE | F12: FALSE | G12: FALSE
D13: t2 | E13: FALSE | F13: FALSE | G13: FALSE
D14: t3 | E14: FALSE | F14: FALSE | G14: FALSE
D15: t4 | E15: FALSE | F15: FALSE | G15: FALSE
D16: t5 | E16: FALSE | F16: FALSE | G16: FALSE
D17: t6 | E17: FALSE | F17: FALSE | G17: FALSE
D18: t7 | E18: FALSE | F18: FALSE | G18: FALSE
D19: t8 | E19: FALSE | F19: FALSE | G19: FALSE
D20: t9 | E20: FALSE | F20: FALSE | G20: FALSE
D21: t10 | E21: FALSE | F21: FALSE | G21: FALSE
C23: シナリオ２：標準的な管理を継続
D24: ある要対応度となる確率 | E24: 物的水準1：良好 | F24: 物的水準2：標準 | G24: 物的水準3：管理不全
D25: t1 | E25: =IF(E5=1,E80:G89, IF(E5=2,H80:J89, IF(E5=3,K80:M89))) -> FALSE | F25: FALSE | G25: FALSE
D26: t2 | E26: FALSE | F26: FALSE | G26: FALSE
D27: t3 | E27: FALSE | F27: FALSE | G27: FALSE
D28: t4 | E28: FALSE | F28: FALSE | G28: FALSE
D29: t5 | E29: FALSE | F29: FALSE | G29: FALSE
D30: t6 | E30: FALSE | F30: FALSE | G30: FALSE
D31: t7 | E31: FALSE | F31: FALSE | G31: FALSE
D32: t8 | E32: FALSE | F32: FALSE | G32: FALSE
D33: t9 | E33: FALSE | F33: FALSE | G33: FALSE
D34: t10 | E34: FALSE | F34: FALSE | G34: FALSE
C36: シナリオ３：管理しない状態を継続
D37: ある要対応度となる確率 | E37: 物的水準1：良好 | F37: 物的水準2：標準 | G37: 物的水準3：管理不全
D38: t1 | E38: =IF(E5=1,E94:G103, IF(E5=2,H94:J103, IF(E5=3,K94:M103))) -> FALSE | F38: FALSE | G38: FALSE
D39: t2 | E39: FALSE | F39: FALSE | G39: FALSE
D40: t3 | E40: FALSE | F40: FALSE | G40: FALSE
D41: t4 | E41: FALSE | F41: FALSE | G41: FALSE
D42: t5 | E42: FALSE | F42: FALSE | G42: FALSE
D43: t6 | E43: FALSE | F43: FALSE | G43: FALSE
D44: t7 | E44: FALSE | F44: FALSE | G44: FALSE
D45: t8 | E45: FALSE | F45: FALSE | G45: FALSE
D46: t9 | E46: FALSE | F46: FALSE | G46: FALSE
D47: t10 | E47: FALSE | F47: FALSE | G47: FALSE
C49: シナリオ４：現状の管理の継続
D50: ある要対応度となる確率 | E50: 物的水準1：良好 | F50: 物的水準2：標準 | G50: 物的水準3：管理不全
D51: t1 | E51: =IF(E5=1,E108:G117, IF(E5=2,H108:J117, IF(E5=3,K108:M117))) -> FALSE | F51: FALSE | G51: FALSE
D52: t2 | E52: FALSE | F52: FALSE | G52: FALSE
D53: t3 | E53: FALSE | F53: FALSE | G53: FALSE
D54: t4 | E54: FALSE | F54: FALSE | G54: FALSE
D55: t5 | E55: FALSE | F55: FALSE | G55: FALSE
D56: t6 | E56: FALSE | F56: FALSE | G56: FALSE
D57: t7 | E57: FALSE | F57: FALSE | G57: FALSE
D58: t8 | E58: FALSE | F58: FALSE | G58: FALSE
D59: t9 | E59: FALSE | F59: FALSE | G59: FALSE
D60: t10 | E60: FALSE | F60: FALSE | G60: FALSE
B62: ２．デフォルトの原単位データ
C63: シナリオ１：手厚い管理を継続 | E63: =for_02042041_ProbLvTa!T4 -> 0.9821044037
D64: t1における要対応度 | E64: 物的水準1：良好 | H64: 物的水準2：標準 | K64: 物的水準3：管理不全
D65: ある要対応度となる確率 | E65: 物的水準1：良好 | F65: 物的水準2：標準 | G65: 物的水準3：管理不全 | H65: 物的水準1：良好 | I65: 物的水準2：標準 | J65: 物的水準3：管理不全 | K65: 物的水準1：良好 | L65: 物的水準2：標準 | M65: 物的水準3：管理不全
D66: t1 | E66: 1 | H66: 0 | I66: =E66 -> 1 | J66: =F66 -> 0 | K66: 0 | L66: 0 | M66: 1
D67: t2 | E67: =$E$63^1 -> 0.9821044037 | F67: =E66*(1-$E$63) -> 0.01789559627 | H67: 0 | I67: =E67 -> 0.9821044037 | J67: =1-I67 -> 0.01789559627 | K67: 0 | L67: 0 | M67: 1
D68: t3 | E68: =$E$63^2 -> 0.9645290598 | F68: =E66*2*$E$63*(1-$E$63) -> 0.0351506878 | G68: =1-SUM(E68:F68) -> 0.0003202523658 | H68: 0 | I68: 0.9645290598 | J68: 0.03547094017 | K68: 0 | L68: 0 | M68: 1
D69: t4 | E69: =$E$63^3 -> 0.9472682372 | F69: =E66*3*$E$63^2*(1-$E$63) -> 0.05178246793 | G69: 0.0009492948833 | H69: 0 | I69: 0.9472682372 | J69: 0.05273176281 | K69: 0 | L69: 0 | M69: 1
D70: t5 | E70: =$E$63^4 -> 0.9303163073 | F70: =E66*4*$E$63^3*(1-$E$63) -> 0.06780771972 | G70: 0.001875973023 | H70: 0 | I70: 0.9303163073 | J70: 0.06968369274 | K70: 0 | L70: 0 | M70: 1
D71: t6 | E71: =$E$63^5 -> 0.9136677422 | F71: =E66*5*$E$63^4*(1-$E$63) -> 0.08324282518 | G71: 0.003089432599 | H71: 0 | I71: 0.9136677422 | J71: 0.08633225778 | K71: 0 | L71: 0 | M71: 1
D72: t7 | E72: =$E$63^6 -> 0.8973171132 | F72: =E66*6*$E$63^5*(1-$E$63) -> 0.09810377423 | G72: 0.004579112591 | H72: 0 | I72: 0.8973171132 | J72: 0.1026828868 | K72: 0 | L72: 0 | M72: 1
D73: t8 | E73: =$E$63^7 -> 0.8812590884 | F73: =E66*7*$E$63^6*(1-$E$63) -> 0.1124061735 | G73: 0.006334738127 | H73: 0 | I73: 0.8812590884 | J73: 0.1187409116 | K73: 0 | L73: 0 | M73: 1
D74: t9 | E74: =$E$63^8 -> 0.8654884315 | F74: =E66*8*$E$63^7*(1-$E$63) -> 0.1261652548 | G74: 0.008346313625 | H74: 0 | I74: 0.8654884315 | J74: 0.1345115685 | K74: 0 | L74: 0 | M74: 1 | N74: ※管理行為によって要対応度は回復しないこととしている
D75: t10 | E75: =$E$63^9 -> 0.85 | F75: =E66*9*$E$63^8*(1-$E$63) -> 0.1393958839 | G75: 0.01060411609 | H75: 0 | I75: 0.85 | J75: 0.15 | K75: 0 | L75: 0 | M75: 1 | N75: ※除草により改善することはありうるので、改善が必要？
C77: シナリオ２：標準的な管理を継続 | E77: =for_02042041_ProbLvTa!T5 -> 0.9448223084
D78: t1における要対応度 | E78: 物的水準1：良好 | H78: 物的水準2：標準 | K78: 物的水準3：管理不全
D79: ある要対応度となる確率 | E79: 物的水準1：良好 | F79: 物的水準2：標準 | G79: 物的水準2：標準 | H79: 物的水準1：良好 | I79: 物的水準2：標準 | J79: 物的水準3：管理不全 | K79: 物的水準1：良好 | L79: 物的水準2：標準 | M79: 物的水準3：管理不全
D80: t1 | E80: 1 | H80: 0 | I80: =E80 -> 1 | J80: =F80 -> 0 | K80: 0 | L80: 0 | M80: 1
D81: t2 | E81: =$E$77^1 -> 0.9448223084 | F81: =E80*(1-$E$77) -> 0.05517769163 | H81: 0 | I81: =E81 -> 0.9448223084 | J81: =1-I81 -> 0.05517769163 | K81: 0 | L81: 0 | M81: 1
D82: t3 | E82: =$E$77^2 -> 0.8926891944 | F82: =E80*2*$E$77*(1-$E$77) -> 0.104266228 | G82: =1-SUM(E82:F82) -> 0.003044577654 | H82: 0 | I82: 0.8926891944 | J82: 0.1073108056 | K82: 0 | L82: 0 | M82: 1
D83: t4 | E83: =$E$77^3 -> 0.8434326653 | F83: =E80*3*$E$77^2*(1-$E$77) -> 0.1477695873 | G83: 0.008797747427 | H83: 0 | I83: 0.8434326653 | J83: 0.1565673347 | K83: 0 | L83: 0 | M83: 1
D84: t5 | E84: =$E$77^4 -> 0.7968939978 | F84: =E80*4*$E$77^3*(1-$E$77) -> 0.1861546701 | G84: 0.01695133215 | H84: 0 | I84: 0.7968939978 | J84: 0.2031060022 | K84: 0 | L84: 0 | M84: 1
D85: t6 | E85: =$E$77^5 -> 0.7529232265 | F85: =E80*5*$E$77^4*(1-$E$77) -> 0.2198538564 | G85: 0.02722291713 | H85: 0 | I85: 0.7529232265 | J85: 0.2470767735 | K85: 0 | L85: 0 | M85: 1
D86: t7 | E86: =$E$77^6 -> 0.7113786609 | F86: =E80*6*$E$77^5*(1-$E$77) -> 0.2492673937 | G86: 0.03935394542 | H86: 0 | I86: 0.7113786609 | J86: 0.2886213391 | K86: 0 | L86: 0 | M86: 1
D87: t8 | E87: =$E$77^7 -> 0.6721264285 | F87: =E80*7*$E$77^6*(1-$E$77) -> 0.2747656267 | G87: 0.0531079448 | H87: 0 | I87: 0.6721264285 | J87: 0.3278735715 | K87: 0 | L87: 0 | M87: 1
D88: t9 | E88: =$E$77^8 -> 0.6350400437 | F88: =E80*8*$E$77^7*(1-$E$77) -> 0.2966910785 | G88: 0.06826887782 | H88: 0 | I88: 0.6350400437 | J88: 0.3649599563 | K88: 0 | L88: 0 | M88: 1
D89: t10 | E89: =$E$77^9 -> 0.6 | F89: =E80*9*$E$77^8*(1-$E$77) -> 0.3153603933 | G89: 0.08463960666 | H89: 0 | I89: 0.6 | J89: 0.4 | K89: 0 | L89: 0 | M89: 1
C91: シナリオ３：管理しない状態を継続 | E91: =for_02042041_ProbLvTa!T6 -> 0.7742636827
D92: t1における要対応度 | E92: 物的水準1：良好 | H92: 物的水準2：標準 | K92: 物的水準3：管理不全
D93: ある要対応度となる確率 | E93: 物的水準1：良好 | F93: 物的水準2：標準 | G93: 物的水準2：標準 | H93: 物的水準1：良好 | I93: 物的水準2：標準 | J93: 物的水準3：管理不全 | K93: 物的水準1：良好 | L93: 物的水準2：標準 | M93: 物的水準3：管理不全
D94: t1 | E94: 1 | H94: 0 | I94: =E94 -> 1 | J94: =F94 -> 0 | K94: 0 | L94: 0 | M94: 1
D95: t2 | E95: =$E$91^1 -> 0.7742636827 | F95: =E94*(1-$E$91) -> 0.2257363173 | H95: 0 | I95: =E95 -> 0.7742636827 | J95: =1-I95 -> 0.2257363173 | K95: 0 | L95: 0 | M95: 1
D96: t3 | E96: =$E$91^2 -> 0.5994842503 | F96: =E94*2*$E$91*(1-$E$91) -> 0.3495588647 | G96: =1-SUM(E96:F96) -> 0.05095688496 | H96: 0 | I96: 0.5994842503 | J96: 0.4005157497 | K96: 0 | L96: 0 | M96: 1
D97: t4 | E97: =$E$91^3 -> 0.4641588834 | F97: =E94*3*$E$91^2*(1-$E$91) -> 0.4059761009 | G97: 0.1298650158 | H97: 0 | I97: 0.4641588834 | J97: 0.5358411166 | K97: 0 | L97: 0 | M97: 1
D98: t5 | E98: =$E$91^4 -> 0.3593813664 | F98: =E94*4*$E$91^3*(1-$E$91) -> 0.4191100679 | G98: 0.2215085657 | H98: 0 | I98: 0.3593813664 | J98: 0.6406186336 | K98: 0 | L98: 0 | M98: 1
D99: t6 | E99: =$E$91^5 -> 0.2782559402 | F99: =E94*5*$E$91^4*(1-$E$91) -> 0.4056271308 | G99: 0.316116929 | H99: 0 | I99: 0.2782559402 | J99: 0.7217440598 | K99: 0 | L99: 0 | M99: 1
D100: t7 | E100: =$E$91^6 -> 0.215443469 | F100: =E94*6*$E$91^5*(1-$E$91) -> 0.3768748273 | G100: 0.4076817037 | H100: 0 | I100: 0.215443469 | J100: 0.784556531 | K100: 0 | L100: 0 | M100: 1
D101: t8 | E101: =$E$91^7 -> 0.1668100537 | F101: =E94*7*$E$91^6*(1-$E$91) -> 0.340433907 | G101: 0.4927560393 | H101: 0 | I101: 0.1668100537 | J101: 0.8331899463 | K101: 0 | L101: 0 | M101: 1
D102: t9 | E102: =$E$91^8 -> 0.1291549665 | F102: =E94*8*$E$91^7*(1-$E$91) -> 0.3012406977 | G102: 0.5696043358 | H102: 0 | I102: 0.1291549665 | J102: 0.8708450335 | K102: 0 | L102: 0 | M102: 1
D103: t10 | E103: =$E$91^9 -> 0.1 | F103: =E94*9*$E$91^8*(1-$E$91) -> 0.2623946985 | G103: 0.6376053015 | H103: 0 | I103: 0.1 | J103: 0.9 | K103: 0 | L103: 0 | M103: 1
C105: シナリオ４：現状の管理の継続 | D105: 現状の管理を継続
D106: t1における要対応度 | E106: 物的水準1：良好 | H106: 物的水準2：標準 | K106: 物的水準3：管理不全
D107: ある要対応度となる確率 | E107: 物的水準1：良好 | F107: 物的水準2：標準 | G107: 物的水準2：標準 | H107: 物的水準1：良好 | I107: 物的水準2：標準 | J107: 物的水準3：管理不全 | K107: 物的水準1：良好 | L107: 物的水準2：標準 | M107: 物的水準3：管理不全
D108: t1 | E108: =E66 -> 1 | F108: 0 | G108: 0 | H108: 0 | I108: 1 | J108: 0 | K108: 0 | L108: 0 | M108: 1
D109: t2 | E109: =E67 -> 0.9821044037 | F109: 0.01789559627 | G109: 0 | H109: 0 | I109: 0.9821044037 | J109: 0.01789559627 | K109: 0 | L109: 0 | M109: 1
D110: t3 | E110: =E68 -> 0.9645290598 | F110: 0.0351506878 | G110: 0.0003202523658 | H110: 0 | I110: 0.9645290598 | J110: 0.03547094017 | K110: 0 | L110: 0 | M110: 1
D111: t4 | E111: =E69 -> 0.9472682372 | F111: 0.05178246793 | G111: 0.0009492948833 | H111: 0 | I111: 0.9472682372 | J111: 0.05273176281 | K111: 0 | L111: 0 | M111: 1
D112: t5 | E112: =E70 -> 0.9303163073 | F112: 0.06780771972 | G112: 0.001875973023 | H112: 0 | I112: 0.9303163073 | J112: 0.06968369274 | K112: 0 | L112: 0 | M112: 1
D113: t6 | E113: =E71 -> 0.9136677422 | F113: 0.08324282518 | G113: 0.003089432599 | H113: 0 | I113: 0.9136677422 | J113: 0.08633225778 | K113: 0 | L113: 0 | M113: 1
D114: t7 | E114: =E72 -> 0.8973171132 | F114: 0.09810377423 | G114: 0.004579112591 | H114: 0 | I114: 0.8973171132 | J114: 0.1026828868 | K114: 0 | L114: 0 | M114: 1
D115: t8 | E115: =E73 -> 0.8812590884 | F115: 0.1124061735 | G115: 0.006334738127 | H115: 0 | I115: 0.8812590884 | J115: 0.1187409116 | K115: 0 | L115: 0 | M115: 1
D116: t9 | E116: =E74 -> 0.8654884315 | F116: 0.1261652548 | G116: 0.008346313625 | H116: 0 | I116: 0.8654884315 | J116: 0.1345115685 | K116: 0 | L116: 0 | M116: 1
D117: t10 | E117: =E75 -> 0.85 | F117: 0.1393958839 | G117: 0.01060411609 | H117: 0 | I117: 0.85 | J117: 0.15 | K117: 0 | L117: 0 | M117: 1
D118: ※最も近いシナリオの確率を選ぶルーチンを追加

Sheet 02043021_UCostOthr (hidden)
A1: （非表示シート）
B3: ０．入力
D4: ='01_入力'!D10 -> 住宅の延床面積（おおよそ） | E4: ='01_入力'!F10 -> 0
D5: 延べ床面積［㎡］ | E5: =IF(E4=D32,E32, IF(E4=D33,E33, IF(E4=D34,E34, IF(E4=D35,E35, IF(E4=D36,E36, IF(E4=D37,E37)))))) -> FALSE
D7: 住宅の構造 | E7: ='01_入力'!$F$18 -> 0
D9: 解体を行うタイミング | E9: ='01_入力'!$F$39 -> 0
D10: 増額分を負担する年数 | E10: =IF(E9=D44,E44, IF(E9=D45,E45, IF(E9=D46,E46, IF(E9=D47,E47, IF(E9=D48,E48, IF(E9=D49,E49, IF(E9=D50,E50, IF(E9=D51,E51, IF(E9=D52,E52, IF(E9=D53,E53,5)))))))))) -> 5
D12: 解体した場合の税制特例外れによる増額分 | E12: ='02042022_UCostTaio2Tokurei'!$D$13 -> 0
B14: １．推計に利用するデータ
E16: 単価［円/回］
D17: 登記費用 | E17: =E23 -> 80000
D18: 解体費 | E18: =IF(E7=D39,E5*E26, IF(E7=D40,E5*E27, IF(E7=D41,E5*E28, E5*E26))) -> 0
D19: 解体した場合の税制特例外れによる増額分 | E19: =E10*E12 -> 0
B21: ２．デフォルトの原単位データ
E22: 単価［円/回］
D23: 登記費用 | E23: 80000 | F23: ※出典：231024DLv6_02所有者.xlsx「2-g)登記費用」
D25: 解体費 | E25: ㎡単価［円/㎡］
D26: 木造 | E26: 13612.47992 | F26: ※出典：231024DLv6_02所有者.xlsx「2-a)管理不全化による損害、2-b)解体費」
D27: 鉄骨造 | E27: 19662.471
D28: RC | E28: 21174.96877
D31: （作業用）
D32: 01_29ｍ2以下 | E32: 20
D33: 02_30～49ｍ2 | E33: 40
D34: 03_50～69ｍ2 | E34: 60
D35: 04_70～99ｍ2 | E35: 85
D36: 05_100～149ｍ2 | E36: 125
D37: 06_150ｍ2以上 | E37: 180
D39: 01_木造
D40: 02_鉄骨造
D41: 03_RC
D42: 04_不明
D44: 1年後 | E44: 9
D45: 2年後 | E45: 8
D46: 3年後 | E46: 7
D47: 4年後 | E47: 6
D48: 5年後 | E48: 5
D49: 6年後 | E49: 4
D50: 7年後 | E50: 3
D51: 8年後 | E51: 2
D52: 9年後 | E52: 1
D53: 10年後 | E53: 0

Sheet 【sozai】 (hidden)

Sheet for_02041011_FreqKanri (hidden)
A1: （非表示シート）
B2: 05_txt/231024/050202_dfK_01_221FreqNZero1_02MediansBy_suijun2LbHomeKyori.txt | I2: シナリオ２：標準的な管理を継続
B3: suijun2Lb | C3: HomeKyori | D3: N | E3: KanKai_prod | F3: FreqMth | G3: SumKanItemTtl | I3: median | J3: 物的水準1：良好 | K3: 物的水準2：標準 | L3: 物的水準3：管理不全
B4: Su01Gd_Pc2 | C4: 0.17 | D4: 300 | E4: 12.9 | F4: 4.3 | G4: 4 | I4: 01_徒歩圏内 | J4: =F4 -> 4.3 | K4: =AVERAGE(F5:F7) -> 2 | L4: =AVERAGE(F8:F9) -> 1.75
B5: Su02_Pc1 | C5: 0.17 | D5: 120 | E5: 5 | F5: 2.5 | G5: 2 | I5: 02_車・電車等で1時間以内 | J5: =F10 -> 2.5 | K5: =AVERAGE(F11:F13) -> 2 | L5: =AVERAGE(F14:F15) -> 1
B6: Su03_Pc4 | C6: 0.17 | D6: 52 | E6: 4.65 | F6: 2.5 | G6: 3 | I6: 03_車・電車等で1時間～3時間以内 | J6: =F16 -> 1 | K6: =AVERAGE(F17:F19) -> 0.7166666667 | L6: =AVERAGE(F20:F21) -> 0.575
B7: Su04_Pc3 | C7: 0.17 | D7: 17 | E7: 4 | F7: 1 | G7: 2 | I7: 04_車・電車等で3時間以上 | J7: =F22 -> 1 | K7: =AVERAGE(F23:F25) -> 0.4333333333 | L7: =AVERAGE(F26:F27) -> 0.3625
B8: Su05_Pc5 | C8: 0.17 | D8: 37 | E8: 8.6 | F8: 2.5 | G8: 3
B9: Su06_Pc6 | C9: 0.17 | D9: 15 | E9: 2.5 | F9: 1 | G9: 2
B10: Su01Gd_Pc2 | C10: 0.67 | D10: 200 | E10: 7.5 | F10: 2.5 | G10: 4
B11: Su02_Pc1 | C11: 0.67 | D11: 66 | E11: 6 | F11: 2.5 | G11: 3
B12: Su03_Pc4 | C12: 0.67 | D12: 45 | E12: 4.3 | F12: 1 | G12: 3
B13: Su04_Pc3 | C13: 0.67 | D13: 7 | E13: 2.5 | F13: 2.5 | G13: 2
B14: Su05_Pc5 | C14: 0.67 | D14: 27 | E14: 7 | F14: 1 | G14: 3
B15: Su06_Pc6 | C15: 0.67 | D15: 21 | E15: 2.5 | F15: 1 | G15: 1
B16: Su01Gd_Pc2 | C16: 2 | D16: 50 | E16: 5.5 | F16: 1 | G16: 5
B17: Su02_Pc1 | C17: 2 | D17: 14 | E17: 2.025 | F17: 1 | G17: 4.5
B18: Su03_Pc4 | C18: 2 | D18: 19 | E18: 1 | F18: 1 | G18: 4
B19: Su04_Pc3 | C19: 2 | D19: 3 | E19: 0.15 | F19: 0.15 | G19: 1
B20: Su05_Pc5 | C20: 2 | D20: 3 | E20: 2.5 | F20: 1 | G20: 1
B21: Su06_Pc6 | C21: 2 | D21: 5 | E21: 1.05 | F21: 0.15 | G21: 4
B22: Su01Gd_Pc2 | C22: 4 | D22: 35 | E22: 5 | F22: 1 | G22: 5
B23: Su02_Pc1 | C23: 4 | D23: 11 | E23: 1.2 | F23: 1 | G23: 3
B24: Su03_Pc4 | C24: 4 | D24: 9 | E24: 1 | F24: 0.15 | G24: 4
B25: Su04_Pc3 | C25: 4 | D25: 3 | E25: 0.75 | F25: 0.15 | G25: 5
B26: Su05_Pc5 | C26: 4 | D26: 5 | E26: 0.6 | F26: 0.15 | G26: 3
B27: Su06_Pc6 | C27: 4 | D27: 2 | E27: 0.65 | F27: 0.575 | G27: 1.5
B29: 05_txt/231024/050202_dfK_01_221FreqNZero1_01MeansBy_suijun2LbHomeKyori.txt | I29: シナリオ１：手厚い管理を継続
B30: suijun2Lb | C30: HomeKyori | D30: N | E30: KanKai_prod | F30: FreqMth | G30: SumKanItemTtl | I30: mean | J30: 物的水準1：良好 | K30: 物的水準2：標準 | L30: 物的水準3：管理不全
B31: Su01Gd_Pc2 | C31: 0.17 | D31: 300 | E31: 24.98166667 | F31: 5.843666667 | G31: 4.19 | I31: 01_徒歩圏内 | J31: =F31 -> 5.843666667 | K31: =AVERAGE(F32:F34) -> 5.922779035 | L31: =AVERAGE(F35:F36) -> 4.539099099
B32: Su02_Pc1 | C32: 0.17 | D32: 120 | E32: 20.33916667 | F32: 5.4025 | G32: 3.35 | I32: 02_車・電車等で1時間以内 | J32: =F37 -> 3.24825 | K32: =AVERAGE(F38:F40) -> 2.567534873 | L32: =AVERAGE(F41:F42) -> 5.073544974
B33: Su03_Pc4 | C33: 0.17 | D33: 52 | E33: 17.98461538 | F33: 5.392307692 | G33: 3.096153846 | I33: 03_車・電車等で1時間～3時間以内 | J33: =F43 -> 2.032 | K33: =AVERAGE(F44:F46) -> 1.568629908 | L33: =AVERAGE(F47:F48) -> 1.003333333
B34: Su04_Pc3 | C34: 0.17 | D34: 17 | E34: 36.51470588 | F34: 6.973529412 | G34: 3 | I34: 04_車・電車等で3時間以上 | J34: =F49 -> 3.701428571 | K34: =AVERAGE(F50:F52) -> 2.845286195 | L34: =AVERAGE(F53:F54) -> 0.6825
B35: Su05_Pc5 | C35: 0.17 | D35: 37 | E35: 21.1 | F35: 5.614864865 | G35: 3.108108108
B36: Su06_Pc6 | C36: 0.17 | D36: 15 | E36: 18.18666667 | F36: 3.463333333 | G36: 2.8
B37: Su01Gd_Pc2 | C37: 0.67 | D37: 200 | E37: 17.62275 | F37: 3.24825 | G37: 4.57
B38: Su02_Pc1 | C38: 0.67 | D38: 66 | E38: 13.64242424 | F38: 3.30530303 | G38: 3.666666667
B39: Su03_Pc4 | C39: 0.67 | D39: 45 | E39: 14.27777778 | F39: 2.904444444 | G39: 3.711111111
B40: Su04_Pc3 | C40: 0.67 | D40: 7 | E40: 4.728571429 | F40: 1.492857143 | G40: 2.428571429
B41: Su05_Pc5 | C41: 0.67 | D41: 27 | E41: 17.26296296 | F41: 5.101851852 | G41: 3.62962963
B42: Su06_Pc6 | C42: 0.67 | D42: 21 | E42: 13.01666667 | F42: 5.045238095 | G42: 1.857142857
B43: Su01Gd_Pc2 | C43: 2 | D43: 50 | E43: 10.776 | F43: 2.032 | G43: 4.92
B44: Su02_Pc1 | C44: 2 | D44: 14 | E44: 5.857142857 | F44: 1.085714286 | G44: 4.142857143
B45: Su03_Pc4 | C45: 2 | D45: 19 | E45: 15.75526316 | F45: 2.686842105 | G45: 4.210526316
B46: Su04_Pc3 | C46: 2 | D46: 3 | E46: 7.6 | F46: 0.9333333333 | G46: 3.666666667
B47: Su05_Pc5 | C47: 2 | D47: 3 | E47: 3.216666667 | F47: 1.216666667 | G47: 3
B48: Su06_Pc6 | C48: 2 | D48: 5 | E48: 3.13 | F48: 0.79 | G48: 3.8
B49: Su01Gd_Pc2 | C49: 4 | D49: 35 | E49: 16.65142857 | F49: 3.701428571 | G49: 5.114285714
B50: Su02_Pc1 | C50: 4 | D50: 11 | E50: 26.14545455 | F50: 6.613636364 | G50: 3.818181818
B51: Su03_Pc4 | C51: 4 | D51: 9 | E51: 10.56666667 | F51: 1.772222222 | G51: 3.888888889
B52: Su04_Pc3 | C52: 4 | D52: 3 | E52: 0.65 | F52: 0.15 | G52: 4.333333333
B53: Su05_Pc5 | C53: 4 | D53: 5 | E53: 2.81 | F53: 0.79 | G53: 2.8
B54: Su06_Pc6 | C54: 4 | D54: 2 | E54: 0.65 | F54: 0.575 | G54: 1.5

Sheet for_02041031_JissiUmu (hidden)
A1: （非表示シート）
B2: 05_txt/231024/057202_dfK_01_221FreqNZero1_03NBy_Q10_1TojimariQ05HomeKyori2Lbsuijun2Lb.txt | Q2: 05_txt/231024/057202_dfK_01_221FreqNZero1_03NBy_Q10_2KankiQ05HomeKyori2Lbsuijun2Lb.txt | AF2: 05_txt/231024/057202_dfK_01_221FreqNZero1_03NBy_Q10_3SojiInQ05HomeKyori2Lbsuijun2Lb.txt | AU2: 05_txt/231024/057202_dfK_01_221FreqNZero1_03NBy_Q10_4MizuQ05HomeKyori2Lbsuijun2Lb.txt | BJ2: 05_txt/231024/057202_dfK_01_221FreqNZero1_03NBy_Q10_5YubinQ05HomeKyori2Lbsuijun2Lb.txt | BY2: 05_txt/231024/057202_dfK_01_221FreqNZero1_03NBy_Q10_6SojiOutQ05HomeKyori2Lbsuijun2Lb.txt | CN2: 05_txt/231024/057202_dfK_01_221FreqNZero1_03NBy_Q10_7ItamiQ05HomeKyori2Lbsuijun2Lb.txt | DC2: 05_txt/231024/057202_dfK_01_221FreqNZero1_03NBy_Q10_8TaifuQ05HomeKyori2Lbsuijun2Lb.txt | DR2: 05_txt/231024/057202_dfK_01_221FreqNZero1_03NBy_Q10_9JosetsuQ05HomeKyori2Lbsuijun2Lb.txt | EG2: 05_txt/231024/057202_dfK_01_221FreqNZero1_03NBy_Q10_10OthrQ05HomeKyori2Lbsuijun2Lb.txt
B3: Q10_1Tojimari | C3: Q05HomeKyori2Lb | D3: suijun2Lb | E3: N | G3: Q05HomeKyori2Lb | H3: suijun2Lb | K3: Q05HomeKyori2Lb | L3: suijun2Lb | M3: median | N3: 標準的な管理 | O3: 手厚い管理 | Q3: Q10_2Kanki | R3: Q05HomeKyori2Lb | S3: suijun2Lb | T3: N | V3: Q05HomeKyori2Lb | W3: suijun2Lb | Z3: Q05HomeKyori2Lb | AA3: suijun2Lb | AB3: median | AC3: 標準的な管理 | AD3: 手厚い管理 | AF3: Q10_3SojiIn | AG3: Q05HomeKyori2Lb | AH3: suijun2Lb | AI3: N | AK3: Q05HomeKyori2Lb | AL3: suijun2Lb | AO3: Q05HomeKyori2Lb | AP3: suijun2Lb | AQ3: median | AR3: 標準的な管理 | AS3: 手厚い管理 | AU3: Q10_4Mizu | AV3: Q05HomeKyori2Lb | AW3: suijun2Lb | AX3: N | AZ3: Q05HomeKyori2Lb | BA3: suijun2Lb | BD3: Q05HomeKyori2Lb | BE3: suijun2Lb | BF3: median | BG3: 標準的な管理 | BH3: 手厚い管理 | BJ3: Q10_5Yubin | BK3: Q05HomeKyori2Lb | BL3: suijun2Lb | BM3: N | BO3: Q05HomeKyori2Lb | BP3: suijun2Lb | BS3: Q05HomeKyori2Lb | BT3: suijun2Lb | BU3: median | BV3: 標準的な管理 | BW3: 手厚い管理 | BY3: Q10_6SojiOut | BZ3: Q05HomeKyori2Lb | CA3: suijun2Lb | CB3: N | CD3: Q05HomeKyori2Lb | CE3: suijun2Lb | CH3: Q05HomeKyori2Lb | CI3: suijun2Lb | CJ3: median | CK3: 標準的な管理 | CL3: 手厚い管理 | CN3: Q10_7Itami | CO3: Q05HomeKyori2Lb | CP3: suijun2Lb | CQ3: N | CS3: Q05HomeKyori2Lb | CT3: suijun2Lb | CW3: Q05HomeKyori2Lb | CX3: suijun2Lb | CY3: median | CZ3: 標準的な管理 | DA3: 手厚い管理 | DC3: Q10_8Taifu | DD3: Q05HomeKyori2Lb | DE3: suijun2Lb | DF3: N | DH3: Q05HomeKyori2Lb | DI3: suijun2Lb | DL3: Q05HomeKyori2Lb | DM3: suijun2Lb | DN3: median | DO3: 標準的な管理 | DP3: 手厚い管理 | DR3: Q10_9Josetsu | DS3: Q05HomeKyori2Lb | DT3: suijun2Lb | DU3: N | DW3: Q05HomeKyori2Lb | DX3: suijun2Lb | EA3: Q05HomeKyori2Lb | EB3: suijun2Lb | EC3: median | ED3: 標準的な管理 | EE3: 手厚い管理 | EG3: Q10_10Othr | EH3: Q05HomeKyori2Lb | EI3: suijun2Lb | EJ3: N | EL3: Q05HomeKyori2Lb | EM3: suijun2Lb | EP3: Q05HomeKyori2Lb | EQ3: suijun2Lb | ER3: median | ES3: 標準的な管理 | ET3: 手厚い管理
B4: 0 | C4: 01_HKToho | D4: Su01Gd_Pc2 | E4: 65 | G4: 01_HKToho | H4: Su01Gd_Pc2 | I4: =E5/SUM(E4:E5) -> 0.7833333333 | K4: 01_HKToho | L4: 物的水準1：良好 | M4: =MEDIAN(I4) -> 0.7833333333 | N4: =IF(M4>0.6,1,0) -> 1 | O4: =IF(M4>0.5,1,0) -> 1 | Q4: 0 | R4: 01_HKToho | S4: Su01Gd_Pc2 | T4: 96 | V4: 01_HKToho | W4: Su01Gd_Pc2 | X4: =T5/SUM(T4:T5) -> 0.68 | Z4: 01_HKToho | AA4: 物的水準1：良好 | AB4: =MEDIAN(X4) -> 0.68 | AC4: =IF(AB4>0.6,1,0) -> 1 | AD4: =IF(AB4>0.5,1,0) -> 1 | AF4: 0 | AG4: 01_HKToho | AH4: Su01Gd_Pc2 | AI4: 125 | AK4: 01_HKToho | AL4: Su01Gd_Pc2 | AM4: =AI5/SUM(AI4:AI5) -> 0.5833333333 | AO4: 01_HKToho | AP4: 物的水準1：良好 | AQ4: =MEDIAN(AM4) -> 0.5833333333 | AR4: =IF(AQ4>0.6,1,0) -> 0 | AS4: =IF(AQ4>0.5,1,0) -> 1 | AU4: 0 | AV4: 01_HKToho | AW4: Su01Gd_Pc2 | AX4: 186 | AZ4: 01_HKToho | BA4: Su01Gd_Pc2 | BB4: =AX5/SUM(AX4:AX5) -> 0.38 | BD4: 01_HKToho | BE4: 物的水準1：良好 | BF4: =MEDIAN(BB4) -> 0.38 | BG4: =IF(BF4>0.6,1,0) -> 0 | BH4: =IF(BF4>0.5,1,0) -> 0 | BJ4: 0 | BK4: 01_HKToho | BL4: Su01Gd_Pc2 | BM4: 154 | BO4: 01_HKToho | BP4: Su01Gd_Pc2 | BQ4: =BM5/SUM(BM4:BM5) -> 0.4866666667 | BS4: 01_HKToho | BT4: 物的水準1：良好 | BU4: =MEDIAN(BQ4) -> 0.4866666667 | BV4: =IF(BU4>0.6,1,0) -> 0 | BW4: =IF(BU4>0.5,1,0) -> 0 | BY4: 0 | BZ4: 01_HKToho | CA4: Su01Gd_Pc2 | CB4: 148 | CD4: 01_HKToho | CE4: Su01Gd_Pc2 | CF4: =CB5/SUM(CB4:CB5) -> 0.5066666667 | CH4: 01_HKToho | CI4: 物的水準1：良好 | CJ4: =MEDIAN(CF4) -> 0.5066666667 | CK4: =IF(CJ4>0.6,1,0) -> 0 | CL4: =IF(CJ4>0.5,1,0) -> 1 | CN4: 0 | CO4: 01_HKToho | CP4: Su01Gd_Pc2 | CQ4: 193 | CS4: 01_HKToho | CT4: Su01Gd_Pc2 | CU4: =CQ5/SUM(CQ4:CQ5) -> 0.3566666667 | CW4: 01_HKToho | CX4: 物的水準1：良好 | CY4: =MEDIAN(CU4) -> 0.3566666667 | CZ4: =IF(CY4>0.6,1,0) -> 0 | DA4: =IF(CY4>0.5,1,0) -> 0 | DC4: 0 | DD4: 01_HKToho | DE4: Su01Gd_Pc2 | DF4: 202 | DH4: 01_HKToho | DI4: Su01Gd_Pc2 | DJ4: =DF5/SUM(DF4:DF5) -> 0.3266666667 | DL4: 01_HKToho | DM4: 物的水準1：良好 | DN4: =MEDIAN(DJ4) -> 0.3266666667 | DO4: =IF(DN4>0.6,1,0) -> 0 | DP4: =IF(DN4>0.5,1,0) -> 0 | DR4: 0 | DS4: 01_HKToho | DT4: Su01Gd_Pc2 | DU4: 276 | DW4: 01_HKToho | DX4: Su01Gd_Pc2 | DY4: =DU5/SUM(DU4:DU5) -> 0.08 | EA4: 01_HKToho | EB4: 物的水準1：良好 | EC4: =MEDIAN(DY4) -> 0.08 | ED4: =IF(EC4>0.6,1,0) -> 0 | EE4: =IF(EC4>0.5,1,0) -> 0 | EG4: 0 | EH4: 01_HKToho | EI4: Su01Gd_Pc2 | EJ4: 298 | EL4: 01_HKToho | EM4: Su01Gd_Pc2 | EN4: =EJ5/SUM(EJ4:EJ5) -> 0.006666666667 | EP4: 01_HKToho | EQ4: 物的水準1：良好 | ER4: =MEDIAN(EN4) -> 0.006666666667 | ES4: =IF(ER4>0.6,1,0) -> 0 | ET4: =IF(ER4>0.5,1,0) -> 0
B5: 1 | C5: 01_HKToho | D5: Su01Gd_Pc2 | E5: 235 | G5: 02_HK1Hr | H5: Su01Gd_Pc2 | I5: =E7/SUM(E6:E7) -> 0.76 | K5: 02_HK1Hr | L5: 物的水準1：良好 | M5: =MEDIAN(I5) -> 0.76 | N5: 1 | O5: 1 | Q5: 1 | R5: 01_HKToho | S5: Su01Gd_Pc2 | T5: 204 | V5: 02_HK1Hr | W5: Su01Gd_Pc2 | X5: =T7/SUM(T6:T7) -> 0.735 | Z5: 02_HK1Hr | AA5: 物的水準1：良好 | AB5: =MEDIAN(X5) -> 0.735 | AC5: 1 | AD5: 1 | AF5: 1 | AG5: 01_HKToho | AH5: Su01Gd_Pc2 | AI5: 175 | AK5: 02_HK1Hr | AL5: Su01Gd_Pc2 | AM5: =AI7/SUM(AI6:AI7) -> 0.61 | AO5: 02_HK1Hr | AP5: 物的水準1：良好 | AQ5: =MEDIAN(AM5) -> 0.61 | AR5: 1 | AS5: 1 | AU5: 1 | AV5: 01_HKToho | AW5: Su01Gd_Pc2 | AX5: 114 | AZ5: 02_HK1Hr | BA5: Su01Gd_Pc2 | BB5: =AX7/SUM(AX6:AX7) -> 0.425 | BD5: 02_HK1Hr | BE5: 物的水準1：良好 | BF5: =MEDIAN(BB5) -> 0.425 | BG5: 0 | BH5: 0 | BJ5: 1 | BK5: 01_HKToho | BL5: Su01Gd_Pc2 | BM5: 146 | BO5: 02_HK1Hr | BP5: Su01Gd_Pc2 | BQ5: =BM7/SUM(BM6:BM7) -> 0.53 | BS5: 02_HK1Hr | BT5: 物的水準1：良好 | BU5: =MEDIAN(BQ5) -> 0.53 | BV5: 0 | BW5: 1 | BY5: 1 | BZ5: 01_HKToho | CA5: Su01Gd_Pc2 | CB5: 152 | CD5: 02_HK1Hr | CE5: Su01Gd_Pc2 | CF5: =CB7/SUM(CB6:CB7) -> 0.59 | CH5: 02_HK1Hr | CI5: 物的水準1：良好 | CJ5: =MEDIAN(CF5) -> 0.59 | CK5: 0 | CL5: 1 | CN5: 1 | CO5: 01_HKToho | CP5: Su01Gd_Pc2 | CQ5: 107 | CS5: 02_HK1Hr | CT5: Su01Gd_Pc2 | CU5: =CQ7/SUM(CQ6:CQ7) -> 0.42 | CW5: 02_HK1Hr | CX5: 物的水準1：良好 | CY5: =MEDIAN(CU5) -> 0.42 | CZ5: 0 | DA5: 0 | DC5: 1 | DD5: 01_HKToho | DE5: Su01Gd_Pc2 | DF5: 98 | DH5: 02_HK1Hr | DI5: Su01Gd_Pc2 | DJ5: =DF7/SUM(DF6:DF7) -> 0.385 | DL5: 02_HK1Hr | DM5: 物的水準1：良好 | DN5: =MEDIAN(DJ5) -> 0.385 | DO5: 0 | DP5: 0 | DR5: 1 | DS5: 01_HKToho | DT5: Su01Gd_Pc2 | DU5: 24 | DW5: 02_HK1Hr | DX5: Su01Gd_Pc2 | DY5: =DU7/SUM(DU6:DU7) -> 0.11 | EA5: 02_HK1Hr | EB5: 物的水準1：良好 | EC5: =MEDIAN(DY5) -> 0.11 | ED5: 0 | EE5: 0 | EG5: 1 | EH5: 01_HKToho | EI5: Su01Gd_Pc2 | EJ5: 2 | EL5: 02_HK1Hr | EM5: Su01Gd_Pc2 | EN5: =EJ7/SUM(EJ6:EJ7) -> 0.005 | EP5: 02_HK1Hr | EQ5: 物的水準1：良好 | ER5: =MEDIAN(EN5) -> 0.005 | ES5: 0 | ET5: 0
B6: 0 | C6: 02_HK1Hr | D6: Su01Gd_Pc2 | E6: 48 | G6: 03_HK1~3Hr | H6: Su01Gd_Pc2 | I6: =E9/SUM(E8:E9) -> 0.66 | K6: 03_HK1~3Hr | L6: 物的水準1：良好 | M6: =MEDIAN(I6) -> 0.66 | N6: 1 | O6: 1 | Q6: 0 | R6: 02_HK1Hr | S6: Su01Gd_Pc2 | T6: 53 | V6: 03_HK1~3Hr | W6: Su01Gd_Pc2 | X6: =T9/SUM(T8:T9) -> 0.7 | Z6: 03_HK1~3Hr | AA6: 物的水準1：良好 | AB6: =MEDIAN(X6) -> 0.7 | AC6: 1 | AD6: 1 | AF6: 0 | AG6: 02_HK1Hr | AH6: Su01Gd_Pc2 | AI6: 78 | AK6: 03_HK1~3Hr | AL6: Su01Gd_Pc2 | AM6: =AI9/SUM(AI8:AI9) -> 0.76 | AO6: 03_HK1~3Hr | AP6: 物的水準1：良好 | AQ6: =MEDIAN(AM6) -> 0.76 | AR6: 1 | AS6: 1 | AU6: 0 | AV6: 02_HK1Hr | AW6: Su01Gd_Pc2 | AX6: 115 | AZ6: 03_HK1~3Hr | BA6: Su01Gd_Pc2 | BB6: =AX9/SUM(AX8:AX9) -> 0.5 | BD6: 03_HK1~3Hr | BE6: 物的水準1：良好 | BF6: =MEDIAN(BB6) -> 0.5 | BG6: 0 | BH6: 0 | BJ6: 0 | BK6: 02_HK1Hr | BL6: Su01Gd_Pc2 | BM6: 94 | BO6: 03_HK1~3Hr | BP6: Su01Gd_Pc2 | BQ6: =BM9/SUM(BM8:BM9) -> 0.62 | BS6: 03_HK1~3Hr | BT6: 物的水準1：良好 | BU6: =MEDIAN(BQ6) -> 0.62 | BV6: 1 | BW6: 1 | BY6: 0 | BZ6: 02_HK1Hr | CA6: Su01Gd_Pc2 | CB6: 82 | CD6: 03_HK1~3Hr | CE6: Su01Gd_Pc2 | CF6: =CB9/SUM(CB8:CB9) -> 0.72 | CH6: 03_HK1~3Hr | CI6: 物的水準1：良好 | CJ6: =MEDIAN(CF6) -> 0.72 | CK6: 1 | CL6: 1 | CN6: 0 | CO6: 02_HK1Hr | CP6: Su01Gd_Pc2 | CQ6: 116 | CS6: 03_HK1~3Hr | CT6: Su01Gd_Pc2 | CU6: =CQ9/SUM(CQ8:CQ9) -> 0.42 | CW6: 03_HK1~3Hr | CX6: 物的水準1：良好 | CY6: =MEDIAN(CU6) -> 0.42 | CZ6: 0 | DA6: 0 | DC6: 0 | DD6: 02_HK1Hr | DE6: Su01Gd_Pc2 | DF6: 123 | DH6: 03_HK1~3Hr | DI6: Su01Gd_Pc2 | DJ6: =DF9/SUM(DF8:DF9) -> 0.4 | DL6: 03_HK1~3Hr | DM6: 物的水準1：良好 | DN6: =MEDIAN(DJ6) -> 0.4 | DO6: 0 | DP6: 0 | DR6: 0 | DS6: 02_HK1Hr | DT6: Su01Gd_Pc2 | DU6: 178 | DW6: 03_HK1~3Hr | DX6: Su01Gd_Pc2 | DY6: =DU9/SUM(DU8:DU9) -> 0.14 | EA6: 03_HK1~3Hr | EB6: 物的水準1：良好 | EC6: =MEDIAN(DY6) -> 0.14 | ED6: 0 | EE6: 0 | EG6: 0 | EH6: 02_HK1Hr | EI6: Su01Gd_Pc2 | EJ6: 199 | EL6: 03_HK1~3Hr | EM6: Su01Gd_Pc2 | EN6: 0 | EP6: 03_HK1~3Hr | EQ6: 物的水準1：良好 | ER6: =MEDIAN(EN6) -> 0 | ES6: 0 | ET6: 0
B7: 1 | C7: 02_HK1Hr | D7: Su01Gd_Pc2 | E7: 152 | G7: 04_HK3Hr~ | H7: Su01Gd_Pc2 | I7: =E11/SUM(E10:E11) -> 0.7714285714 | K7: 04_HK3Hr~ | L7: 物的水準1：良好 | M7: =MEDIAN(I7) -> 0.7714285714 | N7: 1 | O7: 1 | Q7: 1 | R7: 02_HK1Hr | S7: Su01Gd_Pc2 | T7: 147 | V7: 04_HK3Hr~ | W7: Su01Gd_Pc2 | X7: =T11/SUM(T10:T11) -> 0.8 | Z7: 04_HK3Hr~ | AA7: 物的水準1：良好 | AB7: =MEDIAN(X7) -> 0.8 | AC7: 1 | AD7: 1 | AF7: 1 | AG7: 02_HK1Hr | AH7: Su01Gd_Pc2 | AI7: 122 | AK7: 04_HK3Hr~ | AL7: Su01Gd_Pc2 | AM7: =AI11/SUM(AI10:AI11) -> 0.7428571429 | AO7: 04_HK3Hr~ | AP7: 物的水準1：良好 | AQ7: =MEDIAN(AM7) -> 0.7428571429 | AR7: 1 | AS7: 1 | AU7: 1 | AV7: 02_HK1Hr | AW7: Su01Gd_Pc2 | AX7: 85 | AZ7: 04_HK3Hr~ | BA7: Su01Gd_Pc2 | BB7: =AX11/SUM(AX10:AX11) -> 0.4857142857 | BD7: 04_HK3Hr~ | BE7: 物的水準1：良好 | BF7: =MEDIAN(BB7) -> 0.4857142857 | BG7: 0 | BH7: 0 | BJ7: 1 | BK7: 02_HK1Hr | BL7: Su01Gd_Pc2 | BM7: 106 | BO7: 04_HK3Hr~ | BP7: Su01Gd_Pc2 | BQ7: =BM11/SUM(BM10:BM11) -> 0.6571428571 | BS7: 04_HK3Hr~ | BT7: 物的水準1：良好 | BU7: =MEDIAN(BQ7) -> 0.6571428571 | BV7: 1 | BW7: 1 | BY7: 1 | BZ7: 02_HK1Hr | CA7: Su01Gd_Pc2 | CB7: 118 | CD7: 04_HK3Hr~ | CE7: Su01Gd_Pc2 | CF7: =CB11/SUM(CB10:CB11) -> 0.7428571429 | CH7: 04_HK3Hr~ | CI7: 物的水準1：良好 | CJ7: =MEDIAN(CF7) -> 0.7428571429 | CK7: 1 | CL7: 1 | CN7: 1 | CO7: 02_HK1Hr | CP7: Su01Gd_Pc2 | CQ7: 84 | CS7: 04_HK3Hr~ | CT7: Su01Gd_Pc2 | CU7: =CQ11/SUM(CQ10:CQ11) -> 0.5142857143 | CW7: 04_HK3Hr~ | CX7: 物的水準1：良好 | CY7: =MEDIAN(CU7) -> 0.5142857143 | CZ7: 0 | DA7: 1 | DC7: 1 | DD7: 02_HK1Hr | DE7: Su01Gd_Pc2 | DF7: 77 | DH7: 04_HK3Hr~ | DI7: Su01Gd_Pc2 | DJ7: =DF11/SUM(DF10:DF11) -> 0.2285714286 | DL7: 04_HK3Hr~ | DM7: 物的水準1：良好 | DN7: =MEDIAN(DJ7) -> 0.2285714286 | DO7: 0 | DP7: 0 | DR7: 1 | DS7: 02_HK1Hr | DT7: Su01Gd_Pc2 | DU7: 22 | DW7: 04_HK3Hr~ | DX7: Su01Gd_Pc2 | DY7: =DU11/SUM(DU10:DU11) -> 0.1714285714 | EA7: 04_HK3Hr~ | EB7: 物的水準1：良好 | EC7: =MEDIAN(DY7) -> 0.1714285714 | ED7: 0 | EE7: 0 | EG7: 1 | EH7: 02_HK1Hr | EI7: Su01Gd_Pc2 | EJ7: 1 | EL7: 04_HK3Hr~ | EM7: Su01Gd_Pc2 | EN7: 0 | EP7: 04_HK3Hr~ | EQ7: 物的水準1：良好 | ER7: =MEDIAN(EN7) -> 0 | ES7: 0 | ET7: 0
B8: 0 | C8: 03_HK1~3Hr | D8: Su01Gd_Pc2 | E8: 17 | G8: 01_HKToho | H8: Su02_Pc1 | I8: =E13/SUM(E12:E13) -> 0.7 | K8: 01_HKToho | L8: 物的水準2：標準 | M8: =MEDIAN(I8,I12,I16) -> 0.6730769231 | N8: 1 | O8: 1 | Q8: 0 | R8: 03_HK1~3Hr | S8: Su01Gd_Pc2 | T8: 15 | V8: 01_HKToho | W8: Su02_Pc1 | X8: =T13/SUM(T12:T13) -> 0.5416666667 | Z8: 01_HKToho | AA8: 物的水準2：標準 | AB8: =MEDIAN(X8,X12,X16) -> 0.4705882353 | AC8: 0 | AD8: 0 | AF8: 0 | AG8: 03_HK1~3Hr | AH8: Su01Gd_Pc2 | AI8: 12 | AK8: 01_HKToho | AL8: Su02_Pc1 | AM8: =AI13/SUM(AI12:AI13) -> 0.5 | AO8: 01_HKToho | AP8: 物的水準2：標準 | AQ8: =MEDIAN(AM8,AM12,AM16) -> 0.3461538462 | AR8: 0 | AS8: 0 | AU8: 0 | AV8: 03_HK1~3Hr | AW8: Su01Gd_Pc2 | AX8: 25 | AZ8: 01_HKToho | BA8: Su02_Pc1 | BB8: =AX13/SUM(AX12:AX13) -> 0.2 | BD8: 01_HKToho | BE8: 物的水準2：標準 | BF8: =MEDIAN(BB8,BB12,BB16) -> 0.2352941176 | BG8: 0 | BH8: 0 | BJ8: 0 | BK8: 03_HK1~3Hr | BL8: Su01Gd_Pc2 | BM8: 19 | BO8: 01_HKToho | BP8: Su02_Pc1 | BQ8: =BM13/SUM(BM12:BM13) -> 0.325 | BS8: 01_HKToho | BT8: 物的水準2：標準 | BU8: =MEDIAN(BQ8,BQ12,BQ16) -> 0.325 | BV8: 0 | BW8: 0 | BY8: 0 | BZ8: 03_HK1~3Hr | CA8: Su01Gd_Pc2 | CB8: 14 | CD8: 01_HKToho | CE8: Su02_Pc1 | CF8: =CB13/SUM(CB12:CB13) -> 0.4416666667 | CH8: 01_HKToho | CI8: 物的水準2：標準 | CJ8: =MEDIAN(CF8,CF12,CF16) -> 0.4416666667 | CK8: 0 | CL8: 0 | CN8: 0 | CO8: 03_HK1~3Hr | CP8: Su01Gd_Pc2 | CQ8: 29 | CS8: 01_HKToho | CT8: Su02_Pc1 | CU8: =CQ13/SUM(CQ12:CQ13) -> 0.325 | CW8: 01_HKToho | CX8: 物的水準2：標準 | CY8: =MEDIAN(CU8,CU12,CU16) -> 0.325 | CZ8: 0 | DA8: 0 | DC8: 0 | DD8: 03_HK1~3Hr | DE8: Su01Gd_Pc2 | DF8: 30 | DH8: 01_HKToho | DI8: Su02_Pc1 | DJ8: =DF13/SUM(DF12:DF13) -> 0.2416666667 | DL8: 01_HKToho | DM8: 物的水準2：標準 | DN8: =MEDIAN(DJ8,DJ12,DJ16) -> 0.25 | DO8: 0 | DP8: 0 | DR8: 0 | DS8: 03_HK1~3Hr | DT8: Su01Gd_Pc2 | DU8: 43 | DW8: 01_HKToho | DX8: Su02_Pc1 | DY8: =DU13/SUM(DU12:DU13) -> 0.06666666667 | EA8: 01_HKToho | EB8: 物的水準2：標準 | EC8: =MEDIAN(DY8,DY12,DY16) -> 0.06666666667 | ED8: 0 | EE8: 0 | EG8: 0 | EH8: 03_HK1~3Hr | EI8: Su01Gd_Pc2 | EJ8: 50 | EL8: 01_HKToho | EM8: Su02_Pc1 | EN8: =EJ11/SUM(EJ10:EJ11) -> 0.008333333333 | EP8: 01_HKToho | EQ8: 物的水準2：標準 | ER8: =MEDIAN(EN8,EN12,EN16) -> 0.008333333333 | ES8: 0 | ET8: 0
B9: 1 | C9: 03_HK1~3Hr | D9: Su01Gd_Pc2 | E9: 33 | G9: 02_HK1Hr | H9: Su02_Pc1 | I9: =E15/SUM(E14:E15) -> 0.6363636364 | K9: 02_HK1Hr | L9: 物的水準2：標準 | M9: =MEDIAN(I9,I13,I17) -> 0.6363636364 | N9: 1 | O9: 1 | Q9: 1 | R9: 03_HK1~3Hr | S9: Su01Gd_Pc2 | T9: 35 | V9: 02_HK1Hr | W9: Su02_Pc1 | X9: =T15/SUM(T14:T15) -> 0.5303030303 | Z9: 02_HK1Hr | AA9: 物的水準2：標準 | AB9: =MEDIAN(X9,X13,X17) -> 0.5303030303 | AC9: 0 | AD9: 1 | AF9: 1 | AG9: 03_HK1~3Hr | AH9: Su01Gd_Pc2 | AI9: 38 | AK9: 02_HK1Hr | AL9: Su02_Pc1 | AM9: =AI15/SUM(AI14:AI15) -> 0.4696969697 | AO9: 02_HK1Hr | AP9: 物的水準2：標準 | AQ9: =MEDIAN(AM9,AM13,AM17) -> 0.4696969697 | AR9: 0 | AS9: 0 | AU9: 1 | AV9: 03_HK1~3Hr | AW9: Su01Gd_Pc2 | AX9: 25 | AZ9: 02_HK1Hr | BA9: Su02_Pc1 | BB9: =AX15/SUM(AX14:AX15) -> 0.3333333333 | BD9: 02_HK1Hr | BE9: 物的水準2：標準 | BF9: =MEDIAN(BB9,BB13,BB17) -> 0.3333333333 | BG9: 0 | BH9: 0 | BJ9: 1 | BK9: 03_HK1~3Hr | BL9: Su01Gd_Pc2 | BM9: 31 | BO9: 02_HK1Hr | BP9: Su02_Pc1 | BQ9: =BM15/SUM(BM14:BM15) -> 0.4696969697 | BS9: 02_HK1Hr | BT9: 物的水準2：標準 | BU9: =MEDIAN(BQ9,BQ13,BQ17) -> 0.3555555556 | BV9: 0 | BW9: 0 | BY9: 1 | BZ9: 03_HK1~3Hr | CA9: Su01Gd_Pc2 | CB9: 36 | CD9: 02_HK1Hr | CE9: Su02_Pc1 | CF9: =CB15/SUM(CB14:CB15) -> 0.5 | CH9: 02_HK1Hr | CI9: 物的水準2：標準 | CJ9: =MEDIAN(CF9,CF13,CF17) -> 0.4666666667 | CK9: 0 | CL9: 0 | CN9: 1 | CO9: 03_HK1~3Hr | CP9: Su01Gd_Pc2 | CQ9: 21 | CS9: 02_HK1Hr | CT9: Su02_Pc1 | CU9: =CQ15/SUM(CQ14:CQ15) -> 0.3181818182 | CW9: 02_HK1Hr | CX9: 物的水準2：標準 | CY9: =MEDIAN(CU9,CU13,CU17) -> 0.3181818182 | CZ9: 0 | DA9: 0 | DC9: 1 | DD9: 03_HK1~3Hr | DE9: Su01Gd_Pc2 | DF9: 20 | DH9: 02_HK1Hr | DI9: Su02_Pc1 | DJ9: =DF15/SUM(DF14:DF15) -> 0.303030303 | DL9: 02_HK1Hr | DM9: 物的水準2：標準 | DN9: =MEDIAN(DJ9,DJ13,DJ17) -> 0.2857142857 | DO9: 0 | DP9: 0 | DR9: 1 | DS9: 03_HK1~3Hr | DT9: Su01Gd_Pc2 | DU9: 7 | DW9: 02_HK1Hr | DX9: Su02_Pc1 | DY9: =DU15/SUM(DU14:DU15) -> 0.1060606061 | EA9: 02_HK1Hr | EB9: 物的水準2：標準 | EC9: =MEDIAN(DY9,DY13,DY17) -> 0.1428571429 | ED9: 0 | EE9: 0 | EG9: 0 | EH9: 04_HK3Hr~ | EI9: Su01Gd_Pc2 | EJ9: 35 | EL9: 02_HK1Hr | EM9: Su02_Pc1 | EN9: 0 | EP9: 02_HK1Hr | EQ9: 物的水準2：標準 | ER9: =MEDIAN(EN9,EN13,EN17) -> 0 | ES9: 0 | ET9: 0
B10: 0 | C10: 04_HK3Hr~ | D10: Su01Gd_Pc2 | E10: 8 | G10: 03_HK1~3Hr | H10: Su02_Pc1 | I10: =E17/SUM(E16:E17) -> 0.7142857143 | K10: 03_HK1~3Hr | L10: 物的水準2：標準 | M10: =MEDIAN(I10,I14,I18) -> 0.7142857143 | N10: 1 | O10: 1 | Q10: 0 | R10: 04_HK3Hr~ | S10: Su01Gd_Pc2 | T10: 7 | V10: 03_HK1~3Hr | W10: Su02_Pc1 | X10: =T17/SUM(T16:T17) -> 0.6428571429 | Z10: 03_HK1~3Hr | AA10: 物的水準2：標準 | AB10: =MEDIAN(X10,X14,X18) -> 0.5789473684 | AC10: 0 | AD10: 1 | AF10: 0 | AG10: 04_HK3Hr~ | AH10: Su01Gd_Pc2 | AI10: 9 | AK10: 03_HK1~3Hr | AL10: Su02_Pc1 | AM10: =AI17/SUM(AI16:AI17) -> 0.6428571429 | AO10: 03_HK1~3Hr | AP10: 物的水準2：標準 | AQ10: =MEDIAN(AM10,AM14,AM18) -> 0.4210526316 | AR10: 0 | AS10: 0 | AU10: 0 | AV10: 04_HK3Hr~ | AW10: Su01Gd_Pc2 | AX10: 18 | AZ10: 03_HK1~3Hr | BA10: Su02_Pc1 | BB10: =AX17/SUM(AX16:AX17) -> 0.2857142857 | BD10: 03_HK1~3Hr | BE10: 物的水準2：標準 | BF10: =MEDIAN(BB10,BB14,BB18) -> 0.2857142857 | BG10: 0 | BH10: 0 | BJ10: 0 | BK10: 04_HK3Hr~ | BL10: Su01Gd_Pc2 | BM10: 12 | BO10: 03_HK1~3Hr | BP10: Su02_Pc1 | BQ10: =BM17/SUM(BM16:BM17) -> 0.5 | BS10: 03_HK1~3Hr | BT10: 物的水準2：標準 | BU10: =MEDIAN(BQ10,BQ14,BQ18) -> 0.5 | BV10: 0 | BW10: 0 | BY10: 0 | BZ10: 04_HK3Hr~ | CA10: Su01Gd_Pc2 | CB10: 9 | CD10: 03_HK1~3Hr | CE10: Su02_Pc1 | CF10: =CB17/SUM(CB16:CB17) -> 0.5714285714 | CH10: 03_HK1~3Hr | CI10: 物的水準2：標準 | CJ10: =MEDIAN(CF10,CF14,CF18) -> 0.5789473684 | CK10: 0 | CL10: 1 | CN10: 0 | CO10: 04_HK3Hr~ | CP10: Su01Gd_Pc2 | CQ10: 17 | CS10: 03_HK1~3Hr | CT10: Su02_Pc1 | CU10: =CQ17/SUM(CQ16:CQ17) -> 0.2142857143 | CW10: 03_HK1~3Hr | CX10: 物的水準2：標準 | CY10: =MEDIAN(CU10,CU14,CU18) -> 0.3333333333 | CZ10: 0 | DA10: 0 | DC10: 0 | DD10: 04_HK3Hr~ | DE10: Su01Gd_Pc2 | DF10: 27 | DH10: 03_HK1~3Hr | DI10: Su02_Pc1 | DJ10: =DF17/SUM(DF16:DF17) -> 0.4285714286 | DL10: 03_HK1~3Hr | DM10: 物的水準2：標準 | DN10: =MEDIAN(DJ10,DJ14,DJ18) -> 0.4285714286 | DO10: 0 | DP10: 0 | DR10: 0 | DS10: 04_HK3Hr~ | DT10: Su01Gd_Pc2 | DU10: 29 | DW10: 03_HK1~3Hr | DX10: Su02_Pc1 | DY10: =DU17/SUM(DU16:DU17) -> 0.07142857143 | EA10: 03_HK1~3Hr | EB10: 物的水準2：標準 | EC10: =MEDIAN(DY10,DY14,DY18) -> 0.07142857143 | ED10: 0 | EE10: 0 | EG10: 0 | EH10: 01_HKToho | EI10: Su02_Pc1 | EJ10: 119 | EL10: 03_HK1~3Hr | EM10: Su02_Pc1 | EN10: =EJ14/SUM(EJ13:EJ14) -> 0.07142857143 | EP10: 03_HK1~3Hr | EQ10: 物的水準2：標準 | ER10: =MEDIAN(EN10,EN14,EN18) -> 0.05263157895 | ES10: 0 | ET10: 0
B11: 1 | C11: 04_HK3Hr~ | D11: Su01Gd_Pc2 | E11: 27 | G11: 04_HK3Hr~ | H11: Su02_Pc1 | I11: =E19/SUM(E18:E19) -> 0.6363636364 | K11: 04_HK3Hr~ | L11: 物的水準2：標準 | M11: =MEDIAN(I11,I15,I19) -> 0.6363636364 | N11: 1 | O11: 1 | Q11: 1 | R11: 04_HK3Hr~ | S11: Su01Gd_Pc2 | T11: 28 | V11: 04_HK3Hr~ | W11: Su02_Pc1 | X11: =T19/SUM(T18:T19) -> 0.7272727273 | Z11: 04_HK3Hr~ | AA11: 物的水準2：標準 | AB11: =MEDIAN(X11,X15,X19) -> 0.7272727273 | AC11: 1 | AD11: 1 | AF11: 1 | AG11: 04_HK3Hr~ | AH11: Su01Gd_Pc2 | AI11: 26 | AK11: 04_HK3Hr~ | AL11: Su02_Pc1 | AM11: =AI19/SUM(AI18:AI19) -> 0.6363636364 | AO11: 04_HK3Hr~ | AP11: 物的水準2：標準 | AQ11: =MEDIAN(AM11,AM15,AM19) -> 0.6363636364 | AR11: 1 | AS11: 1 | AU11: 1 | AV11: 04_HK3Hr~ | AW11: Su01Gd_Pc2 | AX11: 17 | AZ11: 04_HK3Hr~ | BA11: Su02_Pc1 | BB11: =AX19/SUM(AX18:AX19) -> 0.4545454545 | BD11: 04_HK3Hr~ | BE11: 物的水準2：標準 | BF11: =MEDIAN(BB11,BB15,BB19) -> 0.4545454545 | BG11: 0 | BH11: 0 | BJ11: 1 | BK11: 04_HK3Hr~ | BL11: Su01Gd_Pc2 | BM11: 23 | BO11: 04_HK3Hr~ | BP11: Su02_Pc1 | BQ11: =BM19/SUM(BM18:BM19) -> 0.4545454545 | BS11: 04_HK3Hr~ | BT11: 物的水準2：標準 | BU11: =MEDIAN(BQ11,BQ15,BQ19) -> 0.5555555556 | BV11: 0 | BW11: 1 | BY11: 1 | BZ11: 04_HK3Hr~ | CA11: Su01Gd_Pc2 | CB11: 26 | CD11: 04_HK3Hr~ | CE11: Su02_Pc1 | CF11: =CB19/SUM(CB18:CB19) -> 0.5454545455 | CH11: 04_HK3Hr~ | CI11: 物的水準2：標準 | CJ11: =MEDIAN(CF11,CF15,CF19) -> 0.6666666667 | CK11: 1 | CL11: 1 | CN11: 1 | CO11: 04_HK3Hr~ | CP11: Su01Gd_Pc2 | CQ11: 18 | CS11: 04_HK3Hr~ | CT11: Su02_Pc1 | CU11: =CQ19/SUM(CQ18:CQ19) -> 0.2727272727 | CW11: 04_HK3Hr~ | CX11: 物的水準2：標準 | CY11: =MEDIAN(CU11,CU15,CU19) -> 0.3333333333 | CZ11: 0 | DA11: 0 | DC11: 1 | DD11: 04_HK3Hr~ | DE11: Su01Gd_Pc2 | DF11: 8 | DH11: 04_HK3Hr~ | DI11: Su02_Pc1 | DJ11: =DF19/SUM(DF18:DF19) -> 0.09090909091 | DL11: 04_HK3Hr~ | DM11: 物的水準2：標準 | DN11: =MEDIAN(DJ11,DJ15,DJ19) -> 0.09090909091 | DO11: 0 | DP11: 0 | DR11: 1 | DS11: 04_HK3Hr~ | DT11: Su01Gd_Pc2 | DU11: 6 | DW11: 04_HK3Hr~ | DX11: Su02_Pc1 | DY11: 0 | EA11: 04_HK3Hr~ | EB11: 物的水準2：標準 | EC11: =MEDIAN(DY11,DY15,DY19) -> 0 | ED11: 0 | EE11: 0 | EG11: 1 | EH11: 01_HKToho | EI11: Su02_Pc1 | EJ11: 1 | EL11: 04_HK3Hr~ | EM11: Su02_Pc1 | EN11: 0 | EP11: 04_HK3Hr~ | EQ11: 物的水準2：標準 | ER11: =MEDIAN(EN11,EN15,EN19) -> 0 | ES11: 0 | ET11: 0
B12: 0 | C12: 01_HKToho | D12: Su02_Pc1 | E12: 36 | G12: 01_HKToho | H12: Su03_Pc4 | I12: =E21/SUM(E20:E21) -> 0.6730769231 | K12: 01_HKToho | L12: 物的水準3：管理不全 | M12: =MEDIAN(I20,I24) -> 0.490990991 | N12: 0 | O12: 0 | Q12: 0 | R12: 01_HKToho | S12: Su02_Pc1 | T12: 55 | V12: 01_HKToho | W12: Su03_Pc4 | X12: =T21/SUM(T20:T21) -> 0.4615384615 | Z12: 01_HKToho | AA12: 物的水準3：管理不全 | AB12: =MEDIAN(X20,X24) -> 0.4099099099 | AC12: 0 | AD12: 0 | AF12: 0 | AG12: 01_HKToho | AH12: Su02_Pc1 | AI12: 60 | AK12: 01_HKToho | AL12: Su03_Pc4 | AM12: =AI21/SUM(AI20:AI21) -> 0.3461538462 | AO12: 01_HKToho | AP12: 物的水準3：管理不全 | AQ12: =MEDIAN(AM20,AM24) -> 0.4630630631 | AR12: 0 | AS12: 0 | AU12: 0 | AV12: 01_HKToho | AW12: Su02_Pc1 | AX12: 96 | AZ12: 01_HKToho | BA12: Su03_Pc4 | BB12: =AX21/SUM(AX20:AX21) -> 0.25 | BD12: 01_HKToho | BE12: 物的水準3：管理不全 | BF12: =MEDIAN(BB20,BB24) -> 0.2018018018 | BG12: 0 | BH12: 0 | BJ12: 0 | BK12: 01_HKToho | BL12: Su02_Pc1 | BM12: 81 | BO12: 01_HKToho | BP12: Su03_Pc4 | BQ12: =BM21/SUM(BM20:BM21) -> 0.3461538462 | BS12: 01_HKToho | BT12: 物的水準3：管理不全 | BU12: =MEDIAN(BQ20,BQ24) -> 0.3486486486 | BV12: 0 | BW12: 0 | BY12: 0 | BZ12: 01_HKToho | CA12: Su02_Pc1 | CB12: 67 | CD12: 01_HKToho | CE12: Su03_Pc4 | CF12: =CB21/SUM(CB20:CB21) -> 0.4615384615 | CH12: 01_HKToho | CI12: 物的水準3：管理不全 | CJ12: =MEDIAN(CF20,CF24) -> 0.436036036 | CK12: 0 | CL12: 0 | CN12: 0 | CO12: 01_HKToho | CP12: Su02_Pc1 | CQ12: 81 | CS12: 01_HKToho | CT12: Su03_Pc4 | CU12: =CQ21/SUM(CQ20:CQ21) -> 0.2307692308 | CW12: 01_HKToho | CX12: 物的水準3：管理不全 | CY12: =MEDIAN(CU20,CU24) -> 0.2009009009 | CZ12: 0 | DA12: 0 | DC12: 0 | DD12: 01_HKToho | DE12: Su02_Pc1 | DF12: 91 | DH12: 01_HKToho | DI12: Su03_Pc4 | DJ12: =DF21/SUM(DF20:DF21) -> 0.25 | DL12: 01_HKToho | DM12: 物的水準3：管理不全 | DN12: =MEDIAN(DJ20,DJ24) -> 0.2414414414 | DO12: 0 | DP12: 0 | DR12: 0 | DS12: 01_HKToho | DT12: Su02_Pc1 | DU12: 112 | DW12: 01_HKToho | DX12: Su03_Pc4 | DY12: =DU20/SUM(DU19:DU20) -> 0.05769230769 | EA12: 01_HKToho | EB12: 物的水準3：管理不全 | EC12: =MEDIAN(DY20,DY24) -> 0.1279279279 | ED12: 0 | EE12: 0 | EG12: 0 | EH12: 02_HK1Hr | EI12: Su02_Pc1 | EJ12: 66 | EL12: 01_HKToho | EM12: Su03_Pc4 | EN12: =EJ17/SUM(EJ16:EJ17) -> 0.01923076923 | EP12: 01_HKToho | EQ12: 物的水準3：管理不全 | ER12: =MEDIAN(EN20,EN24) -> 0.03333333333 | ES12: 0 | ET12: 0
B13: 1 | C13: 01_HKToho | D13: Su02_Pc1 | E13: 84 | G13: 02_HK1Hr | H13: Su03_Pc4 | I13: =E23/SUM(E22:E23) -> 0.6888888889 | K13: 02_HK1Hr | L13: 物的水準3：管理不全 | M13: =MEDIAN(I21,I25) -> 0.4947089947 | N13: 0 | O13: 0 | Q13: 1 | R13: 01_HKToho | S13: Su02_Pc1 | T13: 65 | V13: 02_HK1Hr | W13: Su03_Pc4 | X13: =T23/SUM(T22:T23) -> 0.5333333333 | Z13: 02_HK1Hr | AA13: 物的水準3：管理不全 | AB13: =MEDIAN(X21,X25) -> 0.3465608466 | AC13: 0 | AD13: 0 | AF13: 1 | AG13: 01_HKToho | AH13: Su02_Pc1 | AI13: 60 | AK13: 02_HK1Hr | AL13: Su03_Pc4 | AM13: =AI23/SUM(AI22:AI23) -> 0.4888888889 | AO13: 02_HK1Hr | AP13: 物的水準3：管理不全 | AQ13: =MEDIAN(AM21,AM25) -> 0.3835978836 | AR13: 0 | AS13: 0 | AU13: 1 | AV13: 01_HKToho | AW13: Su02_Pc1 | AX13: 24 | AZ13: 02_HK1Hr | BA13: Su03_Pc4 | BB13: =AX23/SUM(AX22:AX23) -> 0.3555555556 | BD13: 02_HK1Hr | BE13: 物的水準3：管理不全 | BF13: =MEDIAN(BB21,BB25) -> 0.3042328042 | BG13: 0 | BH13: 0 | BJ13: 1 | BK13: 01_HKToho | BL13: Su02_Pc1 | BM13: 39 | BO13: 02_HK1Hr | BP13: Su03_Pc4 | BQ13: =BM23/SUM(BM22:BM23) -> 0.3555555556 | BS13: 02_HK1Hr | BT13: 物的水準3：管理不全 | BU13: =MEDIAN(BQ21,BQ25) -> 0.3677248677 | BV13: 0 | BW13: 0 | BY13: 1 | BZ13: 01_HKToho | CA13: Su02_Pc1 | CB13: 53 | CD13: 02_HK1Hr | CE13: Su03_Pc4 | CF13: =CB23/SUM(CB22:CB23) -> 0.4666666667 | CH13: 02_HK1Hr | CI13: 物的水準3：管理不全 | CJ13: =MEDIAN(CF21,CF25) -> 0.2380952381 | CK13: 0 | CL13: 0 | CN13: 1 | CO13: 01_HKToho | CP13: Su02_Pc1 | CQ13: 39 | CS13: 02_HK1Hr | CT13: Su03_Pc4 | CU13: =CQ23/SUM(CQ22:CQ23) -> 0.3777777778 | CW13: 02_HK1Hr | CX13: 物的水準3：管理不全 | CY13: =MEDIAN(CU21,CU25) -> 0.2566137566 | CZ13: 0 | DA13: 0 | DC13: 1 | DD13: 01_HKToho | DE13: Su02_Pc1 | DF13: 29 | DH13: 02_HK1Hr | DI13: Su03_Pc4 | DJ13: =DF23/SUM(DF22:DF23) -> 0.2666666667 | DL13: 02_HK1Hr | DM13: 物的水準3：管理不全 | DN13: =MEDIAN(DJ21,DJ25) -> 0.3518518519 | DO13: 0 | DP13: 0 | DR13: 1 | DS13: 01_HKToho | DT13: Su02_Pc1 | DU13: 8 | DW13: 02_HK1Hr | DX13: Su03_Pc4 | DY13: =DU22/SUM(DU21:DU22) -> 0.1555555556 | EA13: 02_HK1Hr | EB13: 物的水準3：管理不全 | EC13: =MEDIAN(DY21,DY25) -> 0 | ED13: 0 | EE13: 0 | EG13: 0 | EH13: 03_HK1~3Hr | EI13: Su02_Pc1 | EJ13: 13 | EL13: 02_HK1Hr | EM13: Su03_Pc4 | EN13: =EJ19/SUM(EJ18:EJ19) -> 0.02222222222 | EP13: 02_HK1Hr | EQ13: 物的水準3：管理不全 | ER13: =MEDIAN(EN21,EN25) -> 0 | ES13: 0 | ET13: 0
B14: 0 | C14: 02_HK1Hr | D14: Su02_Pc1 | E14: 24 | G14: 03_HK1~3Hr | H14: Su03_Pc4 | I14: =E25/SUM(E24:E25) -> 0.7368421053 | K14: 03_HK1~3Hr | L14: 物的水準3：管理不全 | M14: =MEDIAN(I22,I26) -> 0.4666666667 | N14: 0 | O14: 0 | Q14: 0 | R14: 02_HK1Hr | S14: Su02_Pc1 | T14: 31 | V14: 03_HK1~3Hr | W14: Su03_Pc4 | X14: =T25/SUM(T24:T25) -> 0.5789473684 | Z14: 03_HK1~3Hr | AA14: 物的水準3：管理不全 | AB14: =MEDIAN(X22,X26) -> 0.4666666667 | AC14: 0 | AD14: 0 | AF14: 0 | AG14: 02_HK1Hr | AH14: Su02_Pc1 | AI14: 35 | AK14: 03_HK1~3Hr | AL14: Su03_Pc4 | AM14: =AI25/SUM(AI24:AI25) -> 0.4210526316 | AO14: 03_HK1~3Hr | AP14: 物的水準3：管理不全 | AQ14: =MEDIAN(AM22,AM26) -> 0.5666666667 | AR14: 0 | AS14: 1 | AU14: 0 | AV14: 02_HK1Hr | AW14: Su02_Pc1 | AX14: 44 | AZ14: 03_HK1~3Hr | BA14: Su03_Pc4 | BB14: =AX25/SUM(AX24:AX25) -> 0.2631578947 | BD14: 03_HK1~3Hr | BE14: 物的水準3：管理不全 | BF14: =MEDIAN(BB22,BB26) -> 0.3333333333 | BG14: 0 | BH14: 0 | BJ14: 0 | BK14: 02_HK1Hr | BL14: Su02_Pc1 | BM14: 35 | BO14: 03_HK1~3Hr | BP14: Su03_Pc4 | BQ14: =BM25/SUM(BM24:BM25) -> 0.5789473684 | BS14: 03_HK1~3Hr | BT14: 物的水準3：管理不全 | BU14: =MEDIAN(BQ22,BQ26) -> 0.4333333333 | BV14: 0 | BW14: 0 | BY14: 0 | BZ14: 02_HK1Hr | CA14: Su02_Pc1 | CB14: 33 | CD14: 03_HK1~3Hr | CE14: Su03_Pc4 | CF14: =CB25/SUM(CB24:CB25) -> 0.5789473684 | CH14: 03_HK1~3Hr | CI14: 物的水準3：管理不全 | CJ14: =MEDIAN(CF22,CF26) -> 0.4666666667 | CK14: 0 | CL14: 0 | CN14: 0 | CO14: 02_HK1Hr | CP14: Su02_Pc1 | CQ14: 45 | CS14: 03_HK1~3Hr | CT14: Su03_Pc4 | CU14: =CQ25/SUM(CQ24:CQ25) -> 0.4736842105 | CW14: 03_HK1~3Hr | CX14: 物的水準3：管理不全 | CY14: =MEDIAN(CU22,CU26) -> 0.3666666667 | CZ14: 0 | DA14: 0 | DC14: 0 | DD14: 02_HK1Hr | DE14: Su02_Pc1 | DF14: 46 | DH14: 03_HK1~3Hr | DI14: Su03_Pc4 | DJ14: =DF25/SUM(DF24:DF25) -> 0.4736842105 | DL14: 03_HK1~3Hr | DM14: 物的水準3：管理不全 | DN14: =MEDIAN(DJ22,DJ26) -> 0.2 | DO14: 0 | DP14: 0 | DR14: 0 | DS14: 02_HK1Hr | DT14: Su02_Pc1 | DU14: 59 | DW14: 03_HK1~3Hr | DX14: Su03_Pc4 | DY14: =DU24/SUM(DU23:DU24) -> 0.05263157895 | EA14: 03_HK1~3Hr | EB14: 物的水準3：管理不全 | EC14: =MEDIAN(DY22,DY26) -> 0.1 | ED14: 0 | EE14: 0 | EG14: 1 | EH14: 03_HK1~3Hr | EI14: Su02_Pc1 | EJ14: 1 | EL14: 03_HK1~3Hr | EM14: Su03_Pc4 | EN14: =EJ21/SUM(EJ20:EJ21) -> 0.05263157895 | EP14: 03_HK1~3Hr | EQ14: 物的水準3：管理不全 | ER14: =MEDIAN(EN22,EN26) -> 0 | ES14: 0 | ET14: 0
B15: 1 | C15: 02_HK1Hr | D15: Su02_Pc1 | E15: 42 | G15: 04_HK3Hr~ | H15: Su03_Pc4 | I15: =E27/SUM(E26:E27) -> 0.4444444444 | K15: 04_HK3Hr~ | L15: 物的水準3：管理不全 | M15: =MEDIAN(I23,I27) -> 0.1 | N15: 0 | O15: 0 | Q15: 1 | R15: 02_HK1Hr | S15: Su02_Pc1 | T15: 35 | V15: 04_HK3Hr~ | W15: Su03_Pc4 | X15: =T27/SUM(T26:T27) -> 0.7777777778 | Z15: 04_HK3Hr~ | AA15: 物的水準3：管理不全 | AB15: =MEDIAN(X23,X27) -> 0.3 | AC15: 0 | AD15: 0 | AF15: 1 | AG15: 02_HK1Hr | AH15: Su02_Pc1 | AI15: 31 | AK15: 04_HK3Hr~ | AL15: Su03_Pc4 | AM15: =AI27/SUM(AI26:AI27) -> 0.6666666667 | AO15: 04_HK3Hr~ | AP15: 物的水準3：管理不全 | AQ15: =MEDIAN(AM23,AM27) -> 0.3 | AR15: 0 | AS15: 0 | AU15: 1 | AV15: 02_HK1Hr | AW15: Su02_Pc1 | AX15: 22 | AZ15: 04_HK3Hr~ | BA15: Su03_Pc4 | BB15: =AX27/SUM(AX26:AX27) -> 0.4444444444 | BD15: 04_HK3Hr~ | BE15: 物的水準3：管理不全 | BF15: =MEDIAN(BB23,BB27) -> 0 | BG15: 0 | BH15: 0 | BJ15: 1 | BK15: 02_HK1Hr | BL15: Su02_Pc1 | BM15: 31 | BO15: 04_HK3Hr~ | BP15: Su03_Pc4 | BQ15: =BM27/SUM(BM26:BM27) -> 0.5555555556 | BS15: 04_HK3Hr~ | BT15: 物的水準3：管理不全 | BU15: =MEDIAN(BQ23,BQ27) -> 0.55 | BV15: 0 | BW15: 1 | BY15: 1 | BZ15: 02_HK1Hr | CA15: Su02_Pc1 | CB15: 33 | CD15: 04_HK3Hr~ | CE15: Su03_Pc4 | CF15: =CB27/SUM(CB26:CB27) -> 0.6666666667 | CH15: 04_HK3Hr~ | CI15: 物的水準3：管理不全 | CJ15: =MEDIAN(CF23,CF27) -> 0.3 | CK15: 0 | CL15: 0 | CN15: 1 | CO15: 02_HK1Hr | CP15: Su02_Pc1 | CQ15: 21 | CS15: 04_HK3Hr~ | CT15: Su03_Pc4 | CU15: =CQ27/SUM(CQ26:CQ27) -> 0.3333333333 | CW15: 04_HK3Hr~ | CX15: 物的水準3：管理不全 | CY15: =MEDIAN(CU23,CU27) -> 0.5 | CZ15: 0 | DA15: 0 | DC15: 1 | DD15: 02_HK1Hr | DE15: Su02_Pc1 | DF15: 20 | DH15: 04_HK3Hr~ | DI15: Su03_Pc4 | DJ15: 0 | DL15: 04_HK3Hr~ | DM15: 物的水準3：管理不全 | DN15: =MEDIAN(DJ23,DJ27) -> 0 | DO15: 0 | DP15: 0 | DR15: 1 | DS15: 02_HK1Hr | DT15: Su02_Pc1 | DU15: 7 | DW15: 04_HK3Hr~ | DX15: Su03_Pc4 | DY15: 0 | EA15: 04_HK3Hr~ | EB15: 物的水準3：管理不全 | EC15: =MEDIAN(DY23,DY27) -> 0 | ED15: 0 | EE15: 0 | EG15: 0 | EH15: 04_HK3Hr~ | EI15: Su02_Pc1 | EJ15: 11 | EL15: 04_HK3Hr~ | EM15: Su03_Pc4 | EN15: 0 | EP15: 04_HK3Hr~ | EQ15: 物的水準3：管理不全 | ER15: =MEDIAN(EN23,EN27) -> 0.1 | ES15: 0 | ET15: 0
B16: 0 | C16: 03_HK1~3Hr | D16: Su02_Pc1 | E16: 4 | G16: 01_HKToho | H16: Su04_Pc3 | I16: =E29/SUM(E28:E29) -> 0.4117647059 | Q16: 0 | R16: 03_HK1~3Hr | S16: Su02_Pc1 | T16: 5 | V16: 01_HKToho | W16: Su04_Pc3 | X16: =T29/SUM(T28:T29) -> 0.4705882353 | AF16: 0 | AG16: 03_HK1~3Hr | AH16: Su02_Pc1 | AI16: 5 | AK16: 01_HKToho | AL16: Su04_Pc3 | AM16: =AI29/SUM(AI28:AI29) -> 0.2941176471 | AU16: 0 | AV16: 03_HK1~3Hr | AW16: Su02_Pc1 | AX16: 10 | AZ16: 01_HKToho | BA16: Su04_Pc3 | BB16: =AX29/SUM(AX28:AX29) -> 0.2352941176 | BJ16: 0 | BK16: 03_HK1~3Hr | BL16: Su02_Pc1 | BM16: 7 | BO16: 01_HKToho | BP16: Su04_Pc3 | BQ16: =BM29/SUM(BM28:BM29) -> 0.2352941176 | BY16: 0 | BZ16: 03_HK1~3Hr | CA16: Su02_Pc1 | CB16: 6 | CD16: 01_HKToho | CE16: Su04_Pc3 | CF16: =CB29/SUM(CB28:CB29) -> 0.3529411765 | CN16: 0 | CO16: 03_HK1~3Hr | CP16: Su02_Pc1 | CQ16: 11 | CS16: 01_HKToho | CT16: Su04_Pc3 | CU16: =CQ29/SUM(CQ28:CQ29) -> 0.4705882353 | DC16: 0 | DD16: 03_HK1~3Hr | DE16: Su02_Pc1 | DF16: 8 | DH16: 01_HKToho | DI16: Su04_Pc3 | DJ16: =DF28/SUM(DF27:DF28) -> 0.4117647059 | DR16: 0 | DS16: 03_HK1~3Hr | DT16: Su02_Pc1 | DU16: 13 | DW16: 01_HKToho | DX16: Su04_Pc3 | DY16: =DU27/SUM(DU26:DU27) -> 0.1176470588 | EG16: 0 | EH16: 01_HKToho | EI16: Su03_Pc4 | EJ16: 51 | EL16: 01_HKToho | EM16: Su04_Pc3 | EN16: 0
B17: 1 | C17: 03_HK1~3Hr | D17: Su02_Pc1 | E17: 10 | G17: 02_HK1Hr | H17: Su04_Pc3 | I17: =E31/SUM(E30:E31) -> 0.5714285714 | Q17: 1 | R17: 03_HK1~3Hr | S17: Su02_Pc1 | T17: 9 | V17: 02_HK1Hr | W17: Su04_Pc3 | X17: =T31/SUM(T30:T31) -> 0.2857142857 | AF17: 1 | AG17: 03_HK1~3Hr | AH17: Su02_Pc1 | AI17: 9 | AK17: 02_HK1Hr | AL17: Su04_Pc3 | AM17: =AI31/SUM(AI30:AI31) -> 0.2857142857 | AU17: 1 | AV17: 03_HK1~3Hr | AW17: Su02_Pc1 | AX17: 4 | AZ17: 02_HK1Hr | BA17: Su04_Pc3 | BB17: =AX31/SUM(AX30:AX31) -> 0.1428571429 | BJ17: 1 | BK17: 03_HK1~3Hr | BL17: Su02_Pc1 | BM17: 7 | BO17: 02_HK1Hr | BP17: Su04_Pc3 | BQ17: =BM31/SUM(BM30:BM31) -> 0.1428571429 | BY17: 1 | BZ17: 03_HK1~3Hr | CA17: Su02_Pc1 | CB17: 8 | CD17: 02_HK1Hr | CE17: Su04_Pc3 | CF17: =CB31/SUM(CB30:CB31) -> 0.4285714286 | CN17: 1 | CO17: 03_HK1~3Hr | CP17: Su02_Pc1 | CQ17: 3 | CS17: 02_HK1Hr | CT17: Su04_Pc3 | CU17: =CQ31/SUM(CQ30:CQ31) -> 0.1428571429 | DC17: 1 | DD17: 03_HK1~3Hr | DE17: Su02_Pc1 | DF17: 6 | DH17: 02_HK1Hr | DI17: Su04_Pc3 | DJ17: =DF30/SUM(DF29:DF30) -> 0.2857142857 | DR17: 1 | DS17: 03_HK1~3Hr | DT17: Su02_Pc1 | DU17: 1 | DW17: 02_HK1Hr | DX17: Su04_Pc3 | DY17: =DU29/SUM(DU28:DU29) -> 0.1428571429 | EG17: 1 | EH17: 01_HKToho | EI17: Su03_Pc4 | EJ17: 1 | EL17: 02_HK1Hr | EM17: Su04_Pc3 | EN17: 0
B18: 0 | C18: 04_HK3Hr~ | D18: Su02_Pc1 | E18: 4 | G18: 03_HK1~3Hr | H18: Su04_Pc3 | I18: =E33/SUM(E32:E33) -> 0.6666666667 | Q18: 0 | R18: 04_HK3Hr~ | S18: Su02_Pc1 | T18: 3 | V18: 03_HK1~3Hr | W18: Su04_Pc3 | X18: =T33/SUM(T32:T33) -> 0.3333333333 | AF18: 0 | AG18: 04_HK3Hr~ | AH18: Su02_Pc1 | AI18: 4 | AK18: 03_HK1~3Hr | AL18: Su04_Pc3 | AM18: =AI33/SUM(AI32:AI33) -> 0.3333333333 | AU18: 0 | AV18: 04_HK3Hr~ | AW18: Su02_Pc1 | AX18: 6 | AZ18: 03_HK1~3Hr | BA18: Su04_Pc3 | BB18: =AX33/SUM(AX32:AX33) -> 0.3333333333 | BJ18: 0 | BK18: 04_HK3Hr~ | BL18: Su02_Pc1 | BM18: 6 | BO18: 03_HK1~3Hr | BP18: Su04_Pc3 | BQ18: =BM33/SUM(BM32:BM33) -> 0.3333333333 | BY18: 0 | BZ18: 04_HK3Hr~ | CA18: Su02_Pc1 | CB18: 5 | CD18: 03_HK1~3Hr | CE18: Su04_Pc3 | CF18: =CB33/SUM(CB32:CB33) -> 0.6666666667 | CN18: 0 | CO18: 04_HK3Hr~ | CP18: Su02_Pc1 | CQ18: 8 | CS18: 03_HK1~3Hr | CT18: Su04_Pc3 | CU18: =CQ33/SUM(CQ32:CQ33) -> 0.3333333333 | DC18: 0 | DD18: 04_HK3Hr~ | DE18: Su02_Pc1 | DF18: 10 | DH18: 03_HK1~3Hr | DI18: Su04_Pc3 | DJ18: =DF32/SUM(DF31:DF32) -> 0.3333333333 | DR18: 0 | DS18: 04_HK3Hr~ | DT18: Su02_Pc1 | DU18: 11 | DW18: 03_HK1~3Hr | DX18: Su04_Pc3 | DY18: =DU31/SUM(DU30:DU31) -> 0.3333333333 | EG18: 0 | EH18: 02_HK1Hr | EI18: Su03_Pc4 | EJ18: 44 | EL18: 03_HK1~3Hr | EM18: Su04_Pc3 | EN18: 0
B19: 1 | C19: 04_HK3Hr~ | D19: Su02_Pc1 | E19: 7 | G19: 04_HK3Hr~ | H19: Su04_Pc3 | I19: =E35/SUM(E34:E35) -> 0.6666666667 | Q19: 1 | R19: 04_HK3Hr~ | S19: Su02_Pc1 | T19: 8 | V19: 04_HK3Hr~ | W19: Su04_Pc3 | X19: =T35/SUM(T34:T35) -> 0.6666666667 | AF19: 1 | AG19: 04_HK3Hr~ | AH19: Su02_Pc1 | AI19: 7 | AK19: 04_HK3Hr~ | AL19: Su04_Pc3 | AM19: =AI35/SUM(AI34:AI35) -> 0.3333333333 | AU19: 1 | AV19: 04_HK3Hr~ | AW19: Su02_Pc1 | AX19: 5 | AZ19: 04_HK3Hr~ | BA19: Su04_Pc3 | BB19: =AX35/SUM(AX34:AX35) -> 0.6666666667 | BJ19: 1 | BK19: 04_HK3Hr~ | BL19: Su02_Pc1 | BM19: 5 | BO19: 04_HK3Hr~ | BP19: Su04_Pc3 | BQ19: =BM35/SUM(BM34:BM35) -> 0.6666666667 | BY19: 1 | BZ19: 04_HK3Hr~ | CA19: Su02_Pc1 | CB19: 6 | CD19: 04_HK3Hr~ | CE19: Su04_Pc3 | CF19: =CB35/SUM(CB34:CB35) -> 0.6666666667 | CN19: 1 | CO19: 04_HK3Hr~ | CP19: Su02_Pc1 | CQ19: 3 | CS19: 04_HK3Hr~ | CT19: Su04_Pc3 | CU19: =CQ35/SUM(CQ34:CQ35) -> 0.3333333333 | DC19: 1 | DD19: 04_HK3Hr~ | DE19: Su02_Pc1 | DF19: 1 | DH19: 04_HK3Hr~ | DI19: Su04_Pc3 | DJ19: =DF34/SUM(DF33:DF34) -> 0.3333333333 | DR19: 0 | DS19: 01_HKToho | DT19: Su03_Pc4 | DU19: 49 | DW19: 04_HK3Hr~ | DX19: Su04_Pc3 | DY19: 0 | EG19: 1 | EH19: 02_HK1Hr | EI19: Su03_Pc4 | EJ19: 1 | EL19: 04_HK3Hr~ | EM19: Su04_Pc3 | EN19: 0
B20: 0 | C20: 01_HKToho | D20: Su03_Pc4 | E20: 17 | G20: 01_HKToho | H20: Su05_Pc5 | I20: =E37/SUM(E36:E37) -> 0.6486486486 | Q20: 0 | R20: 01_HKToho | S20: Su03_Pc4 | T20: 28 | V20: 01_HKToho | W20: Su05_Pc5 | X20: =T37/SUM(T36:T37) -> 0.4864864865 | AF20: 0 | AG20: 01_HKToho | AH20: Su03_Pc4 | AI20: 34 | AK20: 01_HKToho | AL20: Su05_Pc5 | AM20: =AI37/SUM(AI36:AI37) -> 0.4594594595 | AU20: 0 | AV20: 01_HKToho | AW20: Su03_Pc4 | AX20: 39 | AZ20: 01_HKToho | BA20: Su05_Pc5 | BB20: =AX37/SUM(AX36:AX37) -> 0.2702702703 | BJ20: 0 | BK20: 01_HKToho | BL20: Su03_Pc4 | BM20: 34 | BO20: 01_HKToho | BP20: Su05_Pc5 | BQ20: =BM37/SUM(BM36:BM37) -> 0.2972972973 | BY20: 0 | BZ20: 01_HKToho | CA20: Su03_Pc4 | CB20: 28 | CD20: 01_HKToho | CE20: Su05_Pc5 | CF20: =CB37/SUM(CB36:CB37) -> 0.4054054054 | CN20: 0 | CO20: 01_HKToho | CP20: Su03_Pc4 | CQ20: 40 | CS20: 01_HKToho | CT20: Su05_Pc5 | CU20: =CQ37/SUM(CQ36:CQ37) -> 0.1351351351 | DC20: 0 | DD20: 01_HKToho | DE20: Su03_Pc4 | DF20: 39 | DH20: 01_HKToho | DI20: Su05_Pc5 | DJ20: =DF36/SUM(DF35:DF36) -> 0.2162162162 | DR20: 1 | DS20: 01_HKToho | DT20: Su03_Pc4 | DU20: 3 | DW20: 01_HKToho | DX20: Su05_Pc5 | DY20: =DU34/SUM(DU33:DU34) -> 0.1891891892 | EG20: 0 | EH20: 03_HK1~3Hr | EI20: Su03_Pc4 | EJ20: 18 | EL20: 01_HKToho | EM20: Su05_Pc5 | EN20: 0
B21: 1 | C21: 01_HKToho | D21: Su03_Pc4 | E21: 35 | G21: 02_HK1Hr | H21: Su05_Pc5 | I21: =E39/SUM(E38:E39) -> 0.7037037037 | Q21: 1 | R21: 01_HKToho | S21: Su03_Pc4 | T21: 24 | V21: 02_HK1Hr | W21: Su05_Pc5 | X21: =T39/SUM(T38:T39) -> 0.4074074074 | AF21: 1 | AG21: 01_HKToho | AH21: Su03_Pc4 | AI21: 18 | AK21: 02_HK1Hr | AL21: Su05_Pc5 | AM21: =AI39/SUM(AI38:AI39) -> 0.4814814815 | AU21: 1 | AV21: 01_HKToho | AW21: Su03_Pc4 | AX21: 13 | AZ21: 02_HK1Hr | BA21: Su05_Pc5 | BB21: =AX39/SUM(AX38:AX39) -> 0.3703703704 | BJ21: 1 | BK21: 01_HKToho | BL21: Su03_Pc4 | BM21: 18 | BO21: 02_HK1Hr | BP21: Su05_Pc5 | BQ21: =BM39/SUM(BM38:BM39) -> 0.5925925926 | BY21: 1 | BZ21: 01_HKToho | CA21: Su03_Pc4 | CB21: 24 | CD21: 02_HK1Hr | CE21: Su05_Pc5 | CF21: =CB39/SUM(CB38:CB39) -> 0.3333333333 | CN21: 1 | CO21: 01_HKToho | CP21: Su03_Pc4 | CQ21: 12 | CS21: 02_HK1Hr | CT21: Su05_Pc5 | CU21: =CQ39/SUM(CQ38:CQ39) -> 0.3703703704 | DC21: 1 | DD21: 01_HKToho | DE21: Su03_Pc4 | DF21: 13 | DH21: 02_HK1Hr | DI21: Su05_Pc5 | DJ21: =DF38/SUM(DF37:DF38) -> 0.3703703704 | DR21: 0 | DS21: 02_HK1Hr | DT21: Su03_Pc4 | DU21: 38 | DW21: 02_HK1Hr | DX21: Su05_Pc5 | DY21: 0 | EG21: 1 | EH21: 03_HK1~3Hr | EI21: Su03_Pc4 | EJ21: 1 | EL21: 02_HK1Hr | EM21: Su05_Pc5 | EN21: 0
B22: 0 | C22: 02_HK1Hr | D22: Su03_Pc4 | E22: 14 | G22: 03_HK1~3Hr | H22: Su05_Pc5 | I22: =E41/SUM(E40:E41) -> 0.3333333333 | Q22: 0 | R22: 02_HK1Hr | S22: Su03_Pc4 | T22: 21 | V22: 03_HK1~3Hr | W22: Su05_Pc5 | X22: =T41/SUM(T40:T41) -> 0.3333333333 | AF22: 0 | AG22: 02_HK1Hr | AH22: Su03_Pc4 | AI22: 23 | AK22: 03_HK1~3Hr | AL22: Su05_Pc5 | AM22: =AI41/SUM(AI40:AI41) -> 0.3333333333 | AU22: 0 | AV22: 02_HK1Hr | AW22: Su03_Pc4 | AX22: 29 | AZ22: 03_HK1~3Hr | BA22: Su05_Pc5 | BB22: =AX41/SUM(AX40:AX41) -> 0.6666666667 | BJ22: 0 | BK22: 02_HK1Hr | BL22: Su03_Pc4 | BM22: 29 | BO22: 03_HK1~3Hr | BP22: Su05_Pc5 | BQ22: =BM41/SUM(BM40:BM41) -> 0.6666666667 | BY22: 0 | BZ22: 02_HK1Hr | CA22: Su03_Pc4 | CB22: 24 | CD22: 03_HK1~3Hr | CE22: Su05_Pc5 | CF22: =CB41/SUM(CB40:CB41) -> 0.3333333333 | CN22: 0 | CO22: 02_HK1Hr | CP22: Su03_Pc4 | CQ22: 28 | CS22: 03_HK1~3Hr | CT22: Su05_Pc5 | CU22: =CQ41/SUM(CQ40:CQ41) -> 0.3333333333 | DC22: 0 | DD22: 02_HK1Hr | DE22: Su03_Pc4 | DF22: 33 | DH22: 03_HK1~3Hr | DI22: Su05_Pc5 | DJ22: 0 | DR22: 1 | DS22: 02_HK1Hr | DT22: Su03_Pc4 | DU22: 7 | DW22: 03_HK1~3Hr | DX22: Su05_Pc5 | DY22: 0 | EG22: 0 | EH22: 04_HK3Hr~ | EI22: Su03_Pc4 | EJ22: 9 | EL22: 03_HK1~3Hr | EM22: Su05_Pc5 | EN22: 0
B23: 1 | C23: 02_HK1Hr | D23: Su03_Pc4 | E23: 31 | G23: 04_HK3Hr~ | H23: Su05_Pc5 | I23: =E43/SUM(E42:E43) -> 0.2 | Q23: 1 | R23: 02_HK1Hr | S23: Su03_Pc4 | T23: 24 | V23: 04_HK3Hr~ | W23: Su05_Pc5 | X23: =T43/SUM(T42:T43) -> 0.6 | AF23: 1 | AG23: 02_HK1Hr | AH23: Su03_Pc4 | AI23: 22 | AK23: 04_HK3Hr~ | AL23: Su05_Pc5 | AM23: =AI43/SUM(AI42:AI43) -> 0.6 | AU23: 1 | AV23: 02_HK1Hr | AW23: Su03_Pc4 | AX23: 16 | AZ23: 04_HK3Hr~ | BA23: Su05_Pc5 | BB23: =0/SUM(AX42:AX43) -> 0 | BJ23: 1 | BK23: 02_HK1Hr | BL23: Su03_Pc4 | BM23: 16 | BO23: 04_HK3Hr~ | BP23: Su05_Pc5 | BQ23: =BM43/SUM(BM42:BM43) -> 0.6 | BY23: 1 | BZ23: 02_HK1Hr | CA23: Su03_Pc4 | CB23: 21 | CD23: 04_HK3Hr~ | CE23: Su05_Pc5 | CF23: =CB43/SUM(CB42:CB43) -> 0.6 | CN23: 1 | CO23: 02_HK1Hr | CP23: Su03_Pc4 | CQ23: 17 | CS23: 04_HK3Hr~ | CT23: Su05_Pc5 | CU23: 0 | DC23: 1 | DD23: 02_HK1Hr | DE23: Su03_Pc4 | DF23: 12 | DH23: 04_HK3Hr~ | DI23: Su05_Pc5 | DJ23: 0 | DR23: 0 | DS23: 03_HK1~3Hr | DT23: Su03_Pc4 | DU23: 18 | DW23: 04_HK3Hr~ | DX23: Su05_Pc5 | DY23: 0 | EG23: 0 | EH23: 01_HKToho | EI23: Su04_Pc3 | EJ23: 17 | EL23: 04_HK3Hr~ | EM23: Su05_Pc5 | EN23: =EJ31/SUM(EJ30:EJ31) -> 0.2
B24: 0 | C24: 03_HK1~3Hr | D24: Su03_Pc4 | E24: 5 | G24: 01_HKToho | H24: Su06_Pc6 | I24: =E45/SUM(E44:E45) -> 0.3333333333 | Q24: 0 | R24: 03_HK1~3Hr | S24: Su03_Pc4 | T24: 8 | V24: 01_HKToho | W24: Su06_Pc6 | X24: =T45/SUM(T44:T45) -> 0.3333333333 | AF24: 0 | AG24: 03_HK1~3Hr | AH24: Su03_Pc4 | AI24: 11 | AK24: 01_HKToho | AL24: Su06_Pc6 | AM24: =AI45/SUM(AI44:AI45) -> 0.4666666667 | AU24: 0 | AV24: 03_HK1~3Hr | AW24: Su03_Pc4 | AX24: 14 | AZ24: 01_HKToho | BA24: Su06_Pc6 | BB24: =AX44/SUM(AX43:AX44) -> 0.1333333333 | BJ24: 0 | BK24: 03_HK1~3Hr | BL24: Su03_Pc4 | BM24: 8 | BO24: 01_HKToho | BP24: Su06_Pc6 | BQ24: =BM45/SUM(BM44:BM45) -> 0.4 | BY24: 0 | BZ24: 03_HK1~3Hr | CA24: Su03_Pc4 | CB24: 8 | CD24: 01_HKToho | CE24: Su06_Pc6 | CF24: =CB45/SUM(CB44:CB45) -> 0.4666666667 | CN24: 0 | CO24: 03_HK1~3Hr | CP24: Su03_Pc4 | CQ24: 10 | CS24: 01_HKToho | CT24: Su06_Pc6 | CU24: =CQ44/SUM(CQ43:CQ44) -> 0.2666666667 | DC24: 0 | DD24: 03_HK1~3Hr | DE24: Su03_Pc4 | DF24: 10 | DH24: 01_HKToho | DI24: Su06_Pc6 | DJ24: =DF42/SUM(DF41:DF42) -> 0.2666666667 | DR24: 1 | DS24: 03_HK1~3Hr | DT24: Su03_Pc4 | DU24: 1 | DW24: 01_HKToho | DX24: Su06_Pc6 | DY24: =DU39/SUM(DU38:DU39) -> 0.06666666667 | EG24: 0 | EH24: 02_HK1Hr | EI24: Su04_Pc3 | EJ24: 7 | EL24: 01_HKToho | EM24: Su06_Pc6 | EN24: =EJ33/SUM(EJ32:EJ33) -> 0.06666666667
B25: 1 | C25: 03_HK1~3Hr | D25: Su03_Pc4 | E25: 14 | G25: 02_HK1Hr | H25: Su06_Pc6 | I25: =E47/SUM(E46:E47) -> 0.2857142857 | Q25: 1 | R25: 03_HK1~3Hr | S25: Su03_Pc4 | T25: 11 | V25: 02_HK1Hr | W25: Su06_Pc6 | X25: =T47/SUM(T46:T47) -> 0.2857142857 | AF25: 1 | AG25: 03_HK1~3Hr | AH25: Su03_Pc4 | AI25: 8 | AK25: 02_HK1Hr | AL25: Su06_Pc6 | AM25: =AI47/SUM(AI46:AI47) -> 0.2857142857 | AU25: 1 | AV25: 03_HK1~3Hr | AW25: Su03_Pc4 | AX25: 5 | AZ25: 02_HK1Hr | BA25: Su06_Pc6 | BB25: =AX46/SUM(AX45:AX46) -> 0.2380952381 | BJ25: 1 | BK25: 03_HK1~3Hr | BL25: Su03_Pc4 | BM25: 11 | BO25: 02_HK1Hr | BP25: Su06_Pc6 | BQ25: =BM47/SUM(BM46:BM47) -> 0.1428571429 | BY25: 1 | BZ25: 03_HK1~3Hr | CA25: Su03_Pc4 | CB25: 11 | CD25: 02_HK1Hr | CE25: Su06_Pc6 | CF25: =CB47/SUM(CB46:CB47) -> 0.1428571429 | CN25: 1 | CO25: 03_HK1~3Hr | CP25: Su03_Pc4 | CQ25: 9 | CS25: 02_HK1Hr | CT25: Su06_Pc6 | CU25: =CQ46/SUM(CQ45:CQ46) -> 0.1428571429 | DC25: 1 | DD25: 03_HK1~3Hr | DE25: Su03_Pc4 | DF25: 9 | DH25: 02_HK1Hr | DI25: Su06_Pc6 | DJ25: =DF44/SUM(DF43:DF44) -> 0.3333333333 | DR25: 0 | DS25: 04_HK3Hr~ | DT25: Su03_Pc4 | DU25: 9 | DW25: 02_HK1Hr | DX25: Su06_Pc6 | DY25: 0 | EG25: 0 | EH25: 03_HK1~3Hr | EI25: Su04_Pc3 | EJ25: 3 | EL25: 02_HK1Hr | EM25: Su06_Pc6 | EN25: 0
B26: 0 | C26: 04_HK3Hr~ | D26: Su03_Pc4 | E26: 5 | G26: 03_HK1~3Hr | H26: Su06_Pc6 | I26: =E49/SUM(E48:E49) -> 0.6 | Q26: 0 | R26: 04_HK3Hr~ | S26: Su03_Pc4 | T26: 2 | V26: 03_HK1~3Hr | W26: Su06_Pc6 | X26: =T49/SUM(T48:T49) -> 0.6 | AF26: 0 | AG26: 04_HK3Hr~ | AH26: Su03_Pc4 | AI26: 3 | AK26: 03_HK1~3Hr | AL26: Su06_Pc6 | AM26: =AI49/SUM(AI48:AI49) -> 0.8 | AU26: 0 | AV26: 04_HK3Hr~ | AW26: Su03_Pc4 | AX26: 5 | AZ26: 03_HK1~3Hr | BA26: Su06_Pc6 | BB26: =0/SUM(AX47) -> 0 | BJ26: 0 | BK26: 04_HK3Hr~ | BL26: Su03_Pc4 | BM26: 4 | BO26: 03_HK1~3Hr | BP26: Su06_Pc6 | BQ26: =BM49/SUM(BM48:BM49) -> 0.2 | BY26: 0 | BZ26: 04_HK3Hr~ | CA26: Su03_Pc4 | CB26: 3 | CD26: 03_HK1~3Hr | CE26: Su06_Pc6 | CF26: =CB49/SUM(CB48:CB49) -> 0.6 | CN26: 0 | CO26: 04_HK3Hr~ | CP26: Su03_Pc4 | CQ26: 6 | CS26: 03_HK1~3Hr | CT26: Su06_Pc6 | CU26: =CQ48/SUM(CQ47:CQ48) -> 0.4 | DC26: 0 | DD26: 04_HK3Hr~ | DE26: Su03_Pc4 | DF26: 9 | DH26: 03_HK1~3Hr | DI26: Su06_Pc6 | DJ26: =DF46/SUM(DF45:DF46) -> 0.4 | DR26: 0 | DS26: 01_HKToho | DT26: Su04_Pc3 | DU26: 15 | DW26: 03_HK1~3Hr | DX26: Su06_Pc6 | DY26: =DU42/SUM(DU41:DU42) -> 0.2 | EG26: 0 | EH26: 04_HK3Hr~ | EI26: Su04_Pc3 | EJ26: 3 | EL26: 03_HK1~3Hr | EM26: Su06_Pc6 | EN26: 0
B27: 1 | C27: 04_HK3Hr~ | D27: Su03_Pc4 | E27: 4 | G27: 04_HK3Hr~ | H27: Su06_Pc6 | I27: =E51/SUM(E50:E51) -> 0 | Q27: 1 | R27: 04_HK3Hr~ | S27: Su03_Pc4 | T27: 7 | V27: 04_HK3Hr~ | W27: Su06_Pc6 | X27: =T51/SUM(T50:T51) -> 0 | AF27: 1 | AG27: 04_HK3Hr~ | AH27: Su03_Pc4 | AI27: 6 | AK27: 04_HK3Hr~ | AL27: Su06_Pc6 | AM27: =AI51/SUM(AI50:AI51) -> 0 | AU27: 1 | AV27: 04_HK3Hr~ | AW27: Su03_Pc4 | AX27: 4 | AZ27: 04_HK3Hr~ | BA27: Su06_Pc6 | BB27: =0/SUM(AX48) -> 0 | BJ27: 1 | BK27: 04_HK3Hr~ | BL27: Su03_Pc4 | BM27: 5 | BO27: 04_HK3Hr~ | BP27: Su06_Pc6 | BQ27: =BM51/SUM(BM50:BM51) -> 0.5 | BY27: 1 | BZ27: 04_HK3Hr~ | CA27: Su03_Pc4 | CB27: 6 | CD27: 04_HK3Hr~ | CE27: Su06_Pc6 | CF27: =CB51/SUM(CB50:CB51) -> 0 | CN27: 1 | CO27: 04_HK3Hr~ | CP27: Su03_Pc4 | CQ27: 3 | CS27: 04_HK3Hr~ | CT27: Su06_Pc6 | CU27: =CQ49/SUM(CQ49) -> 1 | DC27: 0 | DD27: 01_HKToho | DE27: Su04_Pc3 | DF27: 10 | DH27: 04_HK3Hr~ | DI27: Su06_Pc6 | DJ27: =DF48/SUM(DF47:DF48) -> 0 | DR27: 1 | DS27: 01_HKToho | DT27: Su04_Pc3 | DU27: 2 | DW27: 04_HK3Hr~ | DX27: Su06_Pc6 | DY27: 0 | EG27: 0 | EH27: 01_HKToho | EI27: Su05_Pc5 | EJ27: 37 | EL27: 04_HK3Hr~ | EM27: Su06_Pc6 | EN27: 0
B28: 0 | C28: 01_HKToho | D28: Su04_Pc3 | E28: 10 | Q28: 0 | R28: 01_HKToho | S28: Su04_Pc3 | T28: 9 | AF28: 0 | AG28: 01_HKToho | AH28: Su04_Pc3 | AI28: 12 | AU28: 0 | AV28: 01_HKToho | AW28: Su04_Pc3 | AX28: 13 | BJ28: 0 | BK28: 01_HKToho | BL28: Su04_Pc3 | BM28: 13 | BY28: 0 | BZ28: 01_HKToho | CA28: Su04_Pc3 | CB28: 11 | CN28: 0 | CO28: 01_HKToho | CP28: Su04_Pc3 | CQ28: 9 | DC28: 1 | DD28: 01_HKToho | DE28: Su04_Pc3 | DF28: 7 | DR28: 0 | DS28: 02_HK1Hr | DT28: Su04_Pc3 | DU28: 6 | EG28: 0 | EH28: 02_HK1Hr | EI28: Su05_Pc5 | EJ28: 27
B29: 1 | C29: 01_HKToho | D29: Su04_Pc3 | E29: 7 | Q29: 1 | R29: 01_HKToho | S29: Su04_Pc3 | T29: 8 | AF29: 1 | AG29: 01_HKToho | AH29: Su04_Pc3 | AI29: 5 | AU29: 1 | AV29: 01_HKToho | AW29: Su04_Pc3 | AX29: 4 | BJ29: 1 | BK29: 01_HKToho | BL29: Su04_Pc3 | BM29: 4 | BY29: 1 | BZ29: 01_HKToho | CA29: Su04_Pc3 | CB29: 6 | CN29: 1 | CO29: 01_HKToho | CP29: Su04_Pc3 | CQ29: 8 | DC29: 0 | DD29: 02_HK1Hr | DE29: Su04_Pc3 | DF29: 5 | DR29: 1 | DS29: 02_HK1Hr | DT29: Su04_Pc3 | DU29: 1 | EG29: 0 | EH29: 03_HK1~3Hr | EI29: Su05_Pc5 | EJ29: 3
B30: 0 | C30: 02_HK1Hr | D30: Su04_Pc3 | E30: 3 | Q30: 0 | R30: 02_HK1Hr | S30: Su04_Pc3 | T30: 5 | AF30: 0 | AG30: 02_HK1Hr | AH30: Su04_Pc3 | AI30: 5 | AU30: 0 | AV30: 02_HK1Hr | AW30: Su04_Pc3 | AX30: 6 | BJ30: 0 | BK30: 02_HK1Hr | BL30: Su04_Pc3 | BM30: 6 | BY30: 0 | BZ30: 02_HK1Hr | CA30: Su04_Pc3 | CB30: 4 | CN30: 0 | CO30: 02_HK1Hr | CP30: Su04_Pc3 | CQ30: 6 | DC30: 1 | DD30: 02_HK1Hr | DE30: Su04_Pc3 | DF30: 2 | DR30: 0 | DS30: 03_HK1~3Hr | DT30: Su04_Pc3 | DU30: 2 | EG30: 0 | EH30: 04_HK3Hr~ | EI30: Su05_Pc5 | EJ30: 4
B31: 1 | C31: 02_HK1Hr | D31: Su04_Pc3 | E31: 4 | Q31: 1 | R31: 02_HK1Hr | S31: Su04_Pc3 | T31: 2 | AF31: 1 | AG31: 02_HK1Hr | AH31: Su04_Pc3 | AI31: 2 | AU31: 1 | AV31: 02_HK1Hr | AW31: Su04_Pc3 | AX31: 1 | BJ31: 1 | BK31: 02_HK1Hr | BL31: Su04_Pc3 | BM31: 1 | BY31: 1 | BZ31: 02_HK1Hr | CA31: Su04_Pc3 | CB31: 3 | CN31: 1 | CO31: 02_HK1Hr | CP31: Su04_Pc3 | CQ31: 1 | DC31: 0 | DD31: 03_HK1~3Hr | DE31: Su04_Pc3 | DF31: 2 | DR31: 1 | DS31: 03_HK1~3Hr | DT31: Su04_Pc3 | DU31: 1 | EG31: 1 | EH31: 04_HK3Hr~ | EI31: Su05_Pc5 | EJ31: 1
B32: 0 | C32: 03_HK1~3Hr | D32: Su04_Pc3 | E32: 1 | Q32: 0 | R32: 03_HK1~3Hr | S32: Su04_Pc3 | T32: 2 | AF32: 0 | AG32: 03_HK1~3Hr | AH32: Su04_Pc3 | AI32: 2 | AU32: 0 | AV32: 03_HK1~3Hr | AW32: Su04_Pc3 | AX32: 2 | BJ32: 0 | BK32: 03_HK1~3Hr | BL32: Su04_Pc3 | BM32: 2 | BY32: 0 | BZ32: 03_HK1~3Hr | CA32: Su04_Pc3 | CB32: 1 | CN32: 0 | CO32: 03_HK1~3Hr | CP32: Su04_Pc3 | CQ32: 2 | DC32: 1 | DD32: 03_HK1~3Hr | DE32: Su04_Pc3 | DF32: 1 | DR32: 0 | DS32: 04_HK3Hr~ | DT32: Su04_Pc3 | DU32: 3 | EG32: 0 | EH32: 01_HKToho | EI32: Su06_Pc6 | EJ32: 14
B33: 1 | C33: 03_HK1~3Hr | D33: Su04_Pc3 | E33: 2 | Q33: 1 | R33: 03_HK1~3Hr | S33: Su04_Pc3 | T33: 1 | AF33: 1 | AG33: 03_HK1~3Hr | AH33: Su04_Pc3 | AI33: 1 | AU33: 1 | AV33: 03_HK1~3Hr | AW33: Su04_Pc3 | AX33: 1 | BJ33: 1 | BK33: 03_HK1~3Hr | BL33: Su04_Pc3 | BM33: 1 | BY33: 1 | BZ33: 03_HK1~3Hr | CA33: Su04_Pc3 | CB33: 2 | CN33: 1 | CO33: 03_HK1~3Hr | CP33: Su04_Pc3 | CQ33: 1 | DC33: 0 | DD33: 04_HK3Hr~ | DE33: Su04_Pc3 | DF33: 2 | DR33: 0 | DS33: 01_HKToho | DT33: Su05_Pc5 | DU33: 30 | EG33: 1 | EH33: 01_HKToho | EI33: Su06_Pc6 | EJ33: 1
B34: 0 | C34: 04_HK3Hr~ | D34: Su04_Pc3 | E34: 1 | Q34: 0 | R34: 04_HK3Hr~ | S34: Su04_Pc3 | T34: 1 | AF34: 0 | AG34: 04_HK3Hr~ | AH34: Su04_Pc3 | AI34: 2 | AU34: 0 | AV34: 04_HK3Hr~ | AW34: Su04_Pc3 | AX34: 1 | BJ34: 0 | BK34: 04_HK3Hr~ | BL34: Su04_Pc3 | BM34: 1 | BY34: 0 | BZ34: 04_HK3Hr~ | CA34: Su04_Pc3 | CB34: 1 | CN34: 0 | CO34: 04_HK3Hr~ | CP34: Su04_Pc3 | CQ34: 2 | DC34: 1 | DD34: 04_HK3Hr~ | DE34: Su04_Pc3 | DF34: 1 | DR34: 1 | DS34: 01_HKToho | DT34: Su05_Pc5 | DU34: 7 | EG34: 0 | EH34: 02_HK1Hr | EI34: Su06_Pc6 | EJ34: 21
B35: 1 | C35: 04_HK3Hr~ | D35: Su04_Pc3 | E35: 2 | Q35: 1 | R35: 04_HK3Hr~ | S35: Su04_Pc3 | T35: 2 | AF35: 1 | AG35: 04_HK3Hr~ | AH35: Su04_Pc3 | AI35: 1 | AU35: 1 | AV35: 04_HK3Hr~ | AW35: Su04_Pc3 | AX35: 2 | BJ35: 1 | BK35: 04_HK3Hr~ | BL35: Su04_Pc3 | BM35: 2 | BY35: 1 | BZ35: 04_HK3Hr~ | CA35: Su04_Pc3 | CB35: 2 | CN35: 1 | CO35: 04_HK3Hr~ | CP35: Su04_Pc3 | CQ35: 1 | DC35: 0 | DD35: 01_HKToho | DE35: Su05_Pc5 | DF35: 29 | DR35: 0 | DS35: 02_HK1Hr | DT35: Su05_Pc5 | DU35: 27 | EG35: 0 | EH35: 03_HK1~3Hr | EI35: Su06_Pc6 | EJ35: 5
B36: 0 | C36: 01_HKToho | D36: Su05_Pc5 | E36: 13 | Q36: 0 | R36: 01_HKToho | S36: Su05_Pc5 | T36: 19 | AF36: 0 | AG36: 01_HKToho | AH36: Su05_Pc5 | AI36: 20 | AU36: 0 | AV36: 01_HKToho | AW36: Su05_Pc5 | AX36: 27 | BJ36: 0 | BK36: 01_HKToho | BL36: Su05_Pc5 | BM36: 26 | BY36: 0 | BZ36: 01_HKToho | CA36: Su05_Pc5 | CB36: 22 | CN36: 0 | CO36: 01_HKToho | CP36: Su05_Pc5 | CQ36: 32 | DC36: 1 | DD36: 01_HKToho | DE36: Su05_Pc5 | DF36: 8 | DR36: 0 | DS36: 03_HK1~3Hr | DT36: Su05_Pc5 | DU36: 3 | EG36: 0 | EH36: 04_HK3Hr~ | EI36: Su06_Pc6 | EJ36: 2
B37: 1 | C37: 01_HKToho | D37: Su05_Pc5 | E37: 24 | Q37: 1 | R37: 01_HKToho | S37: Su05_Pc5 | T37: 18 | AF37: 1 | AG37: 01_HKToho | AH37: Su05_Pc5 | AI37: 17 | AU37: 1 | AV37: 01_HKToho | AW37: Su05_Pc5 | AX37: 10 | BJ37: 1 | BK37: 01_HKToho | BL37: Su05_Pc5 | BM37: 11 | BY37: 1 | BZ37: 01_HKToho | CA37: Su05_Pc5 | CB37: 15 | CN37: 1 | CO37: 01_HKToho | CP37: Su05_Pc5 | CQ37: 5 | DC37: 0 | DD37: 02_HK1Hr | DE37: Su05_Pc5 | DF37: 17 | DR37: 0 | DS37: 04_HK3Hr~ | DT37: Su05_Pc5 | DU37: 5
B38: 0 | C38: 02_HK1Hr | D38: Su05_Pc5 | E38: 8 | Q38: 0 | R38: 02_HK1Hr | S38: Su05_Pc5 | T38: 16 | AF38: 0 | AG38: 02_HK1Hr | AH38: Su05_Pc5 | AI38: 14 | AU38: 0 | AV38: 02_HK1Hr | AW38: Su05_Pc5 | AX38: 17 | BJ38: 0 | BK38: 02_HK1Hr | BL38: Su05_Pc5 | BM38: 11 | BY38: 0 | BZ38: 02_HK1Hr | CA38: Su05_Pc5 | CB38: 18 | CN38: 0 | CO38: 02_HK1Hr | CP38: Su05_Pc5 | CQ38: 17 | DC38: 1 | DD38: 02_HK1Hr | DE38: Su05_Pc5 | DF38: 10 | DR38: 0 | DS38: 01_HKToho | DT38: Su06_Pc6 | DU38: 14
B39: 1 | C39: 02_HK1Hr | D39: Su05_Pc5 | E39: 19 | Q39: 1 | R39: 02_HK1Hr | S39: Su05_Pc5 | T39: 11 | AF39: 1 | AG39: 02_HK1Hr | AH39: Su05_Pc5 | AI39: 13 | AU39: 1 | AV39: 02_HK1Hr | AW39: Su05_Pc5 | AX39: 10 | BJ39: 1 | BK39: 02_HK1Hr | BL39: Su05_Pc5 | BM39: 16 | BY39: 1 | BZ39: 02_HK1Hr | CA39: Su05_Pc5 | CB39: 9 | CN39: 1 | CO39: 02_HK1Hr | CP39: Su05_Pc5 | CQ39: 10 | DC39: 0 | DD39: 03_HK1~3Hr | DE39: Su05_Pc5 | DF39: 3 | DR39: 1 | DS39: 01_HKToho | DT39: Su06_Pc6 | DU39: 1
B40: 0 | C40: 03_HK1~3Hr | D40: Su05_Pc5 | E40: 2 | Q40: 0 | R40: 03_HK1~3Hr | S40: Su05_Pc5 | T40: 2 | AF40: 0 | AG40: 03_HK1~3Hr | AH40: Su05_Pc5 | AI40: 2 | AU40: 0 | AV40: 03_HK1~3Hr | AW40: Su05_Pc5 | AX40: 1 | BJ40: 0 | BK40: 03_HK1~3Hr | BL40: Su05_Pc5 | BM40: 1 | BY40: 0 | BZ40: 03_HK1~3Hr | CA40: Su05_Pc5 | CB40: 2 | CN40: 0 | CO40: 03_HK1~3Hr | CP40: Su05_Pc5 | CQ40: 2 | DC40: 0 | DD40: 04_HK3Hr~ | DE40: Su05_Pc5 | DF40: 5 | DR40: 0 | DS40: 02_HK1Hr | DT40: Su06_Pc6 | DU40: 21
B41: 1 | C41: 03_HK1~3Hr | D41: Su05_Pc5 | E41: 1 | Q41: 1 | R41: 03_HK1~3Hr | S41: Su05_Pc5 | T41: 1 | AF41: 1 | AG41: 03_HK1~3Hr | AH41: Su05_Pc5 | AI41: 1 | AU41: 1 | AV41: 03_HK1~3Hr | AW41: Su05_Pc5 | AX41: 2 | BJ41: 1 | BK41: 03_HK1~3Hr | BL41: Su05_Pc5 | BM41: 2 | BY41: 1 | BZ41: 03_HK1~3Hr | CA41: Su05_Pc5 | CB41: 1 | CN41: 1 | CO41: 03_HK1~3Hr | CP41: Su05_Pc5 | CQ41: 1 | DC41: 0 | DD41: 01_HKToho | DE41: Su06_Pc6 | DF41: 11 | DR41: 0 | DS41: 03_HK1~3Hr | DT41: Su06_Pc6 | DU41: 4
B42: 0 | C42: 04_HK3Hr~ | D42: Su05_Pc5 | E42: 4 | Q42: 0 | R42: 04_HK3Hr~ | S42: Su05_Pc5 | T42: 2 | AF42: 0 | AG42: 04_HK3Hr~ | AH42: Su05_Pc5 | AI42: 2 | AU42: 0 | AV42: 04_HK3Hr~ | AW42: Su05_Pc5 | AX42: 5 | BJ42: 0 | BK42: 04_HK3Hr~ | BL42: Su05_Pc5 | BM42: 2 | BY42: 0 | BZ42: 04_HK3Hr~ | CA42: Su05_Pc5 | CB42: 2 | CN42: 0 | CO42: 04_HK3Hr~ | CP42: Su05_Pc5 | CQ42: 5 | DC42: 1 | DD42: 01_HKToho | DE42: Su06_Pc6 | DF42: 4 | DR42: 1 | DS42: 03_HK1~3Hr | DT42: Su06_Pc6 | DU42: 1
B43: 1 | C43: 04_HK3Hr~ | D43: Su05_Pc5 | E43: 1 | Q43: 1 | R43: 04_HK3Hr~ | S43: Su05_Pc5 | T43: 3 | AF43: 1 | AG43: 04_HK3Hr~ | AH43: Su05_Pc5 | AI43: 3 | AU43: 0 | AV43: 01_HKToho | AW43: Su06_Pc6 | AX43: 13 | BJ43: 1 | BK43: 04_HK3Hr~ | BL43: Su05_Pc5 | BM43: 3 | BY43: 1 | BZ43: 04_HK3Hr~ | CA43: Su05_Pc5 | CB43: 3 | CN43: 0 | CO43: 01_HKToho | CP43: Su06_Pc6 | CQ43: 11 | DC43: 0 | DD43: 02_HK1Hr | DE43: Su06_Pc6 | DF43: 14 | DR43: 0 | DS43: 04_HK3Hr~ | DT43: Su06_Pc6 | DU43: 2
B44: 0 | C44: 01_HKToho | D44: Su06_Pc6 | E44: 10 | Q44: 0 | R44: 01_HKToho | S44: Su06_Pc6 | T44: 10 | AF44: 0 | AG44: 01_HKToho | AH44: Su06_Pc6 | AI44: 8 | AU44: 1 | AV44: 01_HKToho | AW44: Su06_Pc6 | AX44: 2 | BJ44: 0 | BK44: 01_HKToho | BL44: Su06_Pc6 | BM44: 9 | BY44: 0 | BZ44: 01_HKToho | CA44: Su06_Pc6 | CB44: 8 | CN44: 1 | CO44: 01_HKToho | CP44: Su06_Pc6 | CQ44: 4 | DC44: 1 | DD44: 02_HK1Hr | DE44: Su06_Pc6 | DF44: 7
B45: 1 | C45: 01_HKToho | D45: Su06_Pc6 | E45: 5 | Q45: 1 | R45: 01_HKToho | S45: Su06_Pc6 | T45: 5 | AF45: 1 | AG45: 01_HKToho | AH45: Su06_Pc6 | AI45: 7 | AU45: 0 | AV45: 02_HK1Hr | AW45: Su06_Pc6 | AX45: 16 | BJ45: 1 | BK45: 01_HKToho | BL45: Su06_Pc6 | BM45: 6 | BY45: 1 | BZ45: 01_HKToho | CA45: Su06_Pc6 | CB45: 7 | CN45: 0 | CO45: 02_HK1Hr | CP45: Su06_Pc6 | CQ45: 18 | DC45: 0 | DD45: 03_HK1~3Hr | DE45: Su06_Pc6 | DF45: 3
B46: 0 | C46: 02_HK1Hr | D46: Su06_Pc6 | E46: 15 | Q46: 0 | R46: 02_HK1Hr | S46: Su06_Pc6 | T46: 15 | AF46: 0 | AG46: 02_HK1Hr | AH46: Su06_Pc6 | AI46: 15 | AU46: 1 | AV46: 02_HK1Hr | AW46: Su06_Pc6 | AX46: 5 | BJ46: 0 | BK46: 02_HK1Hr | BL46: Su06_Pc6 | BM46: 18 | BY46: 0 | BZ46: 02_HK1Hr | CA46: Su06_Pc6 | CB46: 18 | CN46: 1 | CO46: 02_HK1Hr | CP46: Su06_Pc6 | CQ46: 3 | DC46: 1 | DD46: 03_HK1~3Hr | DE46: Su06_Pc6 | DF46: 2
B47: 1 | C47: 02_HK1Hr | D47: Su06_Pc6 | E47: 6 | Q47: 1 | R47: 02_HK1Hr | S47: Su06_Pc6 | T47: 6 | AF47: 1 | AG47: 02_HK1Hr | AH47: Su06_Pc6 | AI47: 6 | AU47: 0 | AV47: 03_HK1~3Hr | AW47: Su06_Pc6 | AX47: 5 | BJ47: 1 | BK47: 02_HK1Hr | BL47: Su06_Pc6 | BM47: 3 | BY47: 1 | BZ47: 02_HK1Hr | CA47: Su06_Pc6 | CB47: 3 | CN47: 0 | CO47: 03_HK1~3Hr | CP47: Su06_Pc6 | CQ47: 3 | DC47: 0 | DD47: 04_HK3Hr~ | DE47: Su06_Pc6 | DF47: 2
B48: 0 | C48: 03_HK1~3Hr | D48: Su06_Pc6 | E48: 2 | Q48: 0 | R48: 03_HK1~3Hr | S48: Su06_Pc6 | T48: 2 | AF48: 0 | AG48: 03_HK1~3Hr | AH48: Su06_Pc6 | AI48: 1 | AU48: 0 | AV48: 04_HK3Hr~ | AW48: Su06_Pc6 | AX48: 2 | BJ48: 0 | BK48: 03_HK1~3Hr | BL48: Su06_Pc6 | BM48: 4 | BY48: 0 | BZ48: 03_HK1~3Hr | CA48: Su06_Pc6 | CB48: 2 | CN48: 1 | CO48: 03_HK1~3Hr | CP48: Su06_Pc6 | CQ48: 2
B49: 1 | C49: 03_HK1~3Hr | D49: Su06_Pc6 | E49: 3 | Q49: 1 | R49: 03_HK1~3Hr | S49: Su06_Pc6 | T49: 3 | AF49: 1 | AG49: 03_HK1~3Hr | AH49: Su06_Pc6 | AI49: 4 | BJ49: 1 | BK49: 03_HK1~3Hr | BL49: Su06_Pc6 | BM49: 1 | BY49: 1 | BZ49: 03_HK1~3Hr | CA49: Su06_Pc6 | CB49: 3 | CN49: 1 | CO49: 04_HK3Hr~ | CP49: Su06_Pc6 | CQ49: 2
B50: 0 | C50: 04_HK3Hr~ | D50: Su06_Pc6 | E50: 2 | Q50: 0 | R50: 04_HK3Hr~ | S50: Su06_Pc6 | T50: 2 | AF50: 0 | AG50: 04_HK3Hr~ | AH50: Su06_Pc6 | AI50: 2 | BJ50: 0 | BK50: 04_HK3Hr~ | BL50: Su06_Pc6 | BM50: 1 | BY50: 0 | BZ50: 04_HK3Hr~ | CA50: Su06_Pc6 | CB50: 2
BJ51: 1 | BK51: 04_HK3Hr~ | BL51: Su06_Pc6 | BM51: 1

Sheet for_02041031_JissiUmu_2 (hidden)
A1: （非表示シート）
B2: 手厚い管理
C3: 01_徒歩圏内 | F3: 02_車・電車等で1時間以内 | I3: 03_車・電車等で1時間～3時間以内 | L3: 04_車・電車等で3時間以上
C4: 物的水準1：良好 | D4: 物的水準2：標準 | E4: 物的水準3：管理不全 | F4: 物的水準1：良好 | G4: 物的水準2：標準 | H4: 物的水準3：管理不全 | I4: 物的水準1：良好 | J4: 物的水準2：標準 | K4: 物的水準3：管理不全 | L4: 物的水準1：良好 | M4: 物的水準2：標準 | N4: 物的水準3：管理不全
B5: 01_戸締まりの確認 | C5: =TRANSPOSE(for_02041031_JissiUmu!$O$4:$O$15) -> 1 | D5: 1 | E5: 1 | F5: 1 | G5: 1 | H5: 1 | I5: 1 | J5: 1 | K5: 0 | L5: 0 | M5: 0 | N5: 0
B6: 02_住宅の通風･換気 | C6: =TRANSPOSE(for_02041031_JissiUmu!$AD$4:$AD$15) -> 1 | D6: 1 | E6: 1 | F6: 1 | G6: 0 | H6: 1 | I6: 1 | J6: 1 | K6: 0 | L6: 0 | M6: 0 | N6: 0
B7: 03_住宅内の清掃 | C7: =TRANSPOSE(for_02041031_JissiUmu!$AS$4:$AS$15) -> 1 | D7: 1 | E7: 1 | F7: 1 | G7: 0 | H7: 0 | I7: 0 | J7: 1 | K7: 0 | L7: 0 | M7: 1 | N7: 0
B8: 04_水回りなどの点検 | C8: =TRANSPOSE(for_02041031_JissiUmu!$BH$4:$BH$15) -> 0 | D8: 0 | E8: 0 | F8: 0 | G8: 0 | H8: 0 | I8: 0 | J8: 0 | K8: 0 | L8: 0 | M8: 0 | N8: 0
B9: 05_郵便物､チラシなどの整理･処分 | C9: =TRANSPOSE(for_02041031_JissiUmu!$BW$4:$BW$15) -> 0 | D9: 1 | E9: 1 | F9: 1 | G9: 0 | H9: 0 | I9: 0 | J9: 1 | K9: 0 | L9: 0 | M9: 0 | N9: 1
B10: 06_外回りの清掃､草取り､剪定など | C10: =TRANSPOSE(for_02041031_JissiUmu!$CL$4:$CL$15) -> 1 | D10: 1 | E10: 1 | F10: 1 | G10: 0 | H10: 0 | I10: 1 | J10: 1 | K10: 0 | L10: 0 | M10: 0 | N10: 0
B11: 07_傷み､雨漏りなどのチェック･修繕 | C11: =TRANSPOSE(for_02041031_JissiUmu!$DA$4:$DA$15) -> 0 | D11: 0 | E11: 0 | F11: 1 | G11: 0 | H11: 0 | I11: 0 | J11: 0 | K11: 0 | L11: 0 | M11: 0 | N11: 0
B12: 08_台風､地震などの後の見回り | C12: =TRANSPOSE(for_02041031_JissiUmu!$DP$4:$DP$15) -> 0 | D12: 0 | E12: 0 | F12: 0 | G12: 0 | H12: 0 | I12: 0 | J12: 0 | K12: 0 | L12: 0 | M12: 0 | N12: 0
B13: 09_除排雪 | C13: =TRANSPOSE(for_02041031_JissiUmu!$EE$4:$EE$15) -> 0 | D13: 0 | E13: 0 | F13: 0 | G13: 0 | H13: 0 | I13: 0 | J13: 0 | K13: 0 | L13: 0 | M13: 0 | N13: 0
B14: 10_その他の管理項目 | C14: =TRANSPOSE(for_02041031_JissiUmu!$ET$4:$ET$15) -> 0 | D14: 0 | E14: 0 | F14: 0 | G14: 0 | H14: 0 | I14: 0 | J14: 0 | K14: 0 | L14: 0 | M14: 0 | N14: 0
B16: 小計 | C16: =SUM(C5:C14) -> 4 | D16: 5 | E16: 5 | F16: 6 | G16: 1 | H16: 2 | I16: 3 | J16: 5 | K16: 0 | L16: 0 | M16: 1 | N16: 1
B18: 標準的な管理
C19: 01_徒歩圏内 | F19: 02_車・電車等で1時間以内 | I19: 03_車・電車等で1時間～3時間以内 | L19: 04_車・電車等で3時間以上
C20: 物的水準1：良好 | D20: 物的水準2：標準 | E20: 物的水準3：管理不全 | F20: 物的水準1：良好 | G20: 物的水準2：標準 | H20: 物的水準3：管理不全 | I20: 物的水準1：良好 | J20: 物的水準2：標準 | K20: 物的水準3：管理不全 | L20: 物的水準1：良好 | M20: 物的水準2：標準 | N20: 物的水準3：管理不全
B21: 01_戸締まりの確認 | C21: =TRANSPOSE(for_02041031_JissiUmu!$N$4:$N$15) -> 1 | D21: 1 | E21: 1 | F21: 1 | G21: 1 | H21: 1 | I21: 1 | J21: 1 | K21: 0 | L21: 0 | M21: 0 | N21: 0
B22: 02_住宅の通風･換気 | C22: =TRANSPOSE(for_02041031_JissiUmu!$AC$4:$AC$15) -> 1 | D22: 1 | E22: 1 | F22: 1 | G22: 0 | H22: 0 | I22: 0 | J22: 1 | K22: 0 | L22: 0 | M22: 0 | N22: 0
B23: 03_住宅内の清掃 | C23: =TRANSPOSE(for_02041031_JissiUmu!$AR$4:$AR$15) -> 0 | D23: 1 | E23: 1 | F23: 1 | G23: 0 | H23: 0 | I23: 0 | J23: 1 | K23: 0 | L23: 0 | M23: 0 | N23: 0
B24: 04_水回りなどの点検 | C24: =TRANSPOSE(for_02041031_JissiUmu!$BG$4:$BG$15) -> 0 | D24: 0 | E24: 0 | F24: 0 | G24: 0 | H24: 0 | I24: 0 | J24: 0 | K24: 0 | L24: 0 | M24: 0 | N24: 0
B25: 05_郵便物､チラシなどの整理･処分 | C25: =TRANSPOSE(for_02041031_JissiUmu!$BV$4:$BV$15) -> 0 | D25: 0 | E25: 1 | F25: 1 | G25: 0 | H25: 0 | I25: 0 | J25: 0 | K25: 0 | L25: 0 | M25: 0 | N25: 0
B26: 06_外回りの清掃､草取り､剪定など | C26: =TRANSPOSE(for_02041031_JissiUmu!$CK$4:$CK$15) -> 0 | D26: 0 | E26: 1 | F26: 1 | G26: 0 | H26: 0 | I26: 0 | J26: 1 | K26: 0 | L26: 0 | M26: 0 | N26: 0
B27: 07_傷み､雨漏りなどのチェック･修繕 | C27: =TRANSPOSE(for_02041031_JissiUmu!$CZ$4:$CZ$15) -> 0 | D27: 0 | E27: 0 | F27: 0 | G27: 0 | H27: 0 | I27: 0 | J27: 0 | K27: 0 | L27: 0 | M27: 0 | N27: 0
B28: 08_台風､地震などの後の見回り | C28: =TRANSPOSE(for_02041031_JissiUmu!$DO$4:$DO$15) -> 0 | D28: 0 | E28: 0 | F28: 0 | G28: 0 | H28: 0 | I28: 0 | J28: 0 | K28: 0 | L28: 0 | M28: 0 | N28: 0
B29: 09_除排雪 | C29: =TRANSPOSE(for_02041031_JissiUmu!$ED$4:$ED$15) -> 0 | D29: 0 | E29: 0 | F29: 0 | G29: 0 | H29: 0 | I29: 0 | J29: 0 | K29: 0 | L29: 0 | M29: 0 | N29: 0
B30: 10_その他の管理項目 | C30: =TRANSPOSE(for_02041031_JissiUmu!$ES$4:$ES$15) -> 0 | D30: 0 | E30: 0 | F30: 0 | G30: 0 | H30: 0 | I30: 0 | J30: 0 | K30: 0 | L30: 0 | M30: 0 | N30: 0
B32: 小計 | C32: =SUM(C21:C30) -> 2 | D32: 3 | E32: 5 | F32: 5 | G32: 1 | H32: 1 | I32: 1 | J32: 4 | K32: 0 | L32: 0 | M32: 0 | N32: 0

Sheet for_02042041_ProbLvTa (hidden)
A1: （非表示シート）
B2: 05_txt/231024/058101_dfK_01_001_01MeansBy_suijun2LbQ13Hyoka2Lb.txt
B3: suijun2Lb | C3: Q13Hyoka2Lb | D3: N | E3: KanKai_prod | F3: FreqMth | G3: SumKanItemTtl | J3: rate_01_Hyoka01&02 | S3: t1で水準が「良好」であり、10年後に同様の水準である割合
B4: Su01Gd_Pc2 | C4: 01_Hyoka01 | D4: 217 | E4: 33.01635945 | F4: 7.084101382 | G4: 5.082949309 | I4: Su01Gd_Pc2 | J4: =SUM(D4,D10)/SUM(D4,D10,D16,D22) -> 0.8478632479 | L4: 物的水準1：良好 | M4: =(1+J4)/2 -> 0.9239316239 | O4: 0.98 | P4: =(1+J4)/2 -> 0.9239316239 | R4: 手厚い管理 | S4: 0.85 | T4: =POWER(S4,1/9) -> 0.9821044037
B5: Su02_Pc1 | C5: 01_Hyoka01 | D5: 56 | E5: 36.37678571 | F5: 9.559821429 | G5: 3.875 | I5: Su02_Pc1 | J5: 0.7488151659 | L5: 物的水準2：標準 | M5: =AVERAGE(J4:J6) -> 0.7962261379 | O5: 0.92 | P5: =MAX(J4:J6) -> 0.8478632479 | R5: 標準的な管理 | S5: 0.6 | T5: =POWER(S5,1/9) -> 0.9448223084
B6: Su03_Pc4 | C6: 01_Hyoka01 | D6: 30 | E6: 28.815 | F6: 6.301666667 | G6: 4.433333333 | I6: Su03_Pc4 | J6: 0.792 | L6: 物的水準3：管理不全 | M6: =AVERAGE(J8:J9) -> 0.6146640827 | O6: 0.66 | P6: =MAX(J8:J9) -> 0.6944444444 | R6: 管理しない | S6: 0.1 | T6: =POWER(S6,1/9) -> 0.7742636827
B7: Su04_Pc3 | C7: 01_Hyoka01 | D7: 5 | E7: 64.43 | F7: 13.07 | G7: 3.4 | I7: Su04_Pc3 | J7: 0.6333333333 | O7: （※↑：暫定の仮定値として過去に利用した値のメモ） | T7: ※こちらを採用：240306
B8: Su05_Pc5 | C8: 01_Hyoka01 | D8: 19 | E8: 29.47894737 | F8: 7.331578947 | G8: 3.842105263 | I8: Su05_Pc5 | J8: 0.6944444444
B9: Su06_Pc6 | C9: 01_Hyoka01 | D9: 5 | E9: 53.02 | F9: 11.4 | G9: 5 | I9: Su06_Pc6 | J9: 0.5348837209
B10: Su01Gd_Pc2 | C10: 02_Hyoka02 | D10: 279 | E10: 15.93548387 | F10: 3.477956989 | G10: 4.240143369
B11: Su02_Pc1 | C11: 02_Hyoka02 | D11: 102 | E11: 14.40931373 | F11: 3.544607843 | G11: 3.784313725
B12: Su03_Pc4 | C12: 02_Hyoka02 | D12: 69 | E12: 14.95 | F12: 3.865942029 | G12: 3.434782609
B13: Su04_Pc3 | C13: 02_Hyoka02 | D13: 14 | E13: 25.15714286 | F13: 4.6 | G13: 4.142857143
B14: Su05_Pc5 | C14: 02_Hyoka02 | D14: 31 | E14: 19.46935484 | F14: 5.287096774 | G14: 3.612903226
B15: Su06_Pc6 | C15: 02_Hyoka02 | D15: 18 | E15: 4.452777778 | F15: 2.333333333 | G15: 2.111111111
B16: Su01Gd_Pc2 | C16: 03_Hyoka03 | D16: 60 | E16: 6.165833333 | F16: 1.358333333 | G16: 3.883333333
B17: Su02_Pc1 | C17: 03_Hyoka03 | D17: 31 | E17: 5.322580645 | F17: 1.329032258 | G17: 3.161290323
B18: Su03_Pc4 | C18: 03_Hyoka03 | D18: 15 | E18: 3.866666667 | F18: 0.9866666667 | G18: 2.8
B19: Su04_Pc3 | C19: 03_Hyoka03 | D19: 2 | E19: 0.15 | F19: 0.15 | G19: 1
B20: Su05_Pc5 | C20: 03_Hyoka03 | D20: 12 | E20: 6.841666667 | F20: 2.120833333 | G20: 3.25
B21: Su06_Pc6 | C21: 03_Hyoka03 | D21: 12 | E21: 17.6 | F21: 5.020833333 | G21: 2
B22: Su01Gd_Pc2 | C22: 04_Hyoka04 | D22: 29 | E22: 5.522413793 | F22: 1.544827586 | G22: 2.655172414
B23: Su02_Pc1 | C23: 04_Hyoka04 | D23: 22 | E23: 1.765909091 | F23: 0.7409090909 | G23: 1.954545455
B24: Su03_Pc4 | C24: 04_Hyoka04 | D24: 11 | E24: 1.65 | F24: 0.6818181818 | G24: 2.818181818
B25: Su04_Pc3 | C25: 04_Hyoka04 | D25: 9 | E25: 0.4388888889 | F25: 0.2444444444 | G25: 1.666666667
B26: Su05_Pc5 | C26: 04_Hyoka04 | D26: 10 | E26: 2.475 | F26: 2.445 | G26: 1.2
B27: Su06_Pc6 | C27: 04_Hyoka04 | D27: 8 | E27: 0.83125 | F27: 0.46875 | G27: 2

Sheet for_010101_listSkcs_byTdfk (hidden)
A1: （非表示シート）
B2: 都道府県 | D2: 北海道 | E2: 青森県 | F2: 岩手県 | G2: 宮城県 | H2: 秋田県 | I2: 山形県 | J2: 福島県 | K2: 茨城県 | L2: 栃木県 | M2: 群馬県 | N2: 埼玉県 | O2: 千葉県 | P2: 東京都 | Q2: 神奈川県 | R2: 新潟県 | S2: 富山県 | T2: 石川県 | U2: 福井県 | V2: 山梨県 | W2: 長野県 | X2: 岐阜県 | Y2: 静岡県 | Z2: 愛知県 | AA2: 三重県 | AB2: 滋賀県 | AC2: 京都府 | AD2: 大阪府 | AE2: 兵庫県 | AF2: 奈良県 | AG2: 和歌山県 | AH2: 鳥取県 | AI2: 島根県 | AJ2: 岡山県 | AK2: 広島県 | AL2: 山口県 | AM2: 徳島県 | AN2: 香川県 | AO2: 愛媛県 | AP2: 高知県 | AQ2: 福岡県 | AR2: 佐賀県 | AS2: 長崎県 | AT2: 熊本県 | AU2: 大分県 | AV2: 宮崎県 | AW2: 鹿児島県 | AX2: 沖縄県
B3: 北海道 | D3: せたな | E3: おいらせ | F3: 一関 | G3: 塩竈 | H3: にかほ | I3: 寒河江 | J3: いわき | K3: かすみがうら | L3: さくら | M3: みどり | N3: さいたま浦和 | O3: いすみ | P3: あきる野 | Q3: 愛川 | R3: 阿賀 | S3: 滑川 | T3: かほく | U3: あわら | V3: 甲州 | W3: まつかわ | X3: 安八 | Y3: 伊東 | Z3: あま | AA3: いなべ | AB3: 愛荘 | AC3: 綾部 | AD3: 茨木 | AE3: たつの | AF3: 安堵 | AG3: かつらぎ | AH3: 岩美 | AI3: 安来 | AJ3: 井原 | AK3: 安芸高田 | AL3: 宇部 | AM3: つるぎ | AN3: さぬき | AO3: 愛南 | AP3: いの | AQ3: みやこ | AR3: みやき | AS3: 壱岐 | AT3: 阿蘇 | AU3: 宇佐 | AV3: えびの | AW3: いちき串木野 | AX3: うるま
B4: 青森県 | D4: むかわ | E4: つがる | F4: 一戸 | G4: 加美 | H4: 横手 | I4: 金山 | J4: 会津坂下 | K4: つくば | L4: 宇都宮 | M4: みなかみ | N4: さいたま岩槻 | O4: 旭 | P4: 稲城 | Q4: 綾瀬 | R4: 阿賀野 | S4: 魚津 | T4: 羽咋 | U4: 永平寺 | V4: 甲斐 | W4: 安曇野 | X4: 羽島 | Y4: 伊豆 | Z4: みよし | AA4: 伊賀 | AB4: 近江八幡 | AC4: 井手 | AD4: 羽曳野 | AE4: 芦屋 | AF4: 宇陀 | AG4: すさみ | AH4: 境港 | AI4: 隠岐の島 | AJ4: 岡山中 | AK4: 海田 | AL4: 下関 | AM4: 阿南 | AN4: まんのう | AO4: 伊予 | AP4: とさ | AQ4: みやま | AR4: 伊万里 | AS4: 雲仙 | AT4: 芦北 | AU4: 臼杵 | AV4: 綾 | AW4: さつま | AX4: 浦添
B5: 岩手県 | D5: 旭川 | E5: むつ | F5: 遠野 | G5: 角田 | H5: 潟上 | I5: 高畠 | J5: 会津若松 | K5: つくばみらい | L5: 益子 | M5: 安中 | N5: さいたま見沼 | O5: 印西 | P5: 羽村 | Q5: 伊勢原 | R5: 燕 | S5: 高岡 | T5: 加賀 | U5: 越前 | V5: 甲府 | W5: 伊那 | X5: 下呂 | Y5: 伊豆の国 | Z5: 阿久比 | AA5: 伊勢 | AB5: 栗東 | AC5: 宇治 | AD5: 河内長野 | AE5: 伊丹 | AF5: 王寺 | AG5: みなべ | AH5: 琴浦 | AI5: 雲南 | AJ5: 岡山東 | AK5: 呉 | AL5: 下松 | AM5: 吉野川 | AN5: 綾川 | AO5: 宇和島 | AP5: 安芸 | AQ5: 鞍手 | AR5: 基山 | AS5: 五島 | AT5: 宇城 | AU5: 杵築 | AV5: 延岡 | AW5: 阿久根 | AX5: 沖縄
B6: 宮城県 | D6: 芦別 | E6: 階上 | F6: 奥州 | G6: 丸森 | H6: 五城目 | I6: 最上 | J6: 会津美里 | K6: ひたちなか | L6: 塩谷 | M6: 伊勢崎 | N6: さいたま桜 | O6: 浦安 | P6: 葛飾 | Q6: 横須賀 | R6: 加茂 | S6: 黒部 | T6: 金沢 | U6: 坂井 | V6: 山中湖 | W6: 塩尻 | X6: 可児 | Y6: 下田 | Z6: 愛西 | AA6: 紀北 | AB6: 湖南 | AC6: 宇治田原 | AD6: 貝塚 | AE6: 稲美 | AF6: 下市 | AG6: 海南 | AH6: 三朝 | AI6: 益田 | AJ6: 岡山南 | AK6: 広島安芸 | AL6: 岩国 | AM6: 小松島 | AN6: 宇多津 | AO6: 鬼北 | AP6: 越知 | AQ6: 宇美 | AR6: 吉野ヶ里 | AS6: 佐々 | AT6: 宇土 | AU6: 玖珠 | AV6: 宮崎 | AW6: 姶良 | AX6: 嘉手納
B7: 秋田県 | D7: 安平 | E7: 外ヶ浜 | F7: 花巻 | G7: 岩沼 | H7: 鹿角 | I7: 三川 | J7: 喜多方 | K7: 阿見 | L7: 下野 | M7: 下仁田 | N7: さいたま西 | O7: 横芝光 | P7: 江戸川 | Q7: 横浜旭 | R7: 魚沼 | S7: 射水 | T7: 穴水 | U7: 鯖江 | V7: 山梨 | W7: 岡谷 | X7: 海津 | Y7: 河津 | Z7: 愛知大口 | AA7: 亀山 | AB7: 甲賀 | AC7: 亀岡 | AD7: 岸和田 | AE7: 加古川 | AF7: 河合 | AG7: 岩出 | AH7: 若桜 | AI7: 奥出雲 | AJ7: 岡山北 | AK7: 広島安佐南 | AL7: 光 | AM7: 松茂 | AN7: 観音寺 | AO7: 久万高原 | AP7: 高知 | AQ7: 遠賀 | AR7: 佐賀 | AS7: 佐世保 | AT7: 益城 | AU7: 国東 | AV7: 串間 | AW7: 伊佐 | AX7: 宜野湾
B8: 山形県 | D8: 伊達 | E8: 五戸 | F8: 釜石 | G8: 気仙沼 | H8: 秋田 | I8: 山形 | J8: 鏡石 | K8: 稲敷 | L8: 高根沢 | M8: 甘楽 | N8: さいたま大宮 | O8: 我孫子 | P8: 江東 | Q8: 横浜磯子 | R8: 見附 | S8: 舟橋 | T8: 七尾 | U8: 若狭 | V8: 山梨昭和 | W8: 下諏訪 | X8: 各務原 | Y8: 掛川 | Z8: 愛知東浦 | AA8: 玉城 | AB8: 甲良 | AC8: 久御山 | AD8: 熊取 | AE8: 加西 | AF8: 橿原 | AG8: 紀の川 | AH8: 倉吉 | AI8: 吉賀 | AJ8: 笠岡 | AK8: 広島安佐北 | AL8: 山口 | AM8: 石井 | AN8: 丸亀 | AO8: 今治 | AP8: 高知香南 | AQ8: 岡垣 | AR8: 佐賀嬉野 | AS8: 時津 | AT8: 嘉島 | AU8: 佐伯 | AV8: 高原 | AW8: 奄美 | AX8: 宮古島
B9: 福島県 | D9: 羽幌 | E9: 五所川原 | F9: 岩手 | G9: 宮城川崎 | H9: 小坂 | I9: 山形河北 | J9: 桑折 | K9: 茨城 | L9: 佐野 | M9: 館林 | N9: さいたま中央 | O9: 鎌ケ谷 | P9: 港 | Q9: 横浜栄 | R9: 五泉 | S9: 小矢部 | T9: 珠洲 | U9: 勝山 | V9: 山梨中央 | W9: 茅野 | X9: 笠松 | Y9: 菊川 | Z9: 愛知東郷 | AA9: 熊野 | AB9: 滋賀高島 | AC9: 宮津 | AD9: 交野 | AE9: 加東 | AF9: 葛城 | AG9: 橋本 | AH9: 智頭 | AI9: 江津 | AJ9: 吉備中央 | AK9: 広島熊野 | AL9: 山陽小野田 | AM9: 徳島 | AN9: 琴平 | AO9: 四国中央 | AP9: 高知香美 | AQ9: 嘉麻 | AR9: 佐賀白石 | AS9: 松浦 | AT9: 菊池 | AU9: 大分 | AV9: 高千穂 | AW9: 屋久島 | AX9: 糸満
B10: 茨城県 | D10: 浦河 | E10: 弘前 | F10: 岩手山田 | G10: 宮城大崎 | H10: 仙北 | I10: 山形庄内 | J10: 郡山 | K10: 茨城河内 | L10: 市貝 | M10: 吉岡 | N10: さいたま南 | O10: 鴨川 | P10: 荒川 | Q10: 横浜金沢 | R10: 佐渡 | S10: 上市 | T10: 小松 | U10: 小浜 | V10: 山梨富士川 | W10: 駒ケ根 | X10: 関 | Y10: 湖西 | Z10: 愛知美浜 | AA10: 桑名 | AB10: 滋賀日野 | AC10: 京丹後 | AD10: 高石 | AE10: 香美 | AF10: 吉野 | AG10: 九度山 | AH10: 鳥取 | AI10: 出雲 | AJ10: 鏡野 | AK10: 広島佐伯 | AL10: 周南 | AM10: 徳島三好 | AN10: 香川三木 | AO10: 松山 | AP10: 高知四万十 | AQ10: 苅田 | AR10: 佐賀有田 | AS10: 新上五島 | AT10: 菊陽 | AU10: 竹田 | AV10: 高鍋 | AW10: 肝付 | AX10: 西原
B11: 栃木県 | D11: 浦幌 | E11: 黒石 | F11: 岩手野田 | G11: 宮城大和 | H11: 大館 | I11: 山形西川 | J11: 広野 | K11: 茨城境 | L11: 鹿沼 | M11: 玉村 | N11: さいたま北 | O11: 館山 | P11: 国分寺 | Q11: 横浜戸塚 | R11: 三条 | S11: 砺波 | T11: 石川志賀 | U11: 大野 | V11: 市川三郷 | W11: 軽井沢 | X11: 関ケ原 | Y11: 御前崎 | Z11: 安城 | AA11: 菰野 | AB11: 滋賀竜王 | AC11: 京丹波 | AD11: 高槻 | AE11: 高砂 | AF11: 五條 | AG11: 串本 | AH11: 湯梨浜 | AI11: 松江 | AJ11: 玉野 | AK11: 広島西 | AL11: 周防大島 | AM11: 美波 | AN11: 高松 | AO11: 松前 | AP11: 黒潮 | AQ11: 吉富 | AR11: 鹿島 | AS11: 西海 | AT11: 玉名 | AU11: 中津 | AV11: 国富 | AW11: 喜界 | AX11: 石垣
B12: 群馬県 | D12: 遠軽 | E12: 三戸 | F12: 岩泉 | G12: 宮城美里 | H12: 大仙 | I12: 山形川西 | J12: 三春 | K12: 茨城東海 | L12: 小山 | M12: 桐生 | N12: さいたま緑 | O12: 九十九里 | P12: 国立 | Q12: 横浜港南 | R12: 糸魚川 | S12: 南砺 | T12: 川北 | U12: 敦賀 | V12: 上野原 | W12: 御代田 | X12: 岐南 | Y12: 御殿場 | Z12: 一宮 | AA12: 御浜 | AB12: 守山 | AC12: 京田辺 | AD12: 阪南 | AE12: 佐用 | AF12: 御所 | AG12: 御坊 | AH12: 日吉津 | AI12: 津和野 | AJ12: 高梁 | AK12: 広島中 | AL12: 長門 | AM12: 美馬 | AN12: 坂出 | AO12: 新居浜 | AP12: 佐川 | AQ12: 久山 | AR12: 小城 | AS12: 川棚 | AT12: 熊本西 | AU12: 津久見 | AV12: 三股 | AW12: 錦江 | AX12: 中城
B13: 埼玉県 | D13: 音更 | E13: 三沢 | F13: 久慈 | G13: 栗原 | H13: 男鹿 | I13: 山形大江 | J13: 新地 | K13: 茨城八千代 | L13: 上三川 | M13: 群馬千代田 | N13: ときがわ | O13: 君津 | P13: 狛江 | Q13: 横浜港北 | R13: 十日町 | S13: 入善 | T13: 津幡 | U13: 福井 | V13: 身延 | W13: 高森 | X13: 岐阜 | Y13: 三島 | Z13: 稲沢 | AA13: 三重志摩 | AB13: 草津 | AC13: 京都右京 | AD13: 堺堺 | AE13: 三田 | AF13: 広陵 | AG13: 高野 | AH13: 八頭 | AI13: 島根川本 | AJ13: 勝央 | AK13: 広島東 | AL13: 田布施 | AM13: 北島 | AN13: 三豊 | AO13: 西条 | AP13: 四万十 | AQ13: 久留米 | AR13: 上峰 | AS13: 対馬 | AT13: 熊本大津 | AU13: 日出 | AV13: 小林 | AW13: 薩摩川内 | AX13: 読谷
B14: 千葉県 | D14: 下川 | E14: 七戸 | F14: 宮古 | G14: 山元 | H14: 湯沢 | I14: 山形朝日 | J14: 須賀川 | K14: 下妻 | L14: 真岡 | M14: 群馬草津 | N14: ふじみ野 | O14: 御宿 | P14: 三鷹 | Q14: 横浜神奈川 | R14: 小千谷 | S14: 氷見 | T14: 内灘 | U14: 福井越前 | V14: 西桂 | W14: 佐久 | X14: 岐阜川辺 | Y14: 駿東清水 | Z14: 岡崎 | AA14: 三重川越 | AB14: 多賀 | AC14: 京都下京 | AD14: 堺西 | AE14: 三木 | AF14: 香芝 | AG14: 上富田 | AH14: 米子 | AI14: 島根大田 | AJ14: 新見 | AK14: 広島南 | AL14: 萩 | AM14: 牟岐 | AN14: 小豆島 | AO14: 西予 | AP14: 室戸 | AQ14: 宮若 | AR14: 神埼 | AS14: 大村 | AT14: 熊本中央 | AU14: 日田 | AV14: 新富 | AW14: 志布志 | AX14: 那覇
B15: 東京都 | D15: 歌志内 | E15: 十和田 | F15: 金ケ崎 | G15: 七ケ浜 | H15: 能代 | I15: 山辺 | J15: 西会津 | K15: 笠間 | L15: 壬生 | M15: 群馬明和 | N15: 羽生 | O15: 香取 | P15: 渋谷 | Q15: 横浜瀬谷 | R15: 上越 | S15: 富山 | T15: 能登 | U15: 福井高浜 | V15: 大月 | W15: 坂城 | X15: 岐阜大野 | Y15: 沼津 | Z15: 蟹江 | AA15: 三重朝日 | AB15: 大津 | AC15: 京都左京 | AD15: 堺中 | AE15: 宍粟 | AF15: 高取 | AG15: 新宮 | AH15: 北栄 | AI15: 浜田 | AJ15: 真庭 | AK15: 広島府中 | AL15: 美祢 | AM15: 鳴門 | AN15: 善通寺 | AO15: 大洲 | AP15: 宿毛 | AQ15: 桂川 | AR15: 多久 | AS15: 長崎 | AT15: 熊本東 | AU15: 別府 | AV15: 西都 | AW15: 指宿 | AX15: 南城
B16: 神奈川県 | D16: 芽室 | E16: 青森 | F16: 紫波 | G16: 柴田 | H16: 八郎潟 | I16: 酒田 | J16: 川俣 | K16: 牛久 | L16: 足利 | M16: 高崎 | N16: 越生 | O16: 佐倉 | P16: 小笠原 | Q16: 横浜西 | R16: 新潟江南 | S16: 富山朝日 | T16: 能美 | U16: 福井美浜 | V16: 笛吹 | W16: 山ノ内 | X16: 岐阜池田 | Y16: 焼津 | Z16: 蒲郡 | AA16: 三重明和 | AB16: 長浜 | AC16: 京都山科 | AD16: 堺東 | AE16: 洲本 | AF16: 桜井 | AG16: 太地 | AJ16: 赤磐 | AK16: 江田島 | AL16: 平生 | AM16: 藍住 | AN16: 多度津 | AO16: 砥部 | AP16: 須崎 | AQ16: 古賀 | AR16: 鳥栖 | AS16: 長与 | AT16: 熊本南 | AU16: 豊後高田 | AV16: 川南 | AW16: 鹿屋 | AX16: 南風原
B17: 新潟県 | D17: 岩見沢 | E17: 青森南部 | F17: 雫石 | G17: 女川 | H17: 美郷 | I17: 小国 | J17: 泉崎 | K17: 結城 | L17: 大田原 | M17: 渋川 | N17: 越谷 | O17: 山武 | P17: 小金井 | Q17: 横浜青葉 | R17: 新潟秋葉 | S17: 立山 | T17: 白山 | V17: 都留 | W17: 小海 | X17: 郡上 | Y17: 裾野 | Z17: 刈谷 | AA17: 四日市 | AB17: 東近江 | AC17: 京都上京 | AD17: 堺南 | AE17: 小野 | AF17: 上牧 | AG17: 田辺 | AJ17: 浅口 | AK17: 坂 | AL17: 防府 | AN17: 土庄 | AO17: 東温 | AP17: 中土佐 | AQ17: 広川 | AR17: 唐津 | AS17: 島原 | AT17: 熊本北 | AU17: 豊後大野 | AV17: 都城 | AW17: 鹿児島 | AX17: 八重瀬
B18: 富山県 | D18: 岩内 | E18: 大鰐 | F18: 盛岡 | G18: 松島 | H18: 北秋田 | I18: 上山 | J18: 浅川 | K18: 古河 | L18: 栃木 | M18: 沼田 | N18: 横瀬 | O18: 四街道 | P18: 小平 | Q18: 横浜泉 | R18: 新潟西 | T18: 野々市 | V18: 南アルプス | W18: 小諸 | X18: 恵那 | Y18: 静岡葵 | Z18: 岩倉 | AA18: 松阪 | AB18: 彦根 | AC18: 京都西京 | AD18: 堺美原 | AE18: 上郡 | AF18: 生駒 | AG18: 湯浅 | AJ18: 倉敷 | AK18: 三原 | AL18: 柳井 | AN18: 東かがわ | AO18: 内子 | AP18: 土佐 | AQ18: 行橋 | AR18: 武雄 | AS18: 東彼杵 | AT18: 御船 | AU18: 由布 | AV18: 都農 | AW18: 出水 | AX18: 豊見城
B19: 石川県 | D19: 共和 | E19: 鶴田 | F19: 大船渡 | G19: 石巻 | H19: 由利本荘 | I19: 新庄 | J19: 相馬 | K19: 五霞 | L19: 栃木那珂川 | M19: 榛東 | N19: 桶川 | O19: 市原 | P19: 昭島 | Q19: 横浜中 | R19: 新潟西蒲 | T19: 輪島 | V19: 韮崎 | W19: 小布施 | X19: 御嵩 | Y19: 静岡吉田 | Z19: 犬山 | AA19: 多気 | AB19: 米原 | AC19: 京都中京 | AD19: 堺北 | AE19: 新温泉 | AF19: 大和郡山 | AG19: 那智勝浦 | AJ19: 早島 | AK19: 三次 | AL19: 和木 | AO19: 八幡浜 | AP19: 土佐清水 | AQ19: 志免 | AS19: 南島原 | AT19: 荒尾 | AV19: 日向 | AW19: 垂水 | AX19: 北谷
B20: 福井県 | D20: 興部 | E20: 田舎館 | F20: 大槌 | G20: 仙台宮城野 | I20: 真室川 | J20: 大玉 | K20: 行方 | L20: 那須 | M20: 前橋 | N20: 加須 | O20: 市川 | P20: 新宿 | Q20: 横浜鶴見 | R20: 新潟中央 | V20: 忍野 | W20: 松川 | X20: 高山 | Y20: 静岡駿河 | Z20: 幸田 | AA20: 鳥羽 | AB20: 豊郷 | AC20: 京都東山 | AD20: 四條畷 | AE20: 神戸須磨 | AF20: 大和高田 | AG20: 白浜 | AJ20: 総社 | AK20: 庄原 | AP20: 東洋 | AQ20: 糸島 | AS20: 波佐見 | AT20: 合志 | AV20: 日南 | AW20: 瀬戸内 | AX20: 北中城
B21: 山梨県 | D21: 倶知安 | E21: 東北 | F21: 滝沢 | G21: 仙台若林 | I21: 村山 | J21: 棚倉 | K21: 高萩 | L21: 那須烏山 | M21: 太田 | N21: 皆野 | O21: 芝山 | P21: 新島 | Q21: 横浜都筑 | R21: 新潟東 | V21: 富士河口湖 | W21: 松本 | X21: 坂祝 | Y21: 静岡小山 | Z21: 江南 | AA21: 津 | AB21: 野洲 | AC21: 京都南 | AD21: 守口 | AE21: 神戸垂水 | AF21: 天理 | AG21: 有田 | AJ21: 津山 | AK21: 世羅 | AP21: 南国 | AQ21: 篠栗 | AS21: 平戸 | AT21: 山鹿 | AV21: 門川 | AW21: 西之表 | AX21: 本部
B22: 長野県 | D22: 釧路 | E22: 藤崎 | F22: 二戸 | G22: 仙台青葉 | I22: 大石田 | J22: 中島 | K22: 坂東 | L22: 那須塩原 | M22: 大泉 | N22: 寄居 | O22: 酒々井 | P22: 神津島 | Q22: 横浜南 | R22: 新潟湯沢 | V22: 富士吉田 | W22: 上松 | X22: 山県 | Y22: 静岡森 | Z22: 高浜 | AA22: 東員 | AC22: 京都伏見 | AD22: 松原 | AE22: 神戸西 | AF22: 田原本 | AG22: 有田川 | AJ22: 備前 | AK22: 大竹 | AP22: 本山 | AQ22: 宗像 | AS22: 諫早 | AT22: 人吉 | AW22: 曽於 | AX22: 名護
B23: 岐阜県 | D23: 栗山 | E23: 八戸 | F23: 八幡平 | G23: 仙台泉 | I23: 中山 | J23: 猪苗代 | K23: 桜川 | L23: 日光 | M23: 中之条 | N23: 吉見 | O23: 習志野 | P23: 杉並 | Q23: 横浜保土ケ谷 | R23: 新潟南 | V23: 北杜 | W23: 上田 | X23: 神戸 | Y23: 静岡清水 | Z23: 春日井 | AA23: 南伊勢 | AC23: 京都北 | AD23: 寝屋川 | AE23: 神戸中央 | AF23: 奈良 | AG23: 由良 | AJ23: 美作 | AK23: 竹原 | AQ23: 春日 | AT23: 水俣 | AW23: 大崎 | AX23: 与那原
B24: 静岡県 | D24: 恵庭 | E24: 板柳 | F24: 平泉 | G24: 仙台太白 | I24: 長井 | J24: 田村 | K24: 鹿嶋 | L24: 芳賀 | M24: 長野原 | N24: 吉川 | O24: 勝浦 | P24: 世田谷 | Q24: 横浜緑 | R24: 新潟北 | W24: 信州中野 | X24: 垂井 | Y24: 袋井 | Z24: 小牧 | AA24: 尾鷲 | AC24: 向日 | AD24: 吹田 | AE24: 神戸長田 | AF24: 奈良三郷 | AG24: 和歌山 | AJ24: 矢掛 | AK24: 東広島 | AQ24: 小郡 | AT24: 長洲 | AW24: 知名
B25: 愛知県 | D25: 古平 | E25: 平川 | F25: 北上 | G25: 蔵王 | I25: 鶴岡 | J25: 湯川 | K25: 取手 | L25: 茂木 | M25: 嬬恋 | N25: 久喜 | O25: 松戸 | P25: 清瀬 | Q25: 海老名 | R25: 新発田 | W25: 信濃 | X25: 瑞穂 | Y25: 長泉 | Z25: 常滑 | AA25: 名張 | AC25: 城陽 | AD25: 摂津 | AE25: 神戸東灘 | AF25: 奈良三宅 | AG25: 和歌山美浜 | AJ25: 里庄 | AK25: 廿日市 | AQ25: 小竹 | AT25: 天草 | AW25: 中種子
B26: 三重県 | D26: 厚岸 | E26: 平内 | F26: 矢巾 | G26: 村田 | I26: 天童 | J26: 南会津 | K26: 守谷 | L26: 野木 | M26: 東吾妻 | N26: 宮代 | O26: 成田 | P26: 西東京 | Q26: 開成 | R26: 聖籠 | W26: 諏訪 | X26: 瑞浪 | Y26: 島田 | Z26: 新城 | AA26: 木曽岬 | AC26: 精華 | AD26: 千早赤阪 | AE26: 神戸灘 | AF26: 奈良川西 | AJ26: 和気 | AK26: 備後府中 | AQ26: 須恵 | AT26: 八代 | AW26: 天城
B27: 滋賀県 | D27: 厚真 | E27: 野辺地 | F27: 陸前高田 | G27: 多賀城 | I27: 東根 | J27: 南相馬 | K27: 小美玉 | L27: 矢板 | M27: 藤岡 | N27: 狭山 | O27: 千葉一宮 | P27: 青梅 | Q27: 鎌倉 | R27: 村上 | W27: 須坂 | X27: 多治見 | Y27: 東伊豆 | Z27: 瀬戸 | AA27: 鈴鹿 | AC27: 大山崎 | AD27: 泉佐野 | AE27: 神戸兵庫 | AF27: 奈良大淀 | AK27: 尾道 | AQ27: 水巻 | AW27: 徳之島
B28: 京都府 | D28: 広尾 | E28: 六ヶ所 | G28: 大河原 | I28: 南陽 | J28: 二本松 | K28: 城里 | M28: 板倉 | N28: 熊谷 | O28: 千葉稲毛 | P28: 千代田 | Q28: 茅ケ崎 | R28: 胎内 | W28: 千曲 | X28: 大垣 | Y28: 藤枝 | Z28: 清須 | AC28: 長岡京 | AD28: 泉大津 | AE28: 神戸北 | AF28: 斑鳩 | AK28: 福山 | AQ28: 太宰府 | AW28: 南さつま
B29: 大阪府 | D29: 江差 | E29: 六戸 | G29: 大郷 | I29: 白鷹 | J29: 白河 | K29: 常総 | M29: 富岡 | N29: 戸田 | O29: 千葉栄 | P29: 足立 | Q29: 厚木 | R29: 長岡 | W29: 大町 | X29: 中津川 | Y29: 南伊豆 | Z29: 西尾 | AC29: 南丹 | AD29: 泉南 | AE29: 西宮 | AF29: 平群 | AK29: 北広島町 | AQ29: 大川 | AW29: 南九州
B30: 兵庫県 | D30: 江別 | E30: 鰺ヶ沢 | G30: 大衡 | I30: 尾花沢 | J30: 塙 | K30: 常陸太田 | M30: 邑楽 | N30: 幸手 | O30: 千葉花見川 | P30: 多摩 | Q30: 座間 | R30: 田上 | W30: 辰野 | X30: 土岐 | Y30: 熱海 | Z30: 大治 | AC30: 八幡 | AD30: 大阪阿倍野 | AE30: 西脇 | AF30: 明日香 | AQ30: 大刀洗 | AW30: 南種子
B31: 奈良県 | D31: 今金 | G31: 登米 | I31: 米沢 | J31: 磐梯 | K31: 常陸大宮 | N31: 行田 | O31: 千葉若葉 | P31: 台東 | Q31: 三浦 | R31: 南魚沼 | W31: 長野 | X31: 八百津 | Y31: 函南 | Z31: 大府 | AC31: 舞鶴 | AD31: 大阪旭 | AE31: 赤穂 | AQ31: 大牟田 | AW31: 南大隅
B32: 和歌山県 | D32: 根室 | G32: 東松島 | I32: 遊佐 | J32: 福島 | K32: 神栖 | N32: 鴻巣 | O32: 千葉中央 | P32: 大田 | Q32: 山北 | R32: 柏崎 | W32: 長野宮田 | X32: 飛騨 | Y32: 磐田 | Z32: 知多 | AC32: 福知山 | AD32: 大阪河南 | AE32: 川西 | AQ32: 大野城 | AW32: 日置
B33: 鳥取県 | D33: 砂川 | G33: 南三陸 | J33: 福島伊達 | K33: 水戸 | N33: 坂戸 | O33: 千葉美浜 | P33: 中央 | Q33: 小田原 | R33: 妙高 | W33: 長野池田 | X33: 美濃 | Y33: 浜松西 | Z33: 知立 | AC33: 木津川 | AD33: 大阪狭山 | AE33: 相生 | AQ33: 筑後 | AW33: 枕崎
B34: 島根県 | D34: 札幌厚別 | G34: 白石 | J34: 福島玉川 | K34: 石岡 | N34: 埼玉伊奈 | O34: 千葉緑 | P34: 中野 | Q34: 松田 | R34: 弥彦 | W34: 長野中川 | X34: 美濃加茂 | Y34: 浜松中 | Z34: 長久手 | AC34: 与謝野 | AD34: 大阪港 | AE34: 多可 | AQ34: 筑紫野 | AW34: 霧島
B35: 岡山県 | D35: 札幌手稲 | G35: 富谷 | J35: 福島国見 | K35: 大子 | N35: 埼玉滑川 | O35: 船橋 | P35: 町田 | Q35: 真鶴 | W35: 長野富士見 | X35: 富加 | Y35: 浜松天竜 | Z35: 津島 | AD35: 大阪此花 | AE35: 丹波篠山 | AQ35: 筑前 | AW35: 湧水
B36: 広島県 | D36: 札幌清田 | G36: 名取 | J36: 福島小野 | K36: 大洗 | N36: 埼玉小川 | O36: 匝瑳 | P36: 調布 | Q36: 神奈川寒川 | W36: 東御 | X36: 北方 | Y36: 浜松東 | Z36: 田原 | AD36: 大阪住吉 | AE36: 淡路 | AQ36: 中間 | AW36: 龍郷
B37: 山口県 | D37: 札幌西 | G37: 涌谷 | J37: 福島西郷 | K37: 筑西 | N37: 埼玉川島 | O37: 袖ケ浦 | P37: 東久留米 | Q37: 神奈川大井 | W37: 南箕輪 | X37: 本巣 | Y37: 浜松南 | Z37: 東海 | AD37: 大阪住之江 | AE37: 猪名川 | AQ37: 朝倉 | AW37: 和泊
B38: 徳島県 | D38: 札幌中央 | G38: 利府 | J38: 福島石川 | K38: 潮来 | N38: 三郷 | O38: 多古 | P38: 東京三宅 | Q38: 神奈川二宮 | W38: 白馬 | X38: 揖斐川 | Y38: 浜松浜北 | Z38: 南知多 | AD38: 大阪城東 | AE38: 朝来 | AQ38: 直方
B39: 香川県 | D39: 札幌東 | G39: 亘理 | J39: 福島平田 | K39: 土浦 | N39: 三芳 | O39: 大網白里 | P39: 東京瑞穂 | Q39: 秦野 | W39: 飯綱 | X39: 養老 | Y39: 浜松北 | Z39: 日進 | AD39: 大阪生野 | AE39: 南あわじ | AQ39: 添田
B40: 愛媛県 | D40: 札幌南 | J40: 本宮 | K40: 那珂 | N40: 志木 | O40: 銚子 | P40: 東京大島 | Q40: 逗子 | W40: 飯山 | X40: 輪之内 | Y40: 富士 | Z40: 半田 | AD40: 大阪西 | AE40: 尼崎 | AQ40: 田川
B41: 高知県 | D41: 札幌白石 | J41: 矢吹 | K41: 日立 | N41: 春日部 | O41: 長生 | P41: 東京府中 | Q41: 清川 | W41: 飯田 | Y41: 富士宮 | Z41: 飛島 | AD41: 大阪西成 | AE41: 播磨 | AQ41: 那珂川
B42: 福岡県 | D42: 札幌豊平 | K42: 美浦 | N42: 所沢 | O42: 長南 | P42: 東村山 | Q42: 川崎宮前 | W42: 飯島 | Y42: 牧之原 | Z42: 尾張旭 | AD42: 大阪西淀川 | AE42: 姫路 | AQ42: 粕屋
B43: 佐賀県 | D43: 札幌北 | K43: 鉾田 | N43: 小鹿野 | O43: 東金 | P43: 東大和 | Q43: 川崎幸 | W43: 箕輪 | Z43: 扶桑 | AD43: 大阪太子 | AE43: 福崎 | AQ43: 八女
B44: 長崎県 | D44: 三笠 | K44: 北茨城 | N44: 松伏 | O44: 東庄 | P44: 日の出 | Q44: 川崎高津 | W44: 木曽 | Z44: 武豊 | AD44: 大阪大正 | AE44: 兵庫太子 | AQ44: 飯塚
B45: 熊本県 | D45: 士別 | K45: 利根 | N45: 上尾 | O45: 柏 | P45: 日野 | Q45: 川崎川崎 | W45: 野沢温泉 | Z45: 碧南 | AD45: 大阪中央 | AE45: 兵庫丹波 | AQ45: 福岡芦屋
B46: 大分県 | D46: 枝幸 | K46: 龍ケ崎 | N46: 上里 | O46: 白井 | P46: 八王子 | Q46: 川崎多摩 | Z46: 豊橋 | AD46: 大阪鶴見 | AE46: 宝塚 | AQ46: 福岡城南
B47: 宮崎県 | D47: 七飯 | N47: 新座 | O47: 白子 | P47: 八丈 | Q47: 川崎中原 | Z47: 豊山 | AD47: 大阪天王寺 | AE47: 豊岡 | AQ47: 福岡新宮
B48: 鹿児島県 | D48: 室蘭 | N48: 深谷 | O48: 八街 | P48: 板橋 | Q48: 川崎麻生 | Z48: 豊川 | AD48: 大阪都島 | AE48: 明石 | AQ48: 福岡西
B49: 沖縄県 | D49: 斜里 | N49: 神川 | O49: 八千代 | P49: 品川 | Q49: 相模原中央 | Z49: 豊田 | AD49: 大阪東住吉 | AE49: 養父 | AQ49: 福岡川崎
D50: 小樽 | N50: 杉戸 | O50: 富津 | P50: 武蔵村山 | Q50: 相模原南 | Z50: 豊明 | AD50: 大阪東成 | AQ50: 福岡早良
D51: 上川 | N51: 川越 | O51: 富里 | P51: 武蔵野 | Q51: 相模原緑 | Z51: 北名古屋 | AD51: 大阪東淀川 | AQ51: 福岡中央
D52: 上富良野 | N52: 川口 | O52: 茂原 | P52: 福生 | Q52: 大磯 | Z52: 名古屋港 | AD52: 大阪福島 | AQ52: 福岡東
D53: 新ひだか | N53: 草加 | O53: 木更津 | P53: 文京 | Q53: 大和 | Z53: 名古屋守山 | AD53: 大阪平野 | AQ53: 福岡南
D54: 新十津川 | N54: 秩父 | O54: 野田 | P54: 豊島 | Q54: 中井 | Z54: 名古屋昭和 | AD54: 大阪北 | AQ54: 福岡博多
D55: 新得 | N55: 朝霞 | O55: 流山 | P55: 北 | Q55: 湯河原 | Z55: 名古屋瑞穂 | AD55: 大阪淀川 | AQ55: 福津
D56: 深川 | N56: 鶴ケ島 | P56: 墨田 | Q56: 藤沢 | Z56: 名古屋西 | AD56: 大阪浪速 | AQ56: 豊前
D57: 石狩 | N57: 東松山 | P57: 目黒 | Q57: 南足柄 | Z57: 名古屋千種 | AD57: 大東 | AQ57: 北九州戸畑
D58: 赤平 | N58: 日高 | P58: 立川 | Q58: 箱根 | Z58: 名古屋中 | AD58: 池田 | AQ58: 北九州若松
D59: 千歳 | N59: 入間 | P59: 練馬 | Q59: 平塚 | Z59: 名古屋中川 | AD59: 忠岡 | AQ59: 北九州小倉南
D60: 壮瞥 | N60: 白岡 | Q60: 葉山 | Z60: 名古屋中村 | AD60: 田尻 | AQ60: 北九州小倉北
D61: 増毛 | N61: 八潮 | Z61: 名古屋天白 | AD61: 島本 | AQ61: 北九州八幡西
D62: 足寄 | N62: 鳩山 | Z62: 名古屋東 | AD62: 東大阪 | AQ62: 北九州八幡東
D63: 帯広 | N63: 飯能 | Z63: 名古屋南 | AD63: 藤井寺 | AQ63: 北九州門司
D64: 大空 | N64: 美里 | Z64: 名古屋熱田 | AD64: 能勢 | AQ64: 柳川
D65: 大樹 | N65: 富士見 | Z65: 名古屋北 | AD65: 柏原
D66: 鷹栖 | N66: 北本 | Z66: 名古屋名東 | AD66: 八尾
D67: 滝上 | N67: 本庄 | Z67: 名古屋緑 | AD67: 富田林
D68: 滝川 | N68: 毛呂山 | Z68: 弥富 | AD68: 豊中
D69: 稚内 | N69: 嵐山 | AD69: 豊能
D70: 中標津 | N70: 蓮田 | AD70: 枚方
D71: 長沼 | N71: 和光 | AD71: 箕面
D72: 長万部 | N72: 蕨 | AD72: 岬
D73: 弟子屈 | AD73: 門真
D74: 登別 | AD74: 和泉
D75: 東神楽
D76: 当別
D77: 洞爺湖
D78: 苫小牧
D79: 奈井江
D80: 南幌
D81: 白糠
D82: 白老
D83: 函館
D84: 八雲
D85: 美唄
D86: 美瑛
D87: 美深
D88: 美幌
D89: 標茶
D90: 浜頓別
D91: 富良野
D92: 北海道森
D93: 北海道清水
D94: 北海道池田
D95: 北海道日高
D96: 北海道福島
D97: 北見
D98: 北広島
D99: 北斗
D100: 本別
D101: 幕別
D102: 名寄
D103: 網走
D104: 木古内
D105: 紋別
D106: 雄武
D107: 夕張
D108: 余市
D109: 留萌

Sheet for_010101_listJH01-07 (hidden)
A1: （非表示シート）
B2: せたな | C2: むかわ | D2: 旭川 | E2: 芦別 | F2: 安平 | G2: 伊達 | H2: 羽幌 | I2: 浦河 | J2: 浦幌 | K2: 遠軽 | L2: 音更 | M2: 下川 | N2: 歌志内 | O2: 芽室 | P2: 岩見沢 | Q2: 岩内 | R2: 共和 | S2: 興部 | T2: 倶知安 | U2: 釧路 | V2: 栗山 | W2: 恵庭 | X2: 古平 | Y2: 厚岸 | Z2: 厚真 | AA2: 広尾 | AB2: 江差 | AC2: 江別 | AD2: 今金 | AE2: 根室 | AF2: 砂川 | AG2: 札幌厚別 | AH2: 札幌手稲 | AI2: 札幌清田 | AJ2: 札幌西 | AK2: 札幌中央 | AL2: 札幌東 | AM2: 札幌南 | AN2: 札幌白石 | AO2: 札幌豊平 | AP2: 札幌北 | AQ2: 三笠 | AR2: 士別 | AS2: 枝幸 | AT2: 七飯 | AU2: 室蘭 | AV2: 斜里 | AW2: 小樽 | AX2: 上川 | AY2: 上富良野 | AZ2: 新ひだか | BA2: 新十津川 | BB2: 新得 | BC2: 深川 | BD2: 石狩 | BE2: 赤平 | BF2: 千歳 | BG2: 壮瞥 | BH2: 増毛 | BI2: 足寄 | BJ2: 帯広 | BK2: 大空 | BL2: 大樹 | BM2: 鷹栖 | BN2: 滝上 | BO2: 滝川 | BP2: 稚内 | BQ2: 中標津 | BR2: 長沼 | BS2: 長万部 | BT2: 弟子屈 | BU2: 登別 | BV2: 東神楽 | BW2: 当別 | BX2: 洞爺湖 | BY2: 苫小牧 | BZ2: 奈井江 | CA2: 南幌 | CB2: 白糠 | CC2: 白老 | CD2: 函館 | CE2: 八雲 | CF2: 美唄 | CG2: 美瑛 | CH2: 美深 | CI2: 美幌 | CJ2: 標茶 | CK2: 浜頓別 | CL2: 富良野 | CM2: 北海道森 | CN2: 北海道清水 | CO2: 北海道池田 | CP2: 北海道日高 | CQ2: 北海道福島 | CR2: 北見 | CS2: 北広島 | CT2: 北斗 | CU2: 本別 | CV2: 幕別 | CW2: 名寄 | CX2: 網走 | CY2: 木古内 | CZ2: 紋別 | DA2: 雄武 | DB2: 夕張 | DC2: 余市 | DD2: 留萌 | DE2: おいらせ | DF2: つがる | DG2: むつ | DH2: 階上 | DI2: 外ヶ浜 | DJ2: 五戸 | DK2: 五所川原 | DL2: 弘前 | DM2: 黒石 | DN2: 三戸 | DO2: 三沢 | DP2: 七戸 | DQ2: 十和田 | DR2: 青森 | DS2: 南部町（青森） | DT2: 大鰐 | DU2: 鶴田 | DV2: 田舎館 | DW2: 東北 | DX2: 藤崎 | DY2: 八戸 | DZ2: 板柳 | EA2: 平川 | EB2: 平内 | EC2: 野辺地 | ED2: 六ヶ所 | EE2: 六戸 | EF2: 鰺ヶ沢 | EG2: 一関 | EH2: 一戸 | EI2: 遠野 | EJ2: 奥州 | EK2: 花巻 | EL2: 釜石 | EM2: 岩手 | EN2: 岩手山田 | EO2: 岩手野田 | EP2: 岩泉 | EQ2: 久慈 | ER2: 宮古 | ES2: 金ケ崎 | ET2: 紫波 | EU2: 雫石 | EV2: 盛岡 | EW2: 大船渡 | EX2: 大槌 | EY2: 滝沢 | EZ2: 二戸 | FA2: 八幡平 | FB2: 平泉 | FC2: 北上 | FD2: 矢巾 | FE2: 陸前高田 | FF2: 塩竈 | FG2: 加美 | FH2: 角田 | FI2: 丸森 | FJ2: 岩沼 | FK2: 気仙沼 | FL2: 宮城川崎 | FM2: 宮城大崎 | FN2: 宮城大和 | FO2: 宮城美里 | FP2: 栗原 | FQ2: 山元 | FR2: 七ケ浜 | FS2: 柴田 | FT2: 女川 | FU2: 松島 | FV2: 石巻 | FW2: 仙台宮城野 | FX2: 仙台若林 | FY2: 仙台青葉 | FZ2: 仙台泉 | GA2: 仙台太白 | GB2: 蔵王 | GC2: 村田 | GD2: 多賀城 | GE2: 大河原 | GF2: 大郷 | GG2: 大衡 | GH2: 登米 | GI2: 東松島 | GJ2: 南三陸 | GK2: 白石 | GL2: 富谷 | GM2: 名取 | GN2: 涌谷 | GO2: 利府 | GP2: 亘理 | GQ2: にかほ | GR2: 横手 | GS2: 潟上 | GT2: 五城目 | GU2: 鹿角 | GV2: 秋田 | GW2: 小坂 | GX2: 仙北 | GY2: 大館 | GZ2: 大仙 | HA2: 男鹿 | HB2: 湯沢 | HC2: 能代 | HD2: 八郎潟 | HE2: 美郷 | HF2: 北秋田 | HG2: 由利本荘 | HH2: 寒河江 | HI2: 金山 | HJ2: 高畠 | HK2: 最上 | HL2: 三川 | HM2: 山形 | HN2: 山形河北 | HO2: 山形庄内 | HP2: 山形西川 | HQ2: 山形川西 | HR2: 山形大江 | HS2: 山形朝日 | HT2: 山辺 | HU2: 酒田 | HV2: 小国 | HW2: 上山 | HX2: 新庄 | HY2: 真室川 | HZ2: 村山 | IA2: 大石田 | IB2: 中山 | IC2: 長井 | ID2: 鶴岡 | IE2: 天童 | IF2: 東根 | IG2: 南陽 | IH2: 白鷹 | II2: 尾花沢 | IJ2: 米沢 | IK2: 遊佐 | IL2: いわき | IM2: 会津坂下 | IN2: 会津若松 | IO2: 会津美里 | IP2: 喜多方 | IQ2: 鏡石 | IR2: 桑折 | IS2: 郡山 | IT2: 広野 | IU2: 三春 | IV2: 新地 | IW2: 須賀川 | IX2: 西会津 | IY2: 川俣 | IZ2: 泉崎 | JA2: 浅川 | JB2: 相馬 | JC2: 大玉 | JD2: 棚倉 | JE2: 中島 | JF2: 猪苗代 | JG2: 田村 | JH2: 湯川 | JI2: 南会津 | JJ2: 南相馬 | JK2: 二本松 | JL2: 白河 | JM2: 塙 | JN2: 磐梯 | JO2: 福島 | JP2: 福島伊達 | JQ2: 福島玉川 | JR2: 福島国見 | JS2: 福島小野 | JT2: 福島西郷 | JU2: 福島石川 | JV2: 福島平田 | JW2: 本宮 | JX2: 矢吹
B3: 北海道 久遠郡せたな町北檜山区北檜山３４０番１ | C3: 北海道 勇払郡むかわ町美幸３丁目１番２ | D3: 北海道 旭川市末広東３条３－５－１４ | E3: 北海道 芦別市北１条東２丁目１番２ | F3: 北海道 勇払郡安平町安平５６１番２外 | G3: 北海道 伊達市山下町１４７番１５７外 | H3: 北海道 苫前郡羽幌町南５条３丁目３番１ | I3: 北海道 浦河郡浦河町堺町東３－７－６ | J3: 北海道 十勝郡浦幌町字緑町５２番３ | K3: 北海道 紋別郡遠軽町岩見通北４丁目３番２０ | L3: 北海道 河東郡音更町木野大通東２丁目３番２０ | M3: 北海道 上川郡下川町錦町１１７番 | N3: 北海道 歌志内市字本町１０２７番１０ | O3: 北海道 河西郡芽室町東５条２丁目８番１外 | P3: 北海道 岩見沢市６条西７丁目２番３０ | Q3: 北海道 岩内郡岩内町字相生１７０番７ | R3: 北海道 岩内郡共和町梨野舞納２５５番１７ | S3: 北海道 紋別郡興部町字興部６６１番２外 | T3: 北海道 虻田郡倶知安町南３条東１丁目１６番９外 | U3: 北海道 釧路市大楽毛西１－９－２１ | V3: 北海道 夕張郡栗山町中央１丁目９７番 | W3: 北海道 恵庭市住吉町４－６－３ | X3: 北海道 古平郡古平町大字浜町１８５番１６ | Y3: 北海道 厚岸郡厚岸町若竹３丁目４番 | Z3: 北海道 勇払郡厚真町新町１２７番２１外 | AA3: 北海道 広尾郡広尾町西２条５丁目１番５ | AB3: 北海道 檜山郡江差町字円山２９９番４２ | AC3: 北海道 江別市向ヶ丘２２番１０ | AD3: 北海道 瀬棚郡今金町字今金２３８番１ | AE3: 北海道 根室市西浜町３丁目１９３番１外 | AF3: 北海道 砂川市西１条南１３－４－１１ | AG3: 北海道 札幌市厚別区厚別北３条５－５－５ | AH3: 北海道 札幌市手稲区稲穂２条７－１４－２０ | AI3: 北海道 札幌市清田区真栄１条２－５－８ | AJ3: 北海道 札幌市西区西野５条２－９－２１ | AK3: 北海道 札幌市中央区大通西２８－２－５ | AL3: 北海道 札幌市東区北１７条東１８－１－２９ | AM3: 北海道 札幌市南区真駒内南町１－３－３ | AN3: 北海道 札幌市白石区本郷通４北４－２５ | AO3: 北海道 札幌市豊平区月寒東５条１７－２－６ | AP3: 北海道 札幌市北区北２８条西１３－１－１３ | AQ3: 北海道 三笠市幸町１８番９ | AR3: 北海道 士別市東１条北１丁目１０番外 | AS3: 北海道 枝幸郡枝幸町栄町５３６番３９ | AT3: 北海道 亀田郡七飯町本町２－２５－６ | AU3: 北海道 室蘭市港北町２－８－５ | AV3: 北海道 斜里郡斜里町青葉町１７番４ | AW3: 北海道 小樽市花園２－１０－２３ | AX3: 北海道 上川郡上川町本町９１番２外 | AY3: 北海道 空知郡上富良野町錦町２－３－１１ | AZ3: 北海道 日高郡新ひだか町静内ときわ町３－１１－２６ | BA3: 北海道 樺戸郡新十津川町字中央１２番１０８ | BB3: 北海道 上川郡新得町西１条南１丁目３５番 | BC3: 北海道 深川市５条１２－２４ | BD3: 北海道 石狩市花川北６条５丁目１０５番 | BE3: 北海道 赤平市若木町南５丁目２２番 | BF3: 北海道 千歳市緑町３－２－５ | BG3: 北海道 有珠郡壮瞥町字壮瞥温泉８３番１ | BH3: 北海道 増毛郡増毛町暑寒町３丁目１１２番 | BI3: 北海道 足寄郡足寄町南６条２丁目１８番 | BJ3: 北海道 帯広市東３条南７丁目６番２外 | BK3: 北海道 網走郡大空町西５条３－４－７ | BL3: 北海道 広尾郡大樹町３条通１２番１ | BM3: 北海道 上川郡鷹栖町北野東３条２－２－２０ | BN3: 北海道 紋別郡滝上町字滝ノ上市街地３条通３丁目５番２ | BO3: 北海道 滝川市明神町４－５－２５ | BP3: 北海道 稚内市宝来２－２－２ | BQ3: 北海道 標津郡中標津町東１６条南６丁目５番 | BR3: 北海道 夕張郡長沼町宮下１－３－１７ | BS3: 北海道 山越郡長万部町字長万部１１番７ | BT3: 北海道 川上郡弟子屈町中央２－９－２４ | BU3: 北海道 登別市富岸町２丁目２９番１６ | BV3: 北海道 上川郡東神楽町ひじり野北１条１－５－４ | BW3: 北海道 石狩郡当別町北栄町１番１０ | BX3: 北海道 虻田郡洞爺湖町高砂町５６番６外 | BY3: 北海道 苫小牧市明徳町２－２２－１８ | BZ3: 北海道 空知郡奈井江町字奈井江町１９３番４１ | CA3: 北海道 空知郡南幌町西町５－１－１０ | CB3: 北海道 白糠郡白糠町東１条北３丁目２番１５ | CC3: 北海道 白老郡白老町高砂町２－５－４２ | CD3: 北海道 函館市西旭岡町２丁目１９番１０ | CE3: 北海道 二海郡八雲町富士見町９５番１ | CF3: 北海道 美唄市西３条北２－２－３１ | CG3: 北海道 上川郡美瑛町栄町３－５－２６ | CH3: 北海道 中川郡美深町字東１条北５丁目３番 | CI3: 北海道 網走郡美幌町字東２条南２丁目１番１３ | CJ3: 北海道 川上郡標茶町旭４－３－６ | CK3: 北海道 枝幸郡浜頓別町北２条２丁目２５番 | CL3: 北海道 富良野市末広町１６－７ | CM3: 北海道 茅部郡森町字本町１７５番７ | CN3: 北海道 上川郡清水町南３条６丁目１７番２ | CO3: 北海道 中川郡池田町字西２条８丁目３３番 | CP3: 北海道 沙流郡日高町富川北６－７－９ | CQ3: 北海道 松前郡福島町字福島５５８番１０外 | CR3: 北海道 北見市緑ヶ丘６－２－１１ | CS3: 北海道 北広島市共栄町１丁目１０番３ | CT3: 北海道 北斗市本郷２－３５－７ | CU3: 北海道 中川郡本別町北５丁目８番３外 | CV3: 北海道 中川郡幕別町寿町２番３５ | CW3: 北海道 名寄市西３条南２丁目４番１ | CX3: 北海道 網走市北９条西２丁目４番 | CY3: 北海道 上磯郡木古内町字本町６７５番４ | CZ3: 北海道 紋別市花園町２－６－２７ | DA3: 北海道 紋別郡雄武町字雄武１０３１番５０ | DB3: 北海道 夕張市清水沢１丁目１１８番１２ | DC3: 北海道 余市郡余市町大川町５丁目１５番３ | DD3: 北海道 留萌市潮静２丁目７番１０ | DE3: 青森県 上北郡おいらせ町上明堂８８番１０ | DF3: 青森県 つがる市木造桜川１１番２０ | DG3: 青森県 むつ市海老川町９－３３ | DH3: 青森県 三戸郡階上町蒼前西２丁目９番１２６０ | DI3: 青森県 東津軽郡外ヶ浜町字蟹田田ノ沢３２番２ | DJ3: 青森県 三戸郡五戸町字中道十文字１９番６ | DK3: 青森県 五所川原市松島町２丁目４５番 | DL3: 青森県 弘前市大字浜の町東１丁目７番２ | DM3: 青森県 黒石市追子野木１丁目２４７番１２ | DN3: 青森県 三戸郡三戸町大字同心町字古間木平３番３ | DO3: 青森県 三沢市桜町３－５－１０ | DP3: 青森県 上北郡七戸町字笊田川久保５番８ | DQ3: 青森県 十和田市西十二番町４－１２ | DR3: 青森県 青森市大字野尻字今田１番１０ | DS3: 青森県 三戸郡南部町大字大向字飛鳥７番８ | DT3: 青森県 南津軽郡大鰐町大字蔵館字山下３６番４６ | DU3: 青森県 北津軽郡鶴田町大字鶴田字鷹ノ尾６８番１７ | DV3: 青森県 南津軽郡田舎館村大字田舎舘字中辻１２５番５外 | DW3: 青森県 上北郡東北町上北北１丁目３３番２２１ | DX3: 青森県 南津軽郡藤崎町大字藤崎字村井３０番５外 | DY3: 青森県 八戸市大字八幡字八幡丁２３番２ | DZ3: 青森県 北津軽郡板柳町大字福野田字増田１番１４ | EA3: 青森県 平川市沖館長田１０７番１外 | EB3: 青森県 東津軽郡平内町大字小湊字赤明堂４番１ | EC3: 青森県 上北郡野辺地町字鳴沢２７番８ | ED3: 青森県 上北郡六ヶ所村大字尾駮字野附２４９番２外 | EE3: 青森県 上北郡六戸町大字犬落瀬字千刈田２番５１ | EF3: 青森県 西津軽郡鰺ヶ沢町大字舞戸町字西禿２７番１５ | EG3: 岩手県 一関市東山町長坂字西本町４番外 | EH3: 岩手県 二戸郡一戸町一戸字北舘１５１番４ | EI3: 岩手県 遠野市下組町４－５ | EJ3: 岩手県 奥州市水沢佐倉河字東沖ノ目５１番２ | EK3: 岩手県 花巻市藤沢町４５４番 | EL3: 岩手県 釜石市中妻町２－７－４ | EM3: 岩手県 岩手郡岩手町大字沼宮内第１０地割４３番１ | EN3: 岩手県 下閉伊郡山田町大沢第７地割１３番３ | EO3: 岩手県 九戸郡野田村大字野田第２７地割字白井林１０８番２ | EP3: 岩手県 下閉伊郡岩泉町岩泉字和川原１７番５ | EQ3: 岩手県 久慈市十八日町２丁目２６番 | ER3: 岩手県 宮古市磯鶏沖５－１５ | ES3: 岩手県 胆沢郡金ケ崎町西根達小路２２番 | ET3: 岩手県 紫波郡紫波町二日町字田中前１１番７ | EU3: 岩手県 岩手郡雫石町柿木１０８番１４ | EV3: 岩手県 盛岡市月が丘１－１７－４ | EW3: 岩手県 大船渡市大船渡町字明神前１１番１４ | EX3: 岩手県 上閉伊郡大槌町大槌第１６地割字大石前２０番４９ | EY3: 岩手県 滝沢市大釜風林４７１番２９ | EZ3: 岩手県 二戸市堀野字東側５４番３ | FA3: 岩手県 八幡平市大更第２１地割１２４番２ | FB3: 岩手県 西磐井郡平泉町平泉字衣関８番４ | FC3: 岩手県 北上市鍛冶町１－８－１５ | FD3: 岩手県 紫波郡矢巾町大字南矢幅第１５地割１０４番１３ | FE3: 岩手県 陸前高田市高田町字鳴石５１番９６ | FF3: 宮城県 塩竈市花立町１０－８ | FG3: 宮城県 加美郡加美町菜切谷字正源３番３ | FH3: 宮城県 角田市角田字栄町１０３番４ | FI3: 宮城県 伊具郡丸森町字鳥屋８３番２ | FJ3: 宮城県 岩沼市桜２－７－１２ | FK3: 宮城県 気仙沼市南郷１１番１７ | FL3: 宮城県 柴田郡川崎町大字前川字山長３４番７ | FM3: 宮城県 大崎市古川字竹ノ内２１３番６ | FN3: 宮城県 黒川郡大和町吉岡字館下３７番３ | FO3: 宮城県 遠田郡美里町字峯山８番７２ | FP3: 宮城県 栗原市築館伊豆４－２－１７ | FQ3: 宮城県 亘理郡山元町浅生原字作田山２番１００ | FR3: 宮城県 宮城郡七ケ浜町汐見台３丁目２番１１２ | FS3: 宮城県 柴田郡柴田町松ケ越１丁目８番４ | FT3: 宮城県 牡鹿郡女川町浦宿浜字石ノ田１７番１５ | FU3: 宮城県 宮城郡松島町磯崎字夕陽が丘８５番 | FV3: 宮城県 石巻市泉町１－４－３０ | FW3: 宮城県 仙台市宮城野区新田４－３６－７ | FX3: 宮城県 仙台市若林区連坊２－７－６ | FY3: 宮城県 仙台市青葉区土樋１－９－１４ | FZ3: 宮城県 仙台市泉区松森字鹿島４３番９ | GA3: 宮城県 仙台市太白区門前町６－２１ | GB3: 宮城県 刈田郡蔵王町宮字坂山３番 | GC3: 宮城県 柴田郡村田町大字村田字杉ノ内１番３４ | GD3: 宮城県 多賀城市留ケ谷３－１２－１４ | GE3: 宮城県 柴田郡大河原町字新南８番９ | GF3: 宮城県 黒川郡大郷町粕川字西長崎５３番１０ | GG3: 宮城県 黒川郡大衡村ときわ台３番５ | GH3: 宮城県 登米市登米町登米字寺池鉄砲町２２番１ | GI3: 宮城県 東松島市矢本字蜂谷浦１８４番４ | GJ3: 宮城県 本吉郡南三陸町志津川字廻館１５番１４９ | GK3: 宮城県 白石市上久保７－２ | GL3: 宮城県 富谷市富ケ丘２－１３－８ | GM3: 宮城県 名取市みどり台１丁目８番２ | GN3: 宮城県 遠田郡涌谷町字柳町２９番２ | GO3: 宮城県 宮城郡利府町中央２丁目５番３ | GP3: 宮城県 亘理郡亘理町字新町２１番２ | GQ3: 秋田県 にかほ市両前寺字狐森２０７番２ | GR3: 秋田県 横手市二葉町１０－４９ | GS3: 秋田県 潟上市昭和大久保字山神２２番 | GT3: 秋田県 南秋田郡五城目町字神明前１０６番３外 | GU3: 秋田県 鹿角市花輪字八正寺１１番１４ | GV3: 秋田県 秋田市東通５－１２－８ | GW3: 秋田県 鹿角郡小坂町小坂字上田表４１番１５ | GX3: 秋田県 仙北市角館町上菅沢３３２番８ | GY3: 秋田県 大館市字桜町南２１番４ | GZ3: 秋田県 大仙市大花町９－３－４ | HA3: 秋田県 男鹿市船川港船川字鳥屋場１番２８０ | HB3: 秋田県 湯沢市千石町３－５－８ | HC3: 秋田県 能代市松美町１３－４ | HD3: 秋田県 南秋田郡八郎潟町字中嶋３３６番１１ | HE3: 秋田県 仙北郡美郷町六郷字琴平東１２４番２ | HF3: 秋田県 北秋田市坊沢字屋敷７４番１ | HG3: 秋田県 由利本荘市石脇字山ノ神１１番５７２ | HH3: 山形県 寒河江市西根１－１－１６ | HI3: 山形県 最上郡金山町大字山崎字愛宕下３３４番 | HJ3: 山形県 東置賜郡高畠町大字安久津字加茂川原２３０１番１１ | HK3: 山形県 最上郡最上町大字向町字向町６４９番１ | HL3: 山形県 東田川郡三川町大字押切新田字対馬１０５番１５ | HM3: 山形県 山形市小白川町４－２８－６ | HN3: 山形県 西村山郡河北町谷地中央４丁目１０番１７ | HO3: 山形県 東田川郡庄内町余目字猿田９２番６ | HP3: 山形県 西村山郡西川町大字海味字町浦１３６０番１０ | HQ3: 山形県 東置賜郡川西町大字中小松字三日町２８１７番 | HR3: 山形県 西村山郡大江町大字左沢字柳田２６４番１４ | HS3: 山形県 西村山郡朝日町大字宮宿字田中８１７番１３外 | HT3: 山形県 東村山郡山辺町大字山辺字楯２２番３ | HU3: 山形県 酒田市千石町１－６－２２ | HV3: 山形県 西置賜郡小国町大字小国小坂町２丁目５２番 | HW3: 山形県 上山市鶴脛町１－６－２２ | HX3: 山形県 新庄市大町１２－１４ | HY3: 山形県 最上郡真室川町大字平岡字片杉野５９０番２１外 | HZ3: 山形県 村山市楯岡新町３－３３－６ | IA3: 山形県 北村山郡大石田町大字大石田字東町丙１０３番 | IB3: 山形県 東村山郡中山町大字長崎字元町１９７番３外 | IC3: 山形県 長井市東町１０－１４ | ID3: 山形県 鶴岡市家中新町６－４５ | IE3: 山形県 天童市久野本１－４－４１ | IF3: 山形県 東根市神町東２－９－２２ | IG3: 山形県 南陽市椚塚字松木檀４９３番８ | IH3: 山形県 西置賜郡白鷹町大字荒砥乙字出来町東９５８番 | II3: 山形県 尾花沢市梺町１－３－７ | IJ3: 山形県 米沢市城西３－２－７ | IK3: 山形県 飽海郡遊佐町遊佐字古川９２番２ | IL3: 福島県 いわき市草木台２丁目１０番３ | IM3: 福島県 河沼郡会津坂下町字舘ノ内甲２４２７番２７ | IN3: 福島県 会津若松市一箕町松長３丁目７番９ | IO3: 福島県 大沼郡会津美里町字鹿島３０３３番 | IP3: 福島県 喜多方市字沢ノ免７３３２番１１ | IQ3: 福島県 岩瀬郡鏡石町岡ノ内４０１番 | IR3: 福島県 伊達郡桑折町字新吉町１丁目４番４ | IS3: 福島県 郡山市開成６丁目１５番 | IT3: 福島県 双葉郡広野町大字上浅見川字桜田７２番 | IU3: 福島県 田村郡三春町八島台６丁目１番１８ | IV3: 福島県 相馬郡新地町小川字長谷地３５番５外 | IW3: 福島県 須賀川市森宿字海道西６４番１１８ | IX3: 福島県 耶麻郡西会津町野沢字上原下乙２７３３番２ | IY3: 福島県 伊達郡川俣町大字小神字盛内４番１４ | IZ3: 福島県 西白河郡泉崎村大字泉崎字小林３３番 | JA3: 福島県 石川郡浅川町大字東大畑字裏門６２番１ | JB3: 福島県 相馬市中村字北町７８番６ | JC3: 福島県 安達郡大玉村大山字仲ノ沢１１６番３ | JD3: 福島県 東白川郡棚倉町大字棚倉字南町５番５ | JE3: 福島県 西白河郡中島村大字滑津字二ツ山３６番１ | JF3: 福島県 耶麻郡猪苗代町大字磐里字村東１５番５ | JG3: 福島県 田村市滝根町神俣字河原８４番２ | JH3: 福島県 河沼郡湯川村大字清水田字堂前乙３１番 | JI3: 福島県 南会津郡南会津町田島字北下原２１９番２ | JJ3: 福島県 南相馬市原町区国見町２丁目５０番７ | JK3: 福島県 二本松市若宮２丁目１５６番１４ | JL3: 福島県 白河市新白河２丁目８７番 | JM3: 福島県 東白川郡塙町大字塙字代官町４１番１ | JN3: 福島県 耶麻郡磐梯町大字磐梯字金上壇２５７１番１外 | JO3: 福島県 福島市宮下町７－１４ | JP3: 福島県 伊達市久根妻３１番３ | JQ3: 福島県 石川郡玉川村大字川辺字中沖２９４番外 | JR3: 福島県 伊達郡国見町板橋南１１番６ | JS3: 福島県 田村郡小野町大字小野新町字寺下７６番２０ | JT3: 福島県 西白河郡西郷村字豊作西５番１ | JU3: 福島県 石川郡石川町大字双里字本宮２３番１１ | JV3: 福島県 石川郡平田村大字鴇子字塚田１０５番１ | JW3: 福島県 本宮市本宮字葭ケ入６番２１ | JX3: 福島県 西白河郡矢吹町小松２５４番８
B4: 北海道 久遠郡せたな町北檜山区北檜山１７３番１１ | C4: 北海道 勇払郡むかわ町文京３丁目２９番 | D4: 北海道 旭川市末広２条２－４－５ | E4: 北海道 芦別市北３条東１丁目１４番１４外 | F4: 北海道 勇払郡安平町早来大町１４１番６０ | G4: 北海道 伊達市元町７１番１０ | H4: 北海道 苫前郡羽幌町栄町１０１番１４ | I4: 北海道 浦河郡浦河町潮見町１７番７８ | J4: 北海道 十勝郡浦幌町字東山町１０番２８ | K4: 北海道 紋別郡遠軽町南町２丁目６番１９ | L4: 北海道 河東郡音更町南鈴蘭南２丁目１番１０ | N4: 北海道 歌志内市字文珠１２６番１ | O4: 北海道 河西郡芽室町東６条８丁目２番１１ | P4: 北海道 岩見沢市春日町４－４－１３ | Q4: 北海道 岩内郡岩内町字東山５８番１１ | R4: 北海道 岩内郡共和町老古美８３番５７ | S4: 北海道 紋別郡興部町字興部２４７番２ | T4: 北海道 虻田郡倶知安町南１条西１丁目４０番１外 | U4: 北海道 釧路市米町２－１－２２ | V4: 北海道 夕張郡栗山町中央４丁目２９１番 | W4: 北海道 恵庭市駒場町２－７－２ | X4: 北海道 古平郡古平町大字御崎町５番２ | Y4: 北海道 厚岸郡厚岸町港町２丁目７８番外 | Z4: 北海道 勇払郡厚真町京町１５５番２ | AA4: 北海道 広尾郡広尾町公園通南３丁目３番２３ | AB4: 北海道 檜山郡江差町字新地町５０番１内 | AC4: 北海道 江別市朝日町１３番１４ | AD4: 北海道 瀬棚郡今金町字今金４５９番２０８ | AE4: 北海道 根室市明治町２丁目８３番 | AF4: 北海道 砂川市吉野３条南８－３－７ | AG4: 北海道 札幌市厚別区もみじ台西７－３－３ | AH4: 北海道 札幌市手稲区前田２条４－１－８ | AI4: 北海道 札幌市清田区清田４条２－７－８ | AJ4: 北海道 札幌市西区発寒６条１４－１３－２３ | AK4: 北海道 札幌市中央区南１３条西１３－２－１０ | AL4: 北海道 札幌市東区北２１条東２３－４－２５ | AM4: 北海道 札幌市南区藤野４条１１－４－６ | AN4: 北海道 札幌市白石区北郷２条２－３－３２ | AO4: 北海道 札幌市豊平区平岸４条１７－５－１８ | AP4: 北海道 札幌市北区北３７条西３－１－３５ | AQ4: 北海道 三笠市美園町７０番３８ | AR4: 北海道 士別市東５条１２丁目４５８番３３ | AS4: 北海道 枝幸郡枝幸町北浜町１０７番３０外 | AT4: 北海道 亀田郡七飯町大中山３丁目３０３番２３ | AU4: 北海道 室蘭市柏木町４８－２４ | AV4: 北海道 斜里郡斜里町朝日町３７番１０外 | AW4: 北海道 小樽市緑２－３０－１３ | AX4: 北海道 上川郡上川町栄町６０番３８ | AY4: 北海道 空知郡上富良野町宮町３－２－１３ | AZ4: 北海道 日高郡新ひだか町静内末広町１－３－８ | BA4: 北海道 樺戸郡新十津川町字中央５番７３ | BB4: 北海道 上川郡新得町本通南１丁目２１番７ | BC4: 北海道 深川市稲穂町２－４－２４ | BD4: 北海道 石狩市花川南９条２丁目１８５番 | BE4: 北海道 赤平市錦町３丁目１番３ | BF4: 北海道 千歳市桂木２－４－１７ | BH4: 北海道 増毛郡増毛町南畠中町４丁目１６３番２ | BI4: 北海道 足寄郡足寄町西町４丁目１番４５ | BJ4: 北海道 帯広市東５条南１０丁目５番２ | BK4: 北海道 網走郡大空町夕陽台２－２－５ | BL4: 北海道 広尾郡大樹町新通２丁目１４番１ | BM4: 北海道 上川郡鷹栖町北１条２－７－１５ | BO4: 北海道 滝川市江部乙町西１１－５－４１ | BP4: 北海道 稚内市こまどり４－５－８ | BQ4: 北海道 標津郡中標津町西町１丁目４６番 | BR4: 北海道 夕張郡長沼町栄町１－９－３ | BS4: 北海道 山越郡長万部町字長万部４３０番８８ | BT4: 北海道 川上郡弟子屈町美里５－１３－２ | BU4: 北海道 登別市若山町２丁目７番９ | BV4: 北海道 上川郡東神楽町北１条西１－４－９ | BW4: 北海道 石狩郡当別町樺戸町５２番４９ | BX4: 北海道 虻田郡洞爺湖町入江１９０番１９９ | BY4: 北海道 苫小牧市ときわ町４－２３－９ | BZ4: 北海道 空知郡奈井江町字奈井江５７５番８３ | CA4: 北海道 空知郡南幌町北町５－５－１０ | CC4: 北海道 白老郡白老町末広町３－１４－２３ | CD4: 北海道 函館市湯川町２－３６－８ | CE4: 北海道 二海郡八雲町出雲町１４番８内 | CF4: 北海道 美唄市東６条南２－１－２５ | CG4: 北海道 上川郡美瑛町南町２丁目１１番６２４ | CH4: 北海道 中川郡美深町字東５条北７丁目８番１ | CI4: 北海道 網走郡美幌町字仲町１丁目１４１番３８ | CJ4: 北海道 川上郡標茶町麻生９－４ | CK4: 北海道 枝幸郡浜頓別町旭ヶ丘２丁目６番 | CL4: 北海道 富良野市南麻町６－１０ | CM4: 北海道 茅部郡森町字森川町２１１番４ | CN4: 北海道 上川郡清水町南２条西４丁目７番２外 | CO4: 北海道 中川郡池田町字利別本町２番１６ | CP4: 北海道 沙流郡日高町富川北２－１－６ | CQ4: 北海道 松前郡福島町字月崎３５７番２４ | CR4: 北海道 北見市上ところ１３７番１ | CS4: 北海道 北広島市山手町５丁目３番７ | CT4: 北海道 北斗市常盤２－１－６ | CU4: 北海道 中川郡本別町北８丁目３番８ | CV4: 北海道 中川郡幕別町札内春日町３１５番１０外 | CW4: 北海道 名寄市西１４条南７丁目１番１０ | CX4: 北海道 網走市駒場北１－７－２ | CZ4: 北海道 紋別市落石町２－２２－１７ | DA4: 北海道 紋別郡雄武町字雄武２７４番 | DB4: 北海道 夕張市紅葉山１２６番 | DC4: 北海道 余市郡余市町沢町５丁目４６番２８ | DD4: 北海道 留萌市見晴町２丁目６番４外 | DE4: 青森県 上北郡おいらせ町下明堂８２番２１ | DF4: 青森県 つがる市柏玉水藤岡８番１０ | DG4: 青森県 むつ市大平町１１－９ | DH4: 青森県 三戸郡階上町大字道仏字榊山７番９ | DI4: 青森県 東津軽郡外ヶ浜町字蟹田１２６番１ | DJ4: 青森県 三戸郡五戸町字下大町２８番１ | DK4: 青森県 五所川原市字末広町９番１５ | DL4: 青森県 弘前市大字高屋字本宮４９２番１ | DM4: 青森県 黒石市吉乃町８３番 | DN4: 青森県 三戸郡三戸町大字八日町４０番２ | DO4: 青森県 三沢市岡三沢３丁目７番３ | DP4: 青森県 上北郡七戸町字太田野３５番１５外 | DQ4: 青森県 十和田市東六番町２－２９ | DR4: 青森県 青森市大字石江字岡部１６４番１０外 | DS4: 青森県 三戸郡南部町大字大向字中居構６６番２ | DT4: 青森県 南津軽郡大鰐町大字大鰐字夏沢５番１ | DU4: 青森県 北津軽郡鶴田町大字鶴田字前田３３番４７ | DV4: 青森県 南津軽郡田舎館村大字川部字中西田３０番６８ | DW4: 青森県 上北郡東北町上北北１丁目２４番１７ | DX4: 青森県 南津軽郡藤崎町大字藤崎字中村井２３番１１ | DY4: 青森県 八戸市日計２－５－２８ | DZ4: 青森県 北津軽郡板柳町大字板柳字土井３２３番１ | EA4: 青森県 平川市新館野木和４番３４ | EB4: 青森県 東津軽郡平内町大字小湊字新道７６番３ | EC4: 青森県 上北郡野辺地町字野辺地６番６ | ED4: 青森県 上北郡六ヶ所村大字倉内字笹崎１２８２番１ | EE4: 青森県 上北郡六戸町大字犬落瀬字柴山３番３６ | EF4: 青森県 西津軽郡鰺ヶ沢町大字本町５８番２ | EG4: 岩手県 一関市東山町長坂字南山谷６９番３ | EH4: 岩手県 二戸郡一戸町高善寺字大川鉢３７番１８ | EI4: 岩手県 遠野市東穀町８－３４ | EJ4: 岩手県 奥州市江刺愛宕字境畑５２番９ | EK4: 岩手県 花巻市四日町３－１３－７ | EL4: 岩手県 釜石市定内町２－４－３ | EM4: 岩手県 岩手郡岩手町大字子抱第５地割４９番３ | EN4: 岩手県 下閉伊郡山田町船越第６地割３２番７３ | EO4: 岩手県 九戸郡野田村大字野田第２１地割字日向下７番４ | EP4: 岩手県 下閉伊郡岩泉町岩泉字三本松５番２ | EQ4: 岩手県 久慈市畑田第２６地割１８４番２ | ER4: 岩手県 宮古市西ヶ丘３－３－１８ | ES4: 岩手県 胆沢郡金ケ崎町西根南荒巻２８番５ | ET4: 岩手県 紫波郡紫波町平沢字松田１０番３ | EU4: 岩手県 岩手郡雫石町八卦３９番３ | EV4: 岩手県 盛岡市中堤町３０－４ | EW4: 岩手県 大船渡市立根町字中野２５番２内 | EY4: 岩手県 滝沢市葉の木沢山４５３番３４ | EZ4: 岩手県 二戸市福岡字橋場３３番２ | FA4: 岩手県 八幡平市大更第２１地割２番６ | FB4: 岩手県 西磐井郡平泉町平泉字伽羅楽８番６ | FC4: 岩手県 北上市村崎野１４地割４３２番５７ | FD4: 岩手県 紫波郡矢巾町大字藤沢第６地割６番１５ | FE4: 岩手県 陸前高田市高田町字西和野１３４番６外 | FF4: 宮城県 塩竈市石堂１１－３３ | FG4: 宮城県 加美郡加美町字一本杉４３９番３ | FH4: 宮城県 角田市角田字中島下２４０番１ | FI4: 宮城県 伊具郡丸森町字除２５番２ | FJ4: 宮城県 岩沼市藤浪１－３－３６ | FK4: 宮城県 気仙沼市岩月長平８１番２１ | FL4: 宮城県 柴田郡川崎町大字今宿字野上町５５番 | FM4: 宮城県 大崎市古川小稲葉町３－４０ | FN4: 宮城県 黒川郡大和町もみじケ丘１丁目２１番５ | FO4: 宮城県 遠田郡美里町駅東１丁目１７番３ | FP4: 宮城県 栗原市築館宮野中央１丁目１２番６ | FQ4: 宮城県 亘理郡山元町大平字舘山３番９ | FR4: 宮城県 宮城郡七ケ浜町境山１－２－３３ | FS4: 宮城県 柴田郡柴田町船岡中央１－９－５－１ | FT4: 宮城県 牡鹿郡女川町桜ケ丘８番５ | FU4: 宮城県 宮城郡松島町高城字元釜家２番３ | FV4: 宮城県 石巻市井内字二番８５番１ | FW4: 宮城県 仙台市宮城野区新田２－２０－１１ | FX4: 宮城県 仙台市若林区八軒小路２４番２ | FY4: 宮城県 仙台市青葉区上杉５－６－８ | FZ4: 宮城県 仙台市泉区桂２丁目１５番１１ | GA4: 宮城県 仙台市太白区長町４－２－４０ | GB4: 宮城県 刈田郡蔵王町遠刈田温泉寿町８番 | GC4: 宮城県 柴田郡村田町大字小泉字沖田前５３番９ | GD4: 宮城県 多賀城市高崎１－１０－１０ | GE4: 宮城県 柴田郡大河原町大谷字末広９６番２ | GF4: 宮城県 黒川郡大郷町中村字原町１０番１ | GG4: 宮城県 黒川郡大衡村大衡字石神沢１６番１外 | GH4: 宮城県 登米市迫町佐沼字南佐沼３丁目１番１５ | GI4: 宮城県 東松島市大曲字上納南６８番 | GJ4: 宮城県 本吉郡南三陸町志津川字沼田１００番３９ | GK4: 宮城県 白石市鷹巣東３－１３－１０ | GL4: 宮城県 富谷市東向陽台１－１４－１０ | GM4: 宮城県 名取市小山３－３－７ | GN4: 宮城県 遠田郡涌谷町字桑木荒１２３番７ | GO4: 宮城県 宮城郡利府町赤沼字大日向７７番１ | GP4: 宮城県 亘理郡亘理町逢隈字郡８９番 | GQ4: 秋田県 にかほ市平沢字坂ノ下１８４番 | GR4: 秋田県 横手市旭川３－４－４９ | GS4: 秋田県 潟上市天王字上江川４７番１６５０ | GT4: 秋田県 南秋田郡五城目町上樋口字切通８８番２外 | GU4: 秋田県 鹿角市十和田毛馬内字下小路６４番１２ | GV4: 秋田県 秋田市手形字十七流１０６番５ | GW4: 秋田県 鹿角郡小坂町小坂字山崎２番１００ | GX4: 秋田県 仙北市角館町川原町８４番３ | GY4: 秋田県 大館市水門町８－３０－３ | GZ4: 秋田県 大仙市大曲あけぼの町１１－２５ | HA4: 秋田県 男鹿市船越字内子１番１２９ | HB4: 秋田県 湯沢市岡田町７－２４ | HC4: 秋田県 能代市向能代字トトメキ１０７番３８ | HD4: 秋田県 南秋田郡八郎潟町真坂字大川作７８番１ | HE4: 秋田県 仙北郡美郷町六郷字赤城２１番８ | HF4: 秋田県 北秋田市脇神字平崎上岱１３５番１６ | HG4: 秋田県 由利本荘市後町４２番１ | HH4: 山形県 寒河江市栄町３－５ | HI4: 山形県 最上郡金山町大字金山字羽場９６２番１ | HJ4: 山形県 東置賜郡高畠町大字福沢字鎌塚台１５０番６ | HK4: 山形県 最上郡最上町大字向町字愛宕前８６３番１０ | HL4: 山形県 東田川郡三川町大字青山字村ノ内２１９番 | HM4: 山形県 山形市長町４－４－２１ | HN4: 山形県 西村山郡河北町谷地所岡２丁目１８番１２ | HO4: 山形県 東田川郡庄内町余目字興野４７番 | HP4: 山形県 西村山郡西川町大字水沢字上原４０９番３ | HQ4: 山形県 東置賜郡川西町大字上小松字宮町３３０６番１ | HR4: 山形県 西村山郡大江町大字左沢字愛宕下１１２９番２外 | HS4: 山形県 西村山郡朝日町大字宮宿字上宿１１８４番８ | HT4: 山形県 東村山郡山辺町大字山辺字佐竹段２９９４番３ | HU4: 山形県 酒田市光ケ丘４－２－２１ | HV4: 山形県 西置賜郡小国町大字幸町１０番５ | HW4: 山形県 上山市朝日台１－７－２４ | HX4: 山形県 新庄市下金沢町１３－２５ | HY4: 山形県 最上郡真室川町大字新町字小林７７５番９ | HZ4: 山形県 村山市楯岡俵町９－１６ | IA4: 山形県 北村山郡大石田町大字大石田字上ノ原甲６１６番５７ | IB4: 山形県 東村山郡中山町いずみ５８番 | IC4: 山形県 長井市清水町１－１２－２４ | ID4: 山形県 鶴岡市苗津町７－５ | IE4: 山形県 天童市泉町１－４－２４ | IF4: 山形県 東根市鷺ノ森１－１０－１４ | IG4: 山形県 南陽市宮内字田町二３４２６番６外 | IH4: 山形県 西置賜郡白鷹町大字鮎貝字粡町二２４０６番１ | II4: 山形県 尾花沢市若葉町１－６－１２ | IJ4: 山形県 米沢市通町４－１２－４ | IK4: 山形県 飽海郡遊佐町菅里字菅野３０４番４０ | IL4: 福島県 いわき市平沼ノ内諏訪原２丁目１１番６ | IM4: 福島県 河沼郡会津坂下町字市中三番５番内 | IN4: 福島県 会津若松市河東町広田字六丁２９０番 | IO4: 福島県 大沼郡会津美里町永井野字八月田１５３４番３１ | IP4: 福島県 喜多方市字越巻３７４８番５３ | IQ4: 福島県 岩瀬郡鏡石町旭町３６５番 | IR4: 福島県 伊達郡桑折町字芝堤１２番１５ | IS4: 福島県 郡山市巳六段１５９番 | IT4: 福島県 双葉郡広野町広洋台２丁目２番２１ | IU4: 福島県 田村郡三春町大字下舞木字石崎１５７番７ | IV4: 福島県 相馬郡新地町駒ケ嶺字塔場２０番２１ | IW4: 福島県 須賀川市愛宕山１１９番１１ | IX4: 福島県 耶麻郡西会津町野沢字芝草甲２７２番２ | IY4: 福島県 伊達郡川俣町字瓦町３１番３ | IZ4: 福島県 西白河郡泉崎村大字関和久字上町１１３番 | JA4: 福島県 石川郡浅川町大字浅川字本町西裏８７番５ | JB4: 福島県 相馬市中野字染師前１１番 | JC4: 福島県 安達郡大玉村玉井字午房内２３番１ | JD4: 福島県 東白川郡棚倉町大字棚倉字丸内９９番１２ | JE4: 福島県 西白河郡中島村大字川原田字下町８４番１ | JF4: 福島県 耶麻郡猪苗代町字雷４６４９番２ | JG4: 福島県 田村市滝根町神俣字一ノ坪７３番１ | JH4: 福島県 河沼郡湯川村大字熊ノ目字東畑２１８５番１ | JI4: 福島県 南会津郡南会津町古町字小沼１９３４番 | JJ4: 福島県 南相馬市原町区二見町１丁目１２２番 | JK4: 福島県 二本松市表１丁目１５０番６２ | JL4: 福島県 白河市南町１２番 | JM4: 福島県 東白川郡塙町大字上石井字仲堀５６番１外 | JN4: 福島県 耶麻郡磐梯町大字更科字堰下４６３８番３０ | JO4: 福島県 福島市野田町２－２－３ | JP4: 福島県 伊達市霊山町掛田字下屋敷２５番２外 | JQ4: 福島県 石川郡玉川村大字中字作田２２番 | JR4: 福島県 伊達郡国見町大字大木戸字高橋５２番８ | JS4: 福島県 田村郡小野町大字谷津作字久戸塚１７番７ | JT4: 福島県 西白河郡西郷村大字熊倉字折口原５８番１ | JW4: 福島県 本宮市高木字井戸上１８番１４ | JX4: 福島県 西白河郡矢吹町北町１０番外
B5: 北海道 久遠郡せたな町北檜山区北檜山２６９番６ | C5: 北海道 勇払郡むかわ町美幸２丁目２０番外 | D5: 北海道 旭川市北門町２０丁目２１７２番２４２ | E5: 北海道 芦別市北６条西３丁目３番２ | F5: 北海道 勇払郡安平町早来北町５１番５７ | G5: 北海道 伊達市竹原町４８番１０ | I5: 北海道 浦河郡浦河町大通３丁目２番１外 | L5: 北海道 河東郡音更町大通１０丁目３番２ | O5: 北海道 河西郡芽室町西６条７丁目２番５ | P5: 北海道 岩見沢市日の出北３－９－１３ | U5: 北海道 釧路市鳥取北９－１５－５ | V5: 北海道 夕張郡栗山町中央２丁目９５番１ | W5: 北海道 恵庭市（恵庭駅西口９街区９） | X5: 北海道 古平郡古平町大字浜町７１番１内 | Z5: 北海道 勇払郡厚真町字朝日３８２番３ | AA5: 北海道 広尾郡広尾町本通８丁目８番 | AC5: 北海道 江別市東野幌町８番６ | AE5: 北海道 根室市宝林町１丁目７０番２ | AF5: 北海道 砂川市吉野１条北１－６－９ | AG5: 北海道 札幌市厚別区厚別西２条５－１－２３ | AH5: 北海道 札幌市手稲区前田４条１３－１０－１９ | AI5: 北海道 札幌市清田区清田６条１－８－１７ | AJ5: 北海道 札幌市西区発寒１２条５－５－１１ | AK5: 北海道 札幌市中央区南１０条西９－１－４８ | AL5: 北海道 札幌市東区北１９条東１８－２－３２ | AM5: 北海道 札幌市南区藻岩下３－１０－２２ | AN5: 北海道 札幌市白石区本通１０北４－１９ | AO5: 北海道 札幌市豊平区月寒東３条１８－２２－１８ | AP5: 北海道 札幌市北区新琴似５条８－１－１８ | AQ5: 北海道 三笠市岡山５２番２７ | AR5: 北海道 士別市西３条３－２－４ | AT5: 北海道 亀田郡七飯町大中山２－３５－４ | AU5: 北海道 室蘭市栄町１－４－４ | AV5: 北海道 斜里郡斜里町本町３８番１２ | AW5: 北海道 小樽市富岡２－６－５ | AX5: 北海道 上川郡上川町花園町５２７番 | AY5: 北海道 空知郡上富良野町中町２－１－６ | BA5: 北海道 樺戸郡新十津川町字中央１８番１０ | BC5: 北海道 深川市２条２１－２１ | BD5: 北海道 石狩市八幡４丁目１６６番１５ | BE5: 北海道 赤平市字赤平６６８番３３ | BF5: 北海道 千歳市花園５－２－１４ | BI5: 北海道 足寄郡足寄町北１条２丁目１０番 | BJ5: 北海道 帯広市東１１条南８丁目１番２６ | BM5: 北海道 上川郡鷹栖町２０２６番１９１ | BO5: 北海道 滝川市中島町５－６－２０ | BP5: 北海道 稚内市中央３－８－２３ | BR5: 北海道 夕張郡長沼町中央南１－７－２ | BU5: 北海道 登別市常盤町１丁目３１番２ | BV5: 北海道 上川郡東神楽町字東神楽１１７番２２ | BW5: 北海道 石狩郡当別町弥生５２番１０内 | BX5: 北海道 虻田郡洞爺湖町本町１５７番１外 | BY5: 北海道 苫小牧市柏木町３－５－５ | BZ5: 北海道 空知郡奈井江町字奈井江町４２番１ | CA5: 北海道 空知郡南幌町栄町１－２－１９ | CC5: 北海道 白老郡白老町字萩野７１番１６ | CD5: 北海道 函館市高松町５７１番１１２外 | CE5: 北海道 二海郡八雲町本町１３６番１外 | CF5: 北海道 美唄市東３条北６－４－６ | CG5: 北海道 上川郡美瑛町本町１－３－２０ | CI5: 北海道 網走郡美幌町字大通北１丁目１３番１ | CL5: 北海道 富良野市日の出町７－３ | CM5: 北海道 茅部郡森町字御幸町１８番１１ | CN5: 北海道 上川郡清水町本通３丁目１８番２ | CO5: 北海道 中川郡池田町字大通２丁目１３番 | CQ5: 北海道 松前郡福島町字福島１２２番１外 | CR5: 北海道 北見市清見町３２番外 | CS5: 北海道 北広島市大曲柏葉３丁目５番１９ | CT5: 北海道 北斗市谷好２－７－９ | CU5: 北海道 中川郡本別町北３丁目３番１１ | CV5: 北海道 中川郡幕別町札内共栄町１７５番２３ | CW5: 北海道 名寄市大通南１１丁目２番２９ | CX5: 北海道 網走市駒場南６丁目７４番３７ | CZ5: 北海道 紋別市本町５－１－４ | DA5: 北海道 紋別郡雄武町字雄武８７４番１ | DB5: 北海道 夕張市本町２丁目２１７番 | DC5: 北海道 余市郡余市町黒川町４丁目１１２番外 | DE5: 青森県 上北郡おいらせ町三本木１００番４外 | DF5: 青森県 つがる市木造千代町５６番２ | DG5: 青森県 むつ市大畑町兎沢２０２番２ | DK5: 青森県 五所川原市字一ツ谷５３８番５ | DL5: 青森県 弘前市大字鷹匠町１番１ | DM5: 青森県 黒石市大字山形町１０番１外 | DO5: 青森県 三沢市中央町３－２－１９ | DP5: 青森県 上北郡七戸町字七戸２１０番３ | DQ5: 青森県 十和田市東二十四番町１７－８ | DR5: 青森県 青森市大字三内字沢部３９９番３ | DS5: 青森県 三戸郡南部町大字大向字勘吉４８番１０ | DT5: 青森県 南津軽郡大鰐町大字鯖石字広田８番９ | DU5: 青森県 北津軽郡鶴田町大字鶴田字生松９５番４外 | DV5: 青森県 南津軽郡田舎館村大字大根子字村立６０番１外 | DX5: 青森県 南津軽郡藤崎町大字俵舛字前田４番３ | DY5: 青森県 八戸市下長２－５－２ | EA5: 青森県 平川市尾上栄松３０６番 | EF5: 青森県 西津軽郡鰺ヶ沢町大字舞戸町字上富田５１番 | EG5: 岩手県 一関市上坊５－２４ | EH5: 岩手県 二戸郡一戸町高善寺字野田１１０番４ | EI5: 岩手県 遠野市中央通り５－３２ | EJ5: 岩手県 奥州市胆沢小山字森下３番 | EK5: 岩手県 花巻市東和町土沢８区１９０番 | EL5: 岩手県 釜石市野田町２－１４－３３ | EM5: 岩手県 岩手郡岩手町大字沼宮内第７地割２４番１外 | EP5: 岩手県 下閉伊郡岩泉町岩泉字下宿４０番 | EQ5: 岩手県 久慈市西の沢第６地割１番６６ | ER5: 岩手県 宮古市山口３－７－１４ | ET5: 岩手県 紫波郡紫波町日詰字郡山駅２３４番１外 | EU5: 岩手県 岩手郡雫石町上町南２２番 | EV5: 岩手県 盛岡市上太田弘法清水３６番２内 | EW5: 岩手県 大船渡市大船渡町字下平１９番６ | EY5: 岩手県 滝沢市穴口４４６番１７ | EZ5: 岩手県 二戸市福岡字横丁２６番 | FB5: 岩手県 西磐井郡平泉町平泉字泉屋８１番６外 | FC5: 岩手県 北上市常盤台４－６－７１ | FD5: 岩手県 紫波郡矢巾町大字南矢幅第９地割３６７番 | FE5: 岩手県 陸前高田市高田町字中田７７番４ | FF5: 宮城県 塩竈市今宮町１６－３１ | FG5: 宮城県 加美郡加美町字南町９４番１ | FH5: 宮城県 角田市角田字町２２９番３ | FJ5: 宮城県 岩沼市二木２－３－６ | FK5: 宮城県 気仙沼市東新城１丁目５番４ | FL5: 宮城県 柴田郡川崎町大字前川字本町２番２ | FM5: 宮城県 大崎市古川駅東３－８－５ | FN5: 宮城県 黒川郡大和町吉岡字西原９番１１ | FO5: 宮城県 遠田郡美里町藤ケ崎１丁目５４番外 | FP5: 宮城県 栗原市若柳字川北古川１１９番６ | FQ5: 宮城県 亘理郡山元町山寺字山下６４番 | FR5: 宮城県 宮城郡七ケ浜町遠山２－７－３４ | FT5: 宮城県 牡鹿郡女川町浦宿浜字浦宿２４番３ | FU5: 宮城県 宮城郡松島町高城字三居山一２０番１ | FV5: 宮城県 石巻市蛇田字沖１１番３ | FW5: 宮城県 仙台市宮城野区清水沼３－２－６ | FX5: 宮城県 仙台市若林区五十人町２５番５ | FY5: 宮城県 仙台市青葉区錦町１－１－３０ | FZ5: 宮城県 仙台市泉区南光台４－２４－３３ | GA5: 宮城県 仙台市太白区郡山８－１１－８ | GD5: 宮城県 多賀城市大代４－１２－１０ | GE5: 宮城県 柴田郡大河原町大谷字町向１００番９ | GH5: 宮城県 登米市迫町佐沼字光ケ丘１９番２ | GI5: 宮城県 東松島市大塩字緑ケ丘１丁目３番２ | GJ5: 宮城県 本吉郡南三陸町志津川字沼田１５０番７９ | GK5: 宮城県 白石市字幸３２番 | GL5: 宮城県 富谷市あけの平３丁目７番６ | GM5: 宮城県 名取市大手町５丁目８番４ | GN5: 宮城県 遠田郡涌谷町字柳町２７番４外 | GO5: 宮城県 宮城郡利府町神谷沢字赤坂７番９外 | GP5: 宮城県 亘理郡亘理町字中町１０番 | GQ5: 秋田県 にかほ市金浦字浜の田１６０番３ | GR5: 秋田県 横手市増田町増田字中町２８番１ | GS5: 秋田県 潟上市天王字長沼１３２番６２ | GT5: 秋田県 南秋田郡五城目町字鵜ノ木２１番９ | GU5: 秋田県 鹿角市花輪字合ノ野１８９番１ | GV5: 秋田県 秋田市下新城中野字街道端西４１番外 | GX5: 秋田県 仙北市田沢湖生保内字武蔵野１０５番１２０ | GY5: 秋田県 大館市南神明町７－１９ | GZ5: 秋田県 大仙市大曲金谷町４－２７ | HB5: 秋田県 湯沢市材木町１－１－４０ | HC5: 秋田県 能代市字鳥小屋１９番２４ | HD5: 秋田県 南秋田郡八郎潟町字昼根下９３番２ | HE5: 秋田県 仙北郡美郷町六郷字上町１４番 | HF5: 秋田県 北秋田市米内沢字寺ノ下８番１０ | HG5: 秋田県 由利本荘市石脇字今町１５６番１２０ | HH5: 山形県 寒河江市仲谷地２丁目１１番８ | HI5: 山形県 最上郡金山町大字金山字町浦４１１番 | HJ5: 山形県 東置賜郡高畠町大字高畠字町裏６８２番３外 | HL5: 山形県 東田川郡三川町大字横山字袖東１番８外 | HM5: 山形県 山形市すげさわの丘１０番２ | HN5: 山形県 西村山郡河北町谷地字谷地ニ２８番 | HO5: 山形県 東田川郡庄内町余目字三人谷地２１９番 | HP5: 山形県 西村山郡西川町大字間沢字金畑２５７番１外 | HQ5: 山形県 東置賜郡川西町大字上小松字西五日町３４８８番１外 | HR5: 山形県 西村山郡大江町大字左沢字横町３６２番外 | HT5: 山形県 東村山郡山辺町大字根際字五宮４５３番 | HU5: 山形県 酒田市旭新町９－４ | HV5: 山形県 西置賜郡小国町大字岩井沢字町二８３９番１外 | HW5: 山形県 上山市美咲町１－４－３ | HX5: 山形県 新庄市小田島町６－８ | HY5: 山形県 最上郡真室川町大字新町字上荒川１４１番１１ | HZ5: 山形県 村山市楯岡十日町４－３４ | IA5: 山形県 北村山郡大石田町大字大石田字新大石田甲４１番 | IB5: 山形県 東村山郡中山町大字土橋字北８９番２ | IC5: 山形県 長井市今泉字本地三１１２２番６ | ID5: 山形県 鶴岡市城南町８－９ | IE5: 山形県 天童市東長岡２－４－５ | IF5: 山形県 東根市神町北３－１５－１４ | IG5: 山形県 南陽市三間通字東六角１１５番３ | IH5: 山形県 西置賜郡白鷹町大字荒砥乙字横町１０１４番 | II5: 山形県 尾花沢市新町２－４－２５ | IJ5: 山形県 米沢市大町５－１－５８ | IL5: 福島県 いわき市四倉町字東３丁目２０番１ | IN5: 福島県 会津若松市行仁町１１－１６ | IO5: 福島県 大沼郡会津美里町字川原町甲１８１１番９ | IP5: 福島県 喜多方市字清水台３丁目１４７番外 | IQ5: 福島県 岩瀬郡鏡石町鏡沼１８７番 | IR5: 福島県 伊達郡桑折町大字北半田字御免町４番 | IS5: 福島県 郡山市朝日２－２０－８ | IW5: 福島県 須賀川市南上町７７番 | IX5: 福島県 耶麻郡西会津町野沢字原町乙２１４７番１ | JB5: 福島県 相馬市中村字川沼２８８番 | JD5: 福島県 東白川郡棚倉町大字棚倉字古町９７番１ | JF5: 福島県 耶麻郡猪苗代町字新町４８５８番１外 | JG5: 福島県 田村市船引町船引字扇田５９番２ | JI5: 福島県 南会津郡南会津町古町字千苅８６０番１ | JJ5: 福島県 南相馬市鹿島区寺内字横峯４９番２７ | JK5: 福島県 二本松市渋川字下柿ノ内２５番１外 | JL5: 福島県 白河市会津町２７番２２ | JM5: 福島県 東白川郡塙町大字塙字大町２丁目２８番１ | JO5: 福島県 福島市八島田字八幡北３番１１ | JP5: 福島県 伊達市保原町字泉町７０番３ | JS5: 福島県 田村郡小野町大字小野新町字中通５３番 | JT5: 福島県 西白河郡西郷村字道南西１０２番外 | JW5: 福島県 本宮市糠沢字礼堂４１６番４ | JX5: 福島県 西白河郡矢吹町本町１５４番
D6: 北海道 旭川市末広東１条１１－３－１２ | E6: 北海道 芦別市北１条東１丁目６番５外 | F6: 北海道 勇払郡安平町早来大町４０番 | G6: 北海道 伊達市舟岡町１８７番３４ | L6: 北海道 河東郡音更町柳町仲区１０番８ | O6: 北海道 河西郡芽室町本通南１丁目２番１７ | P6: 北海道 岩見沢市２条東７丁目７番２ | U6: 北海道 釧路市鳥取北３－５－１６ | W6: 北海道 恵庭市幸町３－３－１１ | Z6: 北海道 勇払郡厚真町字豊沢１２４５番 | AC6: 北海道 江別市野幌代々木町７０番４ | AE6: 北海道 根室市常盤町３丁目６番３ | AF6: 北海道 砂川市西１条南１－１－６ | AG6: 北海道 札幌市厚別区厚別東４条７－２７－１１ | AH6: 北海道 札幌市手稲区星置２条５－１０－１５ | AI6: 北海道 札幌市清田区里塚２条６－２１－２５ | AJ6: 北海道 札幌市西区発寒７条７－３－３ | AK6: 北海道 札幌市中央区南１８条西８－１－４３ | AL6: 北海道 札幌市東区本町２条２－２－３５ | AM6: 北海道 札幌市南区澄川４条８－１５－５ | AN6: 北海道 札幌市白石区南郷通７南１－１３ | AO6: 北海道 札幌市豊平区月寒東２条１９－１７－２３ | AP6: 北海道 札幌市北区篠路１条８－５－１０ | AQ6: 北海道 三笠市幸町６番１１ | AR6: 北海道 士別市大通西６丁目７１２番１ | AT6: 北海道 亀田郡七飯町大川３－１３－１３ | AU6: 北海道 室蘭市新富町１－９－１９ | AW6: 北海道 小樽市東雲町７－１２ | BC6: 北海道 深川市４条９－３ | BD6: 北海道 石狩市横町２８番２ | BE6: 北海道 赤平市本町１丁目２番２外 | BF6: 北海道 千歳市長都駅前１－１２－７ | BJ6: 北海道 帯広市東３条南２１丁目１２番２ | BM6: 北海道 上川郡鷹栖町北１条２－１－４ | BO6: 北海道 滝川市東町５－９－３２ | BU6: 北海道 登別市幌別町６丁目２０番２１ | BV6: 北海道 上川郡東神楽町北１条西３－２－４ | BY6: 北海道 苫小牧市川沿町６－１１－１８ | CC6: 北海道 白老郡白老町字北吉原８８番１０ | CD6: 北海道 函館市本通１－４９－１９ | CF6: 北海道 美唄市大通西１条南１－３－６ | CR6: 北海道 北見市清月町７番１５ | CS6: 北海道 北広島市美沢３丁目４番８ | CT6: 北海道 北斗市追分２－１２－１０ | CV6: 北海道 中川郡幕別町札内中央町３３０番１７ | CW6: 北海道 名寄市風連町大町８５番１６ | CX6: 北海道 網走市南４条西１丁目９番３外 | DG6: 青森県 むつ市松山町１７－１２ | DK6: 青森県 五所川原市字大町５０８番３ | DL6: 青森県 弘前市大字若党町５７番１ | DO6: 青森県 三沢市松園町３－２－２２ | DQ6: 青森県 十和田市西二番町８－４９ | DR6: 青森県 青森市沖館４－５－１２ | DT6: 青森県 南津軽郡大鰐町大字大鰐字大鰐９２番４外 | DV6: 青森県 南津軽郡田舎館村大字川部字上船橋５８番１ | DY6: 青森県 八戸市長者２－８－９ | EA6: 青森県 平川市柏木町柳田１２３番 | EG6: 岩手県 一関市千厩町千厩字北方８２番１ | EJ6: 岩手県 奥州市江刺八日町２－１－９ | EK6: 岩手県 花巻市星が丘１－１８－１０ | EQ6: 岩手県 久慈市二十八日町２丁目８番 | ER6: 岩手県 宮古市末広町６－５ | EV6: 岩手県 盛岡市安倍館町１１－９ | EW6: 岩手県 大船渡市赤崎町字沢田１０４番１５外 | EY6: 岩手県 滝沢市鵜飼鰍森４番７ | EZ6: 岩手県 二戸市福岡字落久保１１番 | FC6: 岩手県 北上市黒沢尻１－１０－１３ | FD6: 岩手県 紫波郡矢巾町大字北矢幅第１地割１１番３ | FF6: 宮城県 塩竈市権現堂１７－３ | FJ6: 宮城県 岩沼市竹の里２丁目９番２ | FK6: 宮城県 気仙沼市上田中１丁目６番３ | FM6: 宮城県 大崎市三本木南谷地字長寿院浦４７番５ | FN6: 宮城県 黒川郡大和町鶴巣北目大崎字屋敷下４９番１ | FP6: 宮城県 栗原市若柳字川南上堤２２３番 | FT6: 宮城県 牡鹿郡女川町旭が丘２丁目１０番２ | FU6: 宮城県 宮城郡松島町松島字小石浜２３番２９外 | FV6: 宮城県 石巻市蛇田字新西境谷地２２番２外 | FW6: 宮城県 仙台市宮城野区幸町２－１６－５ | FX6: 宮城県 仙台市若林区一本杉町２５－２１ | FY6: 宮城県 仙台市青葉区小田原５－２－１１ | FZ6: 宮城県 仙台市泉区旭丘堤２－１５－２２ | GA6: 宮城県 仙台市太白区郡山６－３－２７－１ | GD6: 宮城県 多賀城市浮島字高原７５番１２ | GH6: 宮城県 登米市東和町米谷字杣荷６９番１ | GI6: 宮城県 東松島市牛網字駅前１丁目５番８外 | GK6: 宮城県 白石市字沢目８番３ | GL6: 宮城県 富谷市とちの木２－１１－１５ | GM6: 宮城県 名取市名取が丘４－９－１０ | GO6: 宮城県 宮城郡利府町しらかし台５丁目１３番１１ | GQ6: 秋田県 にかほ市金浦字岡の谷地１６０番２７ | GR6: 秋田県 横手市増田町増田字関ノ口１０４番８外 | GS6: 秋田県 潟上市天王字追分西９５番１３ | GU6: 秋田県 鹿角市花輪字中花輪１０番 | GV6: 秋田県 秋田市千秋中島町３－１７ | GX6: 秋田県 仙北市角館町中町２９番 | GY6: 秋田県 大館市比内町扇田字南扇田４３番１ | GZ6: 秋田県 大仙市神宮寺字中瀬古川敷１０番４外 | HB6: 秋田県 湯沢市田町２－１－６ | HC6: 秋田県 能代市二ツ井町字太田面２番１３ | HF6: 秋田県 北秋田市米内沢字御嶽５０番７外 | HG6: 秋田県 由利本荘市矢島町城内字小田４０番２ | HH6: 山形県 寒河江市丸内３－１－１ | HM6: 山形県 山形市城西町５－８－６ | HU6: 山形県 酒田市若宮町１－５－１７ | HW6: 山形県 上山市金生西２－１６－９ | HX6: 山形県 新庄市沖の町５－７ | ID6: 山形県 鶴岡市白山字興野１２４番４ | IE6: 山形県 天童市乱川３－１１－１４ | IF6: 山形県 東根市さくらんぼ駅前２－１７－２０ | IG6: 山形県 南陽市赤湯字森前４０３番１ | II6: 山形県 尾花沢市上町１－４－１４ | IJ6: 山形県 米沢市窪田町窪田字堰場５９６番４３ | IL6: 福島県 いわき市四倉町字梅ケ丘２番２ | IN6: 福島県 会津若松市一箕町大字八幡字墓料１番４８ | IO6: 福島県 大沼郡会津美里町字車川原甲３２８８番１４ | IP6: 福島県 喜多方市塩川町字藤の木２６番３ | IQ6: 福島県 岩瀬郡鏡石町高久田２００番 | IS6: 福島県 郡山市田村町守山字大町３番２ | IW6: 福島県 須賀川市並木町１０９番８ | JB6: 福島県 相馬市中村字新町３６番１ | JG6: 福島県 田村市大越町上大越字求中１０７番１ | JI6: 福島県 南会津郡南会津町田島字後町甲３９６９番１ | JJ6: 福島県 南相馬市鹿島区鹿島字御前ノ内１１８番１ | JK6: 福島県 二本松市西勝田字樋ノ口３８番 | JL6: 福島県 白河市表郷梁森字瀬戸原１１６番１外 | JO6: 福島県 福島市上浜町１３－２ | JP6: 福島県 伊達市梁川町広瀬町５８番 | JW6: 福島県 本宮市糠沢字八幡３１番
D7: 北海道 旭川市忠和８条３－２－５ | F7: 北海道 勇払郡安平町遠浅１０８番 | G7: 北海道 伊達市長和町４９４番３ | L7: 北海道 河東郡音更町宝来仲町南１丁目４番２ | O7: 北海道 河西郡芽室町東８条６丁目２番７ | P7: 北海道 岩見沢市緑が丘３丁目１９６番１７ | U7: 北海道 釧路市昭和町３－１４－１５ | W7: 北海道 恵庭市北柏木町２－２０－４ | Z7: 北海道 勇払郡厚真町字上厚真２１３番３ | AC7: 北海道 江別市大麻中町１６番４ | AG7: 北海道 札幌市厚別区厚別北２条２－９－８ | AH7: 北海道 札幌市手稲区前田８条１７－３－２９ | AI7: 北海道 札幌市清田区北野３条２－２－１４ | AJ7: 北海道 札幌市西区山の手２条１０－２－３ | AK7: 北海道 札幌市中央区双子山２－３－１２ | AL7: 北海道 札幌市東区北丘珠４条２－５－２０ | AM7: 北海道 札幌市南区真駒内曙町４－５－９ | AN7: 北海道 札幌市白石区菊水元町２条５－６－６ | AO7: 北海道 札幌市豊平区月寒東４条９－１－７ | AP7: 北海道 札幌市北区篠路８条６－１５－６ | AT7: 北海道 亀田郡七飯町本町５－１９－１４ | AU7: 北海道 室蘭市大沢町３－３－１０ | AW7: 北海道 小樽市最上１－１６－１５ | BD7: 北海道 石狩市花畔３条１丁目８６番 | BF7: 北海道 千歳市本町５丁目８７８番４８ | BJ7: 北海道 帯広市西２１条南３丁目３２番９ | BU7: 北海道 登別市中央町７丁目１６番６外 | BY7: 北海道 苫小牧市しらかば町２－１０－２６ | CC7: 北海道 白老郡白老町字竹浦１９８番２５１ | CD7: 北海道 函館市松川町４５－１３ | CR7: 北海道 北見市留辺蘂町栄町１６番２８ | CS7: 北海道 北広島市朝日町４丁目３番１０ | CT7: 北海道 北斗市東浜２－２８－１０ | CV7: 北海道 中川郡幕別町札内あかしや町４７番２３ | CW7: 北海道 名寄市風連町北栄町２３番２ | CX7: 北海道 網走市駒場南７－２－１ | DG7: 青森県 むつ市柳町１－２－１７ | DK7: 青森県 五所川原市字布屋町９番６外 | DL7: 青森県 弘前市大字田園１丁目４番１４ | DQ7: 青森県 十和田市大字相坂字小林１８番１外 | DR7: 青森県 青森市久須志３－２－１６ | DY7: 青森県 八戸市根城４－８－３ | EA7: 青森県 平川市日沼高田１６１番１ | EG7: 岩手県 一関市千厩町千厩字石堂１５番２０ | EJ7: 岩手県 奥州市前沢字山下１１６番１ | EK7: 岩手県 花巻市西宮野目第６地割５８３番２５ | EV7: 岩手県 盛岡市東新庄２－２－４０ | EY7: 岩手県 滝沢市篠木明法１２９番４外 | FC7: 岩手県 北上市上野町４－１６－９ | FD7: 岩手県 紫波郡矢巾町流通センター南１－５－１６ | FF7: 宮城県 塩竈市野田７－５ | FJ7: 宮城県 岩沼市相の原１－３－３１ | FK7: 宮城県 気仙沼市八日町２－２－１ | FM7: 宮城県 大崎市三本木新町１－１２－１３ | FN7: 宮城県 黒川郡大和町吉岡まほろば２丁目１７番１３ | FP7: 宮城県 栗原市栗駒岩ケ崎上小路１１８番３ | FU7: 宮城県 宮城郡松島町幡谷字鹿渡２５番６ | FV7: 宮城県 石巻市大街道西１－１１－９８ | FW7: 宮城県 仙台市宮城野区二の森４－１６ | FX7: 宮城県 仙台市若林区椌木通６７番４ | FY7: 宮城県 仙台市青葉区小松島１－７－５ | FZ7: 宮城県 仙台市泉区虹の丘３丁目１０番１３ | GA7: 宮城県 仙台市太白区長町南１－１６－２ | GD7: 宮城県 多賀城市高橋２－２０－８ | GH7: 宮城県 登米市津山町柳津字黄牛比良７６番１ | GI7: 宮城県 東松島市矢本字下浦２７２番３ | GL7: 宮城県 富谷市太子堂１－２０－２１ | GM7: 宮城県 名取市杜せきのした５丁目１０番４ | GO7: 宮城県 宮城郡利府町加瀬字十三本塚１６２番１６ | GQ7: 秋田県 にかほ市象潟町字武道島１３０番５ | GR7: 秋田県 横手市平鹿町浅舞字林崎５９番 | GS7: 秋田県 潟上市飯田川飯塚字深田４２番１５ | GU7: 秋田県 鹿角市十和田大湯字上ノ湯２８番２０ | GV7: 秋田県 秋田市保戸野中町２－１０ | GY7: 秋田県 大館市比内町扇田字伊勢堂岱４５番３ | GZ7: 秋田県 大仙市神宮寺字館ノ北８番５外 | HC7: 秋田県 能代市二ツ井町字下野４４番６ | HF7: 秋田県 北秋田市下杉字狐森３７番９ | HG7: 秋田県 由利本荘市矢島町七日町字熊之堂３１番６ | HM7: 山形県 山形市荒楯町１－９－１０ | HU7: 山形県 酒田市錦町２丁目７３番４外 | HW7: 山形県 上山市高松字高松１１２番 | ID7: 山形県 鶴岡市城北町１６－７ | IE7: 山形県 天童市交り江５－４－１２ | IJ7: 山形県 米沢市舘山５－１－５１－３ | IL7: 福島県 いわき市佐糠町東１丁目１０番１７ | IN7: 福島県 会津若松市花畑東６－２６ | IO7: 福島県 大沼郡会津美里町福重岡字桜ノ下甲９９５番１外 | IP7: 福島県 喜多方市字３丁目４８０１番３ | IS7: 福島県 郡山市西ノ内１－９－２０ | IW7: 福島県 須賀川市弘法坦１２０番 | JB7: 福島県 相馬市中村字大町２２番 | JG7: 福島県 田村市船引町船引字石崎１５番２１ | JJ7: 福島県 南相馬市原町区錦町１丁目４３番 | JK7: 福島県 二本松市本町２丁目５７番 | JL7: 福島県 白河市表郷三森字月桜４５番 | JO7: 福島県 福島市笹谷字谷地中１１番１１ | JP7: 福島県 伊達市保原町字八幡町６６番１ | JW7: 福島県 本宮市本宮字荒町９番１
D8: 北海道 旭川市春光６条４－３－１０ | F8: 北海道 勇払郡安平町安平２７３番５ | G8: 北海道 伊達市向有珠町２０４番１２ | L8: 北海道 河東郡音更町緑陽台南区３番７６ | O8: 北海道 河西郡芽室町北芽室北４線６番２ | P8: 北海道 岩見沢市栗沢町南本町１８番６２ | U8: 北海道 釧路市新川町１１－７ | W8: 北海道 恵庭市中島町２丁目８番８ | Z8: 北海道 勇払郡厚真町字軽舞２８０番外 | AC8: 北海道 江別市東光町１１１番１３ | AG8: 北海道 札幌市厚別区厚別中央４条２－２５－６ | AH8: 北海道 札幌市手稲区曙１０条１－４－２１ | AI8: 北海道 札幌市清田区平岡８条４－１２－６ | AJ8: 北海道 札幌市西区八軒７条東４－５－１６ | AK8: 北海道 札幌市中央区北１４条西１５－３－１３ | AL8: 北海道 札幌市東区北４３条東１４－４－５ | AM8: 北海道 札幌市南区澄川６条１３－５－３ | AN8: 北海道 札幌市白石区菊水元町８条２－１２－２１ | AO8: 北海道 札幌市豊平区月寒東２条１４－３－２２ | AP8: 北海道 札幌市北区屯田９条１－５－１６ | AU8: 北海道 室蘭市東町１－５－１１ | AW8: 北海道 小樽市見晴町１０－５ | BD8: 北海道 石狩市花川南１条２丁目１８７番 | BF8: 北海道 千歳市北斗４－１０－１９ | BJ8: 北海道 帯広市西３条南２１丁目１１番２ | BU8: 北海道 登別市富士町４丁目２１番３ | BY8: 北海道 苫小牧市永福町２－１０－６ | CC8: 北海道 白老郡白老町字虎杖浜８６番４ | CD8: 北海道 函館市大川町１０－１１ | CR8: 北海道 北見市川東５６番５４外 | CS8: 北海道 北広島市東共栄２丁目２０番５ | CT8: 北海道 北斗市向野１－１６－２５ | CV8: 北海道 中川郡幕別町旭町２４番２６ | CW8: 北海道 名寄市西３条南６丁目２８番２ | DG8: 青森県 むつ市中央２－１０－９ | DL8: 青森県 弘前市大字賀田１丁目１７番５外 | DR8: 青森県 青森市大字野内字菊川３３７番１ | DY8: 青森県 八戸市大字根城字馬場頭２３番９ | EA8: 青森県 平川市中佐渡南田１６番７外 | EG8: 岩手県 一関市大町１－１１ | EJ8: 岩手県 奥州市前沢字沖田８４番４ | EK8: 岩手県 花巻市石鳥谷町好地第１６地割２４番２ | EV8: 岩手県 盛岡市山岸１－７－２ | EY8: 岩手県 滝沢市鵜飼細谷地８１番９ | FC8: 岩手県 北上市大通り１－８－２３ | FF8: 宮城県 塩竈市母子沢町４－８ | FJ8: 宮城県 岩沼市たけくま２－１４－４ | FM8: 宮城県 大崎市鹿島台木間塚字姥ケ沢３６番３ | FN8: 宮城県 黒川郡大和町松坂平４丁目３番 | FP8: 宮城県 栗原市志波姫沼崎北曽根１９３番２ | FU8: 宮城県 宮城郡松島町手樽字元手樽３４番 | FV8: 宮城県 石巻市錦町３－５１ | FW8: 宮城県 仙台市宮城野区東仙台５－４－１０ | FX8: 宮城県 仙台市若林区大和町３－１－２５ | FY8: 宮城県 仙台市青葉区宮町５－３－１３ | FZ8: 宮城県 仙台市泉区東黒松１１－１８ | GA8: 宮城県 仙台市太白区西多賀４－２６－３５ | GD8: 宮城県 多賀城市東田中１－１３－１３ | GH8: 宮城県 登米市石越町北郷字小谷地９７番１ | GI8: 宮城県 東松島市小野字町６５番 | GL8: 宮城県 富谷市明石台１丁目２２番１３ | GM8: 宮城県 名取市相互台１丁目８番１４ | GO8: 宮城県 宮城郡利府町神谷沢字化粧坂１０番３８ | GQ8: 秋田県 にかほ市平沢字清水１２５番 | GR8: 秋田県 横手市平鹿町浅舞字浅舞１０６番 | GS8: 秋田県 潟上市天王字棒沼台９４番１９ | GV8: 秋田県 秋田市千秋北の丸７－１３ | GY8: 秋田県 大館市字大町２８番１外 | GZ8: 秋田県 大仙市字刈和野８７番 | HC8: 秋田県 能代市柳町１３－５ | HF8: 秋田県 北秋田市木戸石字屋布岱７０番 | HG8: 秋田県 由利本荘市花畑町４丁目４６番 | HM8: 山形県 山形市印役町１－８－２５ | HU8: 山形県 酒田市曙町１丁目４番１１ | HW8: 山形県 上山市矢来１－５－２ | ID8: 山形県 鶴岡市西荒屋字杉下４１番 | IE8: 山形県 天童市駅西４－８－６ | IJ8: 山形県 米沢市門東町３－２－５８ | IL8: 福島県 いわき市平南白土２丁目１１番１３外 | IN8: 福島県 会津若松市北会津町中荒井字稲荷２１番１ | IO8: 福島県 大沼郡会津美里町字高田甲２８８７番１ | IP8: 福島県 喜多方市塩川町字東栄町５丁目１番３１ | IS8: 福島県 郡山市笹川２丁目１９８番 | IW8: 福島県 須賀川市丸田町１８８番２ | JG8: 福島県 田村市常葉町西向字石ノ坪１５番４ | JJ8: 福島県 南相馬市鹿島区鹿島字町１５６番 | JK8: 福島県 二本松市亀谷２丁目２３０番 | JL8: 福島県 白河市東深仁井田字道山２番４３ | JO8: 福島県 福島市町庭坂字一本杉８番４５ | JP8: 福島県 伊達市保原町字内町１３番１３
D9: 北海道 旭川市永山５条６－２－８ | G9: 北海道 伊達市末永町１２番７４ | L9: 北海道 河東郡音更町新通１５丁目６番３ | O9: 北海道 河西郡芽室町芽室基線２５番８ | P9: 北海道 岩見沢市栗沢町最上２番２２ | U9: 北海道 釧路市文苑４－１４－２０ | W9: 北海道 恵庭市島松本町３－４－１３ | AC9: 北海道 江別市豊幌美咲町４８番５ | AG9: 北海道 札幌市厚別区青葉町２－１０－２２ | AH9: 北海道 札幌市手稲区前田９条１２－２－１０ | AI9: 北海道 札幌市清田区平岡５条６－１３－３ | AJ9: 北海道 札幌市西区宮の沢４条３－４－２３ | AK9: 北海道 札幌市中央区南２９条西１０－２－５ | AL9: 北海道 札幌市東区北１１条東４－１－３ | AM9: 北海道 札幌市南区藤野２条５－１３－５ | AN9: 北海道 札幌市白石区平和通２北１－２６ | AO9: 北海道 札幌市豊平区月寒東１条７－４－２７ | AP9: 北海道 札幌市北区北１５条西２－２－１０ | AU9: 北海道 室蘭市幌萌町３１番５ | AW9: 北海道 小樽市稲穂５－７－３ | BD9: 北海道 石狩市花川北４条２丁目１３１番 | BF9: 北海道 千歳市信濃４－１５－５ | BJ9: 北海道 帯広市西４条南２７丁目１番５外 | BU9: 北海道 登別市新生町３丁目５番１７ | BY9: 北海道 苫小牧市啓北町２－９－５ | CC9: 北海道 白老郡白老町大町３－５－１１ | CD9: 北海道 函館市的場町５－２６ | CR9: 北海道 北見市末広町３６６番５５ | CS9: 北海道 北広島市大曲南ヶ丘３丁目１４番５ | CT9: 北海道 北斗市押上２０８番１０ | DG9: 青森県 むつ市大畑町新町７７番１ | DL9: 青森県 弘前市大字茂森新町２丁目７番４ | DR9: 青森県 青森市篠田１－２３－１７ | DY9: 青森県 八戸市大字新井田字石動木平４２番４９ | EA9: 青森県 平川市本町北柳田２０番５３外 | EJ9: 岩手県 奥州市胆沢南都田字鶴田３１６番２外 | EK9: 岩手県 花巻市石鳥谷町中寺林第７地割３８番３０ | EV9: 岩手県 盛岡市緑が丘４－５－１１ | FC9: 岩手県 北上市柳原町２－１－４７ | FF9: 宮城県 塩竈市舟入２－１－１２－８ | FJ9: 宮城県 岩沼市桑原３－２－４９－５ | FM9: 宮城県 大崎市鹿島台平渡字狸沢３７番１１ | FP9: 宮城県 栗原市金成沢辺新八幡山３番 | FU9: 宮城県 宮城郡松島町松島字町内９８番９ | FV9: 宮城県 石巻市中里５－８－７ | FW9: 宮城県 仙台市宮城野区東仙台７－７－３９ | FX9: 宮城県 仙台市若林区大和町５－１１－２２ | FY9: 宮城県 仙台市青葉区貝ケ森１－１６－２２ | FZ9: 宮城県 仙台市泉区黒松２－４－１６ | GA9: 宮城県 仙台市太白区富沢４－１３－２ | GD9: 宮城県 多賀城市丸山１－６－７ | GH9: 宮城県 登米市中田町石森字古舘２５番３ | GI9: 宮城県 東松島市赤井字舘前２２０番４外 | GL9: 宮城県 富谷市ひより台２丁目５番１０ | GM9: 宮城県 名取市上余田字千刈田８０３番６ | GO9: 宮城県 宮城郡利府町森郷字蓮沼２０番１３ | GQ9: 秋田県 にかほ市象潟町字四丁目塩越６８番１ | GR9: 秋田県 横手市十文字町梨木字羽場下７２番３８ | GV9: 秋田県 秋田市御所野元町２－８－５ | GY9: 秋田県 大館市片山町１－５－１ | GZ9: 秋田県 大仙市大曲福住町５－２７ | HG9: 秋田県 由利本荘市岩渕下１３番１３ | HM9: 山形県 山形市双月町３－１－１９ | HU9: 山形県 酒田市亀ケ崎６－７－３１ | HW9: 山形県 上山市四ツ谷２－１－４６ | ID9: 山形県 鶴岡市道形町３６－６ | IE9: 山形県 天童市長岡北１－１－５ | IJ9: 山形県 米沢市門東町２－５－２６ | IL9: 福島県 いわき市平字作町３丁目１番１６ | IN9: 福島県 会津若松市大町２－４－１６ | IP9: 福島県 喜多方市字西四ツ谷１８３番２ | IS9: 福島県 郡山市並木５丁目３番１１ | IW9: 福島県 須賀川市新町１４６番２ | JG9: 福島県 田村市船引町船引字五升車１９番４ | JK9: 福島県 二本松市油井字福岡４０番３外 | JL9: 福島県 白河市東栃本字市倉４２番１ | JO9: 福島県 福島市笹木野字笹木野町１番３ | JP9: 福島県 伊達市保原町上保原字向台１番１２８
D10: 北海道 旭川市東３条３－１－２１ | G10: 北海道 伊達市西浜町８２番５７ | L10: 北海道 河東郡音更町宝来本通７丁目１番９９ | P10: 北海道 岩見沢市４条西６丁目２番１外 | U10: 北海道 釧路市中園町１８－２ | W10: 北海道 恵庭市漁町３３０番５ | AC10: 北海道 江別市緑町西１丁目６５番１ | AG10: 北海道 札幌市厚別区厚別南２－５－１７ | AH10: 北海道 札幌市手稲区富丘１条７－５－２３ | AI10: 北海道 札幌市清田区真栄４条３－８－１６ | AJ10: 北海道 札幌市西区西町南１９－３－１２ | AK10: 北海道 札幌市中央区旭ケ丘１－１１－２０ | AL10: 北海道 札幌市東区北５０条東６－４－５ | AM10: 北海道 札幌市南区南沢５条３－５－２３ | AN10: 北海道 札幌市白石区北郷６条９－５－８ | AO10: 北海道 札幌市豊平区平岸６条１２－５－３ | AP10: 北海道 札幌市北区篠路４条８－６－１６ | AU10: 北海道 室蘭市宮の森町４－８－１１ | AW10: 北海道 小樽市長橋５－７－９ | BD10: 北海道 石狩市花川南３条４丁目８０番 | BF10: 北海道 千歳市柏陽２丁目３番１１ | BJ10: 北海道 帯広市大空町１丁目６番１３ | BU10: 北海道 登別市千歳町４丁目５番１１８ | BY10: 北海道 苫小牧市桜木町４－１７－２ | CC10: 北海道 白老郡白老町字萩野２７８番４４ | CD10: 北海道 函館市杉並町５－２６ | CR10: 北海道 北見市東三輪１丁目９１番４９外 | CS10: 北海道 北広島市大曲緑ヶ丘４丁目１番３ | CT10: 北海道 北斗市久根別２－１－７ | DL10: 青森県 弘前市大字徳田町２０番１ | DR10: 青森県 青森市長島３－９－９ | DY10: 青森県 八戸市根城７－３－１９ | EJ10: 岩手県 奥州市水沢中町１番１５外 | EK10: 岩手県 花巻市上町４－２０ | EV10: 岩手県 盛岡市門１－８－３５ | FC10: 岩手県 北上市大通り４－２－３ | FF10: 宮城県 塩竈市楓町３－７－９ | FJ10: 宮城県 岩沼市押分字西土手８７番５ | FM10: 宮城県 大崎市岩出山字浦小路１０４番３外 | FP10: 宮城県 栗原市志波姫八樟貝の堀９８番２外 | FU10: 宮城県 宮城郡松島町松島字道珍浜３８番２１外 | FV10: 宮城県 石巻市恵み野４丁目７番８ | FW10: 宮城県 仙台市宮城野区自由ケ丘２７－６ | FX10: 宮城県 仙台市若林区霞目２－１０－７ | FY10: 宮城県 仙台市青葉区鷺ケ森１－１４－２６ | FZ10: 宮城県 仙台市泉区泉中央３丁目２７番１２ | GA10: 宮城県 仙台市太白区鈎取３－２－１６ | GD10: 宮城県 多賀城市中央２－１９－２ | GH10: 宮城県 登米市豊里町小口前１６７番２ | GI10: 宮城県 東松島市矢本字道地浦１３５番１ | GL10: 宮城県 富谷市日吉台３丁目６番９外 | GM10: 宮城県 名取市飯野坂６－７－２１ | GO10: 宮城県 宮城郡利府町青葉台２丁目１番２３８ | GR10: 秋田県 横手市田中町９－１７ | GV10: 秋田県 秋田市川尻総社町４－１５ | GY10: 秋田県 大館市比内町扇田字下扇田５０番１ | GZ10: 秋田県 大仙市大曲中通町３－１７ | HG10: 秋田県 由利本荘市矢島町七日町字羽坂３番８ | HM10: 山形県 山形市深町２－７－３ | HU10: 山形県 酒田市小泉字上川原１９番１２ | ID10: 山形県 鶴岡市美咲町８－７ | IE10: 山形県 天童市大字荒谷字小才勝３９３番１０６ | IJ10: 山形県 米沢市中央７－３－１８ | IL10: 福島県 いわき市平泉崎字前原２５番２ | IN10: 福島県 会津若松市河東町南高野字高塚９４番 | IS10: 福島県 郡山市大槻町字原田北１８番８ | IW10: 福島県 須賀川市中宿４７２番 | JG10: 福島県 田村市常葉町常葉字荒町３３番２ | JL10: 福島県 白河市大信中新城字赤坂１８４番 | JO10: 福島県 福島市宮代字一本木１６番２５ | JP10: 福島県 伊達市梁川町二野袋字大正２４番外
D11: 北海道 旭川市新富１条３－３－３ | G11: 北海道 伊達市旭町６３番２７ | L11: 北海道 河東郡音更町大通５丁目２番３６ | P11: 北海道 岩見沢市日の出町２４番１ | U11: 北海道 釧路市中島町１３－２３ | W11: 北海道 恵庭市恵み野東６丁目１１番４ | AC11: 北海道 江別市高砂町２８番２ | AG11: 北海道 札幌市厚別区厚別南６－９－３ | AH11: 北海道 札幌市手稲区星置１条８－４－２１ | AI11: 北海道 札幌市清田区平岡８条１－８－２５ | AJ11: 北海道 札幌市西区琴似３条５－３－２２ | AK11: 北海道 札幌市中央区宮の森１条１１－３－１２ | AL11: 北海道 札幌市東区北４０条東６－４－３１ | AM11: 北海道 札幌市南区川沿７条４－１－１９ | AN11: 北海道 札幌市白石区栄通１３－２－１３ | AO11: 北海道 札幌市豊平区福住２条２－８－７ | AP11: 北海道 札幌市北区新琴似７条１６－６－３ | AU11: 北海道 室蘭市本輪西町４－２－１５ | AW11: 北海道 小樽市桜３－６－１７ | BD11: 北海道 石狩市花川南８条４丁目２５５番 | BF11: 北海道 千歳市桜木５－２－１４ | BJ11: 北海道 帯広市西１３条南３２丁目２番１５ | BU11: 北海道 登別市美園町６丁目１５番２外 | BY11: 北海道 苫小牧市山手町２－６－６ | CC11: 北海道 白老郡白老町字社台６４番１７ | CD11: 北海道 函館市本通４－７－１４ | CR11: 北海道 北見市西三輪２丁目６３０番４２ | CS11: 北海道 北広島市白樺町２丁目５番７ | CT11: 北海道 北斗市追分３－２－１３ | DL11: 青森県 弘前市大字取上２丁目１５番３５ | DR11: 青森県 青森市旭町２－１６－２４ | DY11: 青森県 八戸市高州２－５－６ | EJ11: 岩手県 奥州市水沢太日通り１－４－９ | EK11: 岩手県 花巻市西大通り１－２１－３ | EV11: 岩手県 盛岡市上田堤２－１１－２ | FF11: 宮城県 塩竈市北浜２－１６－１２ | FJ11: 宮城県 岩沼市小川字中井１番 | FM11: 宮城県 大崎市岩出山字東川原町１４番３ | FP11: 宮城県 栗原市築館伊豆１－１０－５ | FV11: 宮城県 石巻市吉野町３－５－２１ | FW11: 宮城県 仙台市宮城野区岩切字東河原２９１番 | FX11: 宮城県 仙台市若林区今泉１－１９－３８ | FY11: 宮城県 仙台市青葉区台原３－３１－４ | FZ11: 宮城県 仙台市泉区友愛町９３番 | GA11: 宮城県 仙台市太白区鈎取本町２－５－２３ | GD11: 宮城県 多賀城市八幡２－１４－９ | GH11: 宮城県 登米市石越町南郷字舘前１８番２４ | GI11: 宮城県 東松島市小松字庚申３番２ | GL11: 宮城県 富谷市成田５丁目１２番６ | GM11: 宮城県 名取市田高字南５５３番 | GO11: 宮城県 宮城郡利府町加瀬字野中沢１２４番３３ | GV11: 秋田県 秋田市南通築地１２－３３ | HM11: 山形県 山形市飯田西４－８－１０ | HU11: 山形県 酒田市御成町１１－６ | ID11: 山形県 鶴岡市藤島字笹花５２番１６ | IE11: 山形県 天童市大字山元字的場５５番２外 | IL11: 福島県 いわき市平上荒川字砂屋戸１１７番４ | IN11: 福島県 会津若松市西栄町２－３ | IS11: 福島県 郡山市富久山町福原字泉崎１９番１５ | IW11: 福島県 須賀川市和田字後町１１３番１ | JL11: 福島県 白河市大信増見字外面５６番１ | JO11: 福島県 福島市丸子字沢目２３番１１ | JP11: 福島県 伊達市保原町字実町５４番１外
D12: 北海道 旭川市西神楽南１条３丁目２４８番６１ | G12: 北海道 伊達市有珠町１８９番２ | P12: 北海道 岩見沢市７条西１丁目６番３ | U12: 北海道 釧路市昭和中央４－４－１５ | W12: 北海道 恵庭市島松寿町１丁目１９番４ | AC12: 北海道 江別市牧場町２７番５ | AG12: 北海道 札幌市厚別区もみじ台東７－８－１２ | AH12: 北海道 札幌市手稲区新発寒３条２－３－１９ | AI12: 北海道 札幌市清田区平岡４条２－１３－３ | AJ12: 北海道 札幌市西区八軒３条西２－７－４ | AK12: 北海道 札幌市中央区宮の森４条１２－６－２１ | AL12: 北海道 札幌市東区北３０条東１９－４－６ | AM12: 北海道 札幌市南区川沿１６条２－５－１８ | AN12: 北海道 札幌市白石区栄通５－８－２２ | AO12: 北海道 札幌市豊平区月寒西１条８－５－２５ | AP12: 北海道 札幌市北区屯田４条８－８－９ | AU12: 北海道 室蘭市御前水町１－１０－５ | AW12: 北海道 小樽市奥沢１－８－８ | BD12: 北海道 石狩市花川北２条６丁目１６２番 | BF12: 北海道 千歳市北陽４－７－５ | BJ12: 北海道 帯広市西９条南３９－３－２ | BU12: 北海道 登別市登別東町２丁目６番１４ | BY12: 北海道 苫小牧市字糸井３７７番２５ | CC12: 北海道 白老郡白老町字竹浦２１６番１２４ | CD12: 北海道 函館市柏木町２５－１ | CR12: 北海道 北見市美山町西３丁目１０５番３ | CS12: 北海道 北広島市輪厚中央１丁目６番１０ | DL12: 青森県 弘前市大字富士見町１０番２ | DR12: 青森県 青森市大字安田字近野２５５番２９ | DY12: 青森県 八戸市（八戸駅西３７街区７－１、７－２） | EJ12: 岩手県 奥州市江刺川原町２－２０ | EK12: 岩手県 花巻市石鳥谷町好地第１６地割１０６番１内 | EV12: 岩手県 盛岡市高松２－３３－５ | FF12: 宮城県 塩竈市新浜町２－１９－６ | FJ12: 宮城県 岩沼市中央１－２－１０ | FM12: 宮城県 大崎市鳴子温泉字新屋敷１２２番１３ | FP12: 宮城県 栗原市若柳字川北新町３４番１外 | FV12: 宮城県 石巻市鹿妻北３－５－１１ | FW12: 宮城県 仙台市宮城野区田子３－５－２５ | FX12: 宮城県 仙台市若林区荒井字神屋敷１２５番２外 | FY12: 宮城県 仙台市青葉区水の森１－９－６ | FZ12: 宮城県 仙台市泉区歩坂町６－７ | GA12: 宮城県 仙台市太白区山田本町１６－５ | GD12: 宮城県 多賀城市新田字南関合３９番１１ | GH12: 宮城県 登米市登米町登米字寺池九日町５５番１ | GI12: 宮城県 東松島市矢本字栄町４１番 | GL12: 宮城県 富谷市志戸田切添５番１ | GM12: 宮城県 名取市飯野坂１－１４－８ | GV12: 秋田県 秋田市楢山川口境１５－２１ | HM12: 山形県 山形市久保田３－７－３２ | HU12: 山形県 酒田市宮海字向砂畑１４番３ | ID12: 山形県 鶴岡市鼠ヶ関字横路２９７番３ | IE12: 山形県 天童市桜町２－９ | IL12: 福島県 いわき市四倉町上仁井田字松葉４６番１７ | IN12: 福島県 会津若松市山鹿町１－６７ | IS12: 福島県 郡山市赤木町３－１６ | IW12: 福島県 須賀川市稲字平１番１ | JL12: 福島県 白河市大手町１４番６外 | JO12: 福島県 福島市小倉寺字二反田２２番５
D13: 北海道 旭川市緑が丘２条３丁目１番１２ | G13: 北海道 伊達市弄月町２０１番１５ | U13: 北海道 釧路市緑ケ岡２－３５－４ | W13: 北海道 恵庭市柏陽町３丁目２０８番６３外 | AC13: 北海道 江別市一番町３１番１４ | AG13: 北海道 札幌市厚別区上野幌３条４－７－６ | AH13: 北海道 札幌市手稲区前田１２条１０－１９－２０ | AI13: 北海道 札幌市清田区清田２条１－１３－２２ | AJ13: 北海道 札幌市西区西野１０条７－６－２ | AK13: 北海道 札幌市中央区南４条西２３－２－２１ | AL13: 北海道 札幌市東区北３５条東９－２－１４ | AM13: 北海道 札幌市南区澄川５条５－１４－６ | AN13: 北海道 札幌市白石区本通１７南６－５ | AO13: 北海道 札幌市豊平区西岡５条１－１６－２１ | AP13: 北海道 札幌市北区新川２条８－４－１９ | AU13: 北海道 室蘭市知利別町３－３－９ | AW13: 北海道 小樽市赤岩１－６－５ | BD13: 北海道 石狩市花川北１条５丁目７番 | BF13: 北海道 千歳市信濃３－１２－１３ | BJ13: 北海道 帯広市西２０条南５－１７－１７ | BU13: 北海道 登別市中登別町９８番３８外 | BY13: 北海道 苫小牧市白金町２－３－５ | CC13: 北海道 白老郡白老町字北吉原６６１番３２９ | CD13: 北海道 函館市深堀町２９－９ | CR13: 北海道 北見市栄町４丁目５番１１ | CS13: 北海道 北広島市西の里東３丁目８番８ | DL13: 青森県 弘前市大字豊原２丁目１３番１８ | DR13: 青森県 青森市浪岡大字浪岡字平野４１番４５ | DY13: 青森県 八戸市類家１丁目２１５番９ | EJ13: 岩手県 奥州市前沢字三日町２７番 | EK13: 岩手県 花巻市東和町土沢５区４０５番 | EV13: 岩手県 盛岡市上堂４－３－４０ | FF13: 宮城県 塩竈市港町２－１５－９ | FJ13: 宮城県 岩沼市館下１－３－１１ | FM13: 宮城県 大崎市鳴子温泉字川渡４１番７ | FP13: 宮城県 栗原市栗駒岩ケ崎六日町９１番２ | FV13: 宮城県 石巻市渡波字根岸前５８番２２ | FW13: 宮城県 仙台市宮城野区福室６－８－１１ | FX13: 宮城県 仙台市若林区沖野１－３０－１ | FY13: 宮城県 仙台市青葉区桜ケ丘４－２３－６ | FZ13: 宮城県 仙台市泉区南光台東２－３２－２２ | GA13: 宮城県 仙台市太白区人来田２－１８－１６ | GD13: 宮城県 多賀城市山王字山王二区１３３番１０ | GH13: 宮城県 登米市東和町米谷字元町１６６番 | GM13: 宮城県 名取市手倉田字堰根７０６番 | GV13: 秋田県 秋田市山王中島町１３－３５ | HM13: 山形県 山形市瀬波１－１２－８ | HU13: 山形県 酒田市東大町１丁目４番２２ | ID13: 山形県 鶴岡市下山添字一里塚１６０番８ | IE13: 山形県 天童市東本町１－１５－２２ | IL13: 福島県 いわき市平中山字柳町２２番１２ | IN13: 福島県 会津若松市対馬館町１０－７ | IS13: 福島県 郡山市芳賀２－１６－１４ | IW13: 福島県 須賀川市仁井田字東町９９番２外 | JL13: 福島県 白河市白坂牛清水１０３番１外 | JO13: 福島県 福島市八島田字樋ノ口６７番外
D14: 北海道 旭川市神楽２条７－１－１８ | G14: 北海道 伊達市東関内町１５９番２ | U14: 北海道 釧路市武佐３－２５－２ | W14: 北海道 恵庭市白樺町１－１０－１３ | AC14: 北海道 江別市野幌町２３番６ | AG14: 北海道 札幌市厚別区厚別東２条５－２１－２０ | AH14: 北海道 札幌市手稲区前田２条３－１－２１ | AI14: 北海道 札幌市清田区平岡２条３－４－１８ | AJ14: 北海道 札幌市西区発寒７条１１－３－３４ | AK14: 北海道 札幌市中央区南１５条西６－１－１ | AL14: 北海道 札幌市東区北２５条東１８－２－２７ | AM14: 北海道 札幌市南区藤野１条６－１０－２ | AN14: 北海道 札幌市白石区北郷９条９－２－３３ | AO14: 北海道 札幌市豊平区西岡１条５－７－１３ | AP14: 北海道 札幌市北区屯田５条３－８－１６ | AU14: 北海道 室蘭市高砂町５－４－１５ | AW14: 北海道 小樽市豊川町１７－４ | BD14: 北海道 石狩市花川南５条１丁目１３１番外 | BF14: 北海道 千歳市住吉４－１０－１４ | BJ14: 北海道 帯広市西１７条南５丁目１１番４ | BU14: 北海道 登別市富岸町１丁目２番２ | BY14: 北海道 苫小牧市日新町１－８－７ | CD14: 北海道 函館市山の手１－２４－３ | CR14: 北海道 北見市小泉３９７番５２ | CS14: 北海道 北広島市新富町西２丁目３番１５ | DL14: 青森県 弘前市大字新里字上樋田１２９番１外 | DR14: 青森県 青森市松原２－１２－１９ | DY14: 青森県 八戸市大字中居林字平２７番４ | EK14: 岩手県 花巻市二枚橋第４地割３番５ | EV14: 岩手県 盛岡市長田町１５－５ | FF14: 宮城県 塩竈市海岸通５－６ | FJ14: 宮城県 岩沼市桜３－１３－３６ | FM14: 宮城県 大崎市古川駅前大通２－３－３８ | FP14: 宮城県 栗原市志波姫堀口源光１番１５ | FV14: 宮城県 石巻市広渕字町南一３０８番 | FW14: 宮城県 仙台市宮城野区岩切３－８－２４ | FX14: 宮城県 仙台市若林区かすみ町２２－７ | FY14: 宮城県 仙台市青葉区西勝山２５－６ | FZ14: 宮城県 仙台市泉区松陵５丁目５番５ | GA14: 宮城県 仙台市太白区八木山本町１丁目１２番９ | GD14: 宮城県 多賀城市下馬５－１－１２ | GH14: 宮城県 登米市中田町石森字駒牽４０３番２１外 | GM14: 宮城県 名取市増田６－１－３６ | GV14: 秋田県 秋田市広面字碇６８番４ | HM14: 山形県 山形市宮町５－４－８ | HU14: 山形県 酒田市東泉町３丁目１６番１０ | ID14: 山形県 鶴岡市末広町６－４ | IE14: 山形県 天童市駅西２－８－３２ | IL14: 福島県 いわき市平字愛谷町２丁目４番６ | IN14: 福島県 会津若松市宝町１５８番 | IS14: 福島県 郡山市安積町笹川字西長久保１１９番４６ | IW14: 福島県 須賀川市中町１１番 | JO14: 福島県 福島市岡部字姥畑１０番１
D15: 北海道 旭川市緑が丘南３条２－７－１３ | G15: 北海道 伊達市網代町２１番１外 | U15: 北海道 釧路市鶴ケ岱３－２－２８ | W15: 北海道 恵庭市和光町５－１９－８ | AC15: 北海道 江別市錦町１２番１１ | AG15: 北海道 札幌市厚別区厚別北５条５－５－１９ | AH15: 北海道 札幌市手稲区手稲本町３条３－３－１８ | AI15: 北海道 札幌市清田区里塚２条１－２－２０ | AJ15: 北海道 札幌市西区二十四軒４条５－７－２９ | AK15: 北海道 札幌市中央区北８条西１８丁目２番１外 | AL15: 北海道 札幌市東区北３５条東１８－２－６ | AM15: 北海道 札幌市南区石山１条７－１１－２１ | AN15: 北海道 札幌市白石区北郷４条１２－３－２４ | AO15: 北海道 札幌市豊平区福住２条８－３－１８ | AP15: 北海道 札幌市北区北２２条西３－２－８ | AU15: 北海道 室蘭市白鳥台２－３３－２ | AW15: 北海道 小樽市幸４－１０－４ | BD15: 北海道 石狩市花川東２条３丁目３番 | BF15: 北海道 千歳市東郊２－９－１０ | BJ15: 北海道 帯広市西９条南１５丁目１３番１ | BU15: 北海道 登別市千歳町１８３番１ | BY15: 北海道 苫小牧市栄町２－３－７ | CD15: 北海道 函館市日吉町１－２６－２ | CR15: 北海道 北見市大通西２丁目１２番 | CS15: 北海道 北広島市大曲末広２丁目６番１４ | DL15: 青森県 弘前市大字城東中央３丁目１番７外 | DR15: 青森県 青森市佃１－１８－１２ | DY15: 青森県 八戸市大字稲荷町１０番６ | EV15: 岩手県 盛岡市愛宕町１７－１０ | FF15: 宮城県 塩竈市尾島町１６－１４ | FJ15: 宮城県 岩沼市字吹上西１１１番外 | FM15: 宮城県 大崎市三本木字北町２５番２ | FV15: 宮城県 石巻市南中里３－４－１１ | FW15: 宮城県 仙台市宮城野区岩切字鴻巣３３番２７ | FX15: 宮城県 仙台市若林区荒井字藤田北裏上３２番１２ | FY15: 宮城県 仙台市青葉区中江２－２１－３ | FZ15: 宮城県 仙台市泉区高森８丁目７番１２ | GA15: 宮城県 仙台市太白区桜木町２３－１５ | GD15: 宮城県 多賀城市栄２－７－３６ | GH15: 宮城県 登米市豊里町浦軒８６番４ | GM15: 宮城県 名取市牛野字内海３６７番 | GV15: 秋田県 秋田市金足追分字海老穴７６番３ | HM15: 山形県 山形市富の中２－３－１０ | HU15: 山形県 酒田市十里塚字村東山北１番３６ | ID15: 山形県 鶴岡市湯温海字湯温海１９１番 | IE15: 山形県 天童市東久野本３－２－３２ | IL15: 福島県 いわき市平谷川瀬２丁目７番２１ | IN15: 福島県 会津若松市日新町８－１６ | IS15: 福島県 郡山市神明町２－１５ | IW15: 福島県 須賀川市山寺町５番外 | JO15: 福島県 福島市本内字西慶二２１番２外
D16: 北海道 旭川市神楽６条１４－１－４ | U16: 北海道 釧路市緑ケ岡５－１６－１１ | W16: 北海道 恵庭市柏陽町１丁目８番２ | AC16: 北海道 江別市野幌松並町２１番１６ | AG16: 北海道 札幌市厚別区厚別中央１条７－１２－２９ | AH16: 北海道 札幌市手稲区金山１条４－６－７ | AI16: 北海道 札幌市清田区美しが丘２条４－２－１２ | AJ16: 北海道 札幌市西区平和１条４－２－１０ | AK16: 北海道 札幌市中央区宮の森１条１４－３－２５ | AL16: 北海道 札幌市東区伏古２条５－３－１４ | AM16: 北海道 札幌市南区簾舞２条１－１３－１２ | AN16: 北海道 札幌市白石区本郷通１３北３－２２ | AO16: 北海道 札幌市豊平区美園１条３－４－３ | AP16: 北海道 札幌市北区百合が原５－５－６ | AU16: 北海道 室蘭市港北町４－２８－１３ | AW16: 北海道 小樽市桜１－１３－８ | BD16: 北海道 石狩市新港南１丁目２８番６９ | BF16: 北海道 千歳市清流２－１３－１８ | BJ16: 北海道 帯広市東１３条南４丁目１番６７ | BU16: 北海道 登別市中央町２丁目１２番８ | BY16: 北海道 苫小牧市元町１－２－８ | CD16: 北海道 函館市上新川町７－５ | CR16: 北海道 北見市北２条西１丁目９番２ | CS16: 北海道 北広島市北進町３丁目３番４ | DL16: 青森県 弘前市大字品川町１００番３ | DR16: 青森県 青森市大字筒井字八ツ橋１６５番６ | DY16: 青森県 八戸市江陽１－１０－１１ | EV16: 岩手県 盛岡市山岸６－２５－１０ | FF16: 宮城県 塩竈市東玉川町８－２ | FM16: 宮城県 大崎市鹿島台平渡字西銭神１７番２ | FV16: 宮城県 石巻市宜山町４－１６ | FW16: 宮城県 仙台市宮城野区岩切字若宮前６２番３ | FX16: 宮城県 仙台市若林区上飯田２－１９－６０ | FY16: 宮城県 仙台市青葉区台原４－１２－１１ | FZ16: 宮城県 仙台市泉区山の寺１－２６－２１ | GA16: 宮城県 仙台市太白区八木山香澄町７－２６ | GH16: 宮城県 登米市石越町南郷字小谷地前１１９番５外 | GM16: 宮城県 名取市本郷字矢口４５番３ | GV16: 秋田県 秋田市広面字糠塚１７番３ | HM16: 山形県 山形市八日町１－２－５ | HU16: 山形県 酒田市南新町１－５－６ | ID16: 山形県 鶴岡市美咲町３２－７ | IL16: 福島県 いわき市平字紅葉町４０番１０ | IN16: 福島県 会津若松市表町１－６８ | IS16: 福島県 郡山市富田町字西原６０番１ | IW16: 福島県 須賀川市森宿字舘ノ下１５番１２外 | JO16: 福島県 福島市東浜町６－５２
D17: 北海道 旭川市川端町４条７－１－６ | U17: 北海道 釧路市富士見３－１０－８ | W17: 北海道 恵庭市恵み野西１丁目１３番７ | AC17: 北海道 江別市大麻高町１６番３ | AG17: 北海道 札幌市厚別区厚別中央４条４－８－１３ | AH17: 北海道 札幌市手稲区新発寒５条５－１５－６ | AI17: 北海道 札幌市清田区美しが丘４条６－９－５ | AJ17: 北海道 札幌市西区西野１条４－３－８ | AK17: 北海道 札幌市中央区伏見２－３－１３ | AL17: 北海道 札幌市東区東苗穂１０条２－１６－８ | AM17: 北海道 札幌市南区川沿３条５－７－３ | AN17: 北海道 札幌市白石区北郷１条７－２－２８ | AO17: 北海道 札幌市豊平区西岡２条９－７－２１ | AP17: 北海道 札幌市北区新琴似９条１１－５－１２ | AU17: 北海道 室蘭市港南町１－１０－５ | AW17: 北海道 小樽市末広町５－１３ | BD17: 北海道 石狩市新港西３丁目７４９番１１外 | BF17: 北海道 千歳市旭ケ丘２－３－１４ | BJ17: 北海道 帯広市西５条南１丁目２番１ | BU17: 北海道 登別市栄町２丁目９番３外 | BY17: 北海道 苫小牧市新中野町３－５－２４ | CD17: 北海道 函館市旭町１－２４ | CR17: 北海道 北見市幸町２－１－３５ | CS17: 北海道 北広島市西の里３１０番１外 | DL17: 青森県 弘前市大字塩分町２１番１外 | DR17: 青森県 青森市岡造道２－１７－１７ | DY17: 青森県 八戸市小中野２－１６－１１ | EV17: 岩手県 盛岡市加賀野１－１５－９ | FF17: 宮城県 塩竈市本町３－７ | FM17: 宮城県 大崎市岩出山字二ノ構１２８番 | FV17: 宮城県 石巻市渡波町２－１０－３５ | FW17: 宮城県 仙台市宮城野区鶴ケ谷７丁目１６番１４ | FX17: 宮城県 仙台市若林区沖野６－３２－７ | FY17: 宮城県 仙台市青葉区荒巻神明町７－１３ | FZ17: 宮城県 仙台市泉区七北田字東裏１４８番４ | GA17: 宮城県 仙台市太白区向山３－１５－１８ | GH17: 宮城県 登米市迫町佐沼字江合１丁目９番４ | GM17: 宮城県 名取市増田２－２－７ | GV17: 秋田県 秋田市川尻上野町８－２６ | HM17: 山形県 山形市成沢西４－８－６１ | HU17: 山形県 酒田市中町２－５－３８ | ID17: 山形県 鶴岡市藤島字古楯跡８５番１ | IL17: 福島県 いわき市錦町中迎４丁目５番４ | IN17: 福島県 会津若松市石堂町６－３４ | IS17: 福島県 郡山市開成３－１５－１１ | JO17: 福島県 福島市茶屋下４８番３外
D18: 北海道 旭川市神居２条８－１－６ | U18: 北海道 釧路市白樺台２－１０－１６ | W18: 北海道 恵庭市恵み野北２丁目３番２１ | AC18: 北海道 江別市東野幌本町２１番３２ | AG18: 北海道 札幌市厚別区上野幌２条１－１０－６ | AH18: 北海道 札幌市手稲区前田６条６－３－２５ | AI18: 北海道 札幌市清田区清田６条２－１６－１９ | AJ18: 北海道 札幌市西区西野９条４－３－１２ | AK18: 北海道 札幌市中央区南５条西１６－１－２３ | AL18: 北海道 札幌市東区東苗穂１４条２－３－３１ | AM18: 北海道 札幌市南区藤野４条３－１７－１８ | AN18: 北海道 札幌市白石区東札幌２条５－３－９ | AO18: 北海道 札幌市豊平区中の島１条１０－１－２０ | AP18: 北海道 札幌市北区屯田８条１１－９－１６ | AU18: 北海道 室蘭市中央町１－２－２３ | AW18: 北海道 小樽市天神１－２５－５ | BF18: 北海道 千歳市錦町２丁目１０番３ | BJ18: 北海道 帯広市西１６条南１－１５－２１ | BY18: 北海道 苫小牧市音羽町２－７－１６ | CD18: 北海道 函館市中道２－３０－９ | CR18: 北海道 北見市大通東４丁目１０番 | CS18: 北海道 北広島市中央２丁目１番２ | DL18: 青森県 弘前市大字藤代２丁目９番５ | DR18: 青森県 青森市本泉１－１３－７ | DY18: 青森県 八戸市大字妙字野場３６番２６ | EV18: 岩手県 盛岡市浅岸１－７－１６ | FF18: 宮城県 塩竈市南町５－１２ | FM18: 宮城県 大崎市鳴子温泉字湯元１番９ | FV18: 宮城県 石巻市蛇田字新谷地前９７番２ | FW18: 宮城県 仙台市宮城野区安養寺２－２９－１１ | FX18: 宮城県 仙台市若林区荒井２丁目１１番１８外 | FY18: 宮城県 仙台市青葉区柏木２－５－２２ | FZ18: 宮城県 仙台市泉区向陽台３－１９－６ | GA18: 宮城県 仙台市太白区八本松２－３－３１ | GM18: 宮城県 名取市手倉田字諏訪４６６番１ | GV18: 秋田県 秋田市将軍野南１－１４－３２ | HM18: 山形県 山形市城南町３－４－８ | HU18: 山形県 酒田市北新橋１丁目１９番３ | IL18: 福島県 いわき市常磐湯本町宝海８９番５ | IN18: 福島県 会津若松市真宮新町南２丁目１６９番２ | IS18: 福島県 郡山市大槻町字針生下５６番３ | JO18: 福島県 福島市渡利字中江町２３番４
D19: 北海道 旭川市神居８条３－１－１３ | U19: 北海道 釧路市興津２－２－１２ | W19: 北海道 恵庭市漁町２９番１外 | AC19: 北海道 江別市野幌若葉町１４番３ | AG19: 北海道 札幌市厚別区大谷地東５－１０－５ | AH19: 北海道 札幌市手稲区前田２条１１－９－１６ | AI19: 北海道 札幌市清田区北野５条４－１６－１５ | AJ19: 北海道 札幌市西区西野５条６－６－１２ | AK19: 北海道 札幌市中央区南１２条西２３－１－１７ | AL19: 北海道 札幌市東区北２５条東１４－１－２８ | AM19: 北海道 札幌市南区常盤１条２－１８－１６ | AN19: 北海道 札幌市白石区川北３条２－６－１５ | AO19: 北海道 札幌市豊平区平岸１条８－６－１８ | AP19: 北海道 札幌市北区新琴似８条４－５－１２ | AU19: 北海道 室蘭市母恋北町１－４－２０ | AW19: 北海道 小樽市塩谷１－２２－５ | BF19: 北海道 千歳市千代田町５丁目１番８ | BJ19: 北海道 帯広市西１７条北１－４２－１６ | BY19: 北海道 苫小牧市春日町３－１０－８ | CD19: 北海道 函館市港町２－３－１３ | CS19: 北海道 北広島市栄町１丁目１番３ | DL19: 青森県 弘前市大字寒沢町１３番１６ | DR19: 青森県 青森市桜川４－９－５ | DY19: 青森県 八戸市旭ケ丘２丁目２番１０ | EV19: 岩手県 盛岡市茶畑１－５－５ | FF19: 宮城県 塩竈市北浜４－２－４ | FV19: 宮城県 石巻市須江字しらさぎ台１丁目３番３ | FW19: 宮城県 仙台市宮城野区岩切字三所北６０番１９ | FX19: 宮城県 仙台市若林区南小泉２－４－５ | FY19: 宮城県 仙台市青葉区子平町１１－１７ | FZ19: 宮城県 仙台市泉区泉中央１丁目２７番７外 | GA19: 宮城県 仙台市太白区砂押町１６－７ | GM19: 宮城県 名取市増田７－１３－２１ | GV19: 秋田県 秋田市手形田中８－３０ | HM19: 山形県 山形市伊達城２丁目１２番３外 | HU19: 山形県 酒田市広栄町１丁目７番４ | IL19: 福島県 いわき市平赤井字笹目田１０番３外 | IN19: 福島県 会津若松市門田町大字黒岩字大坪８８番３ | IS19: 福島県 郡山市富田町字音路１番１０２外 | JO19: 福島県 福島市町庭坂字遠原三２番２
D20: 北海道 旭川市永山４条１７－４－５ | U20: 北海道 釧路市桜ケ岡２－５－９ | W20: 北海道 恵庭市島松本町１－１０－１４ | AC20: 北海道 江別市文京台南町３１番１７ | AG20: 北海道 札幌市厚別区厚別東５条４－３－２４ | AH20: 北海道 札幌市手稲区富丘５条２－５－２４ | AI20: 北海道 札幌市清田区北野７条２－１７－７ | AJ20: 北海道 札幌市西区発寒４条６－６－２２ | AK20: 北海道 札幌市中央区宮の森３条７－３－２２ | AL20: 北海道 札幌市東区東苗穂６条２－７－２９ | AM20: 北海道 札幌市南区北ノ沢６－４－２１ | AN20: 北海道 札幌市白石区川下１条７－３－２５ | AO20: 北海道 札幌市豊平区中の島２条５－１０－７ | AP20: 北海道 札幌市北区新川西３条４－４－３１ | AU20: 北海道 室蘭市中島町１－２３－１０ | AW20: 北海道 小樽市蘭島１－１２－２ | BF20: 北海道 千歳市信濃１－１４－１０ | BJ20: 北海道 帯広市西１９条南２－２０－２５ | BY20: 北海道 苫小牧市住吉町２－１２－７ | CD20: 北海道 函館市富岡町３－３－２ | CS20: 北海道 北広島市北の里１１番３ | DL20: 青森県 弘前市大字城南３丁目１１番１ | DR20: 青森県 青森市勝田２－２１－３ | DY20: 青森県 八戸市白銀台１丁目８番３ | EV20: 岩手県 盛岡市東山１－１４－５ | FF20: 宮城県 塩竈市新浜町３－８－１２ | FV20: 宮城県 石巻市新栄１丁目１４番３ | FW20: 宮城県 仙台市宮城野区出花１丁目１１番１５ | FX20: 宮城県 仙台市若林区白萩町１４－１８ | FY20: 宮城県 仙台市青葉区国見５－４－１４ | FZ20: 宮城県 仙台市泉区南光台７－２３－５９ | GA20: 宮城県 仙台市太白区茂庭字大沢５番３ | GM20: 宮城県 名取市植松字宮島４１番１ | GV20: 秋田県 秋田市将軍野南５－１１－６６－２ | HM20: 山形県 山形市江俣３－１５－３６ | HU20: 山形県 酒田市船場町２－２－１８ | IL20: 福島県 いわき市平下平窪３丁目４番５ | IN20: 福島県 会津若松市門田町大字中野字屋敷４２番２ | IS20: 福島県 郡山市菜根４－５－７ | JO20: 福島県 福島市方木田字樋口５番２６
D21: 北海道 旭川市神居１条１８－１－２７ | U21: 北海道 釧路市昭和北１－１４－１６ | W21: 北海道 恵庭市緑町２－３－７ | AC21: 北海道 江別市文京台東町９番２ | AG21: 北海道 札幌市厚別区厚別西５条２－１２－１７ | AH21: 北海道 札幌市手稲区富丘１条５－１４－２７ | AI21: 北海道 札幌市清田区北野３条３－１６－６ | AJ21: 北海道 札幌市西区二十四軒３条３－４－２ | AK21: 北海道 札幌市中央区南１７条西１３－１－３３ | AL21: 北海道 札幌市東区北３６条東２５－２－２４ | AM21: 北海道 札幌市南区澄川３条４－６－７ | AN21: 北海道 札幌市白石区川下７４１番１１９ | AO21: 北海道 札幌市豊平区西岡３条２－４－２７ | AP21: 北海道 札幌市北区新川２条５－３－２８ | AU21: 北海道 室蘭市中島町２－１８－１１ | AW21: 北海道 小樽市桂岡町２７－１８ | BF21: 北海道 千歳市上長都１０４６番外 | BJ21: 北海道 帯広市西１８条南３－４５－１１ | BY21: 北海道 苫小牧市美園町３－１０－９ | CD21: 北海道 函館市美原４－１３－４ | DL21: 青森県 弘前市大字和泉１丁目１１番１ | DR21: 青森県 青森市原別４－４－１１ | DY21: 青森県 八戸市湊高台７－１７－８ | EV21: 岩手県 盛岡市（太田地区１７街区４） | FV21: 宮城県 石巻市垂水町３丁目７番１２ | FW21: 宮城県 仙台市宮城野区栄４－１２－２１ | FX21: 宮城県 仙台市若林区中倉１－１９－１４ | FY21: 宮城県 仙台市青葉区郷六字葛岡下３３番２ | FZ21: 宮城県 仙台市泉区将監７－４－１５ | GA21: 宮城県 仙台市太白区茂庭台３－９－１８ | GM21: 宮城県 名取市愛島台１丁目４番１０ | GV21: 秋田県 秋田市仁井田新田２－１１－２５ | HM21: 山形県 山形市緑町４－４－３ | IL21: 福島県 いわき市東田町金子平１３０番８外 | IN21: 福島県 会津若松市居合町１１－５３ | IS21: 福島県 郡山市字古川８０番７ | JO21: 福島県 福島市仁井田字上仁井田１１番１
D22: 北海道 旭川市高砂台３－６－１０ | U22: 北海道 釧路市鳥取大通５－１２－４ | W22: 北海道 恵庭市黄金南７丁目１８番６ | AC22: 北海道 江別市上江別南町３９番１７ | AG22: 北海道 札幌市厚別区上野幌３条２－１５－１６ | AH22: 北海道 札幌市手稲区手稲本町２条５－１０－２４ | AI22: 北海道 札幌市清田区清田２条２－１８－１９ | AJ22: 北海道 札幌市西区琴似３条３－４－３７ | AK22: 北海道 札幌市中央区北２条西１４丁目１番１ | AL22: 北海道 札幌市東区苗穂町５－６－２０ | AM22: 北海道 札幌市南区澄川６条４－３－２８ | AN22: 北海道 札幌市白石区栄通１７－２－１９ | AO22: 北海道 札幌市豊平区水車町７－７－８ | AP22: 北海道 札幌市北区北３４条西１０－２－８ | AU22: 北海道 室蘭市東町２－１９－７ | AW22: 北海道 小樽市新光３－１４－１１ | BJ22: 北海道 帯広市西１７条南３－５０－２ | BY22: 北海道 苫小牧市北光町２－６－２３ | CD22: 北海道 函館市富岡町１－４３－２９ | DL22: 青森県 弘前市大字野田１丁目１２番１６ | DR22: 青森県 青森市月見野１－２０－１７ | DY22: 青森県 八戸市大字湊町字赤坂１６番７ | EV22: 岩手県 盛岡市黒川２３地割４４番６ | FV22: 宮城県 石巻市相野谷字旧屋敷１４５番２ | FW22: 宮城県 仙台市宮城野区田子１－２１－２０ | FX22: 宮城県 仙台市若林区今泉２－１５－３８ | FY22: 宮城県 仙台市青葉区北山３－３－１８ | FZ22: 宮城県 仙台市泉区泉ケ丘４－４－８ | GA22: 宮城県 仙台市太白区長町８－１９－６ | GV22: 秋田県 秋田市泉中央５－８－３ | HM22: 山形県 山形市大字中野字楯４１７番 | IL22: 福島県 いわき市植田町根小屋３０５番４ | IN22: 福島県 会津若松市町北町大字上荒久田字古屋敷４１番２ | IS22: 福島県 郡山市静西１丁目１８４番 | JO22: 福島県 福島市南沢又字松北町３丁目２番５
D23: 北海道 旭川市神居４条２０丁目６７番３１ | U23: 北海道 釧路市愛国東３－１３－１３ | W23: 北海道 恵庭市戸磯６１２番 | AC23: 北海道 江別市大麻北町５１１番６３ | AG23: 北海道 札幌市厚別区厚別中央２条２－６－４ | AH23: 北海道 札幌市手稲区曙７条３－４－６ | AI23: 北海道 札幌市清田区清田２条１－３－１６ | AJ23: 北海道 札幌市西区福井４－９－２０ | AK23: 北海道 札幌市中央区南１２条西１６－１－３ | AL23: 北海道 札幌市東区北１８条東４－４－３７ | AM23: 北海道 札幌市南区真駒内３３２番４４３ | AN23: 北海道 札幌市白石区菊水７条１－１－３１ | AO23: 北海道 札幌市豊平区福住３条１２－２－３ | AP23: 北海道 札幌市北区屯田２条２－７－５ | AU23: 北海道 室蘭市日の出町３－４－２１ | AW23: 北海道 小樽市長橋４－１２－１２ | BJ23: 北海道 帯広市白樺１６条西８丁目１８番 | BY23: 北海道 苫小牧市高砂町２－３－１０ | CD23: 北海道 函館市青柳町１５－２５ | DL23: 青森県 弘前市大字小沢字広野１６７番 | DR23: 青森県 青森市大字浅虫字蛍谷８７番１０６ | DY23: 青森県 八戸市大字白銀町字左新井田道１６番２１ | EV23: 岩手県 盛岡市仙北１－１１－３６ | FV23: 宮城県 石巻市大街道東３－５－２ | FW23: 宮城県 仙台市宮城野区鶴ケ谷北１－８－２５ | FX23: 宮城県 仙台市若林区沖野３－９－１５ | FY23: 宮城県 仙台市青葉区貝ケ森６－１５－２０ | FZ23: 宮城県 仙台市泉区八乙女中央３－１１－１２ | GA23: 宮城県 仙台市太白区秋保町湯向２７番２ | GV23: 秋田県 秋田市新屋大川町２７－６ | HM23: 山形県 山形市香澄町３－１－７ | IL23: 福島県 いわき市平字胡摩沢７番３ | IN23: 福島県 会津若松市神指町天満２９番 | IS23: 福島県 郡山市田村町上行合字西川原６番１４外 | JO23: 福島県 福島市黒岩字北井７番５
D24: 北海道 旭川市北門町１２丁目２９００番３３外 | U24: 北海道 釧路市鶴野東３－１－１８ | AC24: 北海道 江別市野幌寿町１２番１５ | AG24: 北海道 札幌市厚別区青葉町８－９－４ | AH24: 北海道 札幌市手稲区稲穂４条４－２２－７ | AI24: 北海道 札幌市清田区美しが丘４条５－３－８ | AJ24: 北海道 札幌市西区西野８条９－１７－２１ | AK24: 北海道 札幌市中央区南１条西４丁目１番１外 | AL24: 北海道 札幌市東区北１２条東１２－１－２ | AM24: 北海道 札幌市南区藤野４条７－７－１２ | AN24: 北海道 札幌市白石区東米里２１２４番５０ | AO24: 北海道 札幌市豊平区豊平１条８－１－１９ | AP24: 北海道 札幌市北区新川４条１２－５－１０ | AU24: 北海道 室蘭市港北町１丁目２５番２２外 | AW24: 北海道 小樽市銭函３丁目２３番６６ | BJ24: 北海道 帯広市西２２条南２丁目１番４２ | BY24: 北海道 苫小牧市幸町２－１－９ | CD24: 北海道 函館市東山２－８－９ | DL24: 青森県 弘前市大字鳥井野字長田６９番２ | DR24: 青森県 青森市小柳６－９－１６ | DY24: 青森県 八戸市柏崎４－１２－１８ | EV24: 岩手県 盛岡市南仙北１－１０－２３ | FV24: 宮城県 石巻市鋳銭場３－１３ | FW24: 宮城県 仙台市宮城野区小鶴１－４－２５ | FX24: 宮城県 仙台市若林区遠見塚２－３２－８ | FY24: 宮城県 仙台市青葉区中山４－６－１２ | FZ24: 宮城県 仙台市泉区館１丁目７番４ | GA24: 宮城県 仙台市太白区向山１－６－１ | GV24: 秋田県 秋田市寺内後城１０－３２ | HM24: 山形県 山形市桜町３－２９ | IL24: 福島県 いわき市錦町上中田１７５番９ | IN24: 福島県 会津若松市門田町大字堤沢字下村４３番 | IS24: 福島県 郡山市深沢２－１７－５ | JO24: 福島県 福島市野田町３－１１－３５
D25: 北海道 旭川市東光２条２－４－５ | U25: 北海道 釧路市愛国西２－１４－５ | AC25: 北海道 江別市元町２３番３ | AG25: 北海道 札幌市厚別区厚別東３条３－１０－２５ | AH25: 北海道 札幌市手稲区稲穂２条２－１１－１６ | AI25: 北海道 札幌市清田区里塚１条２－１８－１ | AJ25: 北海道 札幌市西区山の手１条３－４－１２ | AK25: 北海道 札幌市中央区南６条西４丁目５番３２外 | AL25: 北海道 札幌市東区北３２条東１２－１－８ | AM25: 北海道 札幌市南区藤野４条５－９－５ | AN25: 北海道 札幌市白石区菊水２条１－５－２０ | AO25: 北海道 札幌市豊平区豊平７条８－１－５ | AP25: 北海道 札幌市北区篠路町上篠路６４番８９ | AU25: 北海道 室蘭市中島本町１－１１－１６ | AW25: 北海道 小樽市梅ケ枝町３３－２１ | BJ25: 北海道 帯広市西２４条南２丁目３番４１ | BY25: 北海道 苫小牧市宮前町３－１５－２０ | CD25: 北海道 函館市高丘町４６－１７ | DL25: 青森県 弘前市大字町田２丁目２番３ | DR25: 青森県 青森市はまなす１－１３－６ | DY25: 青森県 八戸市大字鮫町字綣久保３５番１６ | EV25: 岩手県 盛岡市永井２０地割１７番９９ | FV25: 宮城県 石巻市清水町１－７－２ | FW25: 宮城県 仙台市宮城野区岩切字青津目１３４番１１ | FX25: 宮城県 仙台市若林区二軒茶屋９－６ | FY25: 宮城県 仙台市青葉区広瀬町５－１２ | FZ25: 宮城県 仙台市泉区北中山１丁目２番１３ | GA25: 宮城県 仙台市太白区東中田２－３８－１７ | GV25: 秋田県 秋田市土崎港相染町字大谷地１７番１１外 | HM25: 山形県 山形市東原町３－９－１１ | IL25: 福島県 いわき市好間町下好間字一町坪２番４ | IN25: 福島県 会津若松市大戸町上三寄香塩１４０番外 | IS25: 福島県 郡山市安積町日出山字神明下２３番２ | JO25: 福島県 福島市飯坂町湯野字銚子口３番２１外
D26: 北海道 旭川市忠和３条５－５－７ | U26: 北海道 釧路市若草町９－１２ | AC26: 北海道 江別市見晴台５２番１８ | AG26: 北海道 札幌市厚別区厚別町山本１０６３番４１５ | AH26: 北海道 札幌市手稲区金山３条１－２－２ | AJ26: 北海道 札幌市西区山の手７条７－７－２８ | AK26: 北海道 札幌市中央区大通西６丁目６番１ | AL26: 北海道 札幌市東区丘珠町２７７番２１ | AM26: 北海道 札幌市南区石山東３－８－２９ | AN26: 北海道 札幌市白石区菊水５条１－７－２７ | AO26: 北海道 札幌市豊平区旭町３－２－２７ | AP26: 北海道 札幌市北区北２８条西２－１－５ | AU26: 北海道 室蘭市祝津町１丁目１２７番１４１ | AW26: 北海道 小樽市オタモイ３－７－１１ | BJ26: 北海道 帯広市西１０条北２丁目６番８ | BY26: 北海道 苫小牧市のぞみ町３－１３－１ | CD26: 北海道 函館市赤川１－２８－３ | DL26: 青森県 弘前市大字駅前１丁目１番５ | DR26: 青森県 青森市合浦１－７－１１ | DY26: 青森県 八戸市大字市川町字尻引前山３１番１３５７ | EV26: 岩手県 盛岡市津志田西１－３－８ | FV26: 宮城県 石巻市恵み野１丁目２番７外 | FW26: 宮城県 仙台市宮城野区田子字鳥井１６番７０ | FX26: 宮城県 仙台市若林区弓ノ町２３番５ | FY26: 宮城県 仙台市青葉区八幡３－８－１３ | FZ26: 宮城県 仙台市泉区八乙女３丁目６番１１ | GA26: 宮城県 仙台市太白区西中田６－６－１１ | GV26: 秋田県 秋田市河辺松渕字川原田家ノ後１番２８ | HM26: 山形県 山形市松波４－１１－１０ | IL26: 福島県 いわき市好間町下好間字手倉５２番３ | IN26: 福島県 会津若松市河東町八田字八田野４４３番 | IS26: 福島県 郡山市菜根２－３－２ | JO26: 福島県 福島市小田字明内７番２１
D27: 北海道 旭川市１０条通１３丁目２４番１１４ | U27: 北海道 釧路市治水町４－２７ | AC27: 北海道 江別市野幌美幸町１８番９ | AG27: 北海道 札幌市厚別区厚別中央２条２－１－１ | AH27: 北海道 札幌市手稲区星置１条１－１４－２２ | AJ27: 北海道 札幌市西区平和３条７－５－２５ | AK27: 北海道 札幌市中央区北１条西３丁目３番２２ | AL27: 北海道 札幌市東区東苗穂８条３－６－２ | AM27: 北海道 札幌市南区石山３条６－３－２７ | AN27: 北海道 札幌市白石区東札幌３条６－１－１０ | AO27: 北海道 札幌市豊平区美園９条２－９－２ | AP27: 北海道 札幌市北区新川３条１５－９－１１ | AW27: 北海道 小樽市高島３－１１－１ | BJ27: 北海道 帯広市西１４条北４丁目２番１５ | BY27: 北海道 苫小牧市字美沢５番１７ | CD27: 北海道 函館市神山３－４６－１６ | DL27: 青森県 弘前市大字田園３丁目１番１４外 | DR27: 青森県 青森市大字大野字若宮１５４番２１ | DY27: 青森県 八戸市長者３－１－７ | EV27: 岩手県 盛岡市上田４－１７－６ | FV27: 宮城県 石巻市立町１－２－１９ | FW27: 宮城県 仙台市宮城野区鶴ケ谷東３－１４－１９ | FX27: 宮城県 仙台市若林区文化町１２－２２ | FY27: 宮城県 仙台市青葉区台原５－１２－２２ | FZ27: 宮城県 仙台市泉区泉中央２丁目２８番９ | GA27: 宮城県 仙台市太白区羽黒台１８－２１ | GV27: 秋田県 秋田市新屋北浜町７－９ | HM27: 山形県 山形市若宮２－１２－２２ | IL27: 福島県 いわき市佐糠町２丁目９番１１ | IN27: 福島県 会津若松市中町４－３７ | IS27: 福島県 郡山市日和田町高倉字高倉７４番外 | JO27: 福島県 福島市御山字中川原４１番３
D28: 北海道 旭川市豊岡２条８－７－１７ | U28: 北海道 釧路市美原３－２－５ | AC28: 北海道 江別市大麻泉町７番１３外 | AG28: 北海道 札幌市厚別区大谷地東３－５－８ | AH28: 北海道 札幌市手稲区曙３条１－９－１０ | AJ28: 北海道 札幌市西区二十四軒１条４－６－７ | AK28: 北海道 札幌市中央区北１条西７丁目３番３外 | AL28: 北海道 札幌市東区北４６条東３－３－２３ | AM28: 北海道 札幌市南区澄川５条３－６－５ | AN28: 北海道 札幌市白石区北郷２条１２－７－８ | AO28: 北海道 札幌市豊平区平岸１条１４－４－２５ | AP28: 北海道 札幌市北区南あいの里４－１０－７ | AW28: 北海道 小樽市真栄１－１８－８ | BJ28: 北海道 帯広市東６条南１５丁目２番１９ | BY28: 北海道 苫小牧市末広町２－６－５ | CD28: 北海道 函館市榎本町８８番１０ | DL28: 青森県 弘前市大字富田町６０番 | DR28: 青森県 青森市中央３－８－１４ | DY28: 青森県 八戸市売市１－３－１１ | EV28: 岩手県 盛岡市紅葉が丘１４－４ | FV28: 宮城県 石巻市築山１－１－５６ | FW28: 宮城県 仙台市宮城野区平成１－１１－３０ | FX28: 宮城県 仙台市若林区若林５－４－３９ | FY28: 宮城県 仙台市青葉区山手町６－１３ | FZ28: 宮城県 仙台市泉区南中山２丁目３３番１０ | GA28: 宮城県 仙台市太白区袋原字内手１番１ | GV28: 秋田県 秋田市飯島新町３－３－８ | HM28: 山形県 山形市鉄砲町１－１０－１１ | IL28: 福島県 いわき市中央台鹿島１丁目５番３ | IN28: 福島県 会津若松市門田町大字飯寺字村西７９７番外 | IS28: 福島県 郡山市片平町字新蟻塚１０７番２５ | JO28: 福島県 福島市泉字前田２番１５
D29: 北海道 旭川市東光１１条８－１－１６ | U29: 北海道 釧路市桜ケ岡６－２２－１２ | AC29: 北海道 江別市大麻園町１８番１１ | AG29: 北海道 札幌市厚別区厚別西３条３－４－２７ | AH29: 北海道 札幌市手稲区富丘２条３－１４－３ | AJ29: 北海道 札幌市西区琴似２条３－１－３ | AK29: 北海道 札幌市中央区大通東３丁目１番３１ | AL29: 北海道 札幌市東区北４３条東９－１－２３ | AM29: 北海道 札幌市南区中ノ沢２－４－１０ | AN29: 北海道 札幌市白石区南郷通７北２－１７ | AO29: 北海道 札幌市豊平区月寒中央通７－４－７ | AP29: 北海道 札幌市北区篠路１条３－１－１６ | AW29: 北海道 小樽市望洋台２－２９－１４ | BJ29: 北海道 帯広市西１６条南６－７－２５ | BY29: 北海道 苫小牧市新明町５－１４－３ | CD29: 北海道 函館市人見町１９－２２ | DL29: 青森県 弘前市大字上鞘師町１６番１ | DR29: 青森県 青森市千刈３－１８－６ | DY29: 青森県 八戸市新湊１－２２－１０ | EV29: 岩手県 盛岡市東安庭３－６－１３ | FV29: 宮城県 石巻市末広町２－８ | FW29: 宮城県 仙台市宮城野区岩切字洞ノ口東２８番２ | FX29: 宮城県 仙台市若林区六丁の目中町１１－３１ | FY29: 宮城県 仙台市青葉区吉成１－３－１９ | FZ29: 宮城県 仙台市泉区加茂４丁目１３番３ | GA29: 宮城県 仙台市太白区鹿野３－１４－１０ | GV29: 秋田県 秋田市金足堀内字堀内８６番 | HM29: 山形県 山形市蔵王温泉字川前９３５番１８外 | IL29: 福島県 いわき市小島町２丁目１０番１１ | IN29: 福島県 会津若松市七日町８－３ | IS29: 福島県 郡山市新屋敷１丁目７３番８ | JO29: 福島県 福島市松川町字後原５２番１６
D30: 北海道 旭川市豊岡６条２－５－５ | U30: 北海道 釧路市武佐４－７－１７ | AC30: 北海道 江別市大麻扇町９番６ | AG30: 北海道 札幌市厚別区厚別中央２条５－２－２５ | AH30: 北海道 札幌市手稲区手稲本町３条１－１－１ | AJ30: 北海道 札幌市西区西野２条３－２－５ | AK30: 北海道 札幌市中央区大通西１４丁目１番１５外 | AL30: 北海道 札幌市東区伏古１１条２－３－１８ | AM30: 北海道 札幌市南区簾舞３条６－４－１５ | AN30: 北海道 札幌市白石区栄通１８－６－１５ | AO30: 北海道 札幌市豊平区豊平４条３－１－１５ | AP30: 北海道 札幌市北区麻生町６－７－４ | AW30: 北海道 小樽市新富町４－６ | BJ30: 北海道 帯広市愛国町基線４１番１０７ | BY30: 北海道 苫小牧市東開町４－６－２６ | CD30: 北海道 函館市松陰町２５－８ | DL30: 青森県 弘前市大字土手町４５番１外 | DR30: 青森県 青森市造道２－８－２ | DY30: 青森県 八戸市大字市川町字尻引３７番３ | EV30: 岩手県 盛岡市上米内字赤坂３番１７３ | FV30: 宮城県 石巻市中里３－２－２ | FW30: 宮城県 仙台市宮城野区福室３－３０－１８ | FX30: 宮城県 仙台市若林区河原町１－４－６ | FY30: 宮城県 仙台市青葉区栗生６丁目１０番１５ | FZ30: 宮城県 仙台市泉区寺岡１丁目１８番２６ | GA30: 宮城県 仙台市太白区柳生４丁目１２番６外 | GV30: 秋田県 秋田市手形休下町４－５ | HM30: 山形県 山形市錦町１１－１４ | IL30: 福島県 いわき市内郷御厩町１丁目１６３番１ | IN30: 福島県 会津若松市上町２－３５ | IS30: 福島県 郡山市小原田５－１４－１９ | JO30: 福島県 福島市蓬莱町１－５－８
D31: 北海道 旭川市神楽岡１１条５－３－１３ | U31: 北海道 釧路市栄町６丁目４番１ | AC31: 北海道 江別市３条６丁目９番２外 | AG31: 北海道 札幌市厚別区厚別中央２条４丁目５番２ | AH31: 北海道 札幌市手稲区前田６条１１－１－３０ | AJ31: 北海道 札幌市西区発寒３条６－１－３ | AK31: 北海道 札幌市中央区南３条西１０丁目１００２番４外 | AL31: 北海道 札幌市東区北２２条東８－５－６ | AM31: 北海道 札幌市南区真駒内柏丘２－９－１５ | AN31: 北海道 札幌市白石区東札幌２条２－４－２１ | AO31: 北海道 札幌市豊平区美園３条３－１－２３ | AP31: 北海道 札幌市北区あいの里１条４－１９－２２ | AW31: 北海道 小樽市桃内１丁目２３８番５ | BJ31: 北海道 帯広市西２条南９丁目１６番１外 | BY31: 北海道 苫小牧市光洋町３－８－４ | CD31: 北海道 函館市西桔梗町７３３番３５ | DL31: 青森県 弘前市大字茂森町１２４番１ | DR31: 青森県 青森市自由ヶ丘１丁目１０番２０ | DY31: 青森県 八戸市大字豊崎町字下永福寺３０番２ | EV31: 岩手県 盛岡市西青山３－３４－１１ | FV31: 宮城県 石巻市不動町２－１２－４ | FW31: 宮城県 仙台市宮城野区新田５－４－２７ | FX31: 宮城県 仙台市若林区荒町７３番１ | FY31: 宮城県 仙台市青葉区愛子中央３－１７－２１ | FZ31: 宮城県 仙台市泉区八乙女中央５－２４－２５ | GA31: 宮城県 仙台市太白区松が丘１８－５ | GV31: 秋田県 秋田市八橋本町３－１１－６ | HM31: 山形県 山形市桜田西１－２－１２ | IL31: 福島県 いわき市常磐湯本町上浅貝２番１４ | IN31: 福島県 会津若松市大町１－８－１１ | IS31: 福島県 郡山市三穂田町八幡字後町５番１ | JO31: 福島県 福島市永井川字向光白２１番１１
D32: 北海道 旭川市５条西４－２－２０ | U32: 北海道 釧路市浪花町１３丁目２番５ | AC32: 北海道 江別市上江別西町４２番６外 | AG32: 北海道 札幌市厚別区厚別南２－１２－１ | AH32: 北海道 札幌市手稲区新発寒４条５－１３－１５ | AJ32: 北海道 札幌市西区八軒１条西１－６－１ | AK32: 北海道 札幌市中央区南１条東２丁目８番１ | AL32: 北海道 札幌市東区伏古８条３－２－３７ | AM32: 北海道 札幌市南区川沿１１条２－４－６ | AN32: 北海道 札幌市白石区本郷通８南２－７ | AO32: 北海道 札幌市豊平区中の島１条２－２－１５ | AP32: 北海道 札幌市北区西茨戸４条２－１－２０ | AW32: 北海道 小樽市天神２－２０－４ | BJ32: 北海道 帯広市西３条南７丁目１２番外 | BY32: 北海道 苫小牧市はまなす町１－１９－２ | CD32: 北海道 函館市末広町９－１ | DL32: 青森県 弘前市大字土手町１５２番１外 | DR32: 青森県 青森市筒井２－１５－９ | DY32: 青森県 八戸市大字鮫町字金屎４５番２３ | EV32: 岩手県 盛岡市東黒石野１－１５－１１ | FV32: 宮城県 石巻市門脇字二番谷地１３番４７３外 | FW32: 宮城県 仙台市宮城野区高砂１丁目１８番５ | FX32: 宮城県 仙台市若林区土樋７３番２ | FY32: 宮城県 仙台市青葉区川内三十人町４９番５１ | FZ32: 宮城県 仙台市泉区市名坂字野蔵５０番９３ | GA32: 宮城県 仙台市太白区土手内３－４－１８ | GV32: 秋田県 秋田市茨島６－１９－４ | HM32: 山形県 山形市山家町２－７－８ | IL32: 福島県 いわき市内郷内町前田３７番１５ | IN32: 福島県 会津若松市本町３－２６ | IS32: 福島県 郡山市字名倉２３８番３ | JO32: 福島県 福島市大森字経塚６番４２
D33: 北海道 旭川市東光１４条４－１－２ | U33: 北海道 釧路市豊川町１７－１６ | AC33: 北海道 江別市文京台東町１番２５ | AG33: 北海道 札幌市厚別区厚別西４条５－５－１０ | AH33: 北海道 札幌市手稲区前田１条１１－１－２０ | AJ33: 北海道 札幌市西区琴似１条５－１－１０ | AK33: 北海道 札幌市中央区北５条西１２丁目１６番１ | AL33: 北海道 札幌市東区伏古１０条４－５－１７ | AM33: 北海道 札幌市南区南沢３条１－７－７ | AN33: 北海道 札幌市白石区菊水３条２－４－１７ | AO33: 北海道 札幌市豊平区平岸３条１０－１－３８ | AP33: 北海道 札幌市北区篠路町上篠路１０１番１０ | AW33: 北海道 小樽市春香町５９番２ | BJ33: 北海道 帯広市大通南１７丁目６番１ | BY33: 北海道 苫小牧市柳町４－１５－５ | CD33: 北海道 函館市新川町１－２４ | DL33: 青森県 弘前市大字城東北４丁目５番５ | DR33: 青森県 青森市浪岡大字女鹿沢字野尻２８番４２ | DY33: 青森県 八戸市大字鮫町字子猪越１番１ | EV33: 岩手県 盛岡市厨川５－２５－７７ | FV33: 宮城県 石巻市須江字関ノ入１３番１０外 | FW33: 宮城県 仙台市宮城野区原町４－４－１７ | FX33: 宮城県 仙台市若林区新寺３－１０－３６ | FY33: 宮城県 仙台市青葉区上愛子字北原道上１１番５９ | FZ33: 宮城県 仙台市泉区上谷刈２－２－６ | GA33: 宮城県 仙台市太白区西中田２－７－６ | GV33: 秋田県 秋田市外旭川八幡田２－１８－１９ | HM33: 山形県 山形市桧町４－７－２ | IL33: 福島県 いわき市平下高久字川和久５５番１外 | IN33: 福島県 会津若松市相生町６－２３ | IS33: 福島県 郡山市池ノ台９－１２ | JO33: 福島県 福島市北矢野目字西田１６番１
D34: 北海道 旭川市春光４条８－３－２１ | U34: 北海道 釧路市新橋大通６－１－６ | AC34: 北海道 江別市工栄町２０番４外 | AG34: 北海道 札幌市厚別区厚別東５条２－３－３０ | AH34: 北海道 札幌市手稲区曙４条３－１５－３５ | AJ34: 北海道 札幌市西区八軒５条西４－１－４１ | AK34: 北海道 札幌市中央区南７条西１０丁目１０２７番３ | AL34: 北海道 札幌市東区北１９条東１－５－１４ | AM34: 北海道 札幌市南区真駒内１６５番５８ | AN34: 北海道 札幌市白石区菊水上町３条２丁目５２番１４３ | AO34: 北海道 札幌市豊平区月寒東１条１８丁目１１９番１外 | AP34: 北海道 札幌市北区東茨戸２条１－５－２７ | AW34: 北海道 小樽市稲穂１－４－１５ | BJ34: 北海道 帯広市西５条南５丁目４番６ | BY34: 北海道 苫小牧市有珠の沢町２－１１－１４ | CD34: 北海道 函館市日吉町３－４４－１１ | DL34: 青森県 弘前市大字藤野２丁目３番１ | DR34: 青森県 青森市大字浪館字泉川３５番９ | DY34: 青森県 八戸市大字番町３５番１１ | EV34: 岩手県 盛岡市松園１－８－３ | FW34: 宮城県 仙台市宮城野区燕沢２丁目９番１３０外 | FX34: 宮城県 仙台市若林区遠見塚東７－３ | FY34: 宮城県 仙台市青葉区愛子東６－４－６ | FZ34: 宮城県 仙台市泉区南光台南２－１２－６ | GA34: 宮城県 仙台市太白区富田字八幡中２２番 | GV34: 秋田県 秋田市仁井田字大野１５４番２ | HM34: 山形県 山形市吉原１－１４－２１ | IL34: 福島県 いわき市内郷高坂町高橋１２５番 | IN34: 福島県 会津若松市天神町２５－３７ | IS34: 福島県 郡山市（日和田９街区２－１） | JO34: 福島県 福島市森合字西谷地１３番１５
D35: 北海道 旭川市春光６条８－５－４ | U35: 北海道 釧路市南大通３－１－９ | AC35: 北海道 江別市東野幌１３２番１ | AH35: 北海道 札幌市手稲区星置１条４－２－２９ | AJ35: 北海道 札幌市西区八軒７条東４－４－２０ | AK35: 北海道 札幌市中央区南６条西８丁目８番１１外 | AL35: 北海道 札幌市東区北２７条東７－３－２２ | AM35: 北海道 札幌市南区澄川３条４－７－１８ | AN35: 北海道 札幌市白石区本通１４北５－３５ | AO35: 北海道 札幌市豊平区平岸５条１０－６－１０ | AP35: 北海道 札幌市北区太平８条３－３－７ | AW35: 北海道 小樽市奥沢１－１６－５ | BJ35: 北海道 帯広市東３条南６丁目１番３外 | BY35: 北海道 苫小牧市字錦岡２１３番６外 | CD35: 北海道 函館市若松町２０－１ | DR35: 青森県 青森市大字安田字近野１４５番３１ | DY35: 青森県 八戸市大字大工町３番１ | EV35: 岩手県 盛岡市渋民字泉田３２６番外 | FW35: 宮城県 仙台市宮城野区岡田字北在家５７番 | FY35: 宮城県 仙台市青葉区栗生３丁目１４番２２ | FZ35: 宮城県 仙台市泉区将監１－２８－１６ | GA35: 宮城県 仙台市太白区坪沼字大苗６番 | GV35: 秋田県 秋田市新屋栗田町５－１９ | HM35: 山形県 山形市銅町１丁目１番５ | IL35: 福島県 いわき市泉町２丁目５番８ | IN35: 福島県 会津若松市門田町大字一ノ堰字土手外１９２４番２０ | IS35: 福島県 郡山市熱海町熱海１丁目３１１番４ | JO35: 福島県 福島市飯坂町平野字明神町６番１５
D36: 北海道 旭川市神楽岡８条２－４－１５ | U36: 北海道 釧路市城山１－５－２ | AH36: 北海道 札幌市手稲区富丘３条２－９－２４ | AJ36: 北海道 札幌市西区西町北２０－５－１０ | AK36: 北海道 札幌市中央区南９条西６－１－２５ | AL36: 北海道 札幌市東区北１３条東８－１－１０ | AM36: 北海道 札幌市南区川沿４条３－１－３ | AN36: 北海道 札幌市白石区菊水元町２条３－４－８ | AO36: 北海道 札幌市豊平区平岸３条１３－５－１７ | AP36: 北海道 札幌市北区屯田５条１２－１１－２ | AW36: 北海道 小樽市花園４－７－２ | BJ36: 北海道 帯広市西５条南１９丁目９番１外 | BY36: 北海道 苫小牧市北星町２－１４－２ | CD36: 北海道 函館市東雲町１７－６ | DR36: 青森県 青森市富田３－１１－３６ | DY36: 青森県 八戸市柏崎１－９－８ | EV36: 岩手県 盛岡市箱清水１－３０－２ | FW36: 宮城県 仙台市宮城野区榴岡５－１－１７ | FY36: 宮城県 仙台市青葉区国見ケ丘３丁目９番１２ | FZ36: 宮城県 仙台市泉区上谷刈５－２１－１６ | GA36: 宮城県 仙台市太白区金剛沢２－１２－２０ | GV36: 秋田県 秋田市牛島東５－９－１０ | HM36: 山形県 山形市富神台２８番 | IL36: 福島県 いわき市常磐白鳥町竜ケ崎１７番１６ | IS36: 福島県 郡山市喜久田町堀之内字堀内１２７番３ | JO36: 福島県 福島市飯坂町字八景５番７
D37: 北海道 旭川市豊岡６条６－１０－６ | U37: 北海道 釧路市北大通１３丁目２番１６外 | AH37: 北海道 札幌市手稲区稲穂３条５－８－１６ | AJ37: 北海道 札幌市西区発寒１２条３－９－１２ | AK37: 北海道 札幌市中央区南７条西１４－２－２６ | AL37: 北海道 札幌市東区北３５条東１５－１－１７ | AM37: 北海道 札幌市南区藤野３条６－８－１８ | AN37: 北海道 札幌市白石区南郷通１３南５－４ | AO37: 北海道 札幌市豊平区西岡３条４－１－１０ | AP37: 北海道 札幌市北区新琴似１１条１－１－９ | AW37: 北海道 小樽市緑１－８－１３ | BJ37: 北海道 帯広市大通南１０丁目１４番１ | BY37: 北海道 苫小牧市拓勇東町６－１１－２５ | CD37: 北海道 函館市鍛治２－２２－５ | DR37: 青森県 青森市港町２－１５－３０ | DY37: 青森県 八戸市小中野８－９－１８ | EV37: 岩手県 盛岡市仙北３－２１－２７ | FW37: 宮城県 仙台市宮城野区福室４－１８－３０ | FY37: 宮城県 仙台市青葉区芋沢字青野木２５７番３ | FZ37: 宮城県 仙台市泉区北高森１２番１２ | GA37: 宮城県 仙台市太白区西多賀１－１２－６ | GV37: 秋田県 秋田市河辺赤平字田中９１番 | HM37: 山形県 山形市蔵王松ケ丘２丁目１番６外 | IL37: 福島県 いわき市常磐関船町堀田９番３外 | IS37: 福島県 郡山市片平町字西大町２９番 | JO37: 福島県 福島市笹谷字寺町２番１
D38: 北海道 旭川市春光台２条４－３－１４ | U38: 北海道 釧路市新栄町１３－１３ | AH38: 北海道 札幌市手稲区前田４条１４－３－１５ | AJ38: 北海道 札幌市西区西野３条６－９－１５ | AK38: 北海道 札幌市中央区北４条西１９丁目１番２ | AL38: 北海道 札幌市東区北８条東１－２－１ | AM38: 北海道 札幌市南区川沿１０条２－４－３ | AN38: 北海道 札幌市白石区菊水元町６条２－７－３６ | AO38: 北海道 札幌市豊平区西岡４条６－１－４８ | AP38: 北海道 札幌市北区あいの里３条１－９－８ | AW38: 北海道 小樽市錦町２０－２０ | BJ38: 北海道 帯広市西５条南１２丁目１７番２ | BY38: 北海道 苫小牧市桜坂町１－５－６ | CD38: 北海道 函館市旭町７－６ | DR38: 青森県 青森市大字前田字中野２５番３ | DY38: 青森県 八戸市大字朔日町１８番 | EV38: 岩手県 盛岡市名須川町１０－５ | FW38: 宮城県 仙台市宮城野区原町２－３－４５ | FY38: 宮城県 仙台市青葉区中山台２丁目１４番１５ | FZ38: 宮城県 仙台市泉区長命ケ丘１丁目１０番９ | GA38: 宮城県 仙台市太白区東郡山２－１２－４３ | GV38: 秋田県 秋田市将軍野東２－１０－１６ | IL38: 福島県 いわき市平鯨岡字林下１番３ | IS38: 福島県 郡山市南１丁目５４番 | JO38: 福島県 福島市陣場町９－２８
D39: 北海道 旭川市末広５条７－５－１５ | U39: 北海道 釧路市昭和中央４－９－１７ | AH39: 北海道 札幌市手稲区曙２条４－２－４７ | AJ39: 北海道 札幌市西区宮の沢１条４－１－１１ | AK39: 北海道 札幌市中央区南４条東２丁目１１番２外 | AL39: 北海道 札幌市東区北８条東８－１－１ | AM39: 北海道 札幌市南区真駒内本町６－２－３ | AN39: 北海道 札幌市白石区中央３条３－１－４４ | AP39: 北海道 札幌市北区百合が原１－６－１９ | AW39: 北海道 小樽市新光２－２１－１９ | BJ39: 北海道 帯広市西１０条北１丁目１４番外 | BY39: 北海道 苫小牧市ウトナイ北７－１０－２５ | CD39: 北海道 函館市湯川町２－２２－５ | DR39: 青森県 青森市大字荒川字柴田３０番２外 | DY39: 青森県 八戸市城下４－２５－５ | EV39: 岩手県 盛岡市下田字陣場５６番５１ | FW39: 宮城県 仙台市宮城野区宮城野１－２１－１０ | FY39: 宮城県 仙台市青葉区赤坂３丁目５番４ | FZ39: 宮城県 仙台市泉区鶴が丘４丁目１８番５ | GA39: 宮城県 仙台市太白区秋保町湯元字太夫４０番１ | GV39: 秋田県 秋田市桜ガ丘２－５－６ | IL39: 福島県 いわき市常磐下船尾町宮下１９番２７ | IS39: 福島県 郡山市中町１５－９ | JO39: 福島県 福島市中町６－２８
D40: 北海道 旭川市大町１条５丁目１４番３７外 | U40: 北海道 釧路市入江町１０－２０ | AH40: 北海道 札幌市手稲区曙２条３－６－２８ | AJ40: 北海道 札幌市西区八軒６条西１０－１－７ | AK40: 北海道 札幌市中央区南６条西３丁目６番３１ | AL40: 北海道 札幌市東区伏古１４条５－１－２５ | AM40: 北海道 札幌市南区澄川５条１０－２－１４ | AN40: 北海道 札幌市白石区米里１条３－２－２０ | AP40: 北海道 札幌市北区あいの里３条９－１３－１０ | AW40: 北海道 小樽市稲穂３－１２－８ | BJ40: 北海道 帯広市西２０条北１－３－２２ | BY40: 北海道 苫小牧市沼ノ端中央５－２－１１ | CD40: 北海道 函館市本町１１－１２ | DR40: 青森県 青森市大字八幡林字熊谷７０番２ | DY40: 青森県 八戸市吹上２－１１－９２ | EV40: 岩手県 盛岡市稲荷町４－５２ | FW40: 宮城県 仙台市宮城野区平成２－１４－７ | FY40: 宮城県 仙台市青葉区中山９－８－３ | FZ40: 宮城県 仙台市泉区実沢字小豆嶋屋敷１４番１ | GA40: 宮城県 仙台市太白区四郎丸字吹上５９番１０ | GV40: 秋田県 秋田市楢山愛宕下１０－３ | IL40: 福島県 いわき市常磐上湯長谷町五反田２９２番 | IS40: 福島県 郡山市本町２－２－１０ | JO40: 福島県 福島市太平寺字児子塚５２番１外
D41: 北海道 旭川市東旭川南１条７－８－１２ | U41: 北海道 釧路市星が浦南１－１－１７ | AJ41: 北海道 札幌市西区二十四軒３条７－２－２１ | AK41: 北海道 札幌市中央区北１１条西２０－２－３３ | AL41: 北海道 札幌市東区東苗穂６条２－６－１５ | AM41: 北海道 札幌市南区澄川６条４－１１－１０ | AN41: 北海道 札幌市白石区流通センター４－４－７１ | AP41: 北海道 札幌市北区北２３条西４－２－３１ | AW41: 北海道 小樽市住吉町９－１０ | BY41: 北海道 苫小牧市字勇払２８番１４外 | CD41: 北海道 函館市松風町９－１４ | DR41: 青森県 青森市大字戸崎字宮井９１番１ | DY41: 青森県 八戸市大字廿三日町２８番１ | EV41: 岩手県 盛岡市土淵字橋場５０番１内 | FW41: 宮城県 仙台市宮城野区小鶴２－５－４８ | FY41: 宮城県 仙台市青葉区上愛子字大針５番 | FZ41: 宮城県 仙台市泉区市名坂字町２６番２ | GA41: 宮城県 仙台市太白区長町２－１－１６ | GV41: 秋田県 秋田市新藤田字中山台５４番３０ | IL41: 福島県 いわき市常磐上湯長谷町湯台堂１３５番２２ | IS41: 福島県 郡山市喜久田町卸１丁目７１番１ | JO41: 福島県 福島市大森字北島１番１外
D42: 北海道 旭川市永山５条２３－５－１７ | U42: 北海道 釧路市仲浜町１－１６ | AJ42: 北海道 札幌市西区八軒１０条西１１－１－４１ | AK42: 北海道 札幌市中央区北２条東１丁目２番１外 | AL42: 北海道 札幌市東区北４２条東１５－１－２３ | AM42: 北海道 札幌市南区川沿５条２－１－１０ | AP42: 北海道 札幌市北区北３０条西５－２－２８ | AW42: 北海道 小樽市色内１－４－２２ | BY42: 北海道 苫小牧市字植苗２２７番３３ | CD42: 北海道 函館市千代台町３２－３ | DR42: 青森県 青森市大字幸畑字谷脇１２０番７ | DY42: 青森県 八戸市沼館２－１－３ | EV42: 岩手県 盛岡市永井１４地割５９番２ | FW42: 宮城県 仙台市宮城野区榴岡４－５－２２ | FY42: 宮城県 仙台市青葉区北山２－２－１１ | FZ42: 宮城県 仙台市泉区泉中央４丁目５番２ | GA42: 宮城県 仙台市太白区袋原４－３－８ | GV42: 秋田県 秋田市寺内児桜２－５－８ | IL42: 福島県 いわき市勿来町関田南町３１番 | IS42: 福島県 郡山市小原田４－１４－３１ | JO42: 福島県 福島市五月町２－２
D43: 北海道 旭川市永山９条１２－１－１９ | U43: 北海道 釧路郡釧路町東陽西２丁目７番８ | AJ43: 北海道 札幌市西区発寒１６条１４－４－５ | AK43: 北海道 札幌市中央区大通東７丁目１２番１外 | AL43: 北海道 札幌市東区北２４条東１６－１－３ | AM43: 北海道 札幌市南区真駒内幸町２－１－５ | AP43: 北海道 札幌市北区新川３条５丁目４８７番３０ | AW43: 北海道 小樽市堺町３－２４ | BY43: 北海道 苫小牧市船見町２－８－３ | CD43: 北海道 函館市亀田本町３７－３ | DR43: 青森県 青森市旭町１－２－２９ | DY43: 青森県 八戸市大字長苗代字前田３４番１ | EV43: 岩手県 盛岡市大通２－３－５ | FW43: 宮城県 仙台市宮城野区岡田字北高屋敷３０番１外 | FY43: 宮城県 仙台市青葉区あけぼの町９－４ | FZ43: 宮城県 仙台市泉区長命ケ丘３丁目２８番３外 | GA43: 宮城県 仙台市太白区向山４－１４－１８ | GV43: 秋田県 秋田市広面字昼寝７番１１外 | IL43: 福島県 いわき市湘南台１丁目２番１６ | IS43: 福島県 郡山市栄町６－１５ | JO43: 福島県 福島市新町３－１５
D44: 北海道 旭川市東鷹栖１条４丁目６３８番２４２ | U44: 北海道 釧路郡釧路町光和５丁目２番 | AJ44: 北海道 札幌市西区発寒１３条１３－４－４０ | AK44: 北海道 札幌市中央区南１１条西２２－２－３ | AL44: 北海道 札幌市東区北４９条東８－３－１ | AP44: 北海道 札幌市北区北８条西４丁目２２番１ | AW44: 北海道 小樽市入船１－１－２ | BY44: 北海道 苫小牧市新開町１－４－６ | CD44: 北海道 函館市桔梗３－２６－１ | DR44: 青森県 青森市新町２－７－１８ | DY44: 青森県 八戸市江陽３－１－１０９ | EV44: 岩手県 盛岡市盛岡駅前通８－１７ | FW44: 宮城県 仙台市宮城野区港４丁目１番２ | FY44: 宮城県 仙台市青葉区錦ケ丘７丁目７番４ | FZ44: 宮城県 仙台市泉区市名坂字御釜田１４８番７外 | GA44: 宮城県 仙台市太白区中田６－１４－２０ | GV44: 秋田県 秋田市卸町５－４－８ | IL44: 福島県 いわき市勿来町窪田町通１丁目５８番２ | IS44: 福島県 郡山市朝日１－１３－５ | JO44: 福島県 福島市天神町１５－２８
D45: 北海道 旭川市春光台４条８丁目１４番５ | U45: 北海道 釧路郡釧路町雁来２番３９ | AJ45: 北海道 札幌市西区二十四軒１条１－３－５ | AK45: 北海道 札幌市中央区南２条西１９丁目２９１番６７外 | AL45: 北海道 札幌市東区東苗穂３条１－３－３０ | AP45: 北海道 札幌市北区北１７条西３－２－２１ | AW45: 北海道 小樽市銭函３丁目５０３番１０外 | BY45: 北海道 苫小牧市字勇払３７番１８外 | CD45: 北海道 函館市美原２丁目１３番８内 | DR45: 青森県 青森市新町１－１３－４ | DY45: 青森県 八戸市大字市川町字下揚４９番１４ | EV45: 岩手県 盛岡市青山３－２０－１３ | FY45: 宮城県 仙台市青葉区堤町１－８－７７ | FZ45: 宮城県 仙台市泉区泉ケ丘１－１２－８ | GA45: 宮城県 仙台市太白区長町１－３－３２ | GV45: 秋田県 秋田市牛島南２－１６－１３ | IL45: 福島県 いわき市小名浜岡小名１丁目８番６ | IS45: 福島県 郡山市駅前１－６－６ | JO45: 福島県 福島市飯坂町字十綱町１番７
D46: 北海道 旭川市豊岡１０条１０－１－１５ | U46: 北海道 釧路郡釧路町中央３丁目３４番１外 | AK46: 北海道 札幌市中央区北５条西２８－２－２ | AL46: 北海道 札幌市東区北２３条東２０－２－１５ | AP46: 北海道 札幌市北区新琴似４条１－１－３２ | BY46: 北海道 苫小牧市有明町２－７－９ | CD46: 北海道 函館市富岡町３－２３－１３ | DR46: 青森県 青森市長島２丁目１番２ | DY46: 青森県 八戸市大字河原木字海岸２４番５外 | EV46: 岩手県 盛岡市中ノ橋通１－５－１６ | FY46: 宮城県 仙台市青葉区川内明神横丁１５番１外 | FZ46: 宮城県 仙台市泉区明通３丁目９番 | GA46: 宮城県 仙台市太白区柳生１丁目１０番１０外 | GV46: 秋田県 秋田市横森４－７－２０ | IL46: 福島県 いわき市泉玉露６丁目１８番１４外 | IS46: 福島県 郡山市駅前２－９－８ | JO46: 福島県 福島市南矢野目字中屋敷５０番４外
D47: 北海道 旭川市東光２１条５－１－１６ | AK47: 北海道 札幌市中央区北１１条西１４丁目１番１６ | AL47: 北海道 札幌市東区苗穂町１３－１－４０ | AP47: 北海道 札幌市北区北７条西４丁目１番２外 | BY47: 北海道 苫小牧市字樽前２７７番４ | CD47: 北海道 函館市本通３－９－１７ | DR47: 青森県 青森市栄町１－６－６ | DY47: 青森県 八戸市大字長苗代字化石７６番４ | EV47: 岩手県 盛岡市稲荷町１２－１８ | FY47: 宮城県 仙台市青葉区愛子東１－１２－３ | GA47: 宮城県 仙台市太白区山田新町１９番１外 | GV47: 秋田県 秋田市太平黒沢字野崎７４番１ | IL47: 福島県 いわき市小名浜下神白字狩亦５番７ | IS47: 福島県 郡山市細沼町９－１ | JO47: 福島県 福島市伏拝字台田３番３
D48: 北海道 旭川市８条通２０丁目１９５９番１５ | AK48: 北海道 札幌市中央区南９条西２０－２－８ | AP48: 北海道 札幌市北区北１４条西３－１－１１ | BY48: 北海道 苫小牧市字美沢１３６番内 | CD48: 北海道 函館市本町３２－１３ | DR48: 青森県 青森市本町５－４－１８ | EV48: 岩手県 盛岡市中央通１－７－３５ | FY48: 宮城県 仙台市青葉区堤通雨宮町５－４０ | GA48: 宮城県 仙台市太白区秋保町湯元字薬師２７番２ | GV48: 秋田県 秋田市四ツ小屋字笹葉３３５番１ | IL48: 福島県 いわき市泉もえぎ台１丁目２５番８ | IS48: 福島県 郡山市駅前２－６－４ | JO48: 福島県 福島市御山字稲荷田８８番１外
D49: 北海道 旭川市神楽３条１１－３－５ | AK49: 北海道 札幌市中央区北４条西４丁目１番７外 | AP49: 北海道 札幌市北区北１１条西２－２－２０ | BY49: 北海道 苫小牧市矢代町２－２－１０ | CD49: 北海道 函館市富岡町３－６－１ | DR49: 青森県 青森市本町２－５－２ | EV49: 岩手県 盛岡市八幡町４－１８ | FY49: 宮城県 仙台市青葉区高松３－１６－１７ | GV49: 秋田県 秋田市浜田字滝ノ下１４２番１ | IL49: 福島県 いわき市勿来町関田西２丁目８番３ | IS49: 福島県 郡山市本町１－１８－９ | JO49: 福島県 福島市三河南町５－８
D50: 北海道 旭川市東８条２－２－１３ | AP50: 北海道 札幌市北区北２７条西１６－４－１０ | BY50: 北海道 苫小牧市双葉町３－３－４ | CD50: 北海道 函館市石川町３１４番１ | DR50: 青森県 青森市中央１－２－９ | EV50: 岩手県 盛岡市三本柳５地割２５番１５ | FY50: 宮城県 仙台市青葉区東勝山１－１０－１７ | GV50: 秋田県 秋田市雄和椿川字前椿岱４４番５４ | IL50: 福島県 いわき市平中神谷前河原町８番１６ | IS50: 福島県 郡山市富久山町福原字竹之内１２８番３外 | JO50: 福島県 福島市鎌田字熊ノ前３３番１
D51: 北海道 旭川市南２条通２１丁目１９７４番５５ | AP51: 北海道 札幌市北区北４０条西４－２－７ | BY51: 北海道 苫小牧市花園町３－１３－１６ | CD51: 北海道 函館市大手町６－８ | DR51: 青森県 青森市本町１－１－３９ | EV51: 岩手県 盛岡市中央通３－１２－５ | FY51: 宮城県 仙台市青葉区小松島２－２８－３５ | GV51: 秋田県 秋田市下北手松崎字大巻２６番２０６ | IL51: 福島県 いわき市中央台飯野１丁目２３番１２ | IS51: 福島県 郡山市安積４丁目２４３番 | JO51: 福島県 福島市万世町４－３１
D52: 北海道 旭川市末広１条１４－２－２０ | AP52: 北海道 札幌市北区新琴似３条７－１－２２ | BY52: 北海道 苫小牧市表町５－５－８ | CD52: 北海道 函館市昭和３－８－１０ | DR52: 青森県 青森市新町１－５－９ | EV52: 岩手県 盛岡市中野１－１０－５ | FY52: 宮城県 仙台市青葉区柏木１－４－１ | GV52: 秋田県 秋田市雄和種沢字潜龍寺前１３０番 | IL52: 福島県 いわき市泉ケ丘１丁目１９番１６ | IS52: 福島県 郡山市日和田町高倉字下杉下１番１外 | JO52: 福島県 福島市瀬上町字本町５６番１外
D53: 北海道 旭川市３条通２１丁目１９７３番６７ | AP53: 北海道 札幌市北区屯田６条４－６－２０ | BY53: 北海道 苫小牧市大成町２－１－１０ | CD53: 北海道 函館市宇賀浦町７－６ | DR53: 青森県 青森市はまなす１－１－６ | EV53: 岩手県 盛岡市肴町４－４ | FY53: 宮城県 仙台市青葉区折立４－６－５ | GV53: 秋田県 秋田市下北手柳館字前田面１２１番４ | IL53: 福島県 いわき市郷ケ丘３丁目６番１０ | JO53: 福島県 福島市吉倉字前田１２番４外
D54: 北海道 旭川市永山７条３－３－１９ | AP54: 北海道 札幌市北区麻生町９－１－５ | BY54: 北海道 苫小牧市表町１－３－４ | CD54: 北海道 函館市日乃出町２３－１２ | DR54: 青森県 青森市浪岡大字浪岡字細田１４７番 | EV54: 岩手県 盛岡市本町通３－１８－４５ | FY54: 宮城県 仙台市青葉区中央１－１０－１ | GV54: 秋田県 秋田市太平八田字八田１７６番３ | IL54: 福島県 いわき市平字鷹匠町１０番１ | JO54: 福島県 福島市岡島字宮田３０番２外
D55: 北海道 旭川市東鷹栖２線１５号６７１番８内 | AP55: 北海道 札幌市北区太平５条１－１－１ | BY55: 北海道 苫小牧市沼ノ端中央３－２－７ | DR55: 青森県 青森市大字八ツ役字矢作７３番４外 | EV55: 岩手県 盛岡市開運橋通１－３４ | FY55: 宮城県 仙台市青葉区中央２－１０－２０ | GV55: 秋田県 秋田市豊岩小山字狐森３８番 | IL55: 福島県 いわき市平字杉平２１番３２ | JO55: 福島県 福島市瀬上町字下中川原１７番５外
D56: 北海道 旭川市旭神町１９番４７ | BY56: 北海道 苫小牧市字糸井１４４番７ | DR56: 青森県 青森市原別１－５－２６ | EV56: 岩手県 盛岡市向中野３－３－４８ | FY56: 宮城県 仙台市青葉区中央２－２－２４ | GV56: 秋田県 秋田市中通２－８－１ | IL56: 福島県 いわき市泉町滝尻字南坪７３番６ | JO56: 福島県 福島市佐倉下字笊内１６番４
D57: 北海道 旭川市東旭川町日ノ出５１番７ | BY57: 北海道 苫小牧市日吉町１－４－６ | DR57: 青森県 青森市新田３－４－１ | EV57: 岩手県 盛岡市厨川３－１２－１３ | FY57: 宮城県 仙台市青葉区中央２－６－１９ | GV57: 秋田県 秋田市中通４－１７－３３ | IL57: 福島県 いわき市洋向台２丁目３番１３
D58: 北海道 旭川市曙３条６－１－１８ | BY58: 北海道 苫小牧市船見町２－１－７ | DR58: 青森県 青森市柳川２丁目１１番１２ | EV58: 岩手県 盛岡市東仙北２－１０－３０ | FY58: 宮城県 仙台市青葉区中央３－４－８ | GV58: 秋田県 秋田市広面字樋ノ沖１００番４外 | IL58: 福島県 いわき市勿来町窪田馬場７番４
D59: 北海道 旭川市台場東２丁目３９９番７９ | BY59: 北海道 苫小牧市柳町４－６－３４ | DR59: 青森県 青森市富田４－２９－１３ | FY59: 宮城県 仙台市青葉区本町１－１０－３ | GV59: 秋田県 秋田市新屋大川町１４－２８ | IL59: 福島県 いわき市小名浜字燈籠原１番３０外
D60: 北海道 旭川市東旭川町旭正３２８番３ | BY60: 北海道 苫小牧市元中野町４－１３－１５ | DR60: 青森県 青森市大字野内字菊川６１番３外 | FY60: 宮城県 仙台市青葉区本町１－１４－２４ | GV60: 秋田県 秋田市山王新町１－２８ | IL60: 福島県 いわき市岩間町天神前２番６外
D61: 北海道 旭川市神居町雨紛３８０番６８外 | BY61: 北海道 苫小牧市東開町３－１９－３ | DR61: 青森県 青森市第二問屋町３－６－１６ | FY61: 宮城県 仙台市青葉区本町２－１６－１０ | GV61: 秋田県 秋田市大町３－２－４１ | IL61: 福島県 いわき市小名浜字栄町３７番１
D62: 北海道 旭川市西神楽１線５号６７番４１ | BY62: 北海道 苫小牧市字沼ノ端１３４番１９３ | FY62: 宮城県 仙台市青葉区本町２－１４－２６ | GV62: 秋田県 秋田市大町５－１－１０ | IL62: 福島県 いわき市泉町下川字八合１４番６外
D63: 北海道 旭川市永山町７丁目１２２番４ | BY63: 北海道 苫小牧市元中野町２－７－２９ | FY63: 宮城県 仙台市青葉区花京院１－４－１０ | GV63: 秋田県 秋田市大町３－４－１８ | IL63: 福島県 いわき市内郷御台境町五反田１０番４
D64: 北海道 旭川市西神楽１線１２号２０９番１７ | BY64: 北海道 苫小牧市一本松町１０－６ | FY64: 宮城県 仙台市青葉区一番町３－４－２６ | GV64: 秋田県 秋田市中通２－１－２１ | IL64: 福島県 いわき市平赤井字田中２番５
D65: 北海道 旭川市東光１１条３－４－７ | BY65: 北海道 苫小牧市あけぼの町３－２－６ | FY65: 宮城県 仙台市青葉区五橋１－１－１７ | GV65: 秋田県 秋田市河辺北野田高屋字黒沼下堤下４６番１０外 | IL65: 福島県 いわき市四倉町狐塚字川田１番３外
D66: 北海道 旭川市豊岡４条２－１－９ | BY66: 北海道 苫小牧市真砂町３６番３外 | FY66: 宮城県 仙台市青葉区大町１－２－６ | GV66: 秋田県 秋田市仁井田本町５－８－２８ | IL66: 福島県 いわき市平上平窪字原田２０番８
D67: 北海道 旭川市４条通１１丁目１７２５番２５ | BY67: 北海道 苫小牧市字勇払２６３番２ | FY67: 宮城県 仙台市青葉区大町２－１５－３５ | GV67: 秋田県 秋田市保戸野通町５－３１ | IL67: 福島県 いわき市常磐藤原町名高儀７６番４７
D68: 北海道 旭川市本町２丁目４３７番２５５ | BY68: 北海道 苫小牧市元中野町２丁目２番９ | FY68: 宮城県 仙台市青葉区大町２－７－２０ | GV68: 秋田県 秋田市卸町３－５－２ | IL68: 福島県 いわき市平字三町目２８番
D69: 北海道 旭川市５条通７丁目５２０番２ | BY69: 北海道 苫小牧市新明町２－５－１０ | FY69: 宮城県 仙台市青葉区国分町２－１２－４ | GV69: 秋田県 秋田市川尻御休町１４－３４ | IL69: 福島県 いわき市平六町目３番１２内
D70: 北海道 旭川市３条通６丁目５１９番３ | BY70: 北海道 苫小牧市あけぼの町１－１－１８ | FY70: 宮城県 仙台市青葉区国分町２－１－１１ | GV70: 秋田県 秋田市中通６－１－６４ | IL70: 福島県 いわき市平字童子町４番１０
D71: 北海道 旭川市２条通８丁目５６９番１外 | BY71: 北海道 苫小牧市新開町３－９－５ | FY71: 宮城県 仙台市青葉区国分町３－１１－９ | GV71: 秋田県 秋田市山王３－５－２８ | IL71: 福島県 いわき市小名浜岡小名字作前８番３外
D72: 北海道 旭川市３条通２丁目１４５１番１外 | BY72: 北海道 苫小牧市沼ノ端中央１－１－２７ | FY72: 宮城県 仙台市青葉区春日町３－３１ | GV72: 秋田県 秋田市山王臨海町２－１０ | IL72: 福島県 いわき市小名浜花畑町１０番７
D73: 北海道 旭川市１条通１６丁目５４０番２外 | BY73: 北海道 苫小牧市字錦岡６８番２ | FY73: 宮城県 仙台市青葉区二日町８－６ | GV73: 秋田県 秋田市外旭川字小谷地３０番１外 | IL73: 福島県 いわき市平字正内町９０番
D74: 北海道 旭川市永山３条１９丁目１９０番４５ | FY74: 宮城県 仙台市青葉区上杉２－４－２１ | GV74: 秋田県 秋田市泉字登木２２７番１外 | IL74: 福島県 いわき市好間町下好間字一町坪６２番２
D75: 北海道 旭川市豊岡１２条３－２－１ | FY75: 宮城県 仙台市青葉区八幡４－３－５ | GV75: 秋田県 秋田市寺内後城２１－３０ | IL75: 福島県 いわき市常磐湯本町三函２４６番１
D76: 北海道 旭川市東旭川南１条６－２－５ | FY76: 宮城県 仙台市青葉区荒巻本沢２－４－５ | GV76: 秋田県 秋田市土崎港相染町字浜ナシ山６番２９ | IL76: 福島県 いわき市常磐湯本町天王崎１番５
D77: 北海道 旭川市神楽５条８－１－１ | FY77: 宮城県 仙台市青葉区昭和町２－２３ | GV77: 秋田県 秋田市向浜１－１－３ | IL77: 福島県 いわき市泉町２丁目１４番１４外
D78: 北海道 旭川市末広２条４－１－３ | FY78: 宮城県 仙台市青葉区小松島３－５－１８ | GV78: 秋田県 秋田市御所野湯本５－１－２ | IL78: 福島県 いわき市平下神谷字宿１２９番３
D79: 北海道 旭川市東４条１１－４－８ | FY79: 宮城県 仙台市青葉区上杉３－３－２０ | GV79: 秋田県 秋田市新屋鳥木町１－３５ | IL79: 福島県 いわき市平下平窪字六角４５番３３
D80: 北海道 旭川市忠和５条５－８－２１ | FY80: 宮城県 仙台市青葉区一番町３－８－４ | IL80: 福島県 いわき市小名浜島字高田町３１番３
D81: 北海道 旭川市東光８条１－１－７ | FY81: 宮城県 仙台市青葉区北根４－１－１１ | IL81: 福島県 いわき市泉町下川字田宿１番２外
D82: 北海道 旭川市永山２条１０－１－３５ | FY82: 宮城県 仙台市青葉区上杉１－１１－２ | IL82: 福島県 いわき市常磐水野谷町亀ノ尾８５番１５
D83: 北海道 旭川市永山６条４－１０－１０ | FY83: 宮城県 仙台市青葉区立町１８－１２ | IL83: 福島県 いわき市好間工業団地４番１
D84: 北海道 旭川市緑町１６丁目３０２３番８外 | FY84: 宮城県 仙台市青葉区国分町１－６－７
D85: 北海道 旭川市永山北１条７丁目２７番１外 | FY85: 宮城県 仙台市青葉区五橋１－４－２４
D86: 北海道 旭川市永山９条１－３－７ | FY86: 宮城県 仙台市青葉区本町１－４－６
D87: 北海道 旭川市流通団地２条５丁目５番３ | FY87: 宮城県 仙台市青葉区中央４－９－１５
D88: 北海道 旭川市工業団地２条１－２－２２ | FY88: 宮城県 仙台市青葉区北目町１－１３
FY89: 宮城県 仙台市青葉区一番町１－１５－３３
FY90: 宮城県 仙台市青葉区国分町３－８－１０
FY91: 宮城県 仙台市青葉区中央４－３－１２
FY92: 宮城県 仙台市青葉区一番町１－６－２０
FY93: 宮城県 仙台市青葉区国分町２－８－１４
FY94: 宮城県 仙台市青葉区通町２－１７－６
FY95: 宮城県 仙台市青葉区国分町１－７－１８
FY96: 宮城県 仙台市青葉区一番町２－１－１
FY97: 宮城県 仙台市青葉区南吉成３丁目１６番４

Sheet for_010101_listJH_08-14 (hidden)
A1: （非表示シート）
B2: かすみがうら | C2: つくば | D2: つくばみらい | E2: ひたちなか | F2: 阿見 | G2: 稲敷 | H2: 茨城 | I2: 茨城河内 | J2: 茨城境 | K2: 茨城東海 | L2: 茨城八千代 | M2: 下妻 | N2: 笠間 | O2: 牛久 | P2: 結城 | Q2: 古河 | R2: 五霞 | S2: 行方 | T2: 高萩 | U2: 坂東 | V2: 桜川 | W2: 鹿嶋 | X2: 取手 | Y2: 守谷 | Z2: 小美玉 | AA2: 城里 | AB2: 常総 | AC2: 常陸太田 | AD2: 常陸大宮 | AE2: 神栖 | AF2: 水戸 | AG2: 石岡 | AH2: 大子 | AI2: 大洗 | AJ2: 筑西 | AK2: 潮来 | AL2: 土浦 | AM2: 那珂 | AN2: 日立 | AO2: 美浦 | AP2: 鉾田 | AQ2: 北茨城 | AR2: 利根 | AS2: 龍ケ崎 | AT2: さくら | AU2: 宇都宮 | AV2: 益子 | AW2: 塩谷 | AX2: 下野 | AY2: 高根沢 | AZ2: 佐野 | BA2: 市貝 | BB2: 鹿沼 | BC2: 小山 | BD2: 上三川 | BE2: 真岡 | BF2: 壬生 | BG2: 足利 | BH2: 大田原 | BI2: 栃木 | BJ2: 栃木那珂川 | BK2: 那須 | BL2: 那須烏山 | BM2: 那須塩原 | BN2: 日光 | BO2: 芳賀 | BP2: 茂木 | BQ2: 野木 | BR2: 矢板 | BS2: みどり | BT2: みなかみ | BU2: 安中 | BV2: 伊勢崎 | BW2: 下仁田 | BX2: 甘楽 | BY2: 館林 | BZ2: 吉岡 | CA2: 玉村 | CB2: 桐生 | CC2: 群馬千代田 | CD2: 群馬草津 | CE2: 群馬明和 | CF2: 高崎 | CG2: 渋川 | CH2: 沼田 | CI2: 榛東 | CJ2: 前橋 | CK2: 太田 | CL2: 大泉 | CM2: 中之条 | CN2: 長野原 | CO2: 嬬恋 | CP2: 東吾妻 | CQ2: 藤岡 | CR2: 板倉 | CS2: 富岡 | CT2: 邑楽 | CU2: さいたま浦和 | CV2: さいたま岩槻 | CW2: さいたま見沼 | CX2: さいたま桜 | CY2: さいたま西 | CZ2: さいたま大宮 | DA2: さいたま中央 | DB2: さいたま南 | DC2: さいたま北 | DD2: さいたま緑 | DE2: ときがわ | DF2: ふじみ野 | DG2: 羽生 | DH2: 越生 | DI2: 越谷 | DJ2: 横瀬 | DK2: 桶川 | DL2: 加須 | DM2: 皆野 | DN2: 寄居 | DO2: 吉見 | DP2: 吉川 | DQ2: 久喜 | DR2: 宮代 | DS2: 狭山 | DT2: 熊谷 | DU2: 戸田 | DV2: 幸手 | DW2: 行田 | DX2: 鴻巣 | DY2: 坂戸 | DZ2: 埼玉伊奈 | EA2: 埼玉滑川 | EB2: 埼玉小川 | EC2: 埼玉川島 | ED2: 三郷 | EE2: 三芳 | EF2: 志木 | EG2: 春日部 | EH2: 所沢 | EI2: 小鹿野 | EJ2: 松伏 | EK2: 上尾 | EL2: 上里 | EM2: 新座 | EN2: 深谷 | EO2: 神川 | EP2: 杉戸 | EQ2: 川越 | ER2: 川口 | ES2: 草加 | ET2: 秩父 | EU2: 朝霞 | EV2: 鶴ケ島 | EW2: 東松山 | EX2: 日高 | EY2: 入間 | EZ2: 白岡 | FA2: 八潮 | FB2: 鳩山 | FC2: 飯能 | FD2: 美里 | FE2: 富士見 | FF2: 北本 | FG2: 本庄 | FH2: 毛呂山 | FI2: 嵐山 | FJ2: 蓮田 | FK2: 和光 | FL2: 蕨 | FM2: いすみ | FN2: 旭 | FO2: 印西 | FP2: 浦安 | FQ2: 横芝光 | FR2: 我孫子 | FS2: 鎌ケ谷 | FT2: 鴨川 | FU2: 館山 | FV2: 九十九里 | FW2: 君津 | FX2: 御宿 | FY2: 香取 | FZ2: 佐倉 | GA2: 山武 | GB2: 四街道 | GC2: 市原 | GD2: 市川 | GE2: 芝山 | GF2: 酒々井 | GG2: 習志野 | GH2: 勝浦 | GI2: 松戸 | GJ2: 成田 | GK2: 千葉一宮 | GL2: 千葉稲毛 | GM2: 千葉栄 | GN2: 千葉花見川 | GO2: 千葉若葉 | GP2: 千葉中央 | GQ2: 千葉美浜 | GR2: 千葉緑 | GS2: 船橋 | GT2: 匝瑳 | GU2: 袖ケ浦 | GV2: 多古 | GW2: 大網白里 | GX2: 銚子 | GY2: 長生 | GZ2: 長南 | HA2: 東金 | HB2: 東庄 | HC2: 柏 | HD2: 白井 | HE2: 白子 | HF2: 八街 | HG2: 八千代 | HH2: 富津 | HI2: 富里 | HJ2: 茂原 | HK2: 木更津 | HL2: 野田 | HM2: 流山 | HN2: あきる野 | HO2: 稲城 | HP2: 羽村 | HQ2: 葛飾 | HR2: 江戸川 | HS2: 江東 | HT2: 港 | HU2: 荒川 | HV2: 国分寺 | HW2: 国立 | HX2: 狛江 | HY2: 三鷹 | HZ2: 渋谷 | IA2: 小笠原 | IB2: 小金井 | IC2: 小平 | ID2: 昭島 | IE2: 新宿 | IF2: 新島 | IG2: 神津島 | IH2: 杉並 | II2: 世田谷 | IJ2: 清瀬 | IK2: 西東京 | IL2: 青梅 | IM2: 千代田 | IN2: 足立 | IO2: 多摩 | IP2: 台東 | IQ2: 大田 | IR2: 中央 | IS2: 中野 | IT2: 町田 | IU2: 調布 | IV2: 東久留米 | IW2: 東京三宅 | IX2: 東京瑞穂 | IY2: 東京大島 | IZ2: 東京府中 | JA2: 東村山 | JB2: 東大和 | JC2: 日の出 | JD2: 日野 | JE2: 八王子 | JF2: 八丈 | JG2: 板橋 | JH2: 品川 | JI2: 武蔵村山 | JJ2: 武蔵野 | JK2: 福生 | JL2: 文京 | JM2: 豊島 | JN2: 北 | JO2: 墨田 | JP2: 目黒 | JQ2: 立川 | JR2: 練馬 | JS2: 愛川 | JT2: 綾瀬 | JU2: 伊勢原 | JV2: 横須賀 | JW2: 横浜旭 | JX2: 横浜磯子 | JY2: 横浜栄 | JZ2: 横浜金沢 | KA2: 横浜戸塚 | KB2: 横浜港南 | KC2: 横浜港北 | KD2: 横浜神奈川 | KE2: 横浜瀬谷 | KF2: 横浜西 | KG2: 横浜青葉 | KH2: 横浜泉 | KI2: 横浜中 | KJ2: 横浜鶴見 | KK2: 横浜都筑 | KL2: 横浜南 | KM2: 横浜保土ケ谷 | KN2: 横浜緑 | KO2: 海老名 | KP2: 開成 | KQ2: 鎌倉 | KR2: 茅ケ崎 | KS2: 厚木 | KT2: 座間 | KU2: 三浦 | KV2: 山北 | KW2: 小田原 | KX2: 松田 | KY2: 真鶴 | KZ2: 神奈川寒川 | LA2: 神奈川大井 | LB2: 神奈川二宮 | LC2: 秦野 | LD2: 逗子 | LE2: 清川 | LF2: 川崎宮前 | LG2: 川崎幸 | LH2: 川崎高津 | LI2: 川崎川崎 | LJ2: 川崎多摩 | LK2: 川崎中原 | LL2: 川崎麻生 | LM2: 相模原中央 | LN2: 相模原南 | LO2: 相模原緑 | LP2: 大磯 | LQ2: 大和 | LR2: 中井 | LS2: 湯河原 | LT2: 藤沢 | LU2: 南足柄 | LV2: 箱根 | LW2: 平塚 | LX2: 葉山
B3: 茨城県 かすみがうら市宍倉字古屋敷５７００番１ | C3: 茨城県 つくば市春日３丁目５番１９ | D3: 茨城県 つくばみらい市谷井田字北耕地１４０３番９ | E3: 茨城県 ひたちなか市大字市毛字下坪４０４番１４６ | F3: 茨城県 稲敷郡阿見町大字若栗字西神田１３３９番１５外 | G3: 茨城県 稲敷市佐倉字佐倉原３３３２番７ | H3: 茨城県 東茨城郡茨城町大字長岡字大連寺３３１８番１１６ | I3: 茨城県 稲敷郡河内町片巻字古天神２３１番１ | J3: 茨城県 猿島郡境町字下田６５０番５ | K3: 茨城県 那珂郡東海村大字石神外宿字冨士山２４５２番２９外 | L3: 茨城県 結城郡八千代町大字久下田字遠上東５９９番１ | M3: 茨城県 下妻市下妻字栗山乙２８３番６ | N3: 茨城県 笠間市笠間字大和田１５０５番２ | O3: 茨城県 牛久市南７丁目８番２ | P3: 茨城県 結城市新福寺１丁目１６番１４外 | Q3: 茨城県 古河市松並２－８－３０ | R3: 茨城県 猿島郡五霞町原宿台２丁目１８番２ | S3: 茨城県 行方市麻生字大坂１１６１番６ | T3: 茨城県 高萩市肥前町２丁目８番２ | U3: 茨城県 坂東市岩井字篠山４８９９番６ | V3: 茨城県 桜川市友部字水代２０７番７ | W3: 茨城県 鹿嶋市宮中３－４－２５ | X3: 茨城県 取手市台宿２－１－３７ | Y3: 茨城県 守谷市百合ケ丘２丁目字清水２７６５番１１外 | Z3: 茨城県 小美玉市山野字インマ峯２５番１１外 | AA3: 茨城県 東茨城郡城里町大字石塚字南行２３７６番３２ | AB3: 茨城県 常総市中妻町字砂場８１５番３０外 | AC3: 茨城県 常陸太田市天神林町８４７番５２ | AD3: 茨城県 常陸大宮市泉字新山４９７番１２ | AE3: 茨城県 神栖市神栖２－１４－２４ | AF3: 茨城県 水戸市上水戸１－６－５ | AG3: 茨城県 石岡市鹿の子２－７－３６ | AH3: 茨城県 久慈郡大子町大字大子字後山５３４番２ | AI3: 茨城県 東茨城郡大洗町桜道３９２番外 | AJ3: 茨城県 筑西市字台甲４７５番 | AK3: 茨城県 潮来市牛堀字宮前９８番１ | AL3: 茨城県 土浦市若松町７－１３ | AM3: 茨城県 那珂市菅谷字杉原６５８番５２ | AN3: 茨城県 日立市水木町１－９－１２ | AO3: 茨城県 稲敷郡美浦村大字木原字後宿５１０番 | AP3: 茨城県 鉾田市子生字葉秋上８４０番４４ | AQ3: 茨城県 北茨城市磯原町磯原５丁目７７番外 | AR3: 茨城県 北相馬郡利根町大字八幡台１１番６ | AS3: 茨城県 龍ケ崎市佐貫町字浅間ケ浦９２９番１１０ | AT3: 栃木県 さくら市北草川２丁目１２番１１外 | AU3: 栃木県 宇都宮市昭和２－５－２４ | AV3: 栃木県 芳賀郡益子町大字益子字百目鬼１６２７番５ | AW3: 栃木県 塩谷郡塩谷町大字玉生字鴨屋敷６０８番５外 | AX3: 栃木県 下野市緑５丁目１３番４ | AY3: 栃木県 塩谷郡高根沢町大字宝積寺字北原９９５番４ | AZ3: 栃木県 佐野市天神町字大門東８０４番５ | BA3: 栃木県 芳賀郡市貝町大字市塙字北城１４２０番１ | BB3: 栃木県 鹿沼市松原３丁目１８２番 | BC3: 栃木県 小山市大字羽川字下田６０番３１ | BD3: 栃木県 河内郡上三川町大字上三川字冨士山３３５６番４ | BE3: 栃木県 真岡市熊倉３丁目１４番１０外 | BF3: 栃木県 下都賀郡壬生町大字壬生丁字六美２１７番６０ | BG3: 栃木県 足利市小俣町字白髭１０２４番２ | BH3: 栃木県 大田原市住吉町１－８－１７ | BI3: 栃木県 栃木市大町３３－３２ | BJ3: 栃木県 那須郡那珂川町馬頭字赤坂道西２２７５番３ | BK3: 栃木県 那須郡那須町大字寺子丙字前原３番１６１ | BL3: 栃木県 那須烏山市東原字上中原６７番３ | BM3: 栃木県 那須塩原市弥生町１２－１７ | BN3: 栃木県 日光市稲荷町２丁目３７０番３外 | BO3: 栃木県 芳賀郡芳賀町大字祖母井字城之内５８３番５ | BP3: 栃木県 芳賀郡茂木町大字茂木字中ノ内４０８番７ | BQ3: 栃木県 下都賀郡野木町大字丸林字愛宕５５１番３ | BR3: 栃木県 矢板市鹿島町１１－３１ | BS3: 群馬県 みどり市笠懸町鹿４４６５番８ | BT3: 群馬県 利根郡みなかみ町月夜野字蟹枠３２７９番３ | BU3: 群馬県 安中市安中２－２－２５ | BV3: 群馬県 伊勢崎市上植木本町２６４４番１１ | BW3: 群馬県 甘楽郡下仁田町大字下仁田字石神４１６番４ | BX3: 群馬県 甘楽郡甘楽町大字福島字多井戸根２番７外 | BY3: 群馬県 館林市尾曳町３２２番６外 | BZ3: 群馬県 北群馬郡吉岡町大字下野田字森下９１１番２ | CA3: 群馬県 佐波郡玉村町大字上茂木４９８番１２ | CB3: 群馬県 桐生市広沢町３丁目字坂本３５２４番４外 | CC3: 群馬県 邑楽郡千代田町大字赤岩字南権現１００７番２外 | CD3: 群馬県 吾妻郡草津町大字草津字堂裏４５４番１１９ | CE3: 群馬県 邑楽郡明和町新里２５８番６外 | CF3: 群馬県 高崎市竜見町３番２ | CG3: 群馬県 渋川市渋川字西田４２８番４ | CH3: 群馬県 沼田市西倉内町字滝棚５９０番６ | CI3: 群馬県 北群馬郡榛東村大字新井字長久保２９０１番６ | CJ3: 群馬県 前橋市天川町５０番４ | CK3: 群馬県 太田市鳥山下町６３９番１９ | CL3: 群馬県 邑楽郡大泉町住吉３８－３ | CM3: 群馬県 吾妻郡中之条町大字中之条町字王子原１７８４番３ | CN3: 群馬県 吾妻郡長野原町大字羽根尾字小滝３９４番２ | CO3: 群馬県 吾妻郡嬬恋村大字大前字細原２２８１番８１２ | CP3: 群馬県 吾妻郡東吾妻町大字原町字御殿６７５番 | CQ3: 群馬県 藤岡市藤岡字高崎道西１０４３番３１ | CR3: 群馬県 邑楽郡板倉町大字板倉字中耕地乙１６８４番 | CS3: 群馬県 富岡市富岡字天神基１３３９番４ | CT3: 群馬県 邑楽郡邑楽町大字新中野４５番１８ | CU3: 埼玉県 さいたま市浦和区本太１－１８－２１ | CV3: 埼玉県 さいたま市岩槻区本町３－１９－１９ | CW3: 埼玉県 さいたま市見沼区深作３丁目３９番９ | CX3: 埼玉県 さいたま市桜区大字大久保領家字中作田５６３番３２外 | CY3: 埼玉県 さいたま市西区三橋５丁目２０５３番１ | CZ3: 埼玉県 さいたま市大宮区天沼町１丁目４０８番２ | DA3: 埼玉県 さいたま市中央区下落合２－４－１６ | DB3: 埼玉県 さいたま市南区白幡２－７－１１ | DC3: 埼玉県 さいたま市北区盆栽町２６５番３ | DD3: 埼玉県 さいたま市緑区大間木３丁目３３番３ | DE3: 埼玉県 比企郡ときがわ町大字関堀字峯下１８１番１０ | DF3: 埼玉県 ふじみ野市うれし野２－１２－１７ | DG3: 埼玉県 羽生市東６丁目１９番９ | DH3: 埼玉県 入間郡越生町大字黒岩字東川原４６番１ | DI3: 埼玉県 越谷市大字船渡字屋敷前１４８９番３ | DJ3: 埼玉県 秩父郡横瀬町大字横瀬字拾壱番４３７９番６外 | DK3: 埼玉県 桶川市寿２－１３－２１ | DL3: 埼玉県 加須市諏訪２－２－２３ | DM3: 埼玉県 秩父郡皆野町大字皆野字下大浜４５４番１４ | DN3: 埼玉県 大里郡寄居町大字寄居字常木１６４５番１４ | DO3: 埼玉県 比企郡吉見町大字下細谷字東大下７０３番２ | DP3: 埼玉県 吉川市きよみ野３丁目７番４ | DQ3: 埼玉県 久喜市南１－８－６ | DR3: 埼玉県 南埼玉郡宮代町宮代１－９－３１ | DS3: 埼玉県 狭山市新狭山２丁目１８番２３ | DT3: 埼玉県 熊谷市石原３丁目４５番２ | DU3: 埼玉県 戸田市喜沢２丁目９番６３ | DV3: 埼玉県 幸手市中５－１６－１３ | DW3: 埼玉県 行田市谷郷１－９－３２ | DX3: 埼玉県 鴻巣市本町３－６－１６ | DY3: 埼玉県 坂戸市南町１０－１２ | DZ3: 埼玉県 北足立郡伊奈町寿１丁目３０４番１ | EA3: 埼玉県 比企郡滑川町大字月輪字山口下９３３番４８ | EB3: 埼玉県 比企郡小川町大字小川字神明川原３０４番１ | EC3: 埼玉県 比企郡川島町大字中山字中廓１１７９番９ | ED3: 埼玉県 三郷市谷口字根通４２１番３ | EE3: 埼玉県 入間郡三芳町大字藤久保（元上南畑分）字上荒久３９３１番６ | EF3: 埼玉県 志木市柏町２－２７－４ | EG3: 埼玉県 春日部市南中曽根字川面３１８番１６０ | EH3: 埼玉県 所沢市緑町４－３７－５ | EI3: 埼玉県 秩父郡小鹿野町小鹿野字早道場１７２７番１ | EJ3: 埼玉県 北葛飾郡松伏町大字松伏字内前野２５９９番４ | EK3: 埼玉県 上尾市上町１－１０－１３ | EL3: 埼玉県 児玉郡上里町大字七本木字三軒東前１９１９番３ | EM3: 埼玉県 新座市野火止６－２３－３１ | EN3: 埼玉県 深谷市見晴町４番２０ | EO3: 埼玉県 児玉郡神川町大字新里字上宿１８２２番１ | EP3: 埼玉県 北葛飾郡杉戸町大字並塚１８３６番２ | EQ3: 埼玉県 川越市野田町１丁目６番２６外 | ER3: 埼玉県 川口市西青木１－１９－６ | ES3: 埼玉県 草加市金明町字道下１２２番９ | ET3: 埼玉県 秩父市中村町２－８－２６ | EU3: 埼玉県 朝霞市宮戸３－８－３０ | EV3: 埼玉県 鶴ケ島市大字上広谷字北精進６２番５６ | EW3: 埼玉県 東松山市箭弓町１－１９－５ | EX3: 埼玉県 日高市大字中鹿山字後耕地９５番１０ | EY3: 埼玉県 入間市黒須２－６－１０ | EZ3: 埼玉県 白岡市小久喜字相野谷１０７０番６ | FA3: 埼玉県 八潮市中央１丁目２１番２３ | FB3: 埼玉県 比企郡鳩山町松ケ丘１－１８－４ | FC3: 埼玉県 飯能市新町２８－１２ | FD3: 埼玉県 児玉郡美里町大字阿那志字勝丸１０４６番８ | FE3: 埼玉県 富士見市上沢３－１６－３６ | FF3: 埼玉県 北本市緑１丁目９４番 | FG3: 埼玉県 本庄市児玉町金屋字西１９８番１２ | FH3: 埼玉県 入間郡毛呂山町中央３丁目３番３外 | FI3: 埼玉県 比企郡嵐山町大字菅谷字東原２４９番４６ | FJ3: 埼玉県 蓮田市藤ノ木３丁目２４０番外 | FK3: 埼玉県 和光市新倉１－２２－９６ | FL3: 埼玉県 蕨市塚越２－９－１３ | FM3: 千葉県 いすみ市大原字初芝９９３１番 | FN3: 千葉県 旭市ハ字田町４９番３外 | FO3: 千葉県 印西市木下字樽場１５２１番１６２ | FP3: 千葉県 浦安市猫実５－７－２２ | FQ3: 千葉県 山武郡横芝光町宮川字向田４４１８番１外 | FR3: 千葉県 我孫子市台田２－７－１４ | FS3: 千葉県 鎌ケ谷市富岡１－８－３７ | FT3: 千葉県 鴨川市横渚字洲崎５５６番 | FU3: 千葉県 館山市北条字鶴ケ谷２０９０番２外 | FV3: 千葉県 山武郡九十九里町真亀字南濱後４２１４番 | FW3: 千葉県 君津市大和田３丁目４番１３ | FX3: 千葉県 夷隅郡御宿町久保字南側２１１８番 | FY3: 千葉県 香取市北１丁目９番９ | FZ3: 千葉県 佐倉市千成２－１５－１４ | GA3: 千葉県 山武市成東字熊野６４２番４ | GB3: 千葉県 四街道市和良比字三才２５６番１６８ | GC3: 千葉県 市原市平田字貝塚４番２ | GD3: 千葉県 市川市菅野３－２０－５ | GE3: 千葉県 山武郡芝山町小池字幸面９０９番１ | GF3: 千葉県 印旛郡酒々井町中央台１丁目１４番１１ | GG3: 千葉県 習志野市津田沼１－７－１５ | GH3: 千葉県 勝浦市興津字家名４８番１７ | GI3: 千葉県 松戸市松戸字神田１０９８番３外 | GJ3: 千葉県 成田市東町２４０番４外 | GK3: 千葉県 長生郡一宮町一宮字神堀９３３番３ | GL3: 千葉県 千葉市稲毛区稲毛台町２７－４ | GM3: 千葉県 印旛郡栄町竜角寺台５－２５－１４ | GN3: 千葉県 千葉市花見川区花園５－１６－１７ | GO3: 千葉県 千葉市若葉区若松町２３７６番７ | GP3: 千葉県 千葉市中央区新千葉３－４－１６ | GQ3: 千葉県 千葉市美浜区真砂１－９－１６ | GR3: 千葉県 千葉市緑区あすみが丘７丁目２５番１１ | GS3: 千葉県 船橋市西船５－１９－１６ | GT3: 千葉県 匝瑳市八日市場ハ字砂原７８２番１３ | GU3: 千葉県 袖ケ浦市福王台１丁目２６番２５ | GV3: 千葉県 香取郡多古町多古字陣屋下７９８番１ | GW3: 千葉県 大網白里市永田字宿１８６番５ | GX3: 千葉県 銚子市清川町２丁目２番１４外 | GY3: 千葉県 長生郡長生村一松字砂畑一乙１９８８番１５ | GZ3: 千葉県 長生郡長南町千田字吹羅１４６０番５ | HA3: 千葉県 東金市東金字阿部倉下２７番１３ | HB3: 千葉県 香取郡東庄町新宿字天王田７９３番５ | HC3: 千葉県 柏市泉町９－１９ | HD3: 千葉県 白井市復字初崎１４５７番２８２ | HE3: 千葉県 長生郡白子町古所字北川岸３２９３番２外 | HF3: 千葉県 八街市八街字大池に１２４番３６ | HG3: 千葉県 八千代市萱田町字出戸６５９番６５ | HH3: 千葉県 富津市青木３丁目２０番２８ | HI3: 千葉県 富里市七栄字東二本榎３２９番９０ | HJ3: 千葉県 茂原市長清水１７番 | HK3: 千葉県 木更津市文京２－２－１６ | HL3: 千葉県 野田市清水字出井ノ下６７３番５５ | HM3: 千葉県 流山市西平井字谷新田４７６番４ | HN3: 東京都 あきる野市二宮字森腰１１３３番４０ | HO3: 東京都 稲城市大字東長沼字七号２１３２番２ | HP3: 東京都 羽村市羽中３－１０－１２ | HQ3: 東京都 葛飾区東金町３－３４－１ | HR3: 東京都 江戸川区西小岩１－１０－５ | HS3: 東京都 江東区北砂５－５－６ | HT3: 東京都 港区赤坂６－１９－２３ | HU3: 東京都 荒川区西尾久８－１８－１０ | HV3: 東京都 国分寺市高木町１丁目６番３２ | HW3: 東京都 国立市東１丁目９番２２ | HX3: 東京都 狛江市東野川１－１３－６ | HY3: 東京都 三鷹市下連雀３－６－４ | HZ3: 東京都 渋谷区初台２－８－６ | IA3: 東京都 小笠原村父島字奥村２３番６ | IB3: 東京都 小金井市東町３－６－３６ | IC3: 東京都 小平市小川東町５－７－２０ | ID3: 東京都 昭島市東町３－９－１４ | IE3: 東京都 新宿区大久保１－１４－７ | IF3: 東京都 新島村本村１－３－５ | IG3: 東京都 神津島村９９５番 | IH3: 東京都 杉並区荻窪１－１－１８ | II3: 東京都 世田谷区桜上水５－４０－１０ | IJ3: 東京都 清瀬市松山２－８－６ | IK3: 東京都 西東京市田無町４－８－１２ | IL3: 東京都 青梅市東青梅４丁目１７番４ | IM3: 東京都 千代田区三番町６番２５ | IN3: 東京都 足立区舎人５－２７－１ | IO3: 東京都 多摩市馬引沢２丁目１３番１５ | IP3: 東京都 台東区池之端４－２６－１０ | IQ3: 東京都 大田区大森北３－１８－８ | IR3: 東京都 中央区月島２－１６－９ | IS3: 東京都 中野区白鷺３－６－９ | IT3: 東京都 町田市南町田１－２３－１４ | IU3: 東京都 調布市布田６丁目３番１３ | IV3: 東京都 東久留米市学園町２－１５－１９ | IW3: 東京都 三宅村神着２１８番１ | IX3: 東京都 西多摩郡瑞穂町大字殿ケ谷字狭山平８８４番３ | IY3: 東京都 大島町元町４丁目４番９ | IZ3: 東京都 府中市八幡町２丁目１２番４０ | JA3: 東京都 東村山市栄町３丁目４番１５ | JB3: 東京都 東大和市南街３丁目４１番７ | JC3: 東京都 西多摩郡日の出町大字大久野字落合１１０番１４ | JD3: 東京都 日野市多摩平５丁目１５番３ | JE3: 東京都 八王子市めじろ台２丁目４５番１４ | JF3: 東京都 八丈町大賀郷２２８４番 | JG3: 東京都 板橋区三園１－４４－２５ | JH3: 東京都 品川区東五反田４－２－１１ | JI3: 東京都 武蔵村山市大南１丁目１５８番１ | JJ3: 東京都 武蔵野市吉祥寺本町４－２１－６ | JK3: 東京都 福生市志茂１８番３ | JL3: 東京都 文京区千駄木２－９－１４ | JM3: 東京都 豊島区目白２－３６－１６ | JN3: 東京都 北区滝野川５－４８－１２ | JO3: 東京都 墨田区文花１－２２－１ | JP3: 東京都 目黒区柿の木坂２－２５－２５ | JQ3: 東京都 立川市錦町３－１２－２３ | JR3: 東京都 練馬区南田中４－２０－１６ | JS3: 神奈川県 愛甲郡愛川町春日台３丁目２７番６ | JT3: 神奈川県 綾瀬市寺尾北１－２－３４ | JU3: 神奈川県 伊勢原市東大竹２丁目２７番７ | JV3: 神奈川県 横須賀市池田町６－１０－１０ | JW3: 神奈川県 横浜市旭区柏町２９番３ | JX3: 神奈川県 横浜市磯子区森５－２０－３５ | JY3: 神奈川県 横浜市栄区元大橋１－１９－５ | JZ3: 神奈川県 横浜市金沢区富岡東６－２６－１０ | KA3: 神奈川県 横浜市戸塚区矢部町字日之森１４２０番５８ | KB3: 神奈川県 横浜市港南区最戸１－２０－２０ | KC3: 神奈川県 横浜市港北区日吉６－３－１４ | KD3: 神奈川県 横浜市神奈川区片倉５－１１－５ | KE3: 神奈川県 横浜市瀬谷区東野１４２番１３ | KF3: 神奈川県 横浜市西区境之谷３０番１１ | KG3: 神奈川県 横浜市青葉区みたけ台７番２４ | KH3: 神奈川県 横浜市泉区中田西３－３４－１１ | KI3: 神奈川県 横浜市中区本牧荒井８５番２０ | KJ3: 神奈川県 横浜市鶴見区下末吉２－１５－２ | KK3: 神奈川県 横浜市都筑区荏田東３－１７－１０ | KL3: 神奈川県 横浜市南区中里３－２０－２９ | KM3: 神奈川県 横浜市保土ケ谷区霞台４１－４ | KN3: 神奈川県 横浜市緑区長津田６－８－２０ | KO3: 神奈川県 海老名市大谷北２－１９－８ | KP3: 神奈川県 足柄上郡開成町延沢字中川原７８３番２ | KQ3: 神奈川県 鎌倉市台４－１２－２８ | KR3: 神奈川県 茅ケ崎市東海岸南１－１９－７ | KS3: 神奈川県 厚木市毛利台２－１３－１３ | KT3: 神奈川県 座間市東原４－８－１１ | KU3: 神奈川県 三浦市南下浦町上宮田字芝原１１６９番５ | KV3: 神奈川県 足柄上郡山北町山北字宮地１２００番６ | KW3: 神奈川県 小田原市永塚字長森２３３番６外 | KX3: 神奈川県 足柄上郡松田町松田惣領字中澤１９２０番１ | KY3: 神奈川県 足柄下郡真鶴町真鶴字海岸９４５番１ | KZ3: 神奈川県 高座郡寒川町宮山３６１５番１０ | LA3: 神奈川県 足柄上郡大井町金子字市場１５５番４ | LB3: 神奈川県 中郡二宮町山西字梅沢５２番６外 | LC3: 神奈川県 秦野市下大槻字峯ノ上６８番５ | LD3: 神奈川県 逗子市逗子６－８－４１ | LE3: 神奈川県 愛甲郡清川村煤ケ谷字操矢ノ原１０１番２１ | LF3: 神奈川県 川崎市宮前区土橋１丁目２４番３ | LG3: 神奈川県 川崎市幸区古市場１丁目２３番６ | LH3: 神奈川県 川崎市高津区蟹ケ谷字清水３１３番５０ | LI3: 神奈川県 川崎市川崎区中瀬２－１７－１２ | LJ3: 神奈川県 川崎市多摩区宿河原６－３９－３ | LK3: 神奈川県 川崎市中原区木月住吉町２８－３２ | LL3: 神奈川県 川崎市麻生区上麻生２－２４－２５ | LM3: 神奈川県 相模原市中央区千代田７－７－１６ | LN3: 神奈川県 相模原市南区東林間１－１８－６ | LO3: 神奈川県 相模原市緑区二本松４－１８－７ | LP3: 神奈川県 中郡大磯町国府本郷字上河原１５５番２ | LQ3: 神奈川県 大和市上草柳２－３－１１ | LR3: 神奈川県 足柄上郡中井町田中字宇多利１１０４番１ | LS3: 神奈川県 足柄下郡湯河原町中央１丁目１４番２外 | LT3: 神奈川県 藤沢市辻堂東海岸１－１４－１９ | LU3: 神奈川県 南足柄市福泉字善能７番５ | LV3: 神奈川県 足柄下郡箱根町宮城野字井戸久保１４８８番２４ | LW3: 神奈川県 平塚市高浜台１７－１９ | LX3: 神奈川県 三浦郡葉山町堀内字五ツ合５３７番２
B4: 茨城県 かすみがうら市宍倉字鹿野山６２０７番１７ | C4: 茨城県 つくば市稲荷前２４番８ | D4: 茨城県 つくばみらい市小絹字溜下１８５番３６ | E4: 茨城県 ひたちなか市大字稲田字今鹿島１４５５番９ | F4: 茨城県 稲敷郡阿見町住吉１丁目１４番１３外 | G4: 茨城県 稲敷市江戸崎字中宿乙１０６番６ | H4: 茨城県 東茨城郡茨城町大字小鶴字宿１７６５番 | I4: 茨城県 稲敷郡河内町長竿字愛宕町２７５番３ | J4: 茨城県 猿島郡境町字宮後１８１１番４ | K4: 茨城県 那珂郡東海村大山台２－１７－３２ | M4: 茨城県 下妻市大宝字本町５９８番 | N4: 茨城県 笠間市吉岡字新切３３番７ | O4: 茨城県 牛久市久野町６８７番 | P4: 茨城県 結城市（南部第２工区４８－１街区１４、１５） | Q4: 茨城県 古河市横山町３－６－１９ | R4: 茨城県 猿島郡五霞町大字小手指字堀の内１１７９番１ | S4: 茨城県 行方市麻生字田倉３２８６番２２ | T4: 茨城県 高萩市大字島名字堂ノ上２１２９番６２ | U4: 茨城県 坂東市辺田字原新１１１１番２８ | V4: 茨城県 桜川市明日香４丁目４７番１ | W4: 茨城県 鹿嶋市港ケ丘１－１４－１５ | X4: 茨城県 取手市井野２－１２－１０ | Y4: 茨城県 守谷市ひがし野１丁目６番１６ | Z4: 茨城県 小美玉市羽鳥字東平２６５９番３７ | AA4: 茨城県 東茨城郡城里町大字石塚字長峰９２３番１２ | AB4: 茨城県 常総市水海道橋本町字三木内３３４０番２ | AC4: 茨城県 常陸太田市木崎二町３８４３番２ | AD4: 茨城県 常陸大宮市抽ヶ台町８１５番８ | AE4: 茨城県 神栖市大野原１－４－４８ | AF4: 茨城県 水戸市内原町字門１１０５番５ | AG4: 茨城県 石岡市三村字水内２１０８番２ | AH4: 茨城県 久慈郡大子町大字北田気字上ノ原８１７番２４ | AI4: 茨城県 東茨城郡大洗町磯浜町字小松原５３４９番 | AJ4: 茨城県 筑西市市野辺字柳町１４番 | AK4: 茨城県 潮来市上戸字芝宿４１番３ | AL4: 茨城県 土浦市乙戸南２－１９－１６ | AM4: 茨城県 那珂市菅谷字両宮西２９８３番５ | AN4: 茨城県 日立市森山町１－１６－２５ | AO4: 茨城県 稲敷郡美浦村大字信太字信太原２８３６番７ | AP4: 茨城県 鉾田市上沢字荒地上１５０８番外 | AQ4: 茨城県 北茨城市大津町北町４丁目４番９ | AR4: 茨城県 北相馬郡利根町大字布川字野岸２０８０番４５ | AS4: 茨城県 龍ケ崎市字立野４９４５番１１ | AT4: 栃木県 さくら市上野字上野１４３番１６外 | AU4: 栃木県 宇都宮市新町２－３－４ | AV4: 栃木県 芳賀郡益子町大字塙字西谷９２０番２７ | AW4: 栃木県 塩谷郡塩谷町大字田所字柿木山２３４０番７ | AX4: 栃木県 下野市柴字水溜リ８８番２３外 | AY4: 栃木県 塩谷郡高根沢町大字平田字上原２０１１番３４ | AZ4: 栃木県 佐野市寺中町字笠内町２４３８番１ | BA4: 栃木県 芳賀郡市貝町大字赤羽字中新田屋敷付１０４５番７ | BB4: 栃木県 鹿沼市泉町字御所前２４４２番５ | BC4: 栃木県 小山市若木町３－６－１３ | BD4: 栃木県 河内郡上三川町大字上三川字大町５０６１番５ | BE4: 栃木県 真岡市長田２丁目１２番１１外 | BF4: 栃木県 下都賀郡壬生町大師町１５－３２ | BG4: 栃木県 足利市葉鹿町字諏訪瀬６４番１５ | BH4: 栃木県 大田原市美原１－１０－８ | BI4: 栃木県 栃木市今泉町１－６－２０ | BJ4: 栃木県 那須郡那珂川町馬頭字町下５４６番２ | BK4: 栃木県 那須郡那須町大字高久甲字愛宕前５１１５番３２ | BL4: 栃木県 那須烏山市小倉字台畑１１００番３６ | BM4: 栃木県 那須塩原市並木町１１６番１７１ | BN4: 栃木県 日光市清滝１－９－１４ | BO4: 栃木県 芳賀郡芳賀町大字稲毛田字屋敷添１４３０番 | BP4: 栃木県 芳賀郡茂木町大字坂井字箕ノ輪１２３４番８３ | BQ4: 栃木県 下都賀郡野木町大字丸林字鶴巻５９５番２１ | BR4: 栃木県 矢板市上町１７－１４ | BS4: 群馬県 みどり市笠懸町久宮２０２番４８ | BT4: 群馬県 利根郡みなかみ町後閑字北入河原１７４番１外 | BU4: 群馬県 安中市原市字鍛治村西１３１１番１外 | BV4: 群馬県 伊勢崎市安堀町字八反田２５２番９ | BX4: 群馬県 甘楽郡甘楽町大字善慶寺字御台面３５２番３ | BY4: 群馬県 館林市近藤町字障子１７８番８１３ | BZ4: 群馬県 北群馬郡吉岡町大字大久保字宮後３２０６番３ | CA4: 群馬県 佐波郡玉村町大字福島字内田１２０４番２５ | CB4: 群馬県 桐生市梅田町２丁目字栗生４５番２ | CC4: 群馬県 邑楽郡千代田町大字赤岩字上宿北１８０番５ | CD4: 群馬県 吾妻郡草津町大字草津字堂裏４５３番２ | CE4: 群馬県 邑楽郡明和町新里１２５番 | CF4: 群馬県 高崎市柳川町１４６番４外 | CG4: 群馬県 渋川市渋川字並木７６３番８外 | CH4: 群馬県 沼田市坊新田町字下原１２５０番４０ | CI4: 群馬県 北群馬郡榛東村大字山子田字大手２０６８番１６ | CJ4: 群馬県 前橋市大胡町７１３番１０外 | CK4: 群馬県 太田市市場町７７９番５ | CL4: 群馬県 邑楽郡大泉町大字古海字番場２１４５番 | CM4: 群馬県 吾妻郡中之条町大字伊勢町字小原１０１５番２ | CN4: 群馬県 吾妻郡長野原町大字応桑字チカヤ９００番６ | CP4: 群馬県 吾妻郡東吾妻町大字川戸字田辺５６８番６ | CQ4: 群馬県 藤岡市藤岡字城屋敷１５４９番３１ | CR4: 群馬県 邑楽郡板倉町大字板倉字入之山甲２４１５番１ | CS4: 群馬県 富岡市七日市字舟久保１０５５番１ | CT4: 群馬県 邑楽郡邑楽町大字明野４２番８ | CU4: 埼玉県 さいたま市浦和区岸町３－１－１９ | CV4: 埼玉県 さいたま市岩槻区宮町１－９－４ | CW4: 埼玉県 さいたま市見沼区春岡３丁目３１番５ | CX4: 埼玉県 さいたま市桜区栄和２－１９－１０ | CY4: 埼玉県 さいたま市西区大字二ツ宮字後谷７５８番１ | CZ4: 埼玉県 さいたま市大宮区土手町１丁目２３９番３ | DA4: 埼玉県 さいたま市中央区本町西４－１６－２１ | DB4: 埼玉県 さいたま市南区南浦和３－１３－１３ | DC4: 埼玉県 さいたま市北区櫛引町２丁目４５３番３ | DD4: 埼玉県 さいたま市緑区大字三室字大古里６３６番２５ | DE4: 埼玉県 比企郡ときがわ町大字玉川字伊勢台１１６９番１ | DF4: 埼玉県 ふじみ野市上ノ原２丁目５番４１ | DG4: 埼玉県 羽生市北３－１３－１２ | DH4: 埼玉県 入間郡越生町大字鹿下字柿枝前８０９番２ | DI4: 埼玉県 越谷市東越谷１丁目１５番１６ | DJ4: 埼玉県 秩父郡横瀬町大字横瀬字五番１５３３番２外 | DK4: 埼玉県 桶川市大字上日出谷字殿山８３０番１５０ | DL4: 埼玉県 加須市南篠崎２丁目７番１９ | DM4: 埼玉県 秩父郡皆野町大字皆野字殿林９７０番６ | DO4: 埼玉県 比企郡吉見町東野５丁目１４番１２ | DP4: 埼玉県 吉川市高久１丁目３０番１３ | DQ4: 埼玉県 久喜市久喜東４－６－１８ | DR4: 埼玉県 南埼玉郡宮代町川端２－８－３ | DS4: 埼玉県 狭山市入間川１－２３－９ | DT4: 埼玉県 熊谷市中央２丁目２６９番５ | DU4: 埼玉県 戸田市美女木７丁目５番２２ | DV4: 埼玉県 幸手市上高野１丁目２５番５ | DW4: 埼玉県 行田市大字下忍字高畑１９２４番１ | DX4: 埼玉県 鴻巣市生出塚１－１８－１０ | DY4: 埼玉県 坂戸市三光町４６番２ | DZ4: 埼玉県 北足立郡伊奈町栄２丁目４１番６ | EA4: 埼玉県 比企郡滑川町大字羽尾字両家３８３番３ | EB4: 埼玉県 比企郡小川町大字青山字大沢４６２番３ | EC4: 埼玉県 比企郡川島町八幡３丁目６番１８ | ED4: 埼玉県 三郷市鷹野５丁目９５番 | EE4: 埼玉県 入間郡三芳町大字藤久保字俣埜２５９番４６ | EF4: 埼玉県 志木市柏町４－８－４０ | EG4: 埼玉県 春日部市米島字外谷津３５８番１０８ | EH4: 埼玉県 所沢市花園１丁目２４３０番９ | EJ4: 埼玉県 北葛飾郡松伏町大字上赤岩字本村１１４５番 | EK4: 埼玉県 上尾市西宮下２丁目７３番 | EL4: 埼玉県 児玉郡上里町大字七本木字稲荷東２４３５番３ | EM4: 埼玉県 新座市北野２－１０－２３ | EN4: 埼玉県 深谷市稲荷町北４－２６ | EO4: 埼玉県 児玉郡神川町大字元阿保字下原１３９０番３ | EP4: 埼玉県 北葛飾郡杉戸町内田３－４－２１ | EQ4: 埼玉県 川越市仙波町２丁目１７番２２ | ER4: 埼玉県 川口市南町２－８－２７ | ES4: 埼玉県 草加市旭町３－４－１０ | ET4: 埼玉県 秩父市桜木町８－２２ | EU4: 埼玉県 朝霞市根岸台７－１０－１５ | EV4: 埼玉県 鶴ケ島市脚折町５－１１－８ | EW4: 埼玉県 東松山市和泉町６－３９ | EX4: 埼玉県 日高市大字原宿字稲荷３６３番１５ | EY4: 埼玉県 入間市東藤沢２－１４－６ | EZ4: 埼玉県 白岡市新白岡８丁目３番１４ | FA4: 埼玉県 八潮市大字大曽根７９５番４ | FB4: 埼玉県 比企郡鳩山町大字今宿６１１番９ | FC4: 埼玉県 飯能市八幡町７－１８ | FD4: 埼玉県 児玉郡美里町大字沼上字南５３８番 | FE4: 埼玉県 富士見市針ヶ谷１丁目３５番２１ | FF4: 埼玉県 北本市中丸４丁目１８番４ | FG4: 埼玉県 本庄市沼和田字村北８２３番４外 | FH4: 埼玉県 入間郡毛呂山町大字滝ノ入字神林６２６番 | FI4: 埼玉県 比企郡嵐山町大字大蔵字堀ノ内５８７番１ | FJ4: 埼玉県 蓮田市東５－７－１４ | FK4: 埼玉県 和光市白子１－１６－２ | FL4: 埼玉県 蕨市北町２－１９－１９ | FM4: 千葉県 いすみ市岬町長者字南下宿２１７番６ | FN4: 千葉県 旭市鎌数字川西一番９３８９番８ | FO4: 千葉県 印西市小林字宿１６０６番１４外 | FP4: 千葉県 浦安市北栄３－８－８ | FQ4: 千葉県 山武郡横芝光町北清水字入間１６４番１０外 | FR4: 千葉県 我孫子市日秀字西原３３番５ | FS4: 千葉県 鎌ケ谷市東道野辺５－３－２１－５ | FT4: 千葉県 鴨川市小湊字田町８８番 | FU4: 千葉県 館山市那古字溜１５３６番２８ | FV4: 千葉県 山武郡九十九里町片貝字中濱６７１５番２ | FW4: 千葉県 君津市北子安１－３－１７ | FX4: 千葉県 夷隅郡御宿町久保字太子堂面２５２番 | FY4: 千葉県 香取市佐原字神明前イ６９２番２ | FZ4: 千葉県 佐倉市鏑木町字船尾余２０８番５外 | GA4: 千葉県 山武市白幡字大谷２２７９番４ | GB4: 千葉県 四街道市内黒田字野境３１９番４７ | GC4: 千葉県 市原市島野字塔ノ越１７９３番６ | GD4: 千葉県 市川市真間２－２－２ | GE4: 千葉県 山武郡芝山町大里字海道筋１４番２ | GF4: 千葉県 印旛郡酒々井町東酒々井１丁目１番２１７ | GG4: 千葉県 習志野市津田沼７－８－１２ | GH4: 千葉県 勝浦市墨名字加ケノ下７１９番１４ | GI4: 千葉県 松戸市樋野口字大道通９１２番５ | GJ4: 千葉県 成田市飯田町字東向野１７２番１０７ | GK4: 千葉県 長生郡一宮町一宮字通町５丁目３１０７番 | GL4: 千葉県 千葉市稲毛区小仲台６－２７－１７ | GM4: 千葉県 印旛郡栄町安食２丁目１９番４外 | GN4: 千葉県 千葉市花見川区南花園１－１２－２ | GO4: 千葉県 千葉市若葉区都賀３－２８－２ | GP4: 千葉県 千葉市中央区道場南２－９－６ | GQ4: 千葉県 千葉市美浜区高浜１－１３－６ | GR4: 千葉県 千葉市緑区越智町３３２番１外 | GS4: 千葉県 船橋市印内２－９－６６ | GT4: 千葉県 匝瑳市若潮町１１番４ | GU4: 千葉県 袖ケ浦市蔵波字殿畑１８７１番１ | GW4: 千葉県 大網白里市大網字道福１６３番１６ | GX4: 千葉県 銚子市松岸町３丁目２２０番１０外 | GY4: 千葉県 長生郡長生村岩沼字西新田畑１６９８番３ | GZ4: 千葉県 長生郡長南町豊原字上ノ原２１５４番９ | HA4: 千葉県 東金市東上宿字１丁目１２番２ | HB4: 千葉県 香取郡東庄町笹川い字西ノ内５５２２番３ | HC4: 千葉県 柏市柏字中大町５５４番５ | HD4: 千葉県 白井市池の上１－１８－５ | HE4: 千葉県 長生郡白子町幸治字塩濱添３０８９番２９ | HF4: 千葉県 八街市みどり台２丁目１８番５ | HG4: 千葉県 八千代市八千代台北１５－４－５ | HH4: 千葉県 富津市大堀字東１４９９番２ | HI4: 千葉県 富里市七栄字獅子穴６４６番６０５ | HJ4: 千葉県 茂原市萩原町１丁目３７番 | HK4: 千葉県 木更津市岩根４－５－２ | HL4: 千葉県 野田市日の出町９番２４ | HM4: 千葉県 流山市西初石４丁目３６９番２９ | HN4: 東京都 あきる野市草花字羽ケ田２９１９番４ | HO4: 東京都 稲城市大字東長沼字六号１９８６番９ | HP4: 東京都 羽村市小作台５丁目２０番２ | HQ4: 東京都 葛飾区細田５－６－１２ | HR4: 東京都 江戸川区瑞江１－５３－３ | HS4: 東京都 江東区亀戸３－３２－１１ | HT4: 東京都 港区六本木５－１３－１ | HU4: 東京都 荒川区東日暮里１－３－２ | HV4: 東京都 国分寺市富士本１丁目１５番１３ | HW4: 東京都 国立市中１丁目１８番４９ | HX4: 東京都 狛江市西野川２－２２－１４ | HY4: 東京都 三鷹市上連雀５－８－２ | HZ4: 東京都 渋谷区千駄ヶ谷１－２６－１１ | IA4: 東京都 小笠原村父島字東町２０番８ | IB4: 東京都 小金井市梶野町４－１６－３ | IC4: 東京都 小平市仲町３５２番７ | ID4: 東京都 昭島市上川原町１－２０－５ | IE4: 東京都 新宿区市谷左内町２２番 | IF4: 東京都 新島村若郷３－４ | IG4: 東京都 神津島村２８４番 | IH4: 東京都 杉並区本天沼１－１３－４ | II4: 東京都 世田谷区等々力５丁目３３番１５ | IJ4: 東京都 清瀬市中里２丁目６４２番２０ | IK4: 東京都 西東京市南町５－１８－１１ | IL4: 東京都 青梅市東青梅５丁目７番２５ | IM4: 東京都 千代田区紀尾井町３－３２ | IN4: 東京都 足立区扇１－５２－２ | IO4: 東京都 多摩市大字和田１３９番１ | IP4: 東京都 台東区根岸４－１０－１０ | IQ4: 東京都 大田区久が原４－４２－４ | IR4: 東京都 中央区明石町５－１９ | IS4: 東京都 中野区若宮２－１０－１１ | IT4: 東京都 町田市南成瀬５丁目２６番５ | IU4: 東京都 調布市富士見町２丁目８番６ | IV4: 東京都 東久留米市氷川台２－２４－１１ | IW4: 東京都 三宅村阿古２０５４番１外 | IX4: 東京都 西多摩郡瑞穂町むさし野２丁目２０番２ | IY4: 東京都 大島町差木地字下原１０１３番４３ | IZ4: 東京都 府中市南町１丁目６番７４ | JA4: 東京都 東村山市栄町３丁目２２番１５ | JB4: 東京都 東大和市高木３丁目２６８番９ | JC4: 東京都 西多摩郡日の出町大字平井字三吉野下平井１０５８番１ | JD4: 東京都 日野市日野本町５丁目２４番１３ | JE4: 東京都 八王子市子安町１－２７－２４ | JF4: 東京都 八丈町中之郷１６８２番 | JG4: 東京都 板橋区前野町６－２１－４ | JH4: 東京都 品川区戸越３－３－１ | JI4: 東京都 武蔵村山市中央３丁目１８番６ | JJ4: 東京都 武蔵野市吉祥寺東町２－２４－３２ | JK4: 東京都 福生市大字熊川字北５８３番１外 | JL4: 東京都 文京区西片１－１１－５ | JM4: 東京都 豊島区南池袋２－３９－９ | JN4: 東京都 北区岩淵町９－１３ | JO4: 東京都 墨田区亀沢４－２２－２ | JP4: 東京都 目黒区中町１－１１－１４ | JQ4: 東京都 立川市高松町２－１１－１６ | JR4: 東京都 練馬区南大泉１－６－４６ | JS4: 神奈川県 愛甲郡愛川町中津字松台７１８番９ | JT4: 神奈川県 綾瀬市上土棚南１－８－６ | JU4: 神奈川県 伊勢原市沼目５丁目７６６番１９ | JV4: 神奈川県 横須賀市池上５－６－１６ | JW4: 神奈川県 横浜市旭区今宿東町８４３番３６ | JX4: 神奈川県 横浜市磯子区森が丘２－３－６ | JY4: 神奈川県 横浜市栄区本郷台５－８－２０ | JZ4: 神奈川県 横浜市金沢区片吹１０－１８ | KA4: 神奈川県 横浜市戸塚区上倉田町字原１８０５番７ | KB4: 神奈川県 横浜市港南区上大岡東１－１４－１２ | KC4: 神奈川県 横浜市港北区大倉山７－４－１４ | KD4: 神奈川県 横浜市神奈川区菅田町字利倉１５５１番７外 | KE4: 神奈川県 横浜市瀬谷区三ツ境１４４番４ | KF4: 神奈川県 横浜市西区岡野２－１７－１５ | KG4: 神奈川県 横浜市青葉区市ケ尾町４９７番７ | KH4: 神奈川県 横浜市泉区緑園３丁目２２番１６外 | KI4: 神奈川県 横浜市中区上野町２丁目８９番 | KJ4: 神奈川県 横浜市鶴見区北寺尾６－１６－７ | KK4: 神奈川県 横浜市都筑区川和台２６－５ | KL4: 神奈川県 横浜市南区別所２－５－２ | KM4: 神奈川県 横浜市保土ケ谷区法泉１－１７－７ | KN4: 神奈川県 横浜市緑区森の台２５－６ | KO4: 神奈川県 海老名市柏ケ谷字長ヲサ９４０番２ | KP4: 神奈川県 足柄上郡開成町吉田島字東河原２６３２番４ | KQ4: 神奈川県 鎌倉市岩瀬字内耕地７８９番 | KR4: 神奈川県 茅ケ崎市東海岸南６－６－１７ | KS4: 神奈川県 厚木市岡田４－７－２６ | KT4: 神奈川県 座間市相武台３－３－６ | KU4: 神奈川県 三浦市栄町１７－２４ | KV4: 神奈川県 足柄上郡山北町岸字間瀬２６４２番 | KW4: 神奈川県 小田原市穴部字仲ノ町１５３番５ | KX4: 神奈川県 足柄上郡松田町松田惣領字観音道上４０５番４ | KY4: 神奈川県 足柄下郡真鶴町真鶴字宿６１２番１ | KZ4: 神奈川県 高座郡寒川町一之宮９－１９－３１ | LA4: 神奈川県 足柄上郡大井町上大井字塚田２番１２ | LB4: 神奈川県 中郡二宮町山西字腰巻１４７１番１９ | LC4: 神奈川県 秦野市清水町２－２７－８ | LD4: 神奈川県 逗子市逗子４－４－８ | LF4: 神奈川県 川崎市宮前区馬絹１－３８－２２ | LG4: 神奈川県 川崎市幸区幸町２丁目６９１番２ | LH4: 神奈川県 川崎市高津区下作延１－４－１１ | LI4: 神奈川県 川崎市川崎区旭町１－１１－１２ | LJ4: 神奈川県 川崎市多摩区登戸新町５２番３ | LK4: 神奈川県 川崎市中原区上平間字古下河原５６４番４１ | LL4: 神奈川県 川崎市麻生区王禅寺東２－３７－１７ | LM4: 神奈川県 相模原市中央区高根２－１７－１６ | LN4: 神奈川県 相模原市南区相模大野５－２１－２６ | LO4: 神奈川県 相模原市緑区東橋本３－１４－８ | LP4: 神奈川県 中郡大磯町国府新宿字北日吉３３４番５ | LQ4: 神奈川県 大和市中央林間３－１５－２０ | LR4: 神奈川県 足柄上郡中井町井ノ口字坂本２８０３番１２ | LS4: 神奈川県 足柄下郡湯河原町鍛冶屋字森下６９２番５ | LT4: 神奈川県 藤沢市湘南台４丁目２番１７ | LU4: 神奈川県 南足柄市岩原字宮下８６７番４ | LV4: 神奈川県 足柄下郡箱根町箱根字小田原町７１番１ | LW4: 神奈川県 平塚市中里１６－１３ | LX4: 神奈川県 三浦郡葉山町一色字眞名瀬２５１１番４
B5: 茨城県 かすみがうら市下稲吉字逆西３１８６番１９ | C5: 茨城県 つくば市春日２丁目１５番５ | D5: 茨城県 つくばみらい市台字台坪１４番１ | E5: 茨城県 ひたちなか市長堀町３－１１－１５ | F5: 茨城県 稲敷郡阿見町大字阿見字宮ノ下１７４４番６９ | G5: 茨城県 稲敷市古渡字田宿３７番１外 | H5: 茨城県 東茨城郡茨城町大字奥谷字馬場先１９２１番１ | J5: 茨城県 猿島郡境町字松ノ岡２１８９番４５ | K5: 茨城県 那珂郡東海村舟石川駅西４－１４－３ | M5: 茨城県 下妻市本宿町１丁目７６番 | N5: 茨城県 笠間市下市毛字常楽４９番９ | O5: 茨城県 牛久市中央２丁目１８番２ | P5: 茨城県 結城市大字結城字永正塚１８８０番２４ | Q5: 茨城県 古河市中央町２－５－２６ | S5: 茨城県 行方市小幡字六十塚１４１８番２８ | T5: 茨城県 高萩市有明町２丁目３５番２外 | U5: 茨城県 坂東市辺田字御林１５１７番６９ | V5: 茨城県 桜川市鍬田字向原５５３番５８ | W5: 茨城県 鹿嶋市大字佐田字久保山４７９番２外 | X5: 茨城県 取手市宮和田字道上１０２１番３１ | Y5: 茨城県 守谷市百合ケ丘３丁目字土塔前２６６１番１９ | Z5: 茨城県 小美玉市川中子字東西１３４６番２外 | AA5: 茨城県 東茨城郡城里町大字石塚字杉合１１７５番５ | AB5: 茨城県 常総市水海道山田町字八間西４７２２番４ | AC5: 茨城県 常陸太田市大森町字西畑１４２７番７８ | AD5: 茨城県 常陸大宮市南町２９３番８ | AE5: 茨城県 神栖市神栖３－１２－２３ | AF5: 茨城県 水戸市河和田１丁目１５８６番６１ | AG5: 茨城県 石岡市柿岡字鴻の巣３４５０番５外 | AH5: 茨城県 久慈郡大子町大字大子字本町南側６９０番２ | AI5: 茨城県 東茨城郡大洗町大貫町字中宿１３５番 | AJ5: 茨城県 筑西市女方字東新田２６８番６２ | AK5: 茨城県 潮来市川尾３６９３番３０ | AL5: 茨城県 土浦市並木２－６－１２ | AM5: 茨城県 那珂市菅谷字小六内１９４１番４９ | AN5: 茨城県 日立市大みか町１－２４－１７ | AP5: 茨城県 鉾田市新鉾田西２丁目３番２ | AQ5: 茨城県 北茨城市大津町北町字浜道１４８０番２ | AR5: 茨城県 北相馬郡利根町大字布川字東１７８８番４外 | AS5: 茨城県 龍ケ崎市川原代町字池ノ下１２３４番１７ | AT5: 栃木県 さくら市喜連川字松並３５６０番外 | AU5: 栃木県 宇都宮市横田新町８－２４ | AV5: 栃木県 芳賀郡益子町大字益子字新町南側９８０番１ | AX5: 栃木県 下野市祇園５丁目６番２ | AY5: 栃木県 塩谷郡高根沢町宝石台２丁目８番２１ | AZ5: 栃木県 佐野市植野町字上台町１９５４番３ | BA5: 栃木県 芳賀郡市貝町大字赤羽字内堀道東３５５番５４外 | BB5: 栃木県 鹿沼市日吉町字火打沢６６７番９ | BC5: 栃木県 小山市大字外城字上台１５２番１４ | BD5: 栃木県 河内郡上三川町大字上蒲生字願成寺２０９７番１１ | BE5: 栃木県 真岡市荒町４丁目１９番１７ | BF5: 栃木県 下都賀郡壬生町いずみ町８－１９ | BG5: 栃木県 足利市大前町字西台１２９９番１４ | BH5: 栃木県 大田原市紫塚３丁目２６５３番２１ | BI5: 栃木県 栃木市嘉右衛門町６－１４ | BJ5: 栃木県 那須郡那珂川町馬頭字南町３２９番２ | BK5: 栃木県 那須郡那須町大字寺子丙字前原３番５２ | BL5: 栃木県 那須烏山市金井１－１－６ | BM5: 栃木県 那須塩原市東栄２－９－１１ | BN5: 栃木県 日光市七里７０３番８ | BO5: 栃木県 芳賀郡芳賀町大字東水沼字和泉２３２０番１５９ | BQ5: 栃木県 下都賀郡野木町大字丸林字大塚１５２番４ | BR5: 栃木県 矢板市成田字中山１０９９番３８２ | BS5: 群馬県 みどり市大間々町大間々１４９３番１ | BT5: 群馬県 利根郡みなかみ町湯原字上ノ平２８３番５ | BU5: 群馬県 安中市中宿字在家７４０番２ | BV5: 群馬県 伊勢崎市八幡町８１番１ | BX5: 群馬県 甘楽郡甘楽町大字福島字中町７２６番 | BY5: 群馬県 館林市緑町１－１９－６ | BZ5: 群馬県 北群馬郡吉岡町大字下野田字愛倉７１５番３ | CA5: 群馬県 佐波郡玉村町大字下新田字七街南区５８８番 | CB5: 群馬県 桐生市境野町５丁目８９６番１ | CC5: 群馬県 邑楽郡千代田町大字福島字トウカ西５９１番１外 | CE5: 群馬県 邑楽郡明和町田島２９番４ | CF5: 群馬県 高崎市下小鳥町７６番９ | CG5: 群馬県 渋川市渋川字梅ノ木２０６２番３７ | CH5: 群馬県 沼田市町田町字並木７３１番６ | CI5: 群馬県 北群馬郡榛東村大字山子田字坂爪９１８番３外 | CJ5: 群馬県 前橋市下新田町字町下５７０番１５ | CK5: 群馬県 太田市植木野町８０６番１０ | CL5: 群馬県 邑楽郡大泉町東小泉２－２９－１２ | CM5: 群馬県 吾妻郡中之条町大字伊勢町字伊参９８５番２ | CP5: 群馬県 吾妻郡東吾妻町大字原町字上之町５９０番３ | CQ5: 群馬県 藤岡市森字北口１６６番１０ | CR5: 群馬県 邑楽郡板倉町大字大高嶋字高鳥１６１８番１ | CS5: 群馬県 富岡市内匠１６１番２８ | CT5: 群馬県 邑楽郡邑楽町大字中野字前谷４９７６番２ | CU5: 埼玉県 さいたま市浦和区元町１丁目２３２番１ | CV5: 埼玉県 さいたま市岩槻区南平野３丁目２３番３ | CW5: 埼玉県 さいたま市見沼区大字南中丸字高井１１９番３ | CX5: 埼玉県 さいたま市桜区大字白鍬字猿ケ谷７６７番５ | CY5: 埼玉県 さいたま市西区大字指扇領別所字滝沼３０４番２ | CZ5: 埼玉県 さいたま市大宮区三橋２丁目６５８番１４ | DA5: 埼玉県 さいたま市中央区鈴谷７－１０－５ | DB5: 埼玉県 さいたま市南区大字太田窪字善前南３２１１番 | DC5: 埼玉県 さいたま市北区土呂町１丁目３９番１０ | DD5: 埼玉県 さいたま市緑区東浦和４丁目１７番４ | DE5: 埼玉県 比企郡ときがわ町大字玉川字唐沢２４５４番５ | DF5: 埼玉県 ふじみ野市桜ケ丘３－３３－２９ | DG5: 埼玉県 羽生市大字上新郷字上悪土１９３４番３ | DH5: 埼玉県 入間郡越生町大字越生字町７３７番１ | DI5: 埼玉県 越谷市南越谷１－３－２１ | DK5: 埼玉県 桶川市大字下日出谷字西７９２番７ | DL5: 埼玉県 加須市花崎４丁目１８番２外 | DO5: 埼玉県 比企郡吉見町大字久米田字一ノ耕地１３８番１ | DP5: 埼玉県 吉川市平沼１丁目６番２ | DQ5: 埼玉県 久喜市葛梅２丁目１２番１０ | DR5: 埼玉県 南埼玉郡宮代町和戸５－５－１４ | DS5: 埼玉県 狭山市入間川１－１４－１９ | DT5: 埼玉県 熊谷市肥塚字雀宮前４８０番１６ | DU5: 埼玉県 戸田市大字新曽字芦原２３４８番３ | DV5: 埼玉県 幸手市北１－１９－２５ | DW5: 埼玉県 行田市城南１３－１１ | DX5: 埼玉県 鴻巣市松原３－８－６ | DY5: 埼玉県 坂戸市大字片柳字馬場先１６４５番１２ | DZ5: 埼玉県 北足立郡伊奈町大字小室字田妻６２８１番１４外 | EA5: 埼玉県 比企郡滑川町月の輪２丁目１４番３外 | EB5: 埼玉県 比企郡小川町みどりが丘５丁目１２番１４ | EC5: 埼玉県 比企郡川島町大字上伊草字中井１４６７番１ | ED5: 埼玉県 三郷市高州２丁目３７８番１０ | EE5: 埼玉県 入間郡三芳町大字藤久保字北新埜８９６番８外 | EF5: 埼玉県 志木市幸町１－８－７１ | EG5: 埼玉県 春日部市谷原２丁目１０番２ | EH5: 埼玉県 所沢市寿町２９－１０ | EJ5: 埼玉県 北葛飾郡松伏町田中３丁目１１番９ | EK5: 埼玉県 上尾市大字瓦葺字稲荷八ツ山２１３１番５ | EM5: 埼玉県 新座市片山２－１１－１６ | EN5: 埼玉県 深谷市長在家字上４０４番 | EP5: 埼玉県 北葛飾郡杉戸町清地３－２４－１４ | EQ5: 埼玉県 川越市大字南田島字北田７１２番１１ | ER5: 埼玉県 川口市赤井１－２５－２２ | ES5: 埼玉県 草加市青柳６－２４－４ | ET5: 埼玉県 秩父市上町２－１５－４ | EU5: 埼玉県 朝霞市東弁財２－５－２６ | EV5: 埼玉県 鶴ケ島市大字脚折字池ノ台１４２８番５９ | EW5: 埼玉県 東松山市松山町１－３－２２ | EX5: 埼玉県 日高市武蔵台７丁目１１番１５ | EY5: 埼玉県 入間市大字寺竹字北内野５５１番２６外 | EZ5: 埼玉県 白岡市西１丁目１０番１ | FA5: 埼玉県 八潮市大字大瀬字根郷１４０７番４４ | FB5: 埼玉県 比企郡鳩山町大字大豆戸字七反田上２７９番２ | FC5: 埼玉県 飯能市緑町１４番３６ | FE5: 埼玉県 富士見市諏訪２－１－１５ | FF5: 埼玉県 北本市中丸１丁目２９番２ | FG5: 埼玉県 本庄市緑１－９－７ | FH5: 埼玉県 入間郡毛呂山町大字毛呂本郷字馬場１５４４番４ | FI5: 埼玉県 比企郡嵐山町（平沢４９－１街区３） | FJ5: 埼玉県 蓮田市桜台２－７－８ | FK5: 埼玉県 和光市下新倉２丁目５７５７番 | FL5: 埼玉県 蕨市南町４－２５－１６ | FM5: 千葉県 いすみ市岬町椎木字畑中２５８７番６ | FN5: 千葉県 旭市ニ字八石東６３２３番２２ | FO5: 千葉県 印西市大森字西埜原３４２２番３１ | FP5: 千葉県 浦安市当代島３－８－４６ | FQ5: 千葉県 山武郡横芝光町横芝字折戸２１５７番１ | FR5: 千葉県 我孫子市我孫子３－３１－３ | FS5: 千葉県 鎌ケ谷市北中沢２－４－５１ | FT5: 千葉県 鴨川市花房字安田７３番２外 | FU5: 千葉県 館山市長須賀字塩焚８６番１２ | FV5: 千葉県 山武郡九十九里町片貝字新納屋場３７０３番３ | FW5: 千葉県 君津市杢師４－２１－１８ | FY5: 千葉県 香取市玉造３丁目１４番１１ | FZ5: 千葉県 佐倉市南臼井台１６－１１ | GA5: 千葉県 山武市雨坪字東台６５番３６ | GB5: 千葉県 四街道市大日字萱橋台５４３番５６ | GC5: 千葉県 市原市姉崎字宮ノ下２２３６番５ | GD5: 千葉県 市川市稲荷木１－３３－５ | GE5: 千葉県 山武郡芝山町小池字丸千代１０３４番１ | GF5: 千葉県 印旛郡酒々井町酒々井字上宿１６３２番７ | GG5: 千葉県 習志野市藤崎３－３３－４ | GI5: 千葉県 松戸市小金きよしケ丘１丁目１２番１５ | GJ5: 千葉県 成田市幸町１０１４番２５ | GL5: 千葉県 千葉市稲毛区轟町５－６－２ | GM5: 千葉県 印旛郡栄町酒直台２－１５－１７ | GN5: 千葉県 千葉市花見川区花園町２４７３番１１ | GO5: 千葉県 千葉市若葉区加曽利町９８７番１３ | GP5: 千葉県 千葉市中央区矢作町９４２番２５ | GQ5: 千葉県 千葉市美浜区磯辺４－５－５ | GR5: 千葉県 千葉市緑区越智町１７０１番２３ | GS5: 千葉県 船橋市藤原１－１２－２０ | GT5: 千葉県 匝瑳市八日市場ホ字赤幡３２８８番２外 | GU5: 千葉県 袖ケ浦市長浦駅前２丁目８番１４ | GW5: 千葉県 大網白里市みやこ野２丁目１０番２ | GX5: 千葉県 銚子市栄町４丁目１５３８番２ | GY5: 千葉県 長生郡長生村七井土字扇子１８９８番９外 | HA5: 千葉県 東金市堀上字沖ノ堀合１６４番２１ | HB5: 千葉県 香取郡東庄町笹川い字宮後５５６１番３７ | HC5: 千葉県 柏市旭町６－１－４７ | HD5: 千葉県 白井市冨士字西１５９番３２外 | HE5: 千葉県 長生郡白子町中里字北濱芝４４８２番４ | HF5: 千葉県 八街市八街字榎台は１７番８６ | HG5: 千葉県 八千代市八千代台北８－８－１６ | HH5: 千葉県 富津市富津字水主町１２８９番外 | HI5: 千葉県 富里市日吉台４丁目１４番１５ | HJ5: 千葉県 茂原市道表２番１７ | HK5: 千葉県 木更津市本郷１－４－２４ | HL5: 千葉県 野田市宮崎新田字神明前１２６番４８ | HM5: 千葉県 流山市加４丁目１番１１外 | HN5: 東京都 あきる野市引田字静ノ郷６１３番５ | HO5: 東京都 稲城市大字矢野口字根方２６５３番１ | HP5: 東京都 羽村市富士見平１丁目８番１５ | HQ5: 東京都 葛飾区東新小岩２－４－１１ | HR5: 東京都 江戸川区清新町２－７－１８ | HS5: 東京都 江東区大島６－２１－２ | HT5: 東京都 港区南青山４－２０－４ | HU5: 東京都 荒川区西尾久２－２５－８ | HV5: 東京都 国分寺市並木町１丁目２２番４６ | HW5: 東京都 国立市富士見台３丁目３５番７ | HX5: 東京都 狛江市岩戸南１－１８－２ | HY5: 東京都 三鷹市井口３－１１－２７ | HZ5: 東京都 渋谷区神宮前４－１８－７ | IB5: 東京都 小金井市本町６－９－１１ | IC5: 東京都 小平市花小金井１－１５－１０ | ID5: 東京都 昭島市田中町１－２０－９ | IE5: 東京都 新宿区西早稲田２－１９－２ | IF5: 東京都 新島村本村１－７－１１ | IG5: 東京都 神津島村８４１番 | IH5: 東京都 杉並区和泉３－２６－２１ | II5: 東京都 世田谷区上馬１－７－１２ | IJ5: 東京都 清瀬市梅園２－１－１４ | IK5: 東京都 西東京市芝久保町５－５－９ | IL5: 東京都 青梅市大門３丁目２０番１０ | IM5: 東京都 千代田区六番町６番１外 | IN5: 東京都 足立区西竹の塚１－３－２３ | IO5: 東京都 多摩市連光寺１丁目２１番６ | IP5: 東京都 台東区谷中２－８－１４ | IQ5: 東京都 大田区大森西３－１８－２２ | IR5: 東京都 中央区勝どき３－４－１８ | IS5: 東京都 中野区江原町１－３３－２ | IT5: 東京都 町田市南大谷字十一号９１２番３４ | IU5: 東京都 調布市深大寺元町４丁目１５番１０ | IV5: 東京都 東久留米市八幡町２丁目１６３番１７ | IW5: 東京都 三宅村阿古６９１番１ | IX5: 東京都 西多摩郡瑞穂町大字箱根ケ崎字宿東２３６５番４ | IY5: 東京都 大島町元町１丁目９番４ | IZ5: 東京都 府中市武蔵台２丁目１６番１２外 | JA5: 東京都 東村山市恩多町５丁目５番４ | JB5: 東京都 東大和市清水４丁目９６８番１７ | JC5: 東京都 西多摩郡日の出町大字平井字東本宿２０２４番７ | JD5: 東京都 日野市東豊田４丁目１９番１５ | JE5: 東京都 八王子市散田町２－３２－２ | JF5: 東京都 八丈町三根３４９番１ | JG5: 東京都 板橋区常盤台２－２４－５ | JH5: 東京都 品川区旗の台５－９－１６ | JI5: 東京都 武蔵村山市岸１丁目３５番２ | JJ5: 東京都 武蔵野市桜堤３－３－１ | JK5: 東京都 福生市大字熊川字北８５３番１８外 | JL5: 東京都 文京区小日向２－２８－１６ | JM5: 東京都 豊島区東池袋２－１２－９ | JN5: 東京都 北区王子２－６－１６ | JO5: 東京都 墨田区千歳１－２－１０ | JP5: 東京都 目黒区中目黒３－１４－７ | JQ5: 東京都 立川市幸町６丁目１５番２３ | JR5: 東京都 練馬区石神井台４－１５－８ | JS5: 神奈川県 愛甲郡愛川町中津字大塚１７８５番９ | JT5: 神奈川県 綾瀬市深谷中７－２３－８ | JU5: 神奈川県 伊勢原市上粕屋字峯岸５０３番２０ | JV5: 神奈川県 横須賀市浦上台３－３２－２ | JW5: 神奈川県 横浜市旭区さちが丘８９番１０ | JX5: 神奈川県 横浜市磯子区杉田８丁目２０３３番５２ | JY5: 神奈川県 横浜市栄区桂台南１－１１－１９ | JZ5: 神奈川県 横浜市金沢区乙舳町１２－２３ | KA5: 神奈川県 横浜市戸塚区南舞岡３－２９－５ | KB5: 神奈川県 横浜市港南区下永谷１－８－２０ | KC5: 神奈川県 横浜市港北区新吉田東６－４０－３ | KD5: 神奈川県 横浜市神奈川区沢渡５５番４２ | KE5: 神奈川県 横浜市瀬谷区阿久和東４丁目３０番２ | KF5: 神奈川県 横浜市西区浜松町７－１５ | KG5: 神奈川県 横浜市青葉区美しが丘５丁目１番２１ | KH5: 神奈川県 横浜市泉区上飯田町４６６６番１２ | KI5: 神奈川県 横浜市中区本牧三之谷４６－６ | KJ5: 神奈川県 横浜市鶴見区平安町２丁目５番８ | KK5: 神奈川県 横浜市都筑区荏田南２－２－１２ | KL5: 神奈川県 横浜市南区六ツ川３丁目３６番１１ | KM5: 神奈川県 横浜市保土ケ谷区上菅田町字山崎１４４番４４ | KN5: 神奈川県 横浜市緑区青砥町字御嶽堂１７２番３７ | KO5: 神奈川県 海老名市中新田３－２１－１９ | KP5: 神奈川県 足柄上郡開成町吉田島字下島屋敷下３８０６番４ | KQ5: 神奈川県 鎌倉市長谷１－１１－４１ | KR5: 神奈川県 茅ケ崎市柳島海岸１－４１ | KS5: 神奈川県 厚木市愛甲１－１７－４８ | KT5: 神奈川県 座間市東原１－１１－２６ | KU5: 神奈川県 三浦市南下浦町上宮田字岩井口甲３４１６番１ | KW5: 神奈川県 小田原市鴨宮字稲荷森８５０番４ | KX5: 神奈川県 足柄上郡松田町松田惣領字壱町田１３８３番１３ | KZ5: 神奈川県 高座郡寒川町岡田４－４－３ | LA5: 神奈川県 足柄上郡大井町西大井字稲荷宮２７８番１ | LB5: 神奈川県 中郡二宮町二宮字八向内町１３６９番４ | LC5: 神奈川県 秦野市名古木字若宮１５４番３ | LD5: 神奈川県 逗子市沼間３－２５－１４ | LF5: 神奈川県 川崎市宮前区菅生３－３９－４ | LG5: 神奈川県 川崎市幸区小向西町１丁目３１番７ | LH5: 神奈川県 川崎市高津区久地１－２－２６ | LI5: 神奈川県 川崎市川崎区観音２－４－１９ | LJ5: 神奈川県 川崎市多摩区菅馬場２－４－４５ | LK5: 神奈川県 川崎市中原区井田三舞町１２－６ | LL5: 神奈川県 川崎市麻生区千代ケ丘４丁目１１番１３ | LM5: 神奈川県 相模原市中央区横山台２－２６－６ | LN5: 神奈川県 相模原市南区相模台３－１０－１０ | LO5: 神奈川県 相模原市緑区向原１－８－１７ | LP5: 神奈川県 中郡大磯町東小磯字中尾６９４番１外 | LQ5: 神奈川県 大和市中央７－７－２１ | LR5: 神奈川県 足柄上郡中井町遠藤字根下４３番１ | LS5: 神奈川県 足柄下郡湯河原町土肥４丁目２番１５ | LT5: 神奈川県 藤沢市渡内４－１７－４３ | LU5: 神奈川県 南足柄市怒田字八幡平３１８番４ | LW5: 神奈川県 平塚市虹ケ浜１７－２０ | LX5: 神奈川県 三浦郡葉山町堀内字牛ケ谷１９５０番８
B6: 茨城県 かすみがうら市稲吉２－１４－７ | C6: 茨城県 つくば市谷田部字駒形４０３２番３外 | D6: 茨城県 つくばみらい市伊奈東字伊奈東３３番５８ | E6: 茨城県 ひたちなか市大字東石川字堂端３５７０番３ | F6: 茨城県 稲敷郡阿見町中央５－１４－１３ | G6: 茨城県 稲敷市橋向字橋向１０７番３外 | H6: 茨城県 東茨城郡茨城町大字長岡字下宿１４５番１ | J6: 茨城県 猿島郡境町字中通３８３番５ | K6: 茨城県 那珂郡東海村大字村松字瀧坂１４６０番３ | M6: 茨城県 下妻市宗道字前原１４３番３ | N6: 茨城県 笠間市鯉淵字十ノ割６２５６番４５ | O6: 茨城県 牛久市田宮町字新山１０７１番３４ | P6: 茨城県 結城市大字結城字西町１６６２番８ | Q6: 茨城県 古河市長谷町１９－１７ | S6: 茨城県 行方市玉造字大町甲６５９番１ | T6: 茨城県 高萩市本町２丁目８番 | U6: 茨城県 坂東市辺田字向地５５１番１０ | V6: 茨城県 桜川市真壁町飯塚字参番耕地１２８番６ | W6: 茨城県 鹿嶋市大字宮中字三笠山５１７０番１ | X6: 茨城県 取手市椚木字椚木３５２番３９ | Y6: 茨城県 守谷市松ケ丘７丁目４番５ | Z6: 茨城県 小美玉市田木谷字うち巳１０１６番１４外 | AB6: 茨城県 常総市水海道淵頭町字石宮２８８７番１６ | AC6: 茨城県 常陸太田市磯部町字屋敷後５４１番１０ | AE6: 茨城県 神栖市知手中央５－３－２１ | AF6: 茨城県 水戸市東赤塚２１８３番５ | AG6: 茨城県 石岡市高浜字中坪８２５番１４ | AI6: 茨城県 東茨城郡大洗町磯浜町字梶内４１０７番 | AJ6: 茨城県 筑西市松原字篠ノ内２９８８番３外 | AK6: 茨城県 潮来市大塚野２丁目２１番１６ | AL6: 茨城県 土浦市真鍋４－９－３ | AM6: 茨城県 那珂市菅谷字新地３４１１番２外 | AN6: 茨城県 日立市南高野町２－５－６ | AP6: 茨城県 鉾田市串挽字高崎下３１９番１３ | AQ6: 茨城県 北茨城市磯原町本町２丁目３番７外 | AR6: 茨城県 北相馬郡利根町大字羽根野字羽根野台８８０番１１９ | AS6: 茨城県 龍ケ崎市姫宮町２７番 | AT6: 栃木県 さくら市葛城字左門沢２２０６番３ | AU6: 栃木県 宇都宮市一条４－３－２６ | AX6: 栃木県 下野市下古山２丁目６番７外 | AY6: 栃木県 塩谷郡高根沢町大字宝積寺字山中２３３５番２５ | AZ6: 栃木県 佐野市植上町字新屋敷町１７７９番２外 | BB6: 栃木県 鹿沼市樅山町字上原３０３番３１ | BC6: 栃木県 小山市大字間々田字八幡前１６６０番１ | BD6: 栃木県 河内郡上三川町大字多功字西浦１９０６番１８外 | BE6: 栃木県 真岡市並木町３丁目２６番６外 | BF6: 栃木県 下都賀郡壬生町幸町２丁目３４０２番５１ | BG6: 栃木県 足利市稲岡町字田中６８番１ | BH6: 栃木県 大田原市美原２丁目２８３１番１０２ | BI6: 栃木県 栃木市城内町１－１１－２ | BL6: 栃木県 那須烏山市谷浅見字中原９１２番８外 | BM6: 栃木県 那須塩原市清住町９４番１７０外 | BN6: 栃木県 日光市平ケ崎字中原９０番１８ | BO6: 栃木県 芳賀郡芳賀町芳賀台１３０番２ | BQ6: 栃木県 下都賀郡野木町大字野木字御櫛内２５６６番２ | BR6: 栃木県 矢板市扇町１－８－１９ | BS6: 群馬県 みどり市大間々町大間々６９８番５ | BT6: 群馬県 利根郡みなかみ町川上字山根５４５番 | BU6: 群馬県 安中市松井田町松井田字塔の上２８１番１０外 | BV6: 群馬県 伊勢崎市馬見塚町字伊勢１０３８番３ | BY6: 群馬県 館林市松沼町１８－２ | CB6: 群馬県 桐生市広沢町１丁目字川久保２５９５番８ | CF6: 群馬県 高崎市上並榎町字八反田２０５番４ | CG6: 群馬県 渋川市北橘町真壁字味噌野５１６番４６ | CH6: 群馬県 沼田市（沼田市中心市街地８－２街区１０１３－１外） | CJ6: 群馬県 前橋市山王町２丁目１番１０ | CK6: 群馬県 太田市台之郷町９２９番２ | CL6: 群馬県 邑楽郡大泉町西小泉４－１３－１９ | CQ6: 群馬県 藤岡市藤岡字新町道東６３４番４ | CS6: 群馬県 富岡市七日市字本町８７４番３ | CT6: 群馬県 邑楽郡邑楽町大字篠塚字坪谷１０７３番２ | CU6: 埼玉県 さいたま市浦和区瀬ケ崎５－２２－４ | CV6: 埼玉県 さいたま市岩槻区大字黒谷字久保１５０５番２外 | CW6: 埼玉県 さいたま市見沼区東大宮１丁目３１番４ | CX6: 埼玉県 さいたま市桜区西堀２－６－６ | CY6: 埼玉県 さいたま市西区大字土屋字上谷４３６番７１ | CZ6: 埼玉県 さいたま市大宮区上小町３５７番２ | DA6: 埼玉県 さいたま市中央区大戸４－７－１２ | DB6: 埼玉県 さいたま市南区神明１－６－１５ | DC6: 埼玉県 さいたま市北区奈良町２５番３ | DD6: 埼玉県 さいたま市緑区原山４－２３－１２ | DF6: 埼玉県 ふじみ野市駒西２－９－２５ | DG6: 埼玉県 羽生市南５丁目８番３７ | DI6: 埼玉県 越谷市東柳田町１０－３４ | DK6: 埼玉県 桶川市下日出谷西１丁目１８番７ | DL6: 埼玉県 加須市東栄１－３－３２ | DO6: 埼玉県 比企郡吉見町東野２丁目３番２１ | DP6: 埼玉県 吉川市吉川２丁目３０番８ | DQ6: 埼玉県 久喜市本町３－１６－１１ | DR6: 埼玉県 南埼玉郡宮代町東姫宮２－１０－３３ | DS6: 埼玉県 狭山市柏原字上宿１６３３番５ | DT6: 埼玉県 熊谷市銀座４－４－２１ | DU6: 埼玉県 戸田市上戸田２－３０－１４ | DV6: 埼玉県 幸手市香日向２－２－４ | DW6: 埼玉県 行田市大字長野字白川戸前７０９番３ | DX6: 埼玉県 鴻巣市神明３－１１－６ | DY6: 埼玉県 坂戸市千代田３－６－１７ | DZ6: 埼玉県 北足立郡伊奈町中央４丁目１９７番外 | EA6: 埼玉県 比企郡滑川町月の輪７丁目２３番８ | EB6: 埼玉県 比企郡小川町大字大塚字蟹沢７３６番４ | EC6: 埼玉県 比企郡川島町大字上大屋敷字蔵前１８６番１ | ED6: 埼玉県 三郷市栄３丁目５３番 | EE6: 埼玉県 入間郡三芳町大字藤久保字富士塚１３番１５外 | EF6: 埼玉県 志木市本町６－３－１５ | EG6: 埼玉県 春日部市藤塚字下谷２２５８番３１ | EH6: 埼玉県 所沢市上新井３丁目４４番１４外 | EJ6: 埼玉県 北葛飾郡松伏町ゆめみ野１－１４－１０ | EK6: 埼玉県 上尾市仲町２－９－４ | EM6: 埼玉県 新座市栗原５－１５－２ | EN6: 埼玉県 深谷市小前田字下台２５５６番３ | EP6: 埼玉県 北葛飾郡杉戸町高野台東１丁目１４番１７ | EQ6: 埼玉県 川越市並木新町１１番８外 | ER6: 埼玉県 川口市芝中田２－１８－２０ | ES6: 埼玉県 草加市八幡町字笹塚１１５３番５外 | ET6: 埼玉県 秩父市柳田町３－１０ | EU6: 埼玉県 朝霞市幸町２－１１－１９ | EV6: 埼玉県 鶴ケ島市大字町屋字持家１２１番２外 | EW6: 埼玉県 東松山市小松原町１４番３ | EX6: 埼玉県 日高市高萩東１－２６－１６ | EY6: 埼玉県 入間市大字上谷ケ貫字南御誉田５５５番１外 | EZ6: 埼玉県 白岡市新白岡２丁目２０番６ | FA6: 埼玉県 八潮市八潮２丁目７番１６ | FC6: 埼玉県 飯能市大字川寺字桐ケ窪５７２番４ | FE6: 埼玉県 富士見市羽沢１－１６－２４ | FF6: 埼玉県 北本市本町６丁目２２２番 | FG6: 埼玉県 本庄市見福２－７－１１ | FH6: 埼玉県 入間郡毛呂山町岩井東１丁目２６番８ | FI6: 埼玉県 比企郡嵐山町大字川島字天沼１８７５番１４ | FJ6: 埼玉県 蓮田市大字閏戸字栗崎３８６４番５ | FK6: 埼玉県 和光市下新倉３－４－７９ | FL6: 埼玉県 蕨市中央２－１５－２６ | FN6: 千葉県 旭市ロ字田町８３２番６ | FO6: 千葉県 印西市高花５丁目１７番６ | FP6: 千葉県 浦安市北栄３－３６－９ | FR6: 千葉県 我孫子市高野山字志多田１７２番１８ | FS6: 千葉県 鎌ケ谷市道野辺中央４－５－１８ | FU6: 千葉県 館山市北条字浜通１８６６番５外 | FW6: 千葉県 君津市西坂田２－９－５ | FY6: 千葉県 香取市大倉字稲荷前７６２番３７ | FZ6: 千葉県 佐倉市井野字油免１０８４番１０ | GA6: 千葉県 山武市蓮沼イ字南川面３５９番２ | GB6: 千葉県 四街道市栗山字半台１０７４番４６ | GC6: 千葉県 市原市椎津字向原１０１５番４３ | GD6: 千葉県 市川市欠真間１－９－２０ | GF6: 千葉県 印旛郡酒々井町中川字苗代場３２８番 | GG6: 千葉県 習志野市藤崎６－１３－１１ | GI6: 千葉県 松戸市五香４丁目１１番６ | GJ6: 千葉県 成田市囲護台２丁目６番４ | GL6: 千葉県 千葉市稲毛区萩台町６６４番１２ | GM6: 千葉県 印旛郡栄町安食台４－５－１１ | GN6: 千葉県 千葉市花見川区長作台１－２３－２６ | GO6: 千葉県 千葉市若葉区若松町４８０番３ | GP6: 千葉県 千葉市中央区末広４－６－９ | GQ6: 千葉県 千葉市美浜区真砂４－１４－２ | GR6: 千葉県 千葉市緑区鎌取町２７３番６８ | GS6: 千葉県 船橋市宮本６－２１－１５ | GT6: 千葉県 匝瑳市八日市場イ字萬町２４３９番 | GU6: 千葉県 袖ケ浦市神納字柳原１３１７番３ | GW6: 千葉県 大網白里市駒込字南岩谷前１２０２番５ | GX6: 千葉県 銚子市橋本町２２４５番２外 | HA6: 千葉県 東金市台方字大作前２１５番１１ | HC6: 千葉県 柏市大室字張間内１８７４番２０１ | HD6: 千葉県 白井市西白井１丁目１７番２３ | HF6: 千葉県 八街市八街字南側ほ３２４番４ | HG6: 千葉県 八千代市村上字黒沢台１９７５番８０ | HH6: 千葉県 富津市下飯野字内小平田１０１３番 | HI6: 千葉県 富里市御料字葉山９１０番９２ | HJ6: 千葉県 茂原市長尾字田尻２３３３番１４ | HK6: 千葉県 木更津市朝日１－３－３ | HL6: 千葉県 野田市野田字上谷向５０９番７ | HM6: 千葉県 流山市平和台２丁目５番１６ | HN6: 東京都 あきる野市雨間字澤田４１５番１５ | HO6: 東京都 稲城市大字押立字中関７６３番１ | HP6: 東京都 羽村市羽西３－３－２８ | HQ6: 東京都 葛飾区お花茶屋３－２３－６ | HR6: 東京都 江戸川区南篠崎町３－１５－２ | HS6: 東京都 江東区亀戸５－３６－３ | HT6: 東京都 港区赤坂１－１４－１１ | HU6: 東京都 荒川区東尾久４－２７－１９ | HV6: 東京都 国分寺市西町４丁目２５番５１ | HW6: 東京都 国立市西１丁目７番５７ | HX6: 東京都 狛江市岩戸南３－１７－１１ | HY6: 東京都 三鷹市井の頭１－１３－２８ | HZ6: 東京都 渋谷区松濤１－１３－７ | IB6: 東京都 小金井市本町４－１１－１２ | IC6: 東京都 小平市鈴木町２丁目２０５番１１２ | ID6: 東京都 昭島市緑町５－１１－１０ | IE6: 東京都 新宿区大京町６番８ | IH6: 東京都 杉並区松ノ木３－１１－３ | II6: 東京都 世田谷区南烏山２－１２－６ | IJ6: 東京都 清瀬市下宿２丁目４５２番６外 | IK6: 東京都 西東京市緑町２－１６－６ | IL6: 東京都 青梅市成木３丁目３７０番７外 | IM6: 東京都 千代田区富士見１－４－１２ | IN6: 東京都 足立区舎人３－６－１８ | IO6: 東京都 多摩市落合１丁目２２番７ | IP6: 東京都 台東区上野桜木１－１－５ | IQ6: 東京都 大田区田園調布３－２３－１５ | IR6: 東京都 中央区月島３－２５－３ | IS6: 東京都 中野区上高田５－３０－３ | IT6: 東京都 町田市成瀬６－６－８ | IU6: 東京都 調布市上石原１丁目１４番６ | IV6: 東京都 東久留米市中央町１－１２－７ | IX6: 東京都 西多摩郡瑞穂町長岡４丁目２０番２６ | IZ6: 東京都 府中市栄町２丁目１４番５ | JA6: 東京都 東村山市美住町２丁目１７番９ | JB6: 東京都 東大和市新堀２丁目１４８１番８外 | JC6: 東京都 西多摩郡日の出町大字平井字三吉野桜木２０９番３ | JD6: 東京都 日野市南平２丁目５１番２ | JE6: 東京都 八王子市片倉町４５３番４ | JG6: 東京都 板橋区東新町１－３０－９ | JH6: 東京都 品川区上大崎３－１０－３５ | JI6: 東京都 武蔵村山市大南２丁目６７番３ | JJ6: 東京都 武蔵野市関前５－１４－５ | JK6: 東京都 福生市南田園３丁目６番１２ | JL6: 東京都 文京区関口２丁目８番１ | JM6: 東京都 豊島区目白４－１－２２ | JN6: 東京都 北区田端２－１１－１３ | JO6: 東京都 墨田区立川２－１２－９ | JP6: 東京都 目黒区目黒本町５－３１－８ | JQ6: 東京都 立川市若葉町２丁目２７番７ | JR6: 東京都 練馬区平和台２－２２－３ | JS6: 神奈川県 愛甲郡愛川町中津字諏訪２２６６番２ | JT6: 神奈川県 綾瀬市綾西３－８－４ | JU6: 神奈川県 伊勢原市石田字塚本１４７５番７ | JV6: 神奈川県 横須賀市野比３－５－４ | JW6: 神奈川県 横浜市旭区今宿１－４３－１０ | JX6: 神奈川県 横浜市磯子区洋光台４－３－２０ | JY6: 神奈川県 横浜市栄区鍛冶ケ谷２－２３－１０ | JZ6: 神奈川県 横浜市金沢区堀口８－９ | KA6: 神奈川県 横浜市戸塚区品濃町５２３番１外 | KB6: 神奈川県 横浜市港南区下永谷２－１９－２０ | KC6: 神奈川県 横浜市港北区錦が丘２６－２ | KD6: 神奈川県 横浜市神奈川区神之木台１６－８ | KE6: 神奈川県 横浜市瀬谷区中央３０番１３ | KF6: 神奈川県 横浜市西区西戸部町２丁目１１８番５外 | KG6: 神奈川県 横浜市青葉区しらとり台１７番５４ | KH6: 神奈川県 横浜市泉区新橋町字慶林小谷２１３６番４０ | KI6: 神奈川県 横浜市中区千代崎町１丁目２５番３９ | KJ6: 神奈川県 横浜市鶴見区東寺尾北台１５－４ | KK6: 神奈川県 横浜市都筑区牛久保東２－１４－４ | KL6: 神奈川県 横浜市南区大岡１－４２－１９ | KM6: 神奈川県 横浜市保土ケ谷区常盤台３－１８ | KN6: 神奈川県 横浜市緑区長津田みなみ台５丁目１４番７外 | KO6: 神奈川県 海老名市河原口３－４－１１ | KP6: 神奈川県 足柄上郡開成町延沢字下河原３７８番７ | KQ6: 神奈川県 鎌倉市大町３－１６－３ | KR6: 神奈川県 茅ケ崎市円蔵字御屋敷２０９８番８外 | KS6: 神奈川県 厚木市上落合字坪ノ内５３４番１０ | KT6: 神奈川県 座間市相模が丘２－３３－５８ | KU6: 神奈川県 三浦市三崎町小網代字鷺野１３２５番４ | KW6: 神奈川県 小田原市酒匂５－１１－２３ | KX6: 神奈川県 足柄上郡松田町松田惣領字張間田下１２１６番１１ | KZ6: 神奈川県 高座郡寒川町小谷３－１－５５ | LB6: 神奈川県 中郡二宮町山西字須崎４１０番１４外 | LC6: 神奈川県 秦野市戸川字ソン佛松７４７番３ | LD6: 神奈川県 逗子市桜山８－６－６ | LF6: 神奈川県 川崎市宮前区宮前平２丁目１５番２８ | LG6: 神奈川県 川崎市幸区遠藤町４１番４ | LH6: 神奈川県 川崎市高津区梶ケ谷３丁目８番２５ | LI6: 神奈川県 川崎市川崎区大島３－３７－１５ | LJ6: 神奈川県 川崎市多摩区菅５－１２－１６ | LK6: 神奈川県 川崎市中原区下小田中２－６－６ | LL6: 神奈川県 川崎市麻生区高石５－３－６ | LM6: 神奈川県 相模原市中央区上溝３－１７－２ | LN6: 神奈川県 相模原市南区相模大野２－１４－２ | LO6: 神奈川県 相模原市緑区下九沢字中宮１８６８番１３ | LP6: 神奈川県 中郡大磯町大磯字山王後１８８４番２ | LQ6: 神奈川県 大和市福田６丁目７番４ | LT6: 神奈川県 藤沢市鵠沼神明２－７－８ | LU6: 神奈川県 南足柄市飯沢字西海戸３５２番３ | LW6: 神奈川県 平塚市公所字宮の前２１７番６ | LX6: 神奈川県 三浦郡葉山町長柄字南郷１６４２番２６５
B7: 茨城県 かすみがうら市稲吉東２－１８－８ | C7: 茨城県 つくば市東光台３丁目６番７ | D7: 茨城県 つくばみらい市筒戸字諏訪２０２５番１３ | E7: 茨城県 ひたちなか市外野２－１０－２９ | F7: 茨城県 稲敷郡阿見町大字荒川本郷字おて橋１３４３番５３ | G7: 茨城県 稲敷市浮島字中郷３２０４番 | H7: 茨城県 東茨城郡茨城町大字飯沼字下宿６６７番１ | J7: 茨城県 猿島郡境町大字伏木字関根３５３２番１ | K7: 茨城県 那珂郡東海村舟石川駅東３－９－３６ | M7: 茨城県 下妻市本宗道字宮西５４番３ | N7: 茨城県 笠間市下郷字西裏３９６９番２ | O7: 茨城県 牛久市上柏田２丁目１５番１０ | P7: 茨城県 結城市大字結城字神明町１７９３番８７ | Q7: 茨城県 古河市諸川字海道西１２０９番７ | S7: 茨城県 行方市麻生字一丁窪３２９０番１２内 | T7: 茨城県 高萩市東本町２丁目２４番 | U7: 茨城県 坂東市岩井字旧境内２２５５番６ | V7: 茨城県 桜川市真壁町古城字大手前５６３番４ | W7: 茨城県 鹿嶋市大字平井字新押合２０番２１８ | X7: 茨城県 取手市米ノ井字辻田１２６番３９ | Y7: 茨城県 守谷市本町字新町５０４番８ | Z7: 茨城県 小美玉市中延字稲子田１２８番２ | AB7: 茨城県 常総市大輪町字満藏前２２１５番５外 | AC7: 茨城県 常陸太田市木崎二町字上軍田９２８番１４ | AE7: 茨城県 神栖市波崎字小玉台６８６４番１１ | AF7: 茨城県 水戸市堀町字野田原２２５３番５０ | AG7: 茨城県 石岡市東石岡４－７－７ | AI7: 茨城県 東茨城郡大洗町磯浜町字二葉町７８１２番１０ | AJ7: 茨城県 筑西市菅谷字大道１７６８番 | AK7: 茨城県 潮来市曲松２７５８番１ | AL7: 茨城県 土浦市中神立町６番４ | AM7: 茨城県 那珂市菅谷字大木内９６２番１３ | AN7: 茨城県 日立市大みか町４－２６－２４ | AP7: 茨城県 鉾田市札字下宿１１４９番 | AQ7: 茨城県 北茨城市磯原町磯原１丁目１２８番外 | AR7: 茨城県 北相馬郡利根町大字早尾字早尾台３００番３４０ | AS7: 茨城県 龍ケ崎市愛戸町２６番 | AT7: 栃木県 さくら市卯の里４丁目５１番３ | AU7: 栃木県 宇都宮市野沢町字西沢１８７番７９ | AX7: 栃木県 下野市上大領字東原２８４番１９ | AY7: 栃木県 塩谷郡高根沢町大字中阿久津字下河原１１１６番２ | AZ7: 栃木県 佐野市高萩町字天神前１１１１番２４外 | BB7: 栃木県 鹿沼市楡木町字西前９９９番１８ | BC7: 栃木県 小山市城東３－２６－２１ | BD7: 栃木県 河内郡上三川町しらさぎ３丁目１３番３外 | BE7: 栃木県 真岡市大谷台町２５番７ | BF7: 栃木県 下都賀郡壬生町大字安塚字西南原８７５番１６ | BG7: 栃木県 足利市柳原町８５９番１６ | BH7: 栃木県 大田原市新富町２－３－３２ | BI7: 栃木県 栃木市入舟町１９－７ | BL7: 栃木県 那須烏山市大金字屋敷西１９７番１外 | BM7: 栃木県 那須塩原市下永田３丁目１１７２番１２ | BN7: 栃木県 日光市瀬尾字前原７７番１０外 | BR7: 栃木県 矢板市末広町４３番１１ | BS7: 群馬県 みどり市大間々町大間々１５５８番１外 | BT7: 群馬県 利根郡みなかみ町後閑字舟戸３１６番１外 | BU7: 群馬県 安中市松井田町人見字下法正寺１８２番３ | BV7: 群馬県 伊勢崎市田部井町２丁目９９５番１８ | BY7: 群馬県 館林市足次町字新田１０１番６ | CB7: 群馬県 桐生市新里町新川字天神原３８３２番４ | CF7: 群馬県 高崎市足門町字鶴巻１６１４番１ | CG7: 群馬県 渋川市北橘町下箱田字下篠５３６番７ | CJ7: 群馬県 前橋市下小出町３丁目１７番１０ | CK7: 群馬県 太田市沖之郷町４９１番３ | CL7: 群馬県 邑楽郡大泉町仙石４－１５－１１ | CQ7: 群馬県 藤岡市藤岡字北ノ原９８０番３ | CS7: 群馬県 富岡市一ノ宮字南平１６６８番１外 | CU7: 埼玉県 さいたま市浦和区大東３－３２－９ | CV7: 埼玉県 さいたま市岩槻区加倉４－２２－４１ | CW7: 埼玉県 さいたま市見沼区大和田町１丁目１２３０番７４ | CX7: 埼玉県 さいたま市桜区道場２－１８－３３ | CY7: 埼玉県 さいたま市西区プラザ２３－５ | CZ7: 埼玉県 さいたま市大宮区上小町９６７番 | DA7: 埼玉県 さいたま市中央区下落合４－３－１０ | DB7: 埼玉県 さいたま市南区太田窪４－８－５ | DC7: 埼玉県 さいたま市北区日進町３丁目８０６番２ | DD7: 埼玉県 さいたま市緑区東大門３丁目１６番４ | DF7: 埼玉県 ふじみ野市上福岡３－１５－４ | DG7: 埼玉県 羽生市西３－８－２４ | DI7: 埼玉県 越谷市大字恩間字荒久２１９番６ | DK7: 埼玉県 桶川市泉１－１０－３３ | DL7: 埼玉県 加須市久下３丁目１番４外 | DO7: 埼玉県 比企郡吉見町大字下銀谷字宅地前通４２４番１ | DP7: 埼玉県 吉川市上笹塚２丁目２１２番２外 | DQ7: 埼玉県 久喜市北青柳字本村４４３番４外 | DR7: 埼玉県 南埼玉郡宮代町百間４－６－９ | DS7: 埼玉県 狭山市広瀬台１－４－１９ | DT7: 埼玉県 熊谷市榎町７０番 | DU7: 埼玉県 戸田市下前１－４－１１ | DV7: 埼玉県 幸手市中２－２－６ | DW7: 埼玉県 行田市長野３－１－２１ | DX7: 埼玉県 鴻巣市新宿２丁目６８番２ | DY7: 埼玉県 坂戸市芦山町１８番１７ | EA7: 埼玉県 比企郡滑川町大字羽尾字山屋敷１２７５番 | EB7: 埼玉県 比企郡小川町大字腰越字北早道２４７番２ | ED7: 埼玉県 三郷市三郷１丁目２５番２ | EE7: 埼玉県 入間郡三芳町大字竹間沢字新開４２１番１９ | EF7: 埼玉県 志木市上宗岡１－６－４０ | EG7: 埼玉県 春日部市緑町６－１６－１８ | EH7: 埼玉県 所沢市狭山ケ丘２丁目６５番５ | EK7: 埼玉県 上尾市本町２－１２－１７ | EM7: 埼玉県 新座市野火止１－１２－１４ | EN7: 埼玉県 深谷市宿根字八幡１４７２番２ | EP7: 埼玉県 北葛飾郡杉戸町清地２－４－６ | EQ7: 埼玉県 川越市大字古谷上字沼端２０４１番１ | ER7: 埼玉県 川口市元郷３－８－８ | ES7: 埼玉県 草加市稲荷５－３５－８ | ET7: 埼玉県 秩父市中町６－１ | EU7: 埼玉県 朝霞市根岸台６－６－２１ | EV7: 埼玉県 鶴ケ島市新町４丁目５番１６ | EW7: 埼玉県 東松山市松葉町４－７－１０ | EX7: 埼玉県 日高市大字上鹿山字宮ノ後１８２番１０ | EY7: 埼玉県 入間市久保稲荷１丁目３番１２ | EZ7: 埼玉県 白岡市小久喜字沖山２５７番３外 | FA7: 埼玉県 八潮市大字伊勢野字根通６４番１９ | FC7: 埼玉県 飯能市大字双柳字浅間１１４８番２０ | FE7: 埼玉県 富士見市渡戸３－１１－２７ | FF7: 埼玉県 北本市石戸７丁目１４番 | FG7: 埼玉県 本庄市小島２－５－１１ | FH7: 埼玉県 入間郡毛呂山町中央１丁目７番５ | FI7: 埼玉県 比企郡嵐山町大字志賀字我田分３１６番３５ | FJ7: 埼玉県 蓮田市椿山３－１６－４ | FK7: 埼玉県 和光市新倉３－２－６ | FL7: 埼玉県 蕨市中央４－１０－１９ | FN7: 千葉県 旭市ニ字井戸尻５７８番４外 | FO7: 千葉県 印西市大森字東埜原３６０２番９３ | FP7: 千葉県 浦安市堀江１－１４－２３ | FR7: 千葉県 我孫子市天王台３－３０－１６ | FS7: 千葉県 鎌ケ谷市東道野辺７－１８－２６ | FW7: 千葉県 君津市北子安３－５－２３ | FY7: 千葉県 香取市小見川字八丁面４８６６番３４５ | FZ7: 千葉県 佐倉市染井野５丁目１５番４ | GA7: 千葉県 山武市蓮沼ニ字浜後５５５８番２ | GB7: 千葉県 四街道市四街道２－１９－１７ | GC7: 千葉県 市原市八幡字鬼田３８２番２ | GD7: 千葉県 市川市大野町１丁目４４３番１１ | GF7: 千葉県 印旛郡酒々井町本佐倉字北押出し２６３番１９６ | GG7: 千葉県 習志野市花咲１－１７－１１ | GI7: 千葉県 松戸市常盤平双葉町８番９ | GJ7: 千葉県 成田市名古屋字横峰１３７４番３１０ | GL7: 千葉県 千葉市稲毛区宮野木町１７５５番３１ | GN7: 千葉県 千葉市花見川区幕張町１丁目１２６５番１ | GO7: 千葉県 千葉市若葉区東寺山町９３６番３７ | GP7: 千葉県 千葉市中央区松波１－１８－１４ | GQ7: 千葉県 千葉市美浜区幸町１－１９－２ | GR7: 千葉県 千葉市緑区誉田町２丁目２番９４５ | GS7: 千葉県 船橋市夏見４－２－１５ | GT7: 千葉県 匝瑳市八日市場ハ字エビス田９７４番２ | GU7: 千葉県 袖ケ浦市蔵波台１丁目１３番５ | GW7: 千葉県 大網白里市大網字熊ノ前５７５番１９ | GX7: 千葉県 銚子市三崎町３丁目４番８ | HA7: 千葉県 東金市東金字岩崎１２０４番 | HC7: 千葉県 柏市逆井４－３７－５ | HD7: 千葉県 白井市大山口１－３－６ | HG7: 千葉県 八千代市大和田新田字壱本松前１３８番３９ | HH7: 千葉県 富津市大堀２丁目１２番１７ | HI7: 千葉県 富里市日吉倉字松ノ木２０番５ | HJ7: 千葉県 茂原市東茂原字古川１３番１０３ | HK7: 千葉県 木更津市羽鳥野２丁目２５番４ | HL7: 千葉県 野田市岡田字下尻坪５８８番２８ | HM7: 千葉県 流山市西深井字八ノ割６４０番４ | HN7: 東京都 あきる野市小川東１丁目１３番５ | HO7: 東京都 稲城市大字東長沼字七号２１２０番２ | HP7: 東京都 羽村市羽中１－６－４７ | HQ7: 東京都 葛飾区東金町２－６－１８ | HR7: 東京都 江戸川区東小岩６－８－９ | HS7: 東京都 江東区南砂２－１６－６ | HT7: 東京都 港区白金台４－１６－４ | HU7: 東京都 荒川区東日暮里６－４０－９ | HV7: 東京都 国分寺市西町１丁目１１番３１ | HW7: 東京都 国立市富士見台１丁目２２番１７ | HX7: 東京都 狛江市東野川３－１４－３ | HY7: 東京都 三鷹市大沢４－１６－２２ | HZ7: 東京都 渋谷区大山町３４－９ | IB7: 東京都 小金井市貫井南町４－１２－２ | IC7: 東京都 小平市回田町２５２番１２外 | ID7: 東京都 昭島市郷地町２－１７－６ | IE7: 東京都 新宿区北新宿４－２２－１６ | IH7: 東京都 杉並区桃井４－１２－２１ | II7: 東京都 世田谷区大原１－３－６ | IJ7: 東京都 清瀬市中里３丁目９７０番１３外 | IK7: 東京都 西東京市富士町２－６－２７ | IL7: 東京都 青梅市小曾木３丁目２０２４番１外 | IM7: 東京都 千代田区九段北２－３－２５ | IN7: 東京都 足立区神明１－３－４ | IO7: 東京都 多摩市一ノ宮１丁目１４番２１ | IP7: 東京都 台東区谷中６－２－１９ | IQ7: 東京都 大田区東雪谷１－３２－１６ | IR7: 東京都 中央区佃３－３－９ | IS7: 東京都 中野区弥生町５－９－２６ | IT7: 東京都 町田市中町２－２０－１５ | IU7: 東京都 調布市佐須町２丁目１２番１１ | IV7: 東京都 東久留米市新川町１－１２－３ | IX7: 東京都 西多摩郡瑞穂町大字長岡長谷部字中平３６２番２０ | IZ7: 東京都 府中市是政６丁目２７番２２ | JA7: 東京都 東村山市多摩湖町４丁目２３番４ | JB7: 東京都 東大和市南街１丁目３７番２ | JC7: 東京都 西多摩郡日の出町大字大久野字萱窪８７３番２５ | JD7: 東京都 日野市平山１丁目１３番３ | JE7: 東京都 八王子市元横山町３－１２－５ | JG7: 東京都 板橋区小茂根４－１３－１１ | JH7: 東京都 品川区東品川１－３９－２ | JI7: 東京都 武蔵村山市神明２丁目１１６番６ | JJ7: 東京都 武蔵野市西久保２－１４－２ | JK7: 東京都 福生市東町６番５ | JL7: 東京都 文京区本駒込５－２２－２ | JM7: 東京都 豊島区千早４－２２－１３ | JN7: 東京都 北区王子本町２－２７－４ | JO7: 東京都 墨田区八広４－４７－７ | JP7: 東京都 目黒区平町１－１４－１８ | JQ7: 東京都 立川市柴崎町１－１１－８ | JR7: 東京都 練馬区氷川台４－４５－１８ | JS7: 神奈川県 愛甲郡愛川町中津字桜台７３６２番２ | JT7: 神奈川県 綾瀬市寺尾中１－１５－１３ | JU7: 神奈川県 伊勢原市桜台４－８－３０ | JV7: 神奈川県 横須賀市望洋台５－１５ | JW7: 神奈川県 横浜市旭区鶴ケ峰本町２－２８－４ | JX7: 神奈川県 横浜市磯子区栗木３－１６－１３ | JY7: 神奈川県 横浜市栄区飯島町字滝ケ久保１７７３番８５ | JZ7: 神奈川県 横浜市金沢区釜利谷西１－４３－２１ | KA7: 神奈川県 横浜市戸塚区平戸２－２３－９ | KB7: 神奈川県 横浜市港南区上大岡東１－３１－９ | KC7: 神奈川県 横浜市港北区箕輪町３－２３－１１ | KD7: 神奈川県 横浜市神奈川区六角橋５－２３－４ | KE7: 神奈川県 横浜市瀬谷区本郷１丁目５１番７外 | KF7: 神奈川県 横浜市西区御所山町１３番６ | KG7: 神奈川県 横浜市青葉区すみよし台２４番１９ | KH7: 神奈川県 横浜市泉区領家３丁目１７番９ | KI7: 神奈川県 横浜市中区西竹之丸９４番８ | KJ7: 神奈川県 横浜市鶴見区矢向３－１－２ | KK7: 神奈川県 横浜市都筑区中川１－２６－１８ | KL7: 神奈川県 横浜市南区中村町５丁目３１０番６外 | KM7: 神奈川県 横浜市保土ケ谷区鎌谷町２７２番７ | KN7: 神奈川県 横浜市緑区中山６－３６－２ | KO7: 神奈川県 海老名市社家字小町２６番２ | KQ7: 神奈川県 鎌倉市稲村ガ崎４－６－１８ | KR7: 神奈川県 茅ケ崎市東海岸北２－６－４ | KS7: 神奈川県 厚木市関口字山ノ根１０２４番６ | KT7: 神奈川県 座間市新田宿字東裏１０３番１外 | KU7: 神奈川県 三浦市初声町下宮田字沓形１０７９番１０４ | KW7: 神奈川県 小田原市飯泉字丹花前５８５番２６ | KZ7: 神奈川県 高座郡寒川町大曲１－１９－５ | LB7: 神奈川県 中郡二宮町富士見が丘１－１２－１７ | LC7: 神奈川県 秦野市鶴巻南３－２３－２ | LD7: 神奈川県 逗子市沼間２－６－７ | LF7: 神奈川県 川崎市宮前区宮崎１丁目１２番３４外 | LG7: 神奈川県 川崎市幸区北加瀬２－１３－１２ | LH7: 神奈川県 川崎市高津区上作延字原間谷２７０番８ | LI7: 神奈川県 川崎市川崎区田島町６－３ | LJ7: 神奈川県 川崎市多摩区宿河原７－３－３０ | LK7: 神奈川県 川崎市中原区下小田中６－１７－１４ | LL7: 神奈川県 川崎市麻生区百合丘２丁目１６番１ | LM7: 神奈川県 相模原市中央区矢部４－８－７ | LN7: 神奈川県 相模原市南区相模台２－１７－８ | LO7: 神奈川県 相模原市緑区橋本８－１０－１ | LP7: 神奈川県 中郡大磯町石神台３－２０－３ | LQ7: 神奈川県 大和市福田字甲五ノ区１３２５番２ | LT7: 神奈川県 藤沢市辻堂元町２－８－１８ | LU7: 神奈川県 南足柄市塚原字平和１６１１番２ | LW7: 神奈川県 平塚市黒部丘１６－３９ | LX7: 神奈川県 三浦郡葉山町一色字菖蒲沢１６６４番２外
